{"text_format":"1","workbook":"xlsx","n_sheets":10,"sheets":["دليل الحسابات","مستند قيد","اليومية العامه","كشف حساب تحليلى","كشف حساب عام","ميزان المراجعه","القوائم الماليه","مقدمه","invoice","الفواتير المطبوعة"],"not_rendered":{"charts":0,"images":6,"macros":1,"external_links":1,"defined_names":25,"comments":0,"pivot_tables":1},"unopened":[],"bounds":{"document_bytes":16777216,"sheet_cells":100000,"rows_first":2000,"rows_last":500,"rows_between":2000,"halvings":0,"cell_chars":16384,"cell_head_chars":4096},"cells_cut":0,"cells_raw":0,"read":"whole","date_system":"1900"}

{"sheet":"دليل الحسابات","index":0,"n_rows":20,"n_cols":14,"rows_kept":20,"cut":false,"hidden":false,"merged":[]}
[]
[]
["حسابات القوائم","حسابات رئيسيه","القسم","اسم الصنف"]
["المجموعة","المجموعة","القطعة","القسم","الاصناف","الوحدة","سعر البيع","سعر الشراء","صافي الربح","سعر البيع المقترح",null,"أسماء الحسابات",null,"الشركات المساهمة"]
["ادوات منزلية"," المطبقايات","قطعة"," المطبقايات","مطبقيه استانلس","قطعة",190,175,15,null,null,{"$f":"IFERROR(INDEX(الحساب_العام,MATCH(0,IF(الحساب_العام=\"\",\"\",COUNTIF($L$4:L4,الحساب_العام)),0)),\"\")","v":" المطبقايات"},null,"Home tuk"]
["ادوات منزلية"," المطبقايات","قطعة"," المطبقايات","المطبقيه العملاقه مقاس ٦٥سم","قطعة",510,495,15,null,null,{"$f":"IFERROR(INDEX(الحساب_العام,MATCH(0,IF(الحساب_العام=\"\",\"\",COUNTIF($L$4:L5,الحساب_العام)),0)),\"\")","v":" وصله حنفيه"},null,"Al masa"]
["ادوات منزلية"," المطبقايات","قطعة"," المطبقايات","مطبقيه معدن مقاس ٦٥ سم ","قطعة",510,495,15,null,null,{"$f":"IFERROR(INDEX(الحساب_العام,MATCH(0,IF(الحساب_العام=\"\",\"\",COUNTIF($L$4:L6,الحساب_العام)),0)),\"\")","v":"ادوات اخري"},null,"Tuk home"]
["ادوات منزلية"," المطبقايات","قطعة"," المطبقايات"," مطبقيه مستورده 2 دور","قطعة",530,515,15,null,null,{"$f":"IFERROR(INDEX(الحساب_العام,MATCH(0,IF(الحساب_العام=\"\",\"\",COUNTIF($L$4:L7,الحساب_العام)),0)),\"\")","v":"خدمة التوصيل"},null,"Dark home"]
["ادوات منزلية"," المطبقايات","قطعة"," المطبقايات"," مطبقيه مستورده ٣ دور","قطعة",550,535,15,null,null,{"$f":"IFERROR(INDEX(الحساب_العام,MATCH(0,IF(الحساب_العام=\"\",\"\",COUNTIF($L$4:L8,الحساب_العام)),0)),\"\")","v":""},null,"In kitchen"]
["ادوات منزلية"," المطبقايات","قطعة"," المطبقايات","المطبقيه العملاقه مقاس 85سم ","قطعة",550,535,15,null,null,{"$f":"IFERROR(INDEX(الحساب_العام,MATCH(0,IF(الحساب_العام=\"\",\"\",COUNTIF($L$4:L9,الحساب_العام)),0)),\"\")","v":""},null,"Dreamy home"]
["ادوات منزلية"," المطبقايات","قطعة"," المطبقايات","المطبقيه العملاقه مقاس ٨٥ ","قطعة",550,535,15,null,null,{"$f":"IFERROR(INDEX(الحساب_العام,MATCH(0,IF(الحساب_العام=\"\",\"\",COUNTIF($L$4:L10,الحساب_العام)),0)),\"\")","v":""},null,"Glory kitchen"]
["ادوات منزلية"," وصله حنفيه","قطعة"," وصله حنفيه","وصله حنفيه جامبو بزرار","قطعة",25,10,15,null,null,{"$f":"IFERROR(INDEX(الحساب_العام,MATCH(0,IF(الحساب_العام=\"\",\"\",COUNTIF($L$4:L11,الحساب_العام)),0)),\"\")","v":""},null,"Shiny home"]
["ادوات منزلية"," وصله حنفيه","قطعة"," وصله حنفيه"," وصله حنفيه","قطعة",50,35,15,null,null,{"$f":"IFERROR(INDEX(الحساب_العام,MATCH(0,IF(الحساب_العام=\"\",\"\",COUNTIF($L$4:L12,الحساب_العام)),0)),\"\")","v":""},null,"Trendy house"]
["ادوات منزلية","ادوات اخري","قطعة","ادوات اخري"," قفل ثلاجه","قطعة",20,5,15,null,null,{"$f":"IFERROR(INDEX(الحساب_العام,MATCH(0,IF(الحساب_العام=\"\",\"\",COUNTIF($L$4:L13,الحساب_العام)),0)),\"\")","v":""}]
["خدمة التوصيل","خدمة التوصيل","-","خدمة التوصيل","خدمة التوصيل - 0","-",0,-15,15,null,null,{"$f":"IFERROR(INDEX(الحساب_العام,MATCH(0,IF(الحساب_العام=\"\",\"\",COUNTIF($L$4:L14,الحساب_العام)),0)),\"\")","v":""}]
["خدمة التوصيل","خدمة التوصيل","-","خدمة التوصيل","خدمة التوصيل - 25","-",25,10,15,null,null,{"$f":"IFERROR(INDEX(الحساب_العام,MATCH(0,IF(الحساب_العام=\"\",\"\",COUNTIF($L$4:L15,الحساب_العام)),0)),\"\")","v":""}]
["خدمة التوصيل","خدمة التوصيل","-","خدمة التوصيل","خدمة التوصيل - 30","-",30,15,15]
["خدمة التوصيل","خدمة التوصيل","-","خدمة التوصيل","خدمة التوصيل - 40","-",40,25,15]
["خدمة التوصيل","خدمة التوصيل","-","خدمة التوصيل","خدمة التوصيل - 45","-",45,30,15]
["خدمة التوصيل","خدمة التوصيل","-","خدمة التوصيل","خدمة التوصيل - 50","-",50,35,15]

{"sheet":"مستند قيد","index":1,"n_rows":52,"n_cols":7,"rows_kept":52,"cut":false,"hidden":false,"merged":[]}
[]
["فاتورة رقم  :",5]
["اسم العميل","محمد","التاريخ","2022-11-25","شركة التسويق","الفهد للشحن","عدد اصناف الشحنة"]
["التيلفون",558974,"شركة","In kitchen","اسم المسوق","ياسر",{"$f":"SUBTOTAL(9,F9:F51)","v":7}]
["العنوان","5 شارع الباشا من ميدان شكري","رقم الفاتورة",2,"رقم التيلفون",5566889,"الاجمالي"]
["المحافظة","الإسكندرية","كود الفاتورة","02 - In kitchen - 11-2022","خدمة التوصيل",45,{"$f":"SUBTOTAL(109,G9:G51)","v":2194}]
[]
["مسلسل","القسم","اسم الصنف","السعر","الوحدة","الكمية","الاجمالي"]
[{"$f":"IF(B9<>\"\",SUBTOTAL(103,$B$9:B9),\" \")","v":1}," وصله حنفيه"," وصله حنفيه",260,"قطعة",2,{"$f":"IF(F9=\"\",\"\",D9*F9)","v":520}]
[{"$f":"IF(B10<>\"\",SUBTOTAL(103,$B$9:B10),\" \")","v":2}," وصله حنفيه"," وصله حنفيه",710,"قطعة",1,{"$f":"IF(F10=\"\",\"\",D10*F10)","v":710}]
[{"$f":"IF(B11<>\"\",SUBTOTAL(103,$B$9:B11),\" \")","v":3},"ادوات اخري"," مطبقيه مستورده ٣ دور",200,"قطعة",3,600]
[{"$f":"IF(B12<>\"\",SUBTOTAL(103,$B$9:B12),\" \")","v":4},"ادوات اخري"," قفل ثلاجه",364,"قطعة",1,364]
[{"$f":"IF(B13<>\"\",SUBTOTAL(103,$B$9:B13),\" \")","v":" "},null,null,null,null,null,{"$f":"IF(F13=\"\",\"\",D13*F13)","v":""}]
[{"$f":"IF(B14<>\"\",SUBTOTAL(103,$B$9:B14),\" \")","v":" "},null,null,null,null,null,""]
[{"$f":"IF(B15<>\"\",SUBTOTAL(103,$B$9:B15),\" \")","v":" "},null,null,null,null,null,""]
[{"$f":"IF(B16<>\"\",SUBTOTAL(103,$B$9:B16),\" \")","v":" "},null,null,null,null,null,""]
[{"$f":"IF(B17<>\"\",SUBTOTAL(103,$B$9:B17),\" \")","v":" "},null,null,null,null,null,""]
[{"$f":"IF(B18<>\"\",SUBTOTAL(103,$B$9:B18),\" \")","v":" "},null,null,null,null,null,""]
[{"$f":"IF(B19<>\"\",SUBTOTAL(103,$B$9:B19),\" \")","v":" "},null,null,null,null,null,""]
[{"$f":"IF(B20<>\"\",SUBTOTAL(103,$B$9:B20),\" \")","v":" "},null,null,null,null,null,""]
[{"$f":"IF(B21<>\"\",SUBTOTAL(103,$B$9:B21),\" \")","v":" "},null,null,null,null,null,""]
[{"$f":"IF(B22<>\"\",SUBTOTAL(103,$B$9:B22),\" \")","v":" "},null,null,null,null,null,""]
[{"$f":"IF(B23<>\"\",SUBTOTAL(103,$B$9:B23),\" \")","v":" "},null,null,null,null,null,""]
[{"$f":"IF(B24<>\"\",SUBTOTAL(103,$B$9:B24),\" \")","v":" "},null,null,null,null,null,""]
[{"$f":"IF(B25<>\"\",SUBTOTAL(103,$B$9:B25),\" \")","v":" "},null,null,null,null,null,""]
[{"$f":"IF(B26<>\"\",SUBTOTAL(103,$B$9:B26),\" \")","v":" "},null,null,null,null,null,""]
[{"$f":"IF(B27<>\"\",SUBTOTAL(103,$B$9:B27),\" \")","v":" "},null,null,null,null,null,""]
[{"$f":"IF(B28<>\"\",SUBTOTAL(103,$B$9:B28),\" \")","v":" "},null,null,null,null,null,""]
[{"$f":"IF(B29<>\"\",SUBTOTAL(103,$B$9:B29),\" \")","v":" "},null,null,null,null,null,""]
[{"$f":"IF(B30<>\"\",SUBTOTAL(103,$B$9:B30),\" \")","v":" "},null,null,null,null,null,""]
[{"$f":"IF(B31<>\"\",SUBTOTAL(103,$B$9:B31),\" \")","v":" "},null,null,null,null,null,""]
[{"$f":"IF(B32<>\"\",SUBTOTAL(103,$B$9:B32),\" \")","v":" "},null,null,null,null,null,""]
[{"$f":"IF(B33<>\"\",SUBTOTAL(103,$B$9:B33),\" \")","v":" "},null,null,null,null,null,""]
[{"$f":"IF(B34<>\"\",SUBTOTAL(103,$B$9:B34),\" \")","v":" "},null,null,null,null,null,""]
[{"$f":"IF(B35<>\"\",SUBTOTAL(103,$B$9:B35),\" \")","v":" "},null,null,null,null,null,""]
[{"$f":"IF(B36<>\"\",SUBTOTAL(103,$B$9:B36),\" \")","v":" "},null,null,null,null,null,""]
[{"$f":"IF(B37<>\"\",SUBTOTAL(103,$B$9:B37),\" \")","v":" "},null,null,null,null,null,""]
[{"$f":"IF(B38<>\"\",SUBTOTAL(103,$B$9:B38),\" \")","v":" "},null,null,null,null,null,""]
[{"$f":"IF(B39<>\"\",SUBTOTAL(103,$B$9:B39),\" \")","v":" "},null,null,null,null,null,""]
[{"$f":"IF(B40<>\"\",SUBTOTAL(103,$B$9:B40),\" \")","v":" "},null,null,null,null,null,""]
[{"$f":"IF(B41<>\"\",SUBTOTAL(103,$B$9:B41),\" \")","v":" "},null,null,null,null,null,""]
[{"$f":"IF(B42<>\"\",SUBTOTAL(103,$B$9:B42),\" \")","v":" "},null,null,null,null,null,""]
[{"$f":"IF(B43<>\"\",SUBTOTAL(103,$B$9:B43),\" \")","v":" "},null,null,null,null,null,""]
[{"$f":"IF(B44<>\"\",SUBTOTAL(103,$B$9:B44),\" \")","v":" "},null,null,null,null,null,""]
[{"$f":"IF(B45<>\"\",SUBTOTAL(103,$B$9:B45),\" \")","v":" "},null,null,null,null,null,""]
[{"$f":"IF(B46<>\"\",SUBTOTAL(103,$B$9:B46),\" \")","v":" "},null,null,null,null,null,""]
[{"$f":"IF(B47<>\"\",SUBTOTAL(103,$B$9:B47),\" \")","v":" "},null,null,null,null,null,""]
[{"$f":"IF(B48<>\"\",SUBTOTAL(103,$B$9:B48),\" \")","v":" "},null,null,null,null,null,""]
[{"$f":"IF(B49<>\"\",SUBTOTAL(103,$B$9:B49),\" \")","v":" "},null,null,null,null,null,""]
[{"$f":"IF(B50<>\"\",SUBTOTAL(103,$B$9:B50),\" \")","v":" "},null,null,null,null,null,""]
[{"$f":"IF(B51<>\"\",SUBTOTAL(103,$B$9:B51),\" \")","v":" "},null,null,null,null,null,""]
[null,null,null,null,null,"يعتمد ,,,,"]

{"sheet":"اليومية العامه","index":2,"n_rows":29,"n_cols":20,"rows_kept":29,"cut":false,"hidden":false,"merged":[]}
[]
[]
[]
[]
[]
[null,"التاريخ","الشركة","رقم الفاتورة","كود الفاتورة","القسم","اسم الصنف","السعر","الوحدة","الكمية","الاجمالي","اسم العميل","التيلفون","العنوان","المحافظة","شركة التسويق","اسم المسوق","رقم التيلفون","خدمة التوصيل","الملاحظات"]
[null,"2022-11-22","Shiny home",1,"03 - Shiny home - 11-2022"," المطبقايات","مطبقيه معدن مقاس ٦٥ سم ",510,"قطعة",1,510,"خالد",775566,"5 شارع الباشا من ميدان شكري","القاهرة","الفهد للشحن","ياسر",5566889,60]
[null,"2022-11-22","Shiny home",1,"03 - Shiny home - 11-2022"," المطبقايات"," مطبقيه مستورده 2 دور",530,"قطعة",1,530,"خالد",775566,"5 شارع الباشا من ميدان شكري","القاهرة","الفهد للشحن","ياسر",5566889]
[null,"2022-11-22","Shiny home",1,"03 - Shiny home - 11-2022","ادوات اخري"," مطبقيه مستورده ٣ دور",190,"قطعة",1,190,"خالد",775566,"5 شارع الباشا من ميدان شكري","القاهرة","الفهد للشحن","ياسر",5566889]
[null,"2022-11-22","Shiny home",1,"03 - Shiny home - 11-2022"," المطبقايات","مطبقيه معدن مقاس ٦٥ سم ",510,"قطعة",1,510,"خالد",775566,"5 شارع الباشا من ميدان شكري","القاهرة","الفهد للشحن","ياسر",5566889]
[null,"2022-11-22","Shiny home",1,"03 - Shiny home - 11-2022"," المطبقايات"," مطبقيه مستورده 2 دور",530,"قطعة",1,530,"خالد",775566,"5 شارع الباشا من ميدان شكري","القاهرة","الفهد للشحن","ياسر",5566889]
[null,"2022-11-22","Shiny home",1,"01 - Shiny home - 11-2022"," المطبقايات","مطبقيه معدن مقاس ٦٥ سم ",510,"قطعة",1,510,"خالد",775566,"5 شارع الباشا من ميدان شكري","القاهرة","الفهد للشحن","ياسر",5566889]
[null,"2022-11-22","Shiny home",1,"01 - Shiny home - 11-2022"," المطبقايات"," مطبقيه مستورده 2 دور",530,"قطعة",1,530,"خالد",775566,"5 شارع الباشا من ميدان شكري","القاهرة","الفهد للشحن","ياسر",5566889]
[null,"2022-11-22","Shiny home",1,"01 - Shiny home - 11-2022","ادوات اخري"," مطبقيه مستورده ٣ دور",190,"قطعة",1,190,"خالد",775566,"5 شارع الباشا من ميدان شكري","القاهرة","الفهد للشحن","ياسر",5566889]
[null,"2022-11-22","Shiny home",1,"01 - Shiny home - 11-2022"," المطبقايات","مطبقيه معدن مقاس ٦٥ سم ",510,"قطعة",1,510,"خالد",775566,"5 شارع الباشا من ميدان شكري","القاهرة","الفهد للشحن","ياسر",5566889]
[null,"2022-11-22","Shiny home",1,"01 - Shiny home - 11-2022"," المطبقايات"," مطبقيه مستورده 2 دور",530,"قطعة",1,530,"خالد",775566,"5 شارع الباشا من ميدان شكري","القاهرة","الفهد للشحن","ياسر",5566889]
[null,"2022-11-25","In kitchen",2,"02 - In kitchen - 11-2022"," وصله حنفيه"," وصله حنفيه",260,"قطعة",2,520,"محمد",558974,"5 شارع الباشا من ميدان شكري","الإسكندرية","الفهد للشحن","ياسر",5566889,45]
[null,"2022-11-25","In kitchen",2,"02 - In kitchen - 11-2022"," وصله حنفيه"," وصله حنفيه",710,"قطعة",1,710,"محمد",558974,"5 شارع الباشا من ميدان شكري","الإسكندرية","الفهد للشحن","ياسر",5566889]
[null,"2022-11-25","In kitchen",2,"02 - In kitchen - 11-2022","ادوات اخري"," مطبقيه مستورده ٣ دور",200,"قطعة",3,600,"محمد",558974,"5 شارع الباشا من ميدان شكري","الإسكندرية","الفهد للشحن","ياسر",5566889]
[null,"2022-11-25","In kitchen",2,"02 - In kitchen - 11-2022","ادوات اخري"," قفل ثلاجه",364,"قطعة",1,364,"محمد",558974,"5 شارع الباشا من ميدان شكري","الإسكندرية","الفهد للشحن","ياسر",5566889]
[null,"2022-11-22","Shiny home",3,"04 - Shiny home - 11-2022"," المطبقايات","مطبقيه معدن مقاس ٦٥ سم ",510,"قطعة",1,510,"خالد",775566,"5 شارع الباشا من ميدان شكري","القاهرة","الفهد للشحن","ياسر",5566889,60]
[null,"2022-11-22","Shiny home",3,"04 - Shiny home - 11-2022"," المطبقايات"," مطبقيه مستورده 2 دور",530,"قطعة",1,530,"خالد",775566,"5 شارع الباشا من ميدان شكري","القاهرة","الفهد للشحن","ياسر",5566889]
[null,"2022-11-22","Shiny home",3,"04 - Shiny home - 11-2022","ادوات اخري"," مطبقيه مستورده ٣ دور",190,"قطعة",1,190,"خالد",775566,"5 شارع الباشا من ميدان شكري","القاهرة","الفهد للشحن","ياسر",5566889]
[null,"2022-11-22","Shiny home",3,"04 - Shiny home - 11-2022"," المطبقايات","مطبقيه معدن مقاس ٦٥ سم ",510,"قطعة",1,510,"خالد",775566,"5 شارع الباشا من ميدان شكري","القاهرة","الفهد للشحن","ياسر",5566889]
[null,"2022-11-22","Shiny home",3,"04 - Shiny home - 11-2022"," المطبقايات"," مطبقيه مستورده 2 دور",530,"قطعة",1,530,"خالد",775566,"5 شارع الباشا من ميدان شكري","القاهرة","الفهد للشحن","ياسر",5566889]
[null,"2022-11-22","Shiny home",4,"05 - Shiny home - 11-2022"," المطبقايات","مطبقيه معدن مقاس ٦٥ سم ",510,"قطعة",1,510,"خالد",775566,"5 شارع الباشا من ميدان شكري","القاهرة","الفهد للشحن","ياسر",5566889,60]
[null,"2022-11-22","Shiny home",4,"05 - Shiny home - 11-2022"," المطبقايات"," مطبقيه مستورده 2 دور",530,"قطعة",1,530,"خالد",775566,"5 شارع الباشا من ميدان شكري","القاهرة","الفهد للشحن","ياسر",5566889]
[null,"2022-11-22","Shiny home",4,"05 - Shiny home - 11-2022","ادوات اخري"," مطبقيه مستورده ٣ دور",190,"قطعة",1,190,"خالد",775566,"5 شارع الباشا من ميدان شكري","القاهرة","الفهد للشحن","ياسر",5566889]
[null,"2022-11-22","Shiny home",4,"05 - Shiny home - 11-2022"," المطبقايات","مطبقيه معدن مقاس ٦٥ سم ",510,"قطعة",1,510,"خالد",775566,"5 شارع الباشا من ميدان شكري","القاهرة","الفهد للشحن","ياسر",5566889]

{"sheet":"كشف حساب تحليلى","index":3,"n_rows":73,"n_cols":11,"rows_kept":73,"cut":false,"hidden":true,"merged":[[1,2,1,4],[2,2,2,4],[3,2,3,4],[1,9,2,10],[72,8,72,10]]}
[]
[null,"اسم الشركة",null,null,null,null,null,null,null,"اللوجو"]
[null,"العنوان"]
[null,"التليفون"]
[]
[null,"الفتره من","2014-01-01",null,null,"الى الفتره","2014-01-01",null,"عام","البنك"]
[]
[null,null,null,null,null,null,null,null,"تحليلى","بنك1"]
[]
[null,null,null,null,null,null,null,null,null,{"$f":"\"كشف حساب\"&\" \"&J8","v":"كشف حساب بنك1"}]
[null,"التاريخ","كود الفاتورة","مستند التوريد","نوع الفاتورة","القسم","اسم الصنف","وصف القيد","مدين","دائن","ملاحظات"]
[null,{"$f":"IFERROR(INDEX('اليومية العامه'!$B$7:$K$16,SMALL(IF(('اليومية العامه'!$B$7:$B$16>='كشف حساب تحليلى'!$C$6)*('اليومية العامه'!$B$7:$B$16<='كشف حساب تحليلى'!$G$6)*('اليومية العامه'!$F$7:$F$16='كشف حساب تحليلى'!$J$6)*('اليومية العامه'!$G$7:$G$16='كشف حساب تحليلى'!$J$8),ROW('اليومية العامه'!$B$7:$B$16)-6,\"\"),ROW('اليومية العامه'!$A1)),COLUMN('اليومية العامه'!B:B)-1),\"\")","v":""},{"$f":"IFERROR(INDEX('اليومية العامه'!$B$7:$K$16,SMALL(IF(('اليومية العامه'!$B$7:$B$16>='كشف حساب تحليلى'!$C$6)*('اليومية العامه'!$B$7:$B$16<='كشف حساب تحليلى'!$G$6)*('اليومية العامه'!$F$7:$F$16='كشف حساب تحليلى'!$J$6)*('اليومية العامه'!$G$7:$G$16='كشف حساب تحليلى'!$J$8),ROW('اليومية العامه'!$B$7:$B$16)-6,\"\"),ROW('اليومية العامه'!$A1)),COLUMN('اليومية العامه'!C:C)-1),\"\")","v":""},{"$f":"IFERROR(INDEX('اليومية العامه'!$B$7:$K$16,SMALL(IF(('اليومية العامه'!$B$7:$B$16>='كشف حساب تحليلى'!$C$6)*('اليومية العامه'!$B$7:$B$16<='كشف حساب تحليلى'!$G$6)*('اليومية العامه'!$F$7:$F$16='كشف حساب تحليلى'!$J$6)*('اليومية العامه'!$G$7:$G$16='كشف حساب تحليلى'!$J$8),ROW('اليومية العامه'!$B$7:$B$16)-6,\"\"),ROW('اليومية العامه'!$A1)),COLUMN('اليومية العامه'!D:D)-1),\"\")","v":""},{"$f":"IFERROR(INDEX('اليومية العامه'!$B$7:$K$16,SMALL(IF(('اليومية العامه'!$B$7:$B$16>='كشف حساب تحليلى'!$C$6)*('اليومية العامه'!$B$7:$B$16<='كشف حساب تحليلى'!$G$6)*('اليومية العامه'!$F$7:$F$16='كشف حساب تحليلى'!$J$6)*('اليومية العامه'!$G$7:$G$16='كشف حساب تحليلى'!$J$8),ROW('اليومية العامه'!$B$7:$B$16)-6,\"\"),ROW('اليومية العامه'!$A1)),COLUMN('اليومية العامه'!E:E)-1),\"\")","v":""},{"$f":"IFERROR(INDEX('اليومية العامه'!$B$7:$K$16,SMALL(IF(('اليومية العامه'!$B$7:$B$16>='كشف حساب تحليلى'!$C$6)*('اليومية العامه'!$B$7:$B$16<='كشف حساب تحليلى'!$G$6)*('اليومية العامه'!$F$7:$F$16='كشف حساب تحليلى'!$J$6)*('اليومية العامه'!$G$7:$G$16='كشف حساب تحليلى'!$J$8),ROW('اليومية العامه'!$B$7:$B$16)-6,\"\"),ROW('اليومية العامه'!$A1)),COLUMN('اليومية العامه'!F:F)-1),\"\")","v":""},{"$f":"IFERROR(INDEX('اليومية العامه'!$B$7:$K$16,SMALL(IF(('اليومية العامه'!$B$7:$B$16>='كشف حساب تحليلى'!$C$6)*('اليومية العامه'!$B$7:$B$16<='كشف حساب تحليلى'!$G$6)*('اليومية العامه'!$F$7:$F$16='كشف حساب تحليلى'!$J$6)*('اليومية العامه'!$G$7:$G$16='كشف حساب تحليلى'!$J$8),ROW('اليومية العامه'!$B$7:$B$16)-6,\"\"),ROW('اليومية العامه'!$A1)),COLUMN('اليومية العامه'!G:G)-1),\"\")","v":""},{"$f":"IFERROR(INDEX('اليومية العامه'!$B$7:$K$16,SMALL(IF(('اليومية العامه'!$B$7:$B$16>='كشف حساب تحليلى'!$C$6)*('اليومية العامه'!$B$7:$B$16<='كشف حساب تحليلى'!$G$6)*('اليومية العامه'!$F$7:$F$16='كشف حساب تحليلى'!$J$6)*('اليومية العامه'!$G$7:$G$16='كشف حساب تحليلى'!$J$8),ROW('اليومية العامه'!$B$7:$B$16)-6,\"\"),ROW('اليومية العامه'!$A1)),COLUMN('اليومية العامه'!H:H)-1),\"\")","v":""},{"$f":"IFERROR(INDEX('اليومية العامه'!$B$7:$K$16,SMALL(IF(('اليومية العامه'!$B$7:$B$16>='كشف حساب تحليلى'!$C$6)*('اليومية العامه'!$B$7:$B$16<='كشف حساب تحليلى'!$G$6)*('اليومية العامه'!$F$7:$F$16='كشف حساب تحليلى'!$J$6)*('اليومية العامه'!$G$7:$G$16='كشف حساب تحليلى'!$J$8),ROW('اليومية العامه'!$B$7:$B$16)-6,\"\"),ROW('اليومية العامه'!$A1)),COLUMN('اليومية العامه'!I:I)-1),\"\")","v":""},{"$f":"IFERROR(INDEX('اليومية العامه'!$B$7:$K$16,SMALL(IF(('اليومية العامه'!$B$7:$B$16>='كشف حساب تحليلى'!$C$6)*('اليومية العامه'!$B$7:$B$16<='كشف حساب تحليلى'!$G$6)*('اليومية العامه'!$F$7:$F$16='كشف حساب تحليلى'!$J$6)*('اليومية العامه'!$G$7:$G$16='كشف حساب تحليلى'!$J$8),ROW('اليومية العامه'!$B$7:$B$16)-6,\"\"),ROW('اليومية العامه'!$A1)),COLUMN('اليومية العامه'!J:J)-1),\"\")","v":""},{"$f":"IFERROR(INDEX('اليومية العامه'!$B$7:$K$16,SMALL(IF(('اليومية العامه'!$B$7:$B$16>='كشف حساب تحليلى'!$C$6)*('اليومية العامه'!$B$7:$B$16<='كشف حساب تحليلى'!$G$6)*('اليومية العامه'!$F$7:$F$16='كشف حساب تحليلى'!$J$6)*('اليومية العامه'!$G$7:$G$16='كشف حساب تحليلى'!$J$8),ROW('اليومية العامه'!$B$7:$B$16)-6,\"\"),ROW('اليومية العامه'!$A1)),COLUMN('اليومية العامه'!K:K)-1),\"\")","v":""}]
[null,{"$f":"IFERROR(INDEX('اليومية العامه'!$B$7:$K$16,SMALL(IF(('اليومية العامه'!$B$7:$B$16>='كشف حساب تحليلى'!$C$6)*('اليومية العامه'!$B$7:$B$16<='كشف حساب تحليلى'!$G$6)*('اليومية العامه'!$F$7:$F$16='كشف حساب تحليلى'!$J$6)*('اليومية العامه'!$G$7:$G$16='كشف حساب تحليلى'!$J$8),ROW('اليومية العامه'!$B$7:$B$16)-6,\"\"),ROW('اليومية العامه'!$A2)),COLUMN('اليومية العامه'!B:B)-1),\"\")","v":""},{"$f":"IFERROR(INDEX('اليومية العامه'!$B$7:$K$16,SMALL(IF(('اليومية العامه'!$B$7:$B$16>='كشف حساب تحليلى'!$C$6)*('اليومية العامه'!$B$7:$B$16<='كشف حساب تحليلى'!$G$6)*('اليومية العامه'!$F$7:$F$16='كشف حساب تحليلى'!$J$6)*('اليومية العامه'!$G$7:$G$16='كشف حساب تحليلى'!$J$8),ROW('اليومية العامه'!$B$7:$B$16)-6,\"\"),ROW('اليومية العامه'!$A2)),COLUMN('اليومية العامه'!C:C)-1),\"\")","v":""},{"$f":"IFERROR(INDEX('اليومية العامه'!$B$7:$K$16,SMALL(IF(('اليومية العامه'!$B$7:$B$16>='كشف حساب تحليلى'!$C$6)*('اليومية العامه'!$B$7:$B$16<='كشف حساب تحليلى'!$G$6)*('اليومية العامه'!$F$7:$F$16='كشف حساب تحليلى'!$J$6)*('اليومية العامه'!$G$7:$G$16='كشف حساب تحليلى'!$J$8),ROW('اليومية العامه'!$B$7:$B$16)-6,\"\"),ROW('اليومية العامه'!$A2)),COLUMN('اليومية العامه'!D:D)-1),\"\")","v":""},{"$f":"IFERROR(INDEX('اليومية العامه'!$B$7:$K$16,SMALL(IF(('اليومية العامه'!$B$7:$B$16>='كشف حساب تحليلى'!$C$6)*('اليومية العامه'!$B$7:$B$16<='كشف حساب تحليلى'!$G$6)*('اليومية العامه'!$F$7:$F$16='كشف حساب تحليلى'!$J$6)*('اليومية العامه'!$G$7:$G$16='كشف حساب تحليلى'!$J$8),ROW('اليومية العامه'!$B$7:$B$16)-6,\"\"),ROW('اليومية العامه'!$A2)),COLUMN('اليومية العامه'!E:E)-1),\"\")","v":""},{"$f":"IFERROR(INDEX('اليومية العامه'!$B$7:$K$16,SMALL(IF(('اليومية العامه'!$B$7:$B$16>='كشف حساب تحليلى'!$C$6)*('اليومية العامه'!$B$7:$B$16<='كشف حساب تحليلى'!$G$6)*('اليومية العامه'!$F$7:$F$16='كشف حساب تحليلى'!$J$6)*('اليومية العامه'!$G$7:$G$16='كشف حساب تحليلى'!$J$8),ROW('اليومية العامه'!$B$7:$B$16)-6,\"\"),ROW('اليومية العامه'!$A2)),COLUMN('اليومية العامه'!F:F)-1),\"\")","v":""},{"$f":"IFERROR(INDEX('اليومية العامه'!$B$7:$K$16,SMALL(IF(('اليومية العامه'!$B$7:$B$16>='كشف حساب تحليلى'!$C$6)*('اليومية العامه'!$B$7:$B$16<='كشف حساب تحليلى'!$G$6)*('اليومية العامه'!$F$7:$F$16='كشف حساب تحليلى'!$J$6)*('اليومية العامه'!$G$7:$G$16='كشف حساب تحليلى'!$J$8),ROW('اليومية العامه'!$B$7:$B$16)-6,\"\"),ROW('اليومية العامه'!$A2)),COLUMN('اليومية العامه'!G:G)-1),\"\")","v":""},{"$f":"IFERROR(INDEX('اليومية العامه'!$B$7:$K$16,SMALL(IF(('اليومية العامه'!$B$7:$B$16>='كشف حساب تحليلى'!$C$6)*('اليومية العامه'!$B$7:$B$16<='كشف حساب تحليلى'!$G$6)*('اليومية العامه'!$F$7:$F$16='كشف حساب تحليلى'!$J$6)*('اليومية العامه'!$G$7:$G$16='كشف حساب تحليلى'!$J$8),ROW('اليومية العامه'!$B$7:$B$16)-6,\"\"),ROW('اليومية العامه'!$A2)),COLUMN('اليومية العامه'!H:H)-1),\"\")","v":""},{"$f":"IFERROR(INDEX('اليومية العامه'!$B$7:$K$16,SMALL(IF(('اليومية العامه'!$B$7:$B$16>='كشف حساب تحليلى'!$C$6)*('اليومية العامه'!$B$7:$B$16<='كشف حساب تحليلى'!$G$6)*('اليومية العامه'!$F$7:$F$16='كشف حساب تحليلى'!$J$6)*('اليومية العامه'!$G$7:$G$16='كشف حساب تحليلى'!$J$8),ROW('اليومية العامه'!$B$7:$B$16)-6,\"\"),ROW('اليومية العامه'!$A2)),COLUMN('اليومية العامه'!I:I)-1),\"\")","v":""},{"$f":"IFERROR(INDEX('اليومية العامه'!$B$7:$K$16,SMALL(IF(('اليومية العامه'!$B$7:$B$16>='كشف حساب تحليلى'!$C$6)*('اليومية العامه'!$B$7:$B$16<='كشف حساب تحليلى'!$G$6)*('اليومية العامه'!$F$7:$F$16='كشف حساب تحليلى'!$J$6)*('اليومية العامه'!$G$7:$G$16='كشف حساب تحليلى'!$J$8),ROW('اليومية العامه'!$B$7:$B$16)-6,\"\"),ROW('اليومية العامه'!$A2)),COLUMN('اليومية العامه'!J:J)-1),\"\")","v":""},{"$f":"IFERROR(INDEX('اليومية العامه'!$B$7:$K$16,SMALL(IF(('اليومية العامه'!$B$7:$B$16>='كشف حساب تحليلى'!$C$6)*('اليومية العامه'!$B$7:$B$16<='كشف حساب تحليلى'!$G$6)*('اليومية العامه'!$F$7:$F$16='كشف حساب تحليلى'!$J$6)*('اليومية العامه'!$G$7:$G$16='كشف حساب تحليلى'!$J$8),ROW('اليومية العامه'!$B$7:$B$16)-6,\"\"),ROW('اليومية العامه'!$A2)),COLUMN('اليومية العامه'!K:K)-1),\"\")","v":""}]
[null,{"$f":"IFERROR(INDEX('اليومية العامه'!$B$7:$K$16,SMALL(IF(('اليومية العامه'!$B$7:$B$16>='كشف حساب تحليلى'!$C$6)*('اليومية العامه'!$B$7:$B$16<='كشف حساب تحليلى'!$G$6)*('اليومية العامه'!$F$7:$F$16='كشف حساب تحليلى'!$J$6)*('اليومية العامه'!$G$7:$G$16='كشف حساب تحليلى'!$J$8),ROW('اليومية العامه'!$B$7:$B$16)-6,\"\"),ROW('اليومية العامه'!$A3)),COLUMN('اليومية العامه'!B:B)-1),\"\")","v":""},{"$f":"IFERROR(INDEX('اليومية العامه'!$B$7:$K$16,SMALL(IF(('اليومية العامه'!$B$7:$B$16>='كشف حساب تحليلى'!$C$6)*('اليومية العامه'!$B$7:$B$16<='كشف حساب تحليلى'!$G$6)*('اليومية العامه'!$F$7:$F$16='كشف حساب تحليلى'!$J$6)*('اليومية العامه'!$G$7:$G$16='كشف حساب تحليلى'!$J$8),ROW('اليومية العامه'!$B$7:$B$16)-6,\"\"),ROW('اليومية العامه'!$A3)),COLUMN('اليومية العامه'!C:C)-1),\"\")","v":""},{"$f":"IFERROR(INDEX('اليومية العامه'!$B$7:$K$16,SMALL(IF(('اليومية العامه'!$B$7:$B$16>='كشف حساب تحليلى'!$C$6)*('اليومية العامه'!$B$7:$B$16<='كشف حساب تحليلى'!$G$6)*('اليومية العامه'!$F$7:$F$16='كشف حساب تحليلى'!$J$6)*('اليومية العامه'!$G$7:$G$16='كشف حساب تحليلى'!$J$8),ROW('اليومية العامه'!$B$7:$B$16)-6,\"\"),ROW('اليومية العامه'!$A3)),COLUMN('اليومية العامه'!D:D)-1),\"\")","v":""},{"$f":"IFERROR(INDEX('اليومية العامه'!$B$7:$K$16,SMALL(IF(('اليومية العامه'!$B$7:$B$16>='كشف حساب تحليلى'!$C$6)*('اليومية العامه'!$B$7:$B$16<='كشف حساب تحليلى'!$G$6)*('اليومية العامه'!$F$7:$F$16='كشف حساب تحليلى'!$J$6)*('اليومية العامه'!$G$7:$G$16='كشف حساب تحليلى'!$J$8),ROW('اليومية العامه'!$B$7:$B$16)-6,\"\"),ROW('اليومية العامه'!$A3)),COLUMN('اليومية العامه'!E:E)-1),\"\")","v":""},{"$f":"IFERROR(INDEX('اليومية العامه'!$B$7:$K$16,SMALL(IF(('اليومية العامه'!$B$7:$B$16>='كشف حساب تحليلى'!$C$6)*('اليومية العامه'!$B$7:$B$16<='كشف حساب تحليلى'!$G$6)*('اليومية العامه'!$F$7:$F$16='كشف حساب تحليلى'!$J$6)*('اليومية العامه'!$G$7:$G$16='كشف حساب تحليلى'!$J$8),ROW('اليومية العامه'!$B$7:$B$16)-6,\"\"),ROW('اليومية العامه'!$A3)),COLUMN('اليومية العامه'!F:F)-1),\"\")","v":""},{"$f":"IFERROR(INDEX('اليومية العامه'!$B$7:$K$16,SMALL(IF(('اليومية العامه'!$B$7:$B$16>='كشف حساب تحليلى'!$C$6)*('اليومية العامه'!$B$7:$B$16<='كشف حساب تحليلى'!$G$6)*('اليومية العامه'!$F$7:$F$16='كشف حساب تحليلى'!$J$6)*('اليومية العامه'!$G$7:$G$16='كشف حساب تحليلى'!$J$8),ROW('اليومية العامه'!$B$7:$B$16)-6,\"\"),ROW('اليومية العامه'!$A3)),COLUMN('اليومية العامه'!G:G)-1),\"\")","v":""},{"$f":"IFERROR(INDEX('اليومية العامه'!$B$7:$K$16,SMALL(IF(('اليومية العامه'!$B$7:$B$16>='كشف حساب تحليلى'!$C$6)*('اليومية العامه'!$B$7:$B$16<='كشف حساب تحليلى'!$G$6)*('اليومية العامه'!$F$7:$F$16='كشف حساب تحليلى'!$J$6)*('اليومية العامه'!$G$7:$G$16='كشف حساب تحليلى'!$J$8),ROW('اليومية العامه'!$B$7:$B$16)-6,\"\"),ROW('اليومية العامه'!$A3)),COLUMN('اليومية العامه'!H:H)-1),\"\")","v":""},{"$f":"IFERROR(INDEX('اليومية العامه'!$B$7:$K$16,SMALL(IF(('اليومية العامه'!$B$7:$B$16>='كشف حساب تحليلى'!$C$6)*('اليومية العامه'!$B$7:$B$16<='كشف حساب تحليلى'!$G$6)*('اليومية العامه'!$F$7:$F$16='كشف حساب تحليلى'!$J$6)*('اليومية العامه'!$G$7:$G$16='كشف حساب تحليلى'!$J$8),ROW('اليومية العامه'!$B$7:$B$16)-6,\"\"),ROW('اليومية العامه'!$A3)),COLUMN('اليومية العامه'!I:I)-1),\"\")","v":""},{"$f":"IFERROR(INDEX('اليومية العامه'!$B$7:$K$16,SMALL(IF(('اليومية العامه'!$B$7:$B$16>='كشف حساب تحليلى'!$C$6)*('اليومية العامه'!$B$7:$B$16<='كشف حساب تحليلى'!$G$6)*('اليومية العامه'!$F$7:$F$16='كشف حساب تحليلى'!$J$6)*('اليومية العامه'!$G$7:$G$16='كشف حساب تحليلى'!$J$8),ROW('اليومية العامه'!$B$7:$B$16)-6,\"\"),ROW('اليومية العامه'!$A3)),COLUMN('اليومية العامه'!J:J)-1),\"\")","v":""},{"$f":"IFERROR(INDEX('اليومية العامه'!$B$7:$K$16,SMALL(IF(('اليومية العامه'!$B$7:$B$16>='كشف حساب تحليلى'!$C$6)*('اليومية العامه'!$B$7:$B$16<='كشف حساب تحليلى'!$G$6)*('اليومية العامه'!$F$7:$F$16='كشف حساب تحليلى'!$J$6)*('اليومية العامه'!$G$7:$G$16='كشف حساب تحليلى'!$J$8),ROW('اليومية العامه'!$B$7:$B$16)-6,\"\"),ROW('اليومية العامه'!$A3)),COLUMN('اليومية العامه'!K:K)-1),\"\")","v":""}]
[null,{"$f":"IFERROR(INDEX('اليومية العامه'!$B$7:$K$16,SMALL(IF(('اليومية العامه'!$B$7:$B$16>='كشف حساب تحليلى'!$C$6)*('اليومية العامه'!$B$7:$B$16<='كشف حساب تحليلى'!$G$6)*('اليومية العامه'!$F$7:$F$16='كشف حساب تحليلى'!$J$6)*('اليومية العامه'!$G$7:$G$16='كشف حساب تحليلى'!$J$8),ROW('اليومية العامه'!$B$7:$B$16)-6,\"\"),ROW('اليومية العامه'!$A4)),COLUMN('اليومية العامه'!B:B)-1),\"\")","v":""},{"$f":"IFERROR(INDEX('اليومية العامه'!$B$7:$K$16,SMALL(IF(('اليومية العامه'!$B$7:$B$16>='كشف حساب تحليلى'!$C$6)*('اليومية العامه'!$B$7:$B$16<='كشف حساب تحليلى'!$G$6)*('اليومية العامه'!$F$7:$F$16='كشف حساب تحليلى'!$J$6)*('اليومية العامه'!$G$7:$G$16='كشف حساب تحليلى'!$J$8),ROW('اليومية العامه'!$B$7:$B$16)-6,\"\"),ROW('اليومية العامه'!$A4)),COLUMN('اليومية العامه'!C:C)-1),\"\")","v":""},{"$f":"IFERROR(INDEX('اليومية العامه'!$B$7:$K$16,SMALL(IF(('اليومية العامه'!$B$7:$B$16>='كشف حساب تحليلى'!$C$6)*('اليومية العامه'!$B$7:$B$16<='كشف حساب تحليلى'!$G$6)*('اليومية العامه'!$F$7:$F$16='كشف حساب تحليلى'!$J$6)*('اليومية العامه'!$G$7:$G$16='كشف حساب تحليلى'!$J$8),ROW('اليومية العامه'!$B$7:$B$16)-6,\"\"),ROW('اليومية العامه'!$A4)),COLUMN('اليومية العامه'!D:D)-1),\"\")","v":""},{"$f":"IFERROR(INDEX('اليومية العامه'!$B$7:$K$16,SMALL(IF(('اليومية العامه'!$B$7:$B$16>='كشف حساب تحليلى'!$C$6)*('اليومية العامه'!$B$7:$B$16<='كشف حساب تحليلى'!$G$6)*('اليومية العامه'!$F$7:$F$16='كشف حساب تحليلى'!$J$6)*('اليومية العامه'!$G$7:$G$16='كشف حساب تحليلى'!$J$8),ROW('اليومية العامه'!$B$7:$B$16)-6,\"\"),ROW('اليومية العامه'!$A4)),COLUMN('اليومية العامه'!E:E)-1),\"\")","v":""},{"$f":"IFERROR(INDEX('اليومية العامه'!$B$7:$K$16,SMALL(IF(('اليومية العامه'!$B$7:$B$16>='كشف حساب تحليلى'!$C$6)*('اليومية العامه'!$B$7:$B$16<='كشف حساب تحليلى'!$G$6)*('اليومية العامه'!$F$7:$F$16='كشف حساب تحليلى'!$J$6)*('اليومية العامه'!$G$7:$G$16='كشف حساب تحليلى'!$J$8),ROW('اليومية العامه'!$B$7:$B$16)-6,\"\"),ROW('اليومية العامه'!$A4)),COLUMN('اليومية العامه'!F:F)-1),\"\")","v":""},{"$f":"IFERROR(INDEX('اليومية العامه'!$B$7:$K$16,SMALL(IF(('اليومية العامه'!$B$7:$B$16>='كشف حساب تحليلى'!$C$6)*('اليومية العامه'!$B$7:$B$16<='كشف حساب تحليلى'!$G$6)*('اليومية العامه'!$F$7:$F$16='كشف حساب تحليلى'!$J$6)*('اليومية العامه'!$G$7:$G$16='كشف حساب تحليلى'!$J$8),ROW('اليومية العامه'!$B$7:$B$16)-6,\"\"),ROW('اليومية العامه'!$A4)),COLUMN('اليومية العامه'!G:G)-1),\"\")","v":""},{"$f":"IFERROR(INDEX('اليومية العامه'!$B$7:$K$16,SMALL(IF(('اليومية العامه'!$B$7:$B$16>='كشف حساب تحليلى'!$C$6)*('اليومية العامه'!$B$7:$B$16<='كشف حساب تحليلى'!$G$6)*('اليومية العامه'!$F$7:$F$16='كشف حساب تحليلى'!$J$6)*('اليومية العامه'!$G$7:$G$16='كشف حساب تحليلى'!$J$8),ROW('اليومية العامه'!$B$7:$B$16)-6,\"\"),ROW('اليومية العامه'!$A4)),COLUMN('اليومية العامه'!H:H)-1),\"\")","v":""},{"$f":"IFERROR(INDEX('اليومية العامه'!$B$7:$K$16,SMALL(IF(('اليومية العامه'!$B$7:$B$16>='كشف حساب تحليلى'!$C$6)*('اليومية العامه'!$B$7:$B$16<='كشف حساب تحليلى'!$G$6)*('اليومية العامه'!$F$7:$F$16='كشف حساب تحليلى'!$J$6)*('اليومية العامه'!$G$7:$G$16='كشف حساب تحليلى'!$J$8),ROW('اليومية العامه'!$B$7:$B$16)-6,\"\"),ROW('اليومية العامه'!$A4)),COLUMN('اليومية العامه'!I:I)-1),\"\")","v":""},{"$f":"IFERROR(INDEX('اليومية العامه'!$B$7:$K$16,SMALL(IF(('اليومية العامه'!$B$7:$B$16>='كشف حساب تحليلى'!$C$6)*('اليومية العامه'!$B$7:$B$16<='كشف حساب تحليلى'!$G$6)*('اليومية العامه'!$F$7:$F$16='كشف حساب تحليلى'!$J$6)*('اليومية العامه'!$G$7:$G$16='كشف حساب تحليلى'!$J$8),ROW('اليومية العامه'!$B$7:$B$16)-6,\"\"),ROW('اليومية العامه'!$A4)),COLUMN('اليومية العامه'!J:J)-1),\"\")","v":""},{"$f":"IFERROR(INDEX('اليومية العامه'!$B$7:$K$16,SMALL(IF(('اليومية العامه'!$B$7:$B$16>='كشف حساب تحليلى'!$C$6)*('اليومية العامه'!$B$7:$B$16<='كشف حساب تحليلى'!$G$6)*('اليومية العامه'!$F$7:$F$16='كشف حساب تحليلى'!$J$6)*('اليومية العامه'!$G$7:$G$16='كشف حساب تحليلى'!$J$8),ROW('اليومية العامه'!$B$7:$B$16)-6,\"\"),ROW('اليومية العامه'!$A4)),COLUMN('اليومية العامه'!K:K)-1),\"\")","v":""}]
[null,{"$f":"IFERROR(INDEX('اليومية العامه'!$B$7:$K$16,SMALL(IF(('اليومية العامه'!$B$7:$B$16>='كشف حساب تحليلى'!$C$6)*('اليومية العامه'!$B$7:$B$16<='كشف حساب تحليلى'!$G$6)*('اليومية العامه'!$F$7:$F$16='كشف حساب تحليلى'!$J$6)*('اليومية العامه'!$G$7:$G$16='كشف حساب تحليلى'!$J$8),ROW('اليومية العامه'!$B$7:$B$16)-6,\"\"),ROW('اليومية العامه'!$A5)),COLUMN('اليومية العامه'!B:B)-1),\"\")","v":""},{"$f":"IFERROR(INDEX('اليومية العامه'!$B$7:$K$16,SMALL(IF(('اليومية العامه'!$B$7:$B$16>='كشف حساب تحليلى'!$C$6)*('اليومية العامه'!$B$7:$B$16<='كشف حساب تحليلى'!$G$6)*('اليومية العامه'!$F$7:$F$16='كشف حساب تحليلى'!$J$6)*('اليومية العامه'!$G$7:$G$16='كشف حساب تحليلى'!$J$8),ROW('اليومية العامه'!$B$7:$B$16)-6,\"\"),ROW('اليومية العامه'!$A5)),COLUMN('اليومية العامه'!C:C)-1),\"\")","v":""},{"$f":"IFERROR(INDEX('اليومية العامه'!$B$7:$K$16,SMALL(IF(('اليومية العامه'!$B$7:$B$16>='كشف حساب تحليلى'!$C$6)*('اليومية العامه'!$B$7:$B$16<='كشف حساب تحليلى'!$G$6)*('اليومية العامه'!$F$7:$F$16='كشف حساب تحليلى'!$J$6)*('اليومية العامه'!$G$7:$G$16='كشف حساب تحليلى'!$J$8),ROW('اليومية العامه'!$B$7:$B$16)-6,\"\"),ROW('اليومية العامه'!$A5)),COLUMN('اليومية العامه'!D:D)-1),\"\")","v":""},{"$f":"IFERROR(INDEX('اليومية العامه'!$B$7:$K$16,SMALL(IF(('اليومية العامه'!$B$7:$B$16>='كشف حساب تحليلى'!$C$6)*('اليومية العامه'!$B$7:$B$16<='كشف حساب تحليلى'!$G$6)*('اليومية العامه'!$F$7:$F$16='كشف حساب تحليلى'!$J$6)*('اليومية العامه'!$G$7:$G$16='كشف حساب تحليلى'!$J$8),ROW('اليومية العامه'!$B$7:$B$16)-6,\"\"),ROW('اليومية العامه'!$A5)),COLUMN('اليومية العامه'!E:E)-1),\"\")","v":""},{"$f":"IFERROR(INDEX('اليومية العامه'!$B$7:$K$16,SMALL(IF(('اليومية العامه'!$B$7:$B$16>='كشف حساب تحليلى'!$C$6)*('اليومية العامه'!$B$7:$B$16<='كشف حساب تحليلى'!$G$6)*('اليومية العامه'!$F$7:$F$16='كشف حساب تحليلى'!$J$6)*('اليومية العامه'!$G$7:$G$16='كشف حساب تحليلى'!$J$8),ROW('اليومية العامه'!$B$7:$B$16)-6,\"\"),ROW('اليومية العامه'!$A5)),COLUMN('اليومية العامه'!F:F)-1),\"\")","v":""},{"$f":"IFERROR(INDEX('اليومية العامه'!$B$7:$K$16,SMALL(IF(('اليومية العامه'!$B$7:$B$16>='كشف حساب تحليلى'!$C$6)*('اليومية العامه'!$B$7:$B$16<='كشف حساب تحليلى'!$G$6)*('اليومية العامه'!$F$7:$F$16='كشف حساب تحليلى'!$J$6)*('اليومية العامه'!$G$7:$G$16='كشف حساب تحليلى'!$J$8),ROW('اليومية العامه'!$B$7:$B$16)-6,\"\"),ROW('اليومية العامه'!$A5)),COLUMN('اليومية العامه'!G:G)-1),\"\")","v":""},{"$f":"IFERROR(INDEX('اليومية العامه'!$B$7:$K$16,SMALL(IF(('اليومية العامه'!$B$7:$B$16>='كشف حساب تحليلى'!$C$6)*('اليومية العامه'!$B$7:$B$16<='كشف حساب تحليلى'!$G$6)*('اليومية العامه'!$F$7:$F$16='كشف حساب تحليلى'!$J$6)*('اليومية العامه'!$G$7:$G$16='كشف حساب تحليلى'!$J$8),ROW('اليومية العامه'!$B$7:$B$16)-6,\"\"),ROW('اليومية العامه'!$A5)),COLUMN('اليومية العامه'!H:H)-1),\"\")","v":""},{"$f":"IFERROR(INDEX('اليومية العامه'!$B$7:$K$16,SMALL(IF(('اليومية العامه'!$B$7:$B$16>='كشف حساب تحليلى'!$C$6)*('اليومية العامه'!$B$7:$B$16<='كشف حساب تحليلى'!$G$6)*('اليومية العامه'!$F$7:$F$16='كشف حساب تحليلى'!$J$6)*('اليومية العامه'!$G$7:$G$16='كشف حساب تحليلى'!$J$8),ROW('اليومية العامه'!$B$7:$B$16)-6,\"\"),ROW('اليومية العامه'!$A5)),COLUMN('اليومية العامه'!I:I)-1),\"\")","v":""},{"$f":"IFERROR(INDEX('اليومية العامه'!$B$7:$K$16,SMALL(IF(('اليومية العامه'!$B$7:$B$16>='كشف حساب تحليلى'!$C$6)*('اليومية العامه'!$B$7:$B$16<='كشف حساب تحليلى'!$G$6)*('اليومية العامه'!$F$7:$F$16='كشف حساب تحليلى'!$J$6)*('اليومية العامه'!$G$7:$G$16='كشف حساب تحليلى'!$J$8),ROW('اليومية العامه'!$B$7:$B$16)-6,\"\"),ROW('اليومية العامه'!$A5)),COLUMN('اليومية العامه'!J:J)-1),\"\")","v":""},{"$f":"IFERROR(INDEX('اليومية العامه'!$B$7:$K$16,SMALL(IF(('اليومية العامه'!$B$7:$B$16>='كشف حساب تحليلى'!$C$6)*('اليومية العامه'!$B$7:$B$16<='كشف حساب تحليلى'!$G$6)*('اليومية العامه'!$F$7:$F$16='كشف حساب تحليلى'!$J$6)*('اليومية العامه'!$G$7:$G$16='كشف حساب تحليلى'!$J$8),ROW('اليومية العامه'!$B$7:$B$16)-6,\"\"),ROW('اليومية العامه'!$A5)),COLUMN('اليومية العامه'!K:K)-1),\"\")","v":""}]
[null,{"$f":"IFERROR(INDEX('اليومية العامه'!$B$7:$K$16,SMALL(IF(('اليومية العامه'!$B$7:$B$16>='كشف حساب تحليلى'!$C$6)*('اليومية العامه'!$B$7:$B$16<='كشف حساب تحليلى'!$G$6)*('اليومية العامه'!$F$7:$F$16='كشف حساب تحليلى'!$J$6)*('اليومية العامه'!$G$7:$G$16='كشف حساب تحليلى'!$J$8),ROW('اليومية العامه'!$B$7:$B$16)-6,\"\"),ROW('اليومية العامه'!$A6)),COLUMN('اليومية العامه'!B:B)-1),\"\")","v":""},{"$f":"IFERROR(INDEX('اليومية العامه'!$B$7:$K$16,SMALL(IF(('اليومية العامه'!$B$7:$B$16>='كشف حساب تحليلى'!$C$6)*('اليومية العامه'!$B$7:$B$16<='كشف حساب تحليلى'!$G$6)*('اليومية العامه'!$F$7:$F$16='كشف حساب تحليلى'!$J$6)*('اليومية العامه'!$G$7:$G$16='كشف حساب تحليلى'!$J$8),ROW('اليومية العامه'!$B$7:$B$16)-6,\"\"),ROW('اليومية العامه'!$A6)),COLUMN('اليومية العامه'!C:C)-1),\"\")","v":""},{"$f":"IFERROR(INDEX('اليومية العامه'!$B$7:$K$16,SMALL(IF(('اليومية العامه'!$B$7:$B$16>='كشف حساب تحليلى'!$C$6)*('اليومية العامه'!$B$7:$B$16<='كشف حساب تحليلى'!$G$6)*('اليومية العامه'!$F$7:$F$16='كشف حساب تحليلى'!$J$6)*('اليومية العامه'!$G$7:$G$16='كشف حساب تحليلى'!$J$8),ROW('اليومية العامه'!$B$7:$B$16)-6,\"\"),ROW('اليومية العامه'!$A6)),COLUMN('اليومية العامه'!D:D)-1),\"\")","v":""},{"$f":"IFERROR(INDEX('اليومية العامه'!$B$7:$K$16,SMALL(IF(('اليومية العامه'!$B$7:$B$16>='كشف حساب تحليلى'!$C$6)*('اليومية العامه'!$B$7:$B$16<='كشف حساب تحليلى'!$G$6)*('اليومية العامه'!$F$7:$F$16='كشف حساب تحليلى'!$J$6)*('اليومية العامه'!$G$7:$G$16='كشف حساب تحليلى'!$J$8),ROW('اليومية العامه'!$B$7:$B$16)-6,\"\"),ROW('اليومية العامه'!$A6)),COLUMN('اليومية العامه'!E:E)-1),\"\")","v":""},{"$f":"IFERROR(INDEX('اليومية العامه'!$B$7:$K$16,SMALL(IF(('اليومية العامه'!$B$7:$B$16>='كشف حساب تحليلى'!$C$6)*('اليومية العامه'!$B$7:$B$16<='كشف حساب تحليلى'!$G$6)*('اليومية العامه'!$F$7:$F$16='كشف حساب تحليلى'!$J$6)*('اليومية العامه'!$G$7:$G$16='كشف حساب تحليلى'!$J$8),ROW('اليومية العامه'!$B$7:$B$16)-6,\"\"),ROW('اليومية العامه'!$A6)),COLUMN('اليومية العامه'!F:F)-1),\"\")","v":""},{"$f":"IFERROR(INDEX('اليومية العامه'!$B$7:$K$16,SMALL(IF(('اليومية العامه'!$B$7:$B$16>='كشف حساب تحليلى'!$C$6)*('اليومية العامه'!$B$7:$B$16<='كشف حساب تحليلى'!$G$6)*('اليومية العامه'!$F$7:$F$16='كشف حساب تحليلى'!$J$6)*('اليومية العامه'!$G$7:$G$16='كشف حساب تحليلى'!$J$8),ROW('اليومية العامه'!$B$7:$B$16)-6,\"\"),ROW('اليومية العامه'!$A6)),COLUMN('اليومية العامه'!G:G)-1),\"\")","v":""},{"$f":"IFERROR(INDEX('اليومية العامه'!$B$7:$K$16,SMALL(IF(('اليومية العامه'!$B$7:$B$16>='كشف حساب تحليلى'!$C$6)*('اليومية العامه'!$B$7:$B$16<='كشف حساب تحليلى'!$G$6)*('اليومية العامه'!$F$7:$F$16='كشف حساب تحليلى'!$J$6)*('اليومية العامه'!$G$7:$G$16='كشف حساب تحليلى'!$J$8),ROW('اليومية العامه'!$B$7:$B$16)-6,\"\"),ROW('اليومية العامه'!$A6)),COLUMN('اليومية العامه'!H:H)-1),\"\")","v":""},{"$f":"IFERROR(INDEX('اليومية العامه'!$B$7:$K$16,SMALL(IF(('اليومية العامه'!$B$7:$B$16>='كشف حساب تحليلى'!$C$6)*('اليومية العامه'!$B$7:$B$16<='كشف حساب تحليلى'!$G$6)*('اليومية العامه'!$F$7:$F$16='كشف حساب تحليلى'!$J$6)*('اليومية العامه'!$G$7:$G$16='كشف حساب تحليلى'!$J$8),ROW('اليومية العامه'!$B$7:$B$16)-6,\"\"),ROW('اليومية العامه'!$A6)),COLUMN('اليومية العامه'!I:I)-1),\"\")","v":""},{"$f":"IFERROR(INDEX('اليومية العامه'!$B$7:$K$16,SMALL(IF(('اليومية العامه'!$B$7:$B$16>='كشف حساب تحليلى'!$C$6)*('اليومية العامه'!$B$7:$B$16<='كشف حساب تحليلى'!$G$6)*('اليومية العامه'!$F$7:$F$16='كشف حساب تحليلى'!$J$6)*('اليومية العامه'!$G$7:$G$16='كشف حساب تحليلى'!$J$8),ROW('اليومية العامه'!$B$7:$B$16)-6,\"\"),ROW('اليومية العامه'!$A6)),COLUMN('اليومية العامه'!J:J)-1),\"\")","v":""},{"$f":"IFERROR(INDEX('اليومية العامه'!$B$7:$K$16,SMALL(IF(('اليومية العامه'!$B$7:$B$16>='كشف حساب تحليلى'!$C$6)*('اليومية العامه'!$B$7:$B$16<='كشف حساب تحليلى'!$G$6)*('اليومية العامه'!$F$7:$F$16='كشف حساب تحليلى'!$J$6)*('اليومية العامه'!$G$7:$G$16='كشف حساب تحليلى'!$J$8),ROW('اليومية العامه'!$B$7:$B$16)-6,\"\"),ROW('اليومية العامه'!$A6)),COLUMN('اليومية العامه'!K:K)-1),\"\")","v":""}]
[null,{"$f":"IFERROR(INDEX('اليومية العامه'!$B$7:$K$16,SMALL(IF(('اليومية العامه'!$B$7:$B$16>='كشف حساب تحليلى'!$C$6)*('اليومية العامه'!$B$7:$B$16<='كشف حساب تحليلى'!$G$6)*('اليومية العامه'!$F$7:$F$16='كشف حساب تحليلى'!$J$6)*('اليومية العامه'!$G$7:$G$16='كشف حساب تحليلى'!$J$8),ROW('اليومية العامه'!$B$7:$B$16)-6,\"\"),ROW('اليومية العامه'!$A7)),COLUMN('اليومية العامه'!B:B)-1),\"\")","v":""},{"$f":"IFERROR(INDEX('اليومية العامه'!$B$7:$K$16,SMALL(IF(('اليومية العامه'!$B$7:$B$16>='كشف حساب تحليلى'!$C$6)*('اليومية العامه'!$B$7:$B$16<='كشف حساب تحليلى'!$G$6)*('اليومية العامه'!$F$7:$F$16='كشف حساب تحليلى'!$J$6)*('اليومية العامه'!$G$7:$G$16='كشف حساب تحليلى'!$J$8),ROW('اليومية العامه'!$B$7:$B$16)-6,\"\"),ROW('اليومية العامه'!$A7)),COLUMN('اليومية العامه'!C:C)-1),\"\")","v":""},{"$f":"IFERROR(INDEX('اليومية العامه'!$B$7:$K$16,SMALL(IF(('اليومية العامه'!$B$7:$B$16>='كشف حساب تحليلى'!$C$6)*('اليومية العامه'!$B$7:$B$16<='كشف حساب تحليلى'!$G$6)*('اليومية العامه'!$F$7:$F$16='كشف حساب تحليلى'!$J$6)*('اليومية العامه'!$G$7:$G$16='كشف حساب تحليلى'!$J$8),ROW('اليومية العامه'!$B$7:$B$16)-6,\"\"),ROW('اليومية العامه'!$A7)),COLUMN('اليومية العامه'!D:D)-1),\"\")","v":""},{"$f":"IFERROR(INDEX('اليومية العامه'!$B$7:$K$16,SMALL(IF(('اليومية العامه'!$B$7:$B$16>='كشف حساب تحليلى'!$C$6)*('اليومية العامه'!$B$7:$B$16<='كشف حساب تحليلى'!$G$6)*('اليومية العامه'!$F$7:$F$16='كشف حساب تحليلى'!$J$6)*('اليومية العامه'!$G$7:$G$16='كشف حساب تحليلى'!$J$8),ROW('اليومية العامه'!$B$7:$B$16)-6,\"\"),ROW('اليومية العامه'!$A7)),COLUMN('اليومية العامه'!E:E)-1),\"\")","v":""},{"$f":"IFERROR(INDEX('اليومية العامه'!$B$7:$K$16,SMALL(IF(('اليومية العامه'!$B$7:$B$16>='كشف حساب تحليلى'!$C$6)*('اليومية العامه'!$B$7:$B$16<='كشف حساب تحليلى'!$G$6)*('اليومية العامه'!$F$7:$F$16='كشف حساب تحليلى'!$J$6)*('اليومية العامه'!$G$7:$G$16='كشف حساب تحليلى'!$J$8),ROW('اليومية العامه'!$B$7:$B$16)-6,\"\"),ROW('اليومية العامه'!$A7)),COLUMN('اليومية العامه'!F:F)-1),\"\")","v":""},{"$f":"IFERROR(INDEX('اليومية العامه'!$B$7:$K$16,SMALL(IF(('اليومية العامه'!$B$7:$B$16>='كشف حساب تحليلى'!$C$6)*('اليومية العامه'!$B$7:$B$16<='كشف حساب تحليلى'!$G$6)*('اليومية العامه'!$F$7:$F$16='كشف حساب تحليلى'!$J$6)*('اليومية العامه'!$G$7:$G$16='كشف حساب تحليلى'!$J$8),ROW('اليومية العامه'!$B$7:$B$16)-6,\"\"),ROW('اليومية العامه'!$A7)),COLUMN('اليومية العامه'!G:G)-1),\"\")","v":""},{"$f":"IFERROR(INDEX('اليومية العامه'!$B$7:$K$16,SMALL(IF(('اليومية العامه'!$B$7:$B$16>='كشف حساب تحليلى'!$C$6)*('اليومية العامه'!$B$7:$B$16<='كشف حساب تحليلى'!$G$6)*('اليومية العامه'!$F$7:$F$16='كشف حساب تحليلى'!$J$6)*('اليومية العامه'!$G$7:$G$16='كشف حساب تحليلى'!$J$8),ROW('اليومية العامه'!$B$7:$B$16)-6,\"\"),ROW('اليومية العامه'!$A7)),COLUMN('اليومية العامه'!H:H)-1),\"\")","v":""},{"$f":"IFERROR(INDEX('اليومية العامه'!$B$7:$K$16,SMALL(IF(('اليومية العامه'!$B$7:$B$16>='كشف حساب تحليلى'!$C$6)*('اليومية العامه'!$B$7:$B$16<='كشف حساب تحليلى'!$G$6)*('اليومية العامه'!$F$7:$F$16='كشف حساب تحليلى'!$J$6)*('اليومية العامه'!$G$7:$G$16='كشف حساب تحليلى'!$J$8),ROW('اليومية العامه'!$B$7:$B$16)-6,\"\"),ROW('اليومية العامه'!$A7)),COLUMN('اليومية العامه'!I:I)-1),\"\")","v":""},{"$f":"IFERROR(INDEX('اليومية العامه'!$B$7:$K$16,SMALL(IF(('اليومية العامه'!$B$7:$B$16>='كشف حساب تحليلى'!$C$6)*('اليومية العامه'!$B$7:$B$16<='كشف حساب تحليلى'!$G$6)*('اليومية العامه'!$F$7:$F$16='كشف حساب تحليلى'!$J$6)*('اليومية العامه'!$G$7:$G$16='كشف حساب تحليلى'!$J$8),ROW('اليومية العامه'!$B$7:$B$16)-6,\"\"),ROW('اليومية العامه'!$A7)),COLUMN('اليومية العامه'!J:J)-1),\"\")","v":""},{"$f":"IFERROR(INDEX('اليومية العامه'!$B$7:$K$16,SMALL(IF(('اليومية العامه'!$B$7:$B$16>='كشف حساب تحليلى'!$C$6)*('اليومية العامه'!$B$7:$B$16<='كشف حساب تحليلى'!$G$6)*('اليومية العامه'!$F$7:$F$16='كشف حساب تحليلى'!$J$6)*('اليومية العامه'!$G$7:$G$16='كشف حساب تحليلى'!$J$8),ROW('اليومية العامه'!$B$7:$B$16)-6,\"\"),ROW('اليومية العامه'!$A7)),COLUMN('اليومية العامه'!K:K)-1),\"\")","v":""}]
[null,{"$f":"IFERROR(INDEX('اليومية العامه'!$B$7:$K$16,SMALL(IF(('اليومية العامه'!$B$7:$B$16>='كشف حساب تحليلى'!$C$6)*('اليومية العامه'!$B$7:$B$16<='كشف حساب تحليلى'!$G$6)*('اليومية العامه'!$F$7:$F$16='كشف حساب تحليلى'!$J$6)*('اليومية العامه'!$G$7:$G$16='كشف حساب تحليلى'!$J$8),ROW('اليومية العامه'!$B$7:$B$16)-6,\"\"),ROW('اليومية العامه'!$A8)),COLUMN('اليومية العامه'!B:B)-1),\"\")","v":""},{"$f":"IFERROR(INDEX('اليومية العامه'!$B$7:$K$16,SMALL(IF(('اليومية العامه'!$B$7:$B$16>='كشف حساب تحليلى'!$C$6)*('اليومية العامه'!$B$7:$B$16<='كشف حساب تحليلى'!$G$6)*('اليومية العامه'!$F$7:$F$16='كشف حساب تحليلى'!$J$6)*('اليومية العامه'!$G$7:$G$16='كشف حساب تحليلى'!$J$8),ROW('اليومية العامه'!$B$7:$B$16)-6,\"\"),ROW('اليومية العامه'!$A8)),COLUMN('اليومية العامه'!C:C)-1),\"\")","v":""},{"$f":"IFERROR(INDEX('اليومية العامه'!$B$7:$K$16,SMALL(IF(('اليومية العامه'!$B$7:$B$16>='كشف حساب تحليلى'!$C$6)*('اليومية العامه'!$B$7:$B$16<='كشف حساب تحليلى'!$G$6)*('اليومية العامه'!$F$7:$F$16='كشف حساب تحليلى'!$J$6)*('اليومية العامه'!$G$7:$G$16='كشف حساب تحليلى'!$J$8),ROW('اليومية العامه'!$B$7:$B$16)-6,\"\"),ROW('اليومية العامه'!$A8)),COLUMN('اليومية العامه'!D:D)-1),\"\")","v":""},{"$f":"IFERROR(INDEX('اليومية العامه'!$B$7:$K$16,SMALL(IF(('اليومية العامه'!$B$7:$B$16>='كشف حساب تحليلى'!$C$6)*('اليومية العامه'!$B$7:$B$16<='كشف حساب تحليلى'!$G$6)*('اليومية العامه'!$F$7:$F$16='كشف حساب تحليلى'!$J$6)*('اليومية العامه'!$G$7:$G$16='كشف حساب تحليلى'!$J$8),ROW('اليومية العامه'!$B$7:$B$16)-6,\"\"),ROW('اليومية العامه'!$A8)),COLUMN('اليومية العامه'!E:E)-1),\"\")","v":""},{"$f":"IFERROR(INDEX('اليومية العامه'!$B$7:$K$16,SMALL(IF(('اليومية العامه'!$B$7:$B$16>='كشف حساب تحليلى'!$C$6)*('اليومية العامه'!$B$7:$B$16<='كشف حساب تحليلى'!$G$6)*('اليومية العامه'!$F$7:$F$16='كشف حساب تحليلى'!$J$6)*('اليومية العامه'!$G$7:$G$16='كشف حساب تحليلى'!$J$8),ROW('اليومية العامه'!$B$7:$B$16)-6,\"\"),ROW('اليومية العامه'!$A8)),COLUMN('اليومية العامه'!F:F)-1),\"\")","v":""},{"$f":"IFERROR(INDEX('اليومية العامه'!$B$7:$K$16,SMALL(IF(('اليومية العامه'!$B$7:$B$16>='كشف حساب تحليلى'!$C$6)*('اليومية العامه'!$B$7:$B$16<='كشف حساب تحليلى'!$G$6)*('اليومية العامه'!$F$7:$F$16='كشف حساب تحليلى'!$J$6)*('اليومية العامه'!$G$7:$G$16='كشف حساب تحليلى'!$J$8),ROW('اليومية العامه'!$B$7:$B$16)-6,\"\"),ROW('اليومية العامه'!$A8)),COLUMN('اليومية العامه'!G:G)-1),\"\")","v":""},{"$f":"IFERROR(INDEX('اليومية العامه'!$B$7:$K$16,SMALL(IF(('اليومية العامه'!$B$7:$B$16>='كشف حساب تحليلى'!$C$6)*('اليومية العامه'!$B$7:$B$16<='كشف حساب تحليلى'!$G$6)*('اليومية العامه'!$F$7:$F$16='كشف حساب تحليلى'!$J$6)*('اليومية العامه'!$G$7:$G$16='كشف حساب تحليلى'!$J$8),ROW('اليومية العامه'!$B$7:$B$16)-6,\"\"),ROW('اليومية العامه'!$A8)),COLUMN('اليومية العامه'!H:H)-1),\"\")","v":""},{"$f":"IFERROR(INDEX('اليومية العامه'!$B$7:$K$16,SMALL(IF(('اليومية العامه'!$B$7:$B$16>='كشف حساب تحليلى'!$C$6)*('اليومية العامه'!$B$7:$B$16<='كشف حساب تحليلى'!$G$6)*('اليومية العامه'!$F$7:$F$16='كشف حساب تحليلى'!$J$6)*('اليومية العامه'!$G$7:$G$16='كشف حساب تحليلى'!$J$8),ROW('اليومية العامه'!$B$7:$B$16)-6,\"\"),ROW('اليومية العامه'!$A8)),COLUMN('اليومية العامه'!I:I)-1),\"\")","v":""},{"$f":"IFERROR(INDEX('اليومية العامه'!$B$7:$K$16,SMALL(IF(('اليومية العامه'!$B$7:$B$16>='كشف حساب تحليلى'!$C$6)*('اليومية العامه'!$B$7:$B$16<='كشف حساب تحليلى'!$G$6)*('اليومية العامه'!$F$7:$F$16='كشف حساب تحليلى'!$J$6)*('اليومية العامه'!$G$7:$G$16='كشف حساب تحليلى'!$J$8),ROW('اليومية العامه'!$B$7:$B$16)-6,\"\"),ROW('اليومية العامه'!$A8)),COLUMN('اليومية العامه'!J:J)-1),\"\")","v":""},{"$f":"IFERROR(INDEX('اليومية العامه'!$B$7:$K$16,SMALL(IF(('اليومية العامه'!$B$7:$B$16>='كشف حساب تحليلى'!$C$6)*('اليومية العامه'!$B$7:$B$16<='كشف حساب تحليلى'!$G$6)*('اليومية العامه'!$F$7:$F$16='كشف حساب تحليلى'!$J$6)*('اليومية العامه'!$G$7:$G$16='كشف حساب تحليلى'!$J$8),ROW('اليومية العامه'!$B$7:$B$16)-6,\"\"),ROW('اليومية العامه'!$A8)),COLUMN('اليومية العامه'!K:K)-1),\"\")","v":""}]
[null,{"$f":"IFERROR(INDEX('اليومية العامه'!$B$7:$K$16,SMALL(IF(('اليومية العامه'!$B$7:$B$16>='كشف حساب تحليلى'!$C$6)*('اليومية العامه'!$B$7:$B$16<='كشف حساب تحليلى'!$G$6)*('اليومية العامه'!$F$7:$F$16='كشف حساب تحليلى'!$J$6)*('اليومية العامه'!$G$7:$G$16='كشف حساب تحليلى'!$J$8),ROW('اليومية العامه'!$B$7:$B$16)-6,\"\"),ROW('اليومية العامه'!$A9)),COLUMN('اليومية العامه'!B:B)-1),\"\")","v":""},{"$f":"IFERROR(INDEX('اليومية العامه'!$B$7:$K$16,SMALL(IF(('اليومية العامه'!$B$7:$B$16>='كشف حساب تحليلى'!$C$6)*('اليومية العامه'!$B$7:$B$16<='كشف حساب تحليلى'!$G$6)*('اليومية العامه'!$F$7:$F$16='كشف حساب تحليلى'!$J$6)*('اليومية العامه'!$G$7:$G$16='كشف حساب تحليلى'!$J$8),ROW('اليومية العامه'!$B$7:$B$16)-6,\"\"),ROW('اليومية العامه'!$A9)),COLUMN('اليومية العامه'!C:C)-1),\"\")","v":""},{"$f":"IFERROR(INDEX('اليومية العامه'!$B$7:$K$16,SMALL(IF(('اليومية العامه'!$B$7:$B$16>='كشف حساب تحليلى'!$C$6)*('اليومية العامه'!$B$7:$B$16<='كشف حساب تحليلى'!$G$6)*('اليومية العامه'!$F$7:$F$16='كشف حساب تحليلى'!$J$6)*('اليومية العامه'!$G$7:$G$16='كشف حساب تحليلى'!$J$8),ROW('اليومية العامه'!$B$7:$B$16)-6,\"\"),ROW('اليومية العامه'!$A9)),COLUMN('اليومية العامه'!D:D)-1),\"\")","v":""},{"$f":"IFERROR(INDEX('اليومية العامه'!$B$7:$K$16,SMALL(IF(('اليومية العامه'!$B$7:$B$16>='كشف حساب تحليلى'!$C$6)*('اليومية العامه'!$B$7:$B$16<='كشف حساب تحليلى'!$G$6)*('اليومية العامه'!$F$7:$F$16='كشف حساب تحليلى'!$J$6)*('اليومية العامه'!$G$7:$G$16='كشف حساب تحليلى'!$J$8),ROW('اليومية العامه'!$B$7:$B$16)-6,\"\"),ROW('اليومية العامه'!$A9)),COLUMN('اليومية العامه'!E:E)-1),\"\")","v":""},{"$f":"IFERROR(INDEX('اليومية العامه'!$B$7:$K$16,SMALL(IF(('اليومية العامه'!$B$7:$B$16>='كشف حساب تحليلى'!$C$6)*('اليومية العامه'!$B$7:$B$16<='كشف حساب تحليلى'!$G$6)*('اليومية العامه'!$F$7:$F$16='كشف حساب تحليلى'!$J$6)*('اليومية العامه'!$G$7:$G$16='كشف حساب تحليلى'!$J$8),ROW('اليومية العامه'!$B$7:$B$16)-6,\"\"),ROW('اليومية العامه'!$A9)),COLUMN('اليومية العامه'!F:F)-1),\"\")","v":""},{"$f":"IFERROR(INDEX('اليومية العامه'!$B$7:$K$16,SMALL(IF(('اليومية العامه'!$B$7:$B$16>='كشف حساب تحليلى'!$C$6)*('اليومية العامه'!$B$7:$B$16<='كشف حساب تحليلى'!$G$6)*('اليومية العامه'!$F$7:$F$16='كشف حساب تحليلى'!$J$6)*('اليومية العامه'!$G$7:$G$16='كشف حساب تحليلى'!$J$8),ROW('اليومية العامه'!$B$7:$B$16)-6,\"\"),ROW('اليومية العامه'!$A9)),COLUMN('اليومية العامه'!G:G)-1),\"\")","v":""},{"$f":"IFERROR(INDEX('اليومية العامه'!$B$7:$K$16,SMALL(IF(('اليومية العامه'!$B$7:$B$16>='كشف حساب تحليلى'!$C$6)*('اليومية العامه'!$B$7:$B$16<='كشف حساب تحليلى'!$G$6)*('اليومية العامه'!$F$7:$F$16='كشف حساب تحليلى'!$J$6)*('اليومية العامه'!$G$7:$G$16='كشف حساب تحليلى'!$J$8),ROW('اليومية العامه'!$B$7:$B$16)-6,\"\"),ROW('اليومية العامه'!$A9)),COLUMN('اليومية العامه'!H:H)-1),\"\")","v":""},{"$f":"IFERROR(INDEX('اليومية العامه'!$B$7:$K$16,SMALL(IF(('اليومية العامه'!$B$7:$B$16>='كشف حساب تحليلى'!$C$6)*('اليومية العامه'!$B$7:$B$16<='كشف حساب تحليلى'!$G$6)*('اليومية العامه'!$F$7:$F$16='كشف حساب تحليلى'!$J$6)*('اليومية العامه'!$G$7:$G$16='كشف حساب تحليلى'!$J$8),ROW('اليومية العامه'!$B$7:$B$16)-6,\"\"),ROW('اليومية العامه'!$A9)),COLUMN('اليومية العامه'!I:I)-1),\"\")","v":""},{"$f":"IFERROR(INDEX('اليومية العامه'!$B$7:$K$16,SMALL(IF(('اليومية العامه'!$B$7:$B$16>='كشف حساب تحليلى'!$C$6)*('اليومية العامه'!$B$7:$B$16<='كشف حساب تحليلى'!$G$6)*('اليومية العامه'!$F$7:$F$16='كشف حساب تحليلى'!$J$6)*('اليومية العامه'!$G$7:$G$16='كشف حساب تحليلى'!$J$8),ROW('اليومية العامه'!$B$7:$B$16)-6,\"\"),ROW('اليومية العامه'!$A9)),COLUMN('اليومية العامه'!J:J)-1),\"\")","v":""},{"$f":"IFERROR(INDEX('اليومية العامه'!$B$7:$K$16,SMALL(IF(('اليومية العامه'!$B$7:$B$16>='كشف حساب تحليلى'!$C$6)*('اليومية العامه'!$B$7:$B$16<='كشف حساب تحليلى'!$G$6)*('اليومية العامه'!$F$7:$F$16='كشف حساب تحليلى'!$J$6)*('اليومية العامه'!$G$7:$G$16='كشف حساب تحليلى'!$J$8),ROW('اليومية العامه'!$B$7:$B$16)-6,\"\"),ROW('اليومية العامه'!$A9)),COLUMN('اليومية العامه'!K:K)-1),\"\")","v":""}]
[null,{"$f":"IFERROR(INDEX('اليومية العامه'!$B$7:$K$16,SMALL(IF(('اليومية العامه'!$B$7:$B$16>='كشف حساب تحليلى'!$C$6)*('اليومية العامه'!$B$7:$B$16<='كشف حساب تحليلى'!$G$6)*('اليومية العامه'!$F$7:$F$16='كشف حساب تحليلى'!$J$6)*('اليومية العامه'!$G$7:$G$16='كشف حساب تحليلى'!$J$8),ROW('اليومية العامه'!$B$7:$B$16)-6,\"\"),ROW('اليومية العامه'!$A10)),COLUMN('اليومية العامه'!B:B)-1),\"\")","v":""},{"$f":"IFERROR(INDEX('اليومية العامه'!$B$7:$K$16,SMALL(IF(('اليومية العامه'!$B$7:$B$16>='كشف حساب تحليلى'!$C$6)*('اليومية العامه'!$B$7:$B$16<='كشف حساب تحليلى'!$G$6)*('اليومية العامه'!$F$7:$F$16='كشف حساب تحليلى'!$J$6)*('اليومية العامه'!$G$7:$G$16='كشف حساب تحليلى'!$J$8),ROW('اليومية العامه'!$B$7:$B$16)-6,\"\"),ROW('اليومية العامه'!$A10)),COLUMN('اليومية العامه'!C:C)-1),\"\")","v":""},{"$f":"IFERROR(INDEX('اليومية العامه'!$B$7:$K$16,SMALL(IF(('اليومية العامه'!$B$7:$B$16>='كشف حساب تحليلى'!$C$6)*('اليومية العامه'!$B$7:$B$16<='كشف حساب تحليلى'!$G$6)*('اليومية العامه'!$F$7:$F$16='كشف حساب تحليلى'!$J$6)*('اليومية العامه'!$G$7:$G$16='كشف حساب تحليلى'!$J$8),ROW('اليومية العامه'!$B$7:$B$16)-6,\"\"),ROW('اليومية العامه'!$A10)),COLUMN('اليومية العامه'!D:D)-1),\"\")","v":""},{"$f":"IFERROR(INDEX('اليومية العامه'!$B$7:$K$16,SMALL(IF(('اليومية العامه'!$B$7:$B$16>='كشف حساب تحليلى'!$C$6)*('اليومية العامه'!$B$7:$B$16<='كشف حساب تحليلى'!$G$6)*('اليومية العامه'!$F$7:$F$16='كشف حساب تحليلى'!$J$6)*('اليومية العامه'!$G$7:$G$16='كشف حساب تحليلى'!$J$8),ROW('اليومية العامه'!$B$7:$B$16)-6,\"\"),ROW('اليومية العامه'!$A10)),COLUMN('اليومية العامه'!E:E)-1),\"\")","v":""},{"$f":"IFERROR(INDEX('اليومية العامه'!$B$7:$K$16,SMALL(IF(('اليومية العامه'!$B$7:$B$16>='كشف حساب تحليلى'!$C$6)*('اليومية العامه'!$B$7:$B$16<='كشف حساب تحليلى'!$G$6)*('اليومية العامه'!$F$7:$F$16='كشف حساب تحليلى'!$J$6)*('اليومية العامه'!$G$7:$G$16='كشف حساب تحليلى'!$J$8),ROW('اليومية العامه'!$B$7:$B$16)-6,\"\"),ROW('اليومية العامه'!$A10)),COLUMN('اليومية العامه'!F:F)-1),\"\")","v":""},{"$f":"IFERROR(INDEX('اليومية العامه'!$B$7:$K$16,SMALL(IF(('اليومية العامه'!$B$7:$B$16>='كشف حساب تحليلى'!$C$6)*('اليومية العامه'!$B$7:$B$16<='كشف حساب تحليلى'!$G$6)*('اليومية العامه'!$F$7:$F$16='كشف حساب تحليلى'!$J$6)*('اليومية العامه'!$G$7:$G$16='كشف حساب تحليلى'!$J$8),ROW('اليومية العامه'!$B$7:$B$16)-6,\"\"),ROW('اليومية العامه'!$A10)),COLUMN('اليومية العامه'!G:G)-1),\"\")","v":""},{"$f":"IFERROR(INDEX('اليومية العامه'!$B$7:$K$16,SMALL(IF(('اليومية العامه'!$B$7:$B$16>='كشف حساب تحليلى'!$C$6)*('اليومية العامه'!$B$7:$B$16<='كشف حساب تحليلى'!$G$6)*('اليومية العامه'!$F$7:$F$16='كشف حساب تحليلى'!$J$6)*('اليومية العامه'!$G$7:$G$16='كشف حساب تحليلى'!$J$8),ROW('اليومية العامه'!$B$7:$B$16)-6,\"\"),ROW('اليومية العامه'!$A10)),COLUMN('اليومية العامه'!H:H)-1),\"\")","v":""},{"$f":"IFERROR(INDEX('اليومية العامه'!$B$7:$K$16,SMALL(IF(('اليومية العامه'!$B$7:$B$16>='كشف حساب تحليلى'!$C$6)*('اليومية العامه'!$B$7:$B$16<='كشف حساب تحليلى'!$G$6)*('اليومية العامه'!$F$7:$F$16='كشف حساب تحليلى'!$J$6)*('اليومية العامه'!$G$7:$G$16='كشف حساب تحليلى'!$J$8),ROW('اليومية العامه'!$B$7:$B$16)-6,\"\"),ROW('اليومية العامه'!$A10)),COLUMN('اليومية العامه'!I:I)-1),\"\")","v":""},{"$f":"IFERROR(INDEX('اليومية العامه'!$B$7:$K$16,SMALL(IF(('اليومية العامه'!$B$7:$B$16>='كشف حساب تحليلى'!$C$6)*('اليومية العامه'!$B$7:$B$16<='كشف حساب تحليلى'!$G$6)*('اليومية العامه'!$F$7:$F$16='كشف حساب تحليلى'!$J$6)*('اليومية العامه'!$G$7:$G$16='كشف حساب تحليلى'!$J$8),ROW('اليومية العامه'!$B$7:$B$16)-6,\"\"),ROW('اليومية العامه'!$A10)),COLUMN('اليومية العامه'!J:J)-1),\"\")","v":""},{"$f":"IFERROR(INDEX('اليومية العامه'!$B$7:$K$16,SMALL(IF(('اليومية العامه'!$B$7:$B$16>='كشف حساب تحليلى'!$C$6)*('اليومية العامه'!$B$7:$B$16<='كشف حساب تحليلى'!$G$6)*('اليومية العامه'!$F$7:$F$16='كشف حساب تحليلى'!$J$6)*('اليومية العامه'!$G$7:$G$16='كشف حساب تحليلى'!$J$8),ROW('اليومية العامه'!$B$7:$B$16)-6,\"\"),ROW('اليومية العامه'!$A10)),COLUMN('اليومية العامه'!K:K)-1),\"\")","v":""}]
[null,{"$f":"IFERROR(INDEX('اليومية العامه'!$B$7:$K$16,SMALL(IF(('اليومية العامه'!$B$7:$B$16>='كشف حساب تحليلى'!$C$6)*('اليومية العامه'!$B$7:$B$16<='كشف حساب تحليلى'!$G$6)*('اليومية العامه'!$F$7:$F$16='كشف حساب تحليلى'!$J$6)*('اليومية العامه'!$G$7:$G$16='كشف حساب تحليلى'!$J$8),ROW('اليومية العامه'!$B$7:$B$16)-6,\"\"),ROW('اليومية العامه'!$A11)),COLUMN('اليومية العامه'!B:B)-1),\"\")","v":""},{"$f":"IFERROR(INDEX('اليومية العامه'!$B$7:$K$16,SMALL(IF(('اليومية العامه'!$B$7:$B$16>='كشف حساب تحليلى'!$C$6)*('اليومية العامه'!$B$7:$B$16<='كشف حساب تحليلى'!$G$6)*('اليومية العامه'!$F$7:$F$16='كشف حساب تحليلى'!$J$6)*('اليومية العامه'!$G$7:$G$16='كشف حساب تحليلى'!$J$8),ROW('اليومية العامه'!$B$7:$B$16)-6,\"\"),ROW('اليومية العامه'!$A11)),COLUMN('اليومية العامه'!C:C)-1),\"\")","v":""},{"$f":"IFERROR(INDEX('اليومية العامه'!$B$7:$K$16,SMALL(IF(('اليومية العامه'!$B$7:$B$16>='كشف حساب تحليلى'!$C$6)*('اليومية العامه'!$B$7:$B$16<='كشف حساب تحليلى'!$G$6)*('اليومية العامه'!$F$7:$F$16='كشف حساب تحليلى'!$J$6)*('اليومية العامه'!$G$7:$G$16='كشف حساب تحليلى'!$J$8),ROW('اليومية العامه'!$B$7:$B$16)-6,\"\"),ROW('اليومية العامه'!$A11)),COLUMN('اليومية العامه'!D:D)-1),\"\")","v":""},{"$f":"IFERROR(INDEX('اليومية العامه'!$B$7:$K$16,SMALL(IF(('اليومية العامه'!$B$7:$B$16>='كشف حساب تحليلى'!$C$6)*('اليومية العامه'!$B$7:$B$16<='كشف حساب تحليلى'!$G$6)*('اليومية العامه'!$F$7:$F$16='كشف حساب تحليلى'!$J$6)*('اليومية العامه'!$G$7:$G$16='كشف حساب تحليلى'!$J$8),ROW('اليومية العامه'!$B$7:$B$16)-6,\"\"),ROW('اليومية العامه'!$A11)),COLUMN('اليومية العامه'!E:E)-1),\"\")","v":""},{"$f":"IFERROR(INDEX('اليومية العامه'!$B$7:$K$16,SMALL(IF(('اليومية العامه'!$B$7:$B$16>='كشف حساب تحليلى'!$C$6)*('اليومية العامه'!$B$7:$B$16<='كشف حساب تحليلى'!$G$6)*('اليومية العامه'!$F$7:$F$16='كشف حساب تحليلى'!$J$6)*('اليومية العامه'!$G$7:$G$16='كشف حساب تحليلى'!$J$8),ROW('اليومية العامه'!$B$7:$B$16)-6,\"\"),ROW('اليومية العامه'!$A11)),COLUMN('اليومية العامه'!F:F)-1),\"\")","v":""},{"$f":"IFERROR(INDEX('اليومية العامه'!$B$7:$K$16,SMALL(IF(('اليومية العامه'!$B$7:$B$16>='كشف حساب تحليلى'!$C$6)*('اليومية العامه'!$B$7:$B$16<='كشف حساب تحليلى'!$G$6)*('اليومية العامه'!$F$7:$F$16='كشف حساب تحليلى'!$J$6)*('اليومية العامه'!$G$7:$G$16='كشف حساب تحليلى'!$J$8),ROW('اليومية العامه'!$B$7:$B$16)-6,\"\"),ROW('اليومية العامه'!$A11)),COLUMN('اليومية العامه'!G:G)-1),\"\")","v":""},{"$f":"IFERROR(INDEX('اليومية العامه'!$B$7:$K$16,SMALL(IF(('اليومية العامه'!$B$7:$B$16>='كشف حساب تحليلى'!$C$6)*('اليومية العامه'!$B$7:$B$16<='كشف حساب تحليلى'!$G$6)*('اليومية العامه'!$F$7:$F$16='كشف حساب تحليلى'!$J$6)*('اليومية العامه'!$G$7:$G$16='كشف حساب تحليلى'!$J$8),ROW('اليومية العامه'!$B$7:$B$16)-6,\"\"),ROW('اليومية العامه'!$A11)),COLUMN('اليومية العامه'!H:H)-1),\"\")","v":""},{"$f":"IFERROR(INDEX('اليومية العامه'!$B$7:$K$16,SMALL(IF(('اليومية العامه'!$B$7:$B$16>='كشف حساب تحليلى'!$C$6)*('اليومية العامه'!$B$7:$B$16<='كشف حساب تحليلى'!$G$6)*('اليومية العامه'!$F$7:$F$16='كشف حساب تحليلى'!$J$6)*('اليومية العامه'!$G$7:$G$16='كشف حساب تحليلى'!$J$8),ROW('اليومية العامه'!$B$7:$B$16)-6,\"\"),ROW('اليومية العامه'!$A11)),COLUMN('اليومية العامه'!I:I)-1),\"\")","v":""},{"$f":"IFERROR(INDEX('اليومية العامه'!$B$7:$K$16,SMALL(IF(('اليومية العامه'!$B$7:$B$16>='كشف حساب تحليلى'!$C$6)*('اليومية العامه'!$B$7:$B$16<='كشف حساب تحليلى'!$G$6)*('اليومية العامه'!$F$7:$F$16='كشف حساب تحليلى'!$J$6)*('اليومية العامه'!$G$7:$G$16='كشف حساب تحليلى'!$J$8),ROW('اليومية العامه'!$B$7:$B$16)-6,\"\"),ROW('اليومية العامه'!$A11)),COLUMN('اليومية العامه'!J:J)-1),\"\")","v":""},{"$f":"IFERROR(INDEX('اليومية العامه'!$B$7:$K$16,SMALL(IF(('اليومية العامه'!$B$7:$B$16>='كشف حساب تحليلى'!$C$6)*('اليومية العامه'!$B$7:$B$16<='كشف حساب تحليلى'!$G$6)*('اليومية العامه'!$F$7:$F$16='كشف حساب تحليلى'!$J$6)*('اليومية العامه'!$G$7:$G$16='كشف حساب تحليلى'!$J$8),ROW('اليومية العامه'!$B$7:$B$16)-6,\"\"),ROW('اليومية العامه'!$A11)),COLUMN('اليومية العامه'!K:K)-1),\"\")","v":""}]
[null,{"$f":"IFERROR(INDEX('اليومية العامه'!$B$7:$K$16,SMALL(IF(('اليومية العامه'!$B$7:$B$16>='كشف حساب تحليلى'!$C$6)*('اليومية العامه'!$B$7:$B$16<='كشف حساب تحليلى'!$G$6)*('اليومية العامه'!$F$7:$F$16='كشف حساب تحليلى'!$J$6)*('اليومية العامه'!$G$7:$G$16='كشف حساب تحليلى'!$J$8),ROW('اليومية العامه'!$B$7:$B$16)-6,\"\"),ROW('اليومية العامه'!$A12)),COLUMN('اليومية العامه'!B:B)-1),\"\")","v":""},{"$f":"IFERROR(INDEX('اليومية العامه'!$B$7:$K$16,SMALL(IF(('اليومية العامه'!$B$7:$B$16>='كشف حساب تحليلى'!$C$6)*('اليومية العامه'!$B$7:$B$16<='كشف حساب تحليلى'!$G$6)*('اليومية العامه'!$F$7:$F$16='كشف حساب تحليلى'!$J$6)*('اليومية العامه'!$G$7:$G$16='كشف حساب تحليلى'!$J$8),ROW('اليومية العامه'!$B$7:$B$16)-6,\"\"),ROW('اليومية العامه'!$A12)),COLUMN('اليومية العامه'!C:C)-1),\"\")","v":""},{"$f":"IFERROR(INDEX('اليومية العامه'!$B$7:$K$16,SMALL(IF(('اليومية العامه'!$B$7:$B$16>='كشف حساب تحليلى'!$C$6)*('اليومية العامه'!$B$7:$B$16<='كشف حساب تحليلى'!$G$6)*('اليومية العامه'!$F$7:$F$16='كشف حساب تحليلى'!$J$6)*('اليومية العامه'!$G$7:$G$16='كشف حساب تحليلى'!$J$8),ROW('اليومية العامه'!$B$7:$B$16)-6,\"\"),ROW('اليومية العامه'!$A12)),COLUMN('اليومية العامه'!D:D)-1),\"\")","v":""},{"$f":"IFERROR(INDEX('اليومية العامه'!$B$7:$K$16,SMALL(IF(('اليومية العامه'!$B$7:$B$16>='كشف حساب تحليلى'!$C$6)*('اليومية العامه'!$B$7:$B$16<='كشف حساب تحليلى'!$G$6)*('اليومية العامه'!$F$7:$F$16='كشف حساب تحليلى'!$J$6)*('اليومية العامه'!$G$7:$G$16='كشف حساب تحليلى'!$J$8),ROW('اليومية العامه'!$B$7:$B$16)-6,\"\"),ROW('اليومية العامه'!$A12)),COLUMN('اليومية العامه'!E:E)-1),\"\")","v":""},{"$f":"IFERROR(INDEX('اليومية العامه'!$B$7:$K$16,SMALL(IF(('اليومية العامه'!$B$7:$B$16>='كشف حساب تحليلى'!$C$6)*('اليومية العامه'!$B$7:$B$16<='كشف حساب تحليلى'!$G$6)*('اليومية العامه'!$F$7:$F$16='كشف حساب تحليلى'!$J$6)*('اليومية العامه'!$G$7:$G$16='كشف حساب تحليلى'!$J$8),ROW('اليومية العامه'!$B$7:$B$16)-6,\"\"),ROW('اليومية العامه'!$A12)),COLUMN('اليومية العامه'!F:F)-1),\"\")","v":""},{"$f":"IFERROR(INDEX('اليومية العامه'!$B$7:$K$16,SMALL(IF(('اليومية العامه'!$B$7:$B$16>='كشف حساب تحليلى'!$C$6)*('اليومية العامه'!$B$7:$B$16<='كشف حساب تحليلى'!$G$6)*('اليومية العامه'!$F$7:$F$16='كشف حساب تحليلى'!$J$6)*('اليومية العامه'!$G$7:$G$16='كشف حساب تحليلى'!$J$8),ROW('اليومية العامه'!$B$7:$B$16)-6,\"\"),ROW('اليومية العامه'!$A12)),COLUMN('اليومية العامه'!G:G)-1),\"\")","v":""},{"$f":"IFERROR(INDEX('اليومية العامه'!$B$7:$K$16,SMALL(IF(('اليومية العامه'!$B$7:$B$16>='كشف حساب تحليلى'!$C$6)*('اليومية العامه'!$B$7:$B$16<='كشف حساب تحليلى'!$G$6)*('اليومية العامه'!$F$7:$F$16='كشف حساب تحليلى'!$J$6)*('اليومية العامه'!$G$7:$G$16='كشف حساب تحليلى'!$J$8),ROW('اليومية العامه'!$B$7:$B$16)-6,\"\"),ROW('اليومية العامه'!$A12)),COLUMN('اليومية العامه'!H:H)-1),\"\")","v":""},{"$f":"IFERROR(INDEX('اليومية العامه'!$B$7:$K$16,SMALL(IF(('اليومية العامه'!$B$7:$B$16>='كشف حساب تحليلى'!$C$6)*('اليومية العامه'!$B$7:$B$16<='كشف حساب تحليلى'!$G$6)*('اليومية العامه'!$F$7:$F$16='كشف حساب تحليلى'!$J$6)*('اليومية العامه'!$G$7:$G$16='كشف حساب تحليلى'!$J$8),ROW('اليومية العامه'!$B$7:$B$16)-6,\"\"),ROW('اليومية العامه'!$A12)),COLUMN('اليومية العامه'!I:I)-1),\"\")","v":""},{"$f":"IFERROR(INDEX('اليومية العامه'!$B$7:$K$16,SMALL(IF(('اليومية العامه'!$B$7:$B$16>='كشف حساب تحليلى'!$C$6)*('اليومية العامه'!$B$7:$B$16<='كشف حساب تحليلى'!$G$6)*('اليومية العامه'!$F$7:$F$16='كشف حساب تحليلى'!$J$6)*('اليومية العامه'!$G$7:$G$16='كشف حساب تحليلى'!$J$8),ROW('اليومية العامه'!$B$7:$B$16)-6,\"\"),ROW('اليومية العامه'!$A12)),COLUMN('اليومية العامه'!J:J)-1),\"\")","v":""},{"$f":"IFERROR(INDEX('اليومية العامه'!$B$7:$K$16,SMALL(IF(('اليومية العامه'!$B$7:$B$16>='كشف حساب تحليلى'!$C$6)*('اليومية العامه'!$B$7:$B$16<='كشف حساب تحليلى'!$G$6)*('اليومية العامه'!$F$7:$F$16='كشف حساب تحليلى'!$J$6)*('اليومية العامه'!$G$7:$G$16='كشف حساب تحليلى'!$J$8),ROW('اليومية العامه'!$B$7:$B$16)-6,\"\"),ROW('اليومية العامه'!$A12)),COLUMN('اليومية العامه'!K:K)-1),\"\")","v":""}]
[null,{"$f":"IFERROR(INDEX('اليومية العامه'!$B$7:$K$16,SMALL(IF(('اليومية العامه'!$B$7:$B$16>='كشف حساب تحليلى'!$C$6)*('اليومية العامه'!$B$7:$B$16<='كشف حساب تحليلى'!$G$6)*('اليومية العامه'!$F$7:$F$16='كشف حساب تحليلى'!$J$6)*('اليومية العامه'!$G$7:$G$16='كشف حساب تحليلى'!$J$8),ROW('اليومية العامه'!$B$7:$B$16)-6,\"\"),ROW('اليومية العامه'!$A13)),COLUMN('اليومية العامه'!B:B)-1),\"\")","v":""},{"$f":"IFERROR(INDEX('اليومية العامه'!$B$7:$K$16,SMALL(IF(('اليومية العامه'!$B$7:$B$16>='كشف حساب تحليلى'!$C$6)*('اليومية العامه'!$B$7:$B$16<='كشف حساب تحليلى'!$G$6)*('اليومية العامه'!$F$7:$F$16='كشف حساب تحليلى'!$J$6)*('اليومية العامه'!$G$7:$G$16='كشف حساب تحليلى'!$J$8),ROW('اليومية العامه'!$B$7:$B$16)-6,\"\"),ROW('اليومية العامه'!$A13)),COLUMN('اليومية العامه'!C:C)-1),\"\")","v":""},{"$f":"IFERROR(INDEX('اليومية العامه'!$B$7:$K$16,SMALL(IF(('اليومية العامه'!$B$7:$B$16>='كشف حساب تحليلى'!$C$6)*('اليومية العامه'!$B$7:$B$16<='كشف حساب تحليلى'!$G$6)*('اليومية العامه'!$F$7:$F$16='كشف حساب تحليلى'!$J$6)*('اليومية العامه'!$G$7:$G$16='كشف حساب تحليلى'!$J$8),ROW('اليومية العامه'!$B$7:$B$16)-6,\"\"),ROW('اليومية العامه'!$A13)),COLUMN('اليومية العامه'!D:D)-1),\"\")","v":""},{"$f":"IFERROR(INDEX('اليومية العامه'!$B$7:$K$16,SMALL(IF(('اليومية العامه'!$B$7:$B$16>='كشف حساب تحليلى'!$C$6)*('اليومية العامه'!$B$7:$B$16<='كشف حساب تحليلى'!$G$6)*('اليومية العامه'!$F$7:$F$16='كشف حساب تحليلى'!$J$6)*('اليومية العامه'!$G$7:$G$16='كشف حساب تحليلى'!$J$8),ROW('اليومية العامه'!$B$7:$B$16)-6,\"\"),ROW('اليومية العامه'!$A13)),COLUMN('اليومية العامه'!E:E)-1),\"\")","v":""},{"$f":"IFERROR(INDEX('اليومية العامه'!$B$7:$K$16,SMALL(IF(('اليومية العامه'!$B$7:$B$16>='كشف حساب تحليلى'!$C$6)*('اليومية العامه'!$B$7:$B$16<='كشف حساب تحليلى'!$G$6)*('اليومية العامه'!$F$7:$F$16='كشف حساب تحليلى'!$J$6)*('اليومية العامه'!$G$7:$G$16='كشف حساب تحليلى'!$J$8),ROW('اليومية العامه'!$B$7:$B$16)-6,\"\"),ROW('اليومية العامه'!$A13)),COLUMN('اليومية العامه'!F:F)-1),\"\")","v":""},{"$f":"IFERROR(INDEX('اليومية العامه'!$B$7:$K$16,SMALL(IF(('اليومية العامه'!$B$7:$B$16>='كشف حساب تحليلى'!$C$6)*('اليومية العامه'!$B$7:$B$16<='كشف حساب تحليلى'!$G$6)*('اليومية العامه'!$F$7:$F$16='كشف حساب تحليلى'!$J$6)*('اليومية العامه'!$G$7:$G$16='كشف حساب تحليلى'!$J$8),ROW('اليومية العامه'!$B$7:$B$16)-6,\"\"),ROW('اليومية العامه'!$A13)),COLUMN('اليومية العامه'!G:G)-1),\"\")","v":""},{"$f":"IFERROR(INDEX('اليومية العامه'!$B$7:$K$16,SMALL(IF(('اليومية العامه'!$B$7:$B$16>='كشف حساب تحليلى'!$C$6)*('اليومية العامه'!$B$7:$B$16<='كشف حساب تحليلى'!$G$6)*('اليومية العامه'!$F$7:$F$16='كشف حساب تحليلى'!$J$6)*('اليومية العامه'!$G$7:$G$16='كشف حساب تحليلى'!$J$8),ROW('اليومية العامه'!$B$7:$B$16)-6,\"\"),ROW('اليومية العامه'!$A13)),COLUMN('اليومية العامه'!H:H)-1),\"\")","v":""},{"$f":"IFERROR(INDEX('اليومية العامه'!$B$7:$K$16,SMALL(IF(('اليومية العامه'!$B$7:$B$16>='كشف حساب تحليلى'!$C$6)*('اليومية العامه'!$B$7:$B$16<='كشف حساب تحليلى'!$G$6)*('اليومية العامه'!$F$7:$F$16='كشف حساب تحليلى'!$J$6)*('اليومية العامه'!$G$7:$G$16='كشف حساب تحليلى'!$J$8),ROW('اليومية العامه'!$B$7:$B$16)-6,\"\"),ROW('اليومية العامه'!$A13)),COLUMN('اليومية العامه'!I:I)-1),\"\")","v":""},{"$f":"IFERROR(INDEX('اليومية العامه'!$B$7:$K$16,SMALL(IF(('اليومية العامه'!$B$7:$B$16>='كشف حساب تحليلى'!$C$6)*('اليومية العامه'!$B$7:$B$16<='كشف حساب تحليلى'!$G$6)*('اليومية العامه'!$F$7:$F$16='كشف حساب تحليلى'!$J$6)*('اليومية العامه'!$G$7:$G$16='كشف حساب تحليلى'!$J$8),ROW('اليومية العامه'!$B$7:$B$16)-6,\"\"),ROW('اليومية العامه'!$A13)),COLUMN('اليومية العامه'!J:J)-1),\"\")","v":""},{"$f":"IFERROR(INDEX('اليومية العامه'!$B$7:$K$16,SMALL(IF(('اليومية العامه'!$B$7:$B$16>='كشف حساب تحليلى'!$C$6)*('اليومية العامه'!$B$7:$B$16<='كشف حساب تحليلى'!$G$6)*('اليومية العامه'!$F$7:$F$16='كشف حساب تحليلى'!$J$6)*('اليومية العامه'!$G$7:$G$16='كشف حساب تحليلى'!$J$8),ROW('اليومية العامه'!$B$7:$B$16)-6,\"\"),ROW('اليومية العامه'!$A13)),COLUMN('اليومية العامه'!K:K)-1),\"\")","v":""}]
[null,{"$f":"IFERROR(INDEX('اليومية العامه'!$B$7:$K$16,SMALL(IF(('اليومية العامه'!$B$7:$B$16>='كشف حساب تحليلى'!$C$6)*('اليومية العامه'!$B$7:$B$16<='كشف حساب تحليلى'!$G$6)*('اليومية العامه'!$F$7:$F$16='كشف حساب تحليلى'!$J$6)*('اليومية العامه'!$G$7:$G$16='كشف حساب تحليلى'!$J$8),ROW('اليومية العامه'!$B$7:$B$16)-6,\"\"),ROW('اليومية العامه'!$A14)),COLUMN('اليومية العامه'!B:B)-1),\"\")","v":""},{"$f":"IFERROR(INDEX('اليومية العامه'!$B$7:$K$16,SMALL(IF(('اليومية العامه'!$B$7:$B$16>='كشف حساب تحليلى'!$C$6)*('اليومية العامه'!$B$7:$B$16<='كشف حساب تحليلى'!$G$6)*('اليومية العامه'!$F$7:$F$16='كشف حساب تحليلى'!$J$6)*('اليومية العامه'!$G$7:$G$16='كشف حساب تحليلى'!$J$8),ROW('اليومية العامه'!$B$7:$B$16)-6,\"\"),ROW('اليومية العامه'!$A14)),COLUMN('اليومية العامه'!C:C)-1),\"\")","v":""},{"$f":"IFERROR(INDEX('اليومية العامه'!$B$7:$K$16,SMALL(IF(('اليومية العامه'!$B$7:$B$16>='كشف حساب تحليلى'!$C$6)*('اليومية العامه'!$B$7:$B$16<='كشف حساب تحليلى'!$G$6)*('اليومية العامه'!$F$7:$F$16='كشف حساب تحليلى'!$J$6)*('اليومية العامه'!$G$7:$G$16='كشف حساب تحليلى'!$J$8),ROW('اليومية العامه'!$B$7:$B$16)-6,\"\"),ROW('اليومية العامه'!$A14)),COLUMN('اليومية العامه'!D:D)-1),\"\")","v":""},{"$f":"IFERROR(INDEX('اليومية العامه'!$B$7:$K$16,SMALL(IF(('اليومية العامه'!$B$7:$B$16>='كشف حساب تحليلى'!$C$6)*('اليومية العامه'!$B$7:$B$16<='كشف حساب تحليلى'!$G$6)*('اليومية العامه'!$F$7:$F$16='كشف حساب تحليلى'!$J$6)*('اليومية العامه'!$G$7:$G$16='كشف حساب تحليلى'!$J$8),ROW('اليومية العامه'!$B$7:$B$16)-6,\"\"),ROW('اليومية العامه'!$A14)),COLUMN('اليومية العامه'!E:E)-1),\"\")","v":""},{"$f":"IFERROR(INDEX('اليومية العامه'!$B$7:$K$16,SMALL(IF(('اليومية العامه'!$B$7:$B$16>='كشف حساب تحليلى'!$C$6)*('اليومية العامه'!$B$7:$B$16<='كشف حساب تحليلى'!$G$6)*('اليومية العامه'!$F$7:$F$16='كشف حساب تحليلى'!$J$6)*('اليومية العامه'!$G$7:$G$16='كشف حساب تحليلى'!$J$8),ROW('اليومية العامه'!$B$7:$B$16)-6,\"\"),ROW('اليومية العامه'!$A14)),COLUMN('اليومية العامه'!F:F)-1),\"\")","v":""},{"$f":"IFERROR(INDEX('اليومية العامه'!$B$7:$K$16,SMALL(IF(('اليومية العامه'!$B$7:$B$16>='كشف حساب تحليلى'!$C$6)*('اليومية العامه'!$B$7:$B$16<='كشف حساب تحليلى'!$G$6)*('اليومية العامه'!$F$7:$F$16='كشف حساب تحليلى'!$J$6)*('اليومية العامه'!$G$7:$G$16='كشف حساب تحليلى'!$J$8),ROW('اليومية العامه'!$B$7:$B$16)-6,\"\"),ROW('اليومية العامه'!$A14)),COLUMN('اليومية العامه'!G:G)-1),\"\")","v":""},{"$f":"IFERROR(INDEX('اليومية العامه'!$B$7:$K$16,SMALL(IF(('اليومية العامه'!$B$7:$B$16>='كشف حساب تحليلى'!$C$6)*('اليومية العامه'!$B$7:$B$16<='كشف حساب تحليلى'!$G$6)*('اليومية العامه'!$F$7:$F$16='كشف حساب تحليلى'!$J$6)*('اليومية العامه'!$G$7:$G$16='كشف حساب تحليلى'!$J$8),ROW('اليومية العامه'!$B$7:$B$16)-6,\"\"),ROW('اليومية العامه'!$A14)),COLUMN('اليومية العامه'!H:H)-1),\"\")","v":""},{"$f":"IFERROR(INDEX('اليومية العامه'!$B$7:$K$16,SMALL(IF(('اليومية العامه'!$B$7:$B$16>='كشف حساب تحليلى'!$C$6)*('اليومية العامه'!$B$7:$B$16<='كشف حساب تحليلى'!$G$6)*('اليومية العامه'!$F$7:$F$16='كشف حساب تحليلى'!$J$6)*('اليومية العامه'!$G$7:$G$16='كشف حساب تحليلى'!$J$8),ROW('اليومية العامه'!$B$7:$B$16)-6,\"\"),ROW('اليومية العامه'!$A14)),COLUMN('اليومية العامه'!I:I)-1),\"\")","v":""},{"$f":"IFERROR(INDEX('اليومية العامه'!$B$7:$K$16,SMALL(IF(('اليومية العامه'!$B$7:$B$16>='كشف حساب تحليلى'!$C$6)*('اليومية العامه'!$B$7:$B$16<='كشف حساب تحليلى'!$G$6)*('اليومية العامه'!$F$7:$F$16='كشف حساب تحليلى'!$J$6)*('اليومية العامه'!$G$7:$G$16='كشف حساب تحليلى'!$J$8),ROW('اليومية العامه'!$B$7:$B$16)-6,\"\"),ROW('اليومية العامه'!$A14)),COLUMN('اليومية العامه'!J:J)-1),\"\")","v":""},{"$f":"IFERROR(INDEX('اليومية العامه'!$B$7:$K$16,SMALL(IF(('اليومية العامه'!$B$7:$B$16>='كشف حساب تحليلى'!$C$6)*('اليومية العامه'!$B$7:$B$16<='كشف حساب تحليلى'!$G$6)*('اليومية العامه'!$F$7:$F$16='كشف حساب تحليلى'!$J$6)*('اليومية العامه'!$G$7:$G$16='كشف حساب تحليلى'!$J$8),ROW('اليومية العامه'!$B$7:$B$16)-6,\"\"),ROW('اليومية العامه'!$A14)),COLUMN('اليومية العامه'!K:K)-1),\"\")","v":""}]
[null,{"$f":"IFERROR(INDEX('اليومية العامه'!$B$7:$K$16,SMALL(IF(('اليومية العامه'!$B$7:$B$16>='كشف حساب تحليلى'!$C$6)*('اليومية العامه'!$B$7:$B$16<='كشف حساب تحليلى'!$G$6)*('اليومية العامه'!$F$7:$F$16='كشف حساب تحليلى'!$J$6)*('اليومية العامه'!$G$7:$G$16='كشف حساب تحليلى'!$J$8),ROW('اليومية العامه'!$B$7:$B$16)-6,\"\"),ROW('اليومية العامه'!$A15)),COLUMN('اليومية العامه'!B:B)-1),\"\")","v":""},{"$f":"IFERROR(INDEX('اليومية العامه'!$B$7:$K$16,SMALL(IF(('اليومية العامه'!$B$7:$B$16>='كشف حساب تحليلى'!$C$6)*('اليومية العامه'!$B$7:$B$16<='كشف حساب تحليلى'!$G$6)*('اليومية العامه'!$F$7:$F$16='كشف حساب تحليلى'!$J$6)*('اليومية العامه'!$G$7:$G$16='كشف حساب تحليلى'!$J$8),ROW('اليومية العامه'!$B$7:$B$16)-6,\"\"),ROW('اليومية العامه'!$A15)),COLUMN('اليومية العامه'!C:C)-1),\"\")","v":""},{"$f":"IFERROR(INDEX('اليومية العامه'!$B$7:$K$16,SMALL(IF(('اليومية العامه'!$B$7:$B$16>='كشف حساب تحليلى'!$C$6)*('اليومية العامه'!$B$7:$B$16<='كشف حساب تحليلى'!$G$6)*('اليومية العامه'!$F$7:$F$16='كشف حساب تحليلى'!$J$6)*('اليومية العامه'!$G$7:$G$16='كشف حساب تحليلى'!$J$8),ROW('اليومية العامه'!$B$7:$B$16)-6,\"\"),ROW('اليومية العامه'!$A15)),COLUMN('اليومية العامه'!D:D)-1),\"\")","v":""},{"$f":"IFERROR(INDEX('اليومية العامه'!$B$7:$K$16,SMALL(IF(('اليومية العامه'!$B$7:$B$16>='كشف حساب تحليلى'!$C$6)*('اليومية العامه'!$B$7:$B$16<='كشف حساب تحليلى'!$G$6)*('اليومية العامه'!$F$7:$F$16='كشف حساب تحليلى'!$J$6)*('اليومية العامه'!$G$7:$G$16='كشف حساب تحليلى'!$J$8),ROW('اليومية العامه'!$B$7:$B$16)-6,\"\"),ROW('اليومية العامه'!$A15)),COLUMN('اليومية العامه'!E:E)-1),\"\")","v":""},{"$f":"IFERROR(INDEX('اليومية العامه'!$B$7:$K$16,SMALL(IF(('اليومية العامه'!$B$7:$B$16>='كشف حساب تحليلى'!$C$6)*('اليومية العامه'!$B$7:$B$16<='كشف حساب تحليلى'!$G$6)*('اليومية العامه'!$F$7:$F$16='كشف حساب تحليلى'!$J$6)*('اليومية العامه'!$G$7:$G$16='كشف حساب تحليلى'!$J$8),ROW('اليومية العامه'!$B$7:$B$16)-6,\"\"),ROW('اليومية العامه'!$A15)),COLUMN('اليومية العامه'!F:F)-1),\"\")","v":""},{"$f":"IFERROR(INDEX('اليومية العامه'!$B$7:$K$16,SMALL(IF(('اليومية العامه'!$B$7:$B$16>='كشف حساب تحليلى'!$C$6)*('اليومية العامه'!$B$7:$B$16<='كشف حساب تحليلى'!$G$6)*('اليومية العامه'!$F$7:$F$16='كشف حساب تحليلى'!$J$6)*('اليومية العامه'!$G$7:$G$16='كشف حساب تحليلى'!$J$8),ROW('اليومية العامه'!$B$7:$B$16)-6,\"\"),ROW('اليومية العامه'!$A15)),COLUMN('اليومية العامه'!G:G)-1),\"\")","v":""},{"$f":"IFERROR(INDEX('اليومية العامه'!$B$7:$K$16,SMALL(IF(('اليومية العامه'!$B$7:$B$16>='كشف حساب تحليلى'!$C$6)*('اليومية العامه'!$B$7:$B$16<='كشف حساب تحليلى'!$G$6)*('اليومية العامه'!$F$7:$F$16='كشف حساب تحليلى'!$J$6)*('اليومية العامه'!$G$7:$G$16='كشف حساب تحليلى'!$J$8),ROW('اليومية العامه'!$B$7:$B$16)-6,\"\"),ROW('اليومية العامه'!$A15)),COLUMN('اليومية العامه'!H:H)-1),\"\")","v":""},{"$f":"IFERROR(INDEX('اليومية العامه'!$B$7:$K$16,SMALL(IF(('اليومية العامه'!$B$7:$B$16>='كشف حساب تحليلى'!$C$6)*('اليومية العامه'!$B$7:$B$16<='كشف حساب تحليلى'!$G$6)*('اليومية العامه'!$F$7:$F$16='كشف حساب تحليلى'!$J$6)*('اليومية العامه'!$G$7:$G$16='كشف حساب تحليلى'!$J$8),ROW('اليومية العامه'!$B$7:$B$16)-6,\"\"),ROW('اليومية العامه'!$A15)),COLUMN('اليومية العامه'!I:I)-1),\"\")","v":""},{"$f":"IFERROR(INDEX('اليومية العامه'!$B$7:$K$16,SMALL(IF(('اليومية العامه'!$B$7:$B$16>='كشف حساب تحليلى'!$C$6)*('اليومية العامه'!$B$7:$B$16<='كشف حساب تحليلى'!$G$6)*('اليومية العامه'!$F$7:$F$16='كشف حساب تحليلى'!$J$6)*('اليومية العامه'!$G$7:$G$16='كشف حساب تحليلى'!$J$8),ROW('اليومية العامه'!$B$7:$B$16)-6,\"\"),ROW('اليومية العامه'!$A15)),COLUMN('اليومية العامه'!J:J)-1),\"\")","v":""},{"$f":"IFERROR(INDEX('اليومية العامه'!$B$7:$K$16,SMALL(IF(('اليومية العامه'!$B$7:$B$16>='كشف حساب تحليلى'!$C$6)*('اليومية العامه'!$B$7:$B$16<='كشف حساب تحليلى'!$G$6)*('اليومية العامه'!$F$7:$F$16='كشف حساب تحليلى'!$J$6)*('اليومية العامه'!$G$7:$G$16='كشف حساب تحليلى'!$J$8),ROW('اليومية العامه'!$B$7:$B$16)-6,\"\"),ROW('اليومية العامه'!$A15)),COLUMN('اليومية العامه'!K:K)-1),\"\")","v":""}]
[null,{"$f":"IFERROR(INDEX('اليومية العامه'!$B$7:$K$16,SMALL(IF(('اليومية العامه'!$B$7:$B$16>='كشف حساب تحليلى'!$C$6)*('اليومية العامه'!$B$7:$B$16<='كشف حساب تحليلى'!$G$6)*('اليومية العامه'!$F$7:$F$16='كشف حساب تحليلى'!$J$6)*('اليومية العامه'!$G$7:$G$16='كشف حساب تحليلى'!$J$8),ROW('اليومية العامه'!$B$7:$B$16)-6,\"\"),ROW('اليومية العامه'!$A16)),COLUMN('اليومية العامه'!B:B)-1),\"\")","v":""},{"$f":"IFERROR(INDEX('اليومية العامه'!$B$7:$K$16,SMALL(IF(('اليومية العامه'!$B$7:$B$16>='كشف حساب تحليلى'!$C$6)*('اليومية العامه'!$B$7:$B$16<='كشف حساب تحليلى'!$G$6)*('اليومية العامه'!$F$7:$F$16='كشف حساب تحليلى'!$J$6)*('اليومية العامه'!$G$7:$G$16='كشف حساب تحليلى'!$J$8),ROW('اليومية العامه'!$B$7:$B$16)-6,\"\"),ROW('اليومية العامه'!$A16)),COLUMN('اليومية العامه'!C:C)-1),\"\")","v":""},{"$f":"IFERROR(INDEX('اليومية العامه'!$B$7:$K$16,SMALL(IF(('اليومية العامه'!$B$7:$B$16>='كشف حساب تحليلى'!$C$6)*('اليومية العامه'!$B$7:$B$16<='كشف حساب تحليلى'!$G$6)*('اليومية العامه'!$F$7:$F$16='كشف حساب تحليلى'!$J$6)*('اليومية العامه'!$G$7:$G$16='كشف حساب تحليلى'!$J$8),ROW('اليومية العامه'!$B$7:$B$16)-6,\"\"),ROW('اليومية العامه'!$A16)),COLUMN('اليومية العامه'!D:D)-1),\"\")","v":""},{"$f":"IFERROR(INDEX('اليومية العامه'!$B$7:$K$16,SMALL(IF(('اليومية العامه'!$B$7:$B$16>='كشف حساب تحليلى'!$C$6)*('اليومية العامه'!$B$7:$B$16<='كشف حساب تحليلى'!$G$6)*('اليومية العامه'!$F$7:$F$16='كشف حساب تحليلى'!$J$6)*('اليومية العامه'!$G$7:$G$16='كشف حساب تحليلى'!$J$8),ROW('اليومية العامه'!$B$7:$B$16)-6,\"\"),ROW('اليومية العامه'!$A16)),COLUMN('اليومية العامه'!E:E)-1),\"\")","v":""},{"$f":"IFERROR(INDEX('اليومية العامه'!$B$7:$K$16,SMALL(IF(('اليومية العامه'!$B$7:$B$16>='كشف حساب تحليلى'!$C$6)*('اليومية العامه'!$B$7:$B$16<='كشف حساب تحليلى'!$G$6)*('اليومية العامه'!$F$7:$F$16='كشف حساب تحليلى'!$J$6)*('اليومية العامه'!$G$7:$G$16='كشف حساب تحليلى'!$J$8),ROW('اليومية العامه'!$B$7:$B$16)-6,\"\"),ROW('اليومية العامه'!$A16)),COLUMN('اليومية العامه'!F:F)-1),\"\")","v":""},{"$f":"IFERROR(INDEX('اليومية العامه'!$B$7:$K$16,SMALL(IF(('اليومية العامه'!$B$7:$B$16>='كشف حساب تحليلى'!$C$6)*('اليومية العامه'!$B$7:$B$16<='كشف حساب تحليلى'!$G$6)*('اليومية العامه'!$F$7:$F$16='كشف حساب تحليلى'!$J$6)*('اليومية العامه'!$G$7:$G$16='كشف حساب تحليلى'!$J$8),ROW('اليومية العامه'!$B$7:$B$16)-6,\"\"),ROW('اليومية العامه'!$A16)),COLUMN('اليومية العامه'!G:G)-1),\"\")","v":""},{"$f":"IFERROR(INDEX('اليومية العامه'!$B$7:$K$16,SMALL(IF(('اليومية العامه'!$B$7:$B$16>='كشف حساب تحليلى'!$C$6)*('اليومية العامه'!$B$7:$B$16<='كشف حساب تحليلى'!$G$6)*('اليومية العامه'!$F$7:$F$16='كشف حساب تحليلى'!$J$6)*('اليومية العامه'!$G$7:$G$16='كشف حساب تحليلى'!$J$8),ROW('اليومية العامه'!$B$7:$B$16)-6,\"\"),ROW('اليومية العامه'!$A16)),COLUMN('اليومية العامه'!H:H)-1),\"\")","v":""},{"$f":"IFERROR(INDEX('اليومية العامه'!$B$7:$K$16,SMALL(IF(('اليومية العامه'!$B$7:$B$16>='كشف حساب تحليلى'!$C$6)*('اليومية العامه'!$B$7:$B$16<='كشف حساب تحليلى'!$G$6)*('اليومية العامه'!$F$7:$F$16='كشف حساب تحليلى'!$J$6)*('اليومية العامه'!$G$7:$G$16='كشف حساب تحليلى'!$J$8),ROW('اليومية العامه'!$B$7:$B$16)-6,\"\"),ROW('اليومية العامه'!$A16)),COLUMN('اليومية العامه'!I:I)-1),\"\")","v":""},{"$f":"IFERROR(INDEX('اليومية العامه'!$B$7:$K$16,SMALL(IF(('اليومية العامه'!$B$7:$B$16>='كشف حساب تحليلى'!$C$6)*('اليومية العامه'!$B$7:$B$16<='كشف حساب تحليلى'!$G$6)*('اليومية العامه'!$F$7:$F$16='كشف حساب تحليلى'!$J$6)*('اليومية العامه'!$G$7:$G$16='كشف حساب تحليلى'!$J$8),ROW('اليومية العامه'!$B$7:$B$16)-6,\"\"),ROW('اليومية العامه'!$A16)),COLUMN('اليومية العامه'!J:J)-1),\"\")","v":""},{"$f":"IFERROR(INDEX('اليومية العامه'!$B$7:$K$16,SMALL(IF(('اليومية العامه'!$B$7:$B$16>='كشف حساب تحليلى'!$C$6)*('اليومية العامه'!$B$7:$B$16<='كشف حساب تحليلى'!$G$6)*('اليومية العامه'!$F$7:$F$16='كشف حساب تحليلى'!$J$6)*('اليومية العامه'!$G$7:$G$16='كشف حساب تحليلى'!$J$8),ROW('اليومية العامه'!$B$7:$B$16)-6,\"\"),ROW('اليومية العامه'!$A16)),COLUMN('اليومية العامه'!K:K)-1),\"\")","v":""}]
[null,{"$f":"IFERROR(INDEX('اليومية العامه'!$B$7:$K$16,SMALL(IF(('اليومية العامه'!$B$7:$B$16>='كشف حساب تحليلى'!$C$6)*('اليومية العامه'!$B$7:$B$16<='كشف حساب تحليلى'!$G$6)*('اليومية العامه'!$F$7:$F$16='كشف حساب تحليلى'!$J$6)*('اليومية العامه'!$G$7:$G$16='كشف حساب تحليلى'!$J$8),ROW('اليومية العامه'!$B$7:$B$16)-6,\"\"),ROW('اليومية العامه'!#REF!)),COLUMN('اليومية العامه'!B:B)-1),\"\")","v":""},{"$f":"IFERROR(INDEX('اليومية العامه'!$B$7:$K$16,SMALL(IF(('اليومية العامه'!$B$7:$B$16>='كشف حساب تحليلى'!$C$6)*('اليومية العامه'!$B$7:$B$16<='كشف حساب تحليلى'!$G$6)*('اليومية العامه'!$F$7:$F$16='كشف حساب تحليلى'!$J$6)*('اليومية العامه'!$G$7:$G$16='كشف حساب تحليلى'!$J$8),ROW('اليومية العامه'!$B$7:$B$16)-6,\"\"),ROW('اليومية العامه'!#REF!)),COLUMN('اليومية العامه'!C:C)-1),\"\")","v":""},{"$f":"IFERROR(INDEX('اليومية العامه'!$B$7:$K$16,SMALL(IF(('اليومية العامه'!$B$7:$B$16>='كشف حساب تحليلى'!$C$6)*('اليومية العامه'!$B$7:$B$16<='كشف حساب تحليلى'!$G$6)*('اليومية العامه'!$F$7:$F$16='كشف حساب تحليلى'!$J$6)*('اليومية العامه'!$G$7:$G$16='كشف حساب تحليلى'!$J$8),ROW('اليومية العامه'!$B$7:$B$16)-6,\"\"),ROW('اليومية العامه'!#REF!)),COLUMN('اليومية العامه'!D:D)-1),\"\")","v":""},{"$f":"IFERROR(INDEX('اليومية العامه'!$B$7:$K$16,SMALL(IF(('اليومية العامه'!$B$7:$B$16>='كشف حساب تحليلى'!$C$6)*('اليومية العامه'!$B$7:$B$16<='كشف حساب تحليلى'!$G$6)*('اليومية العامه'!$F$7:$F$16='كشف حساب تحليلى'!$J$6)*('اليومية العامه'!$G$7:$G$16='كشف حساب تحليلى'!$J$8),ROW('اليومية العامه'!$B$7:$B$16)-6,\"\"),ROW('اليومية العامه'!#REF!)),COLUMN('اليومية العامه'!E:E)-1),\"\")","v":""},{"$f":"IFERROR(INDEX('اليومية العامه'!$B$7:$K$16,SMALL(IF(('اليومية العامه'!$B$7:$B$16>='كشف حساب تحليلى'!$C$6)*('اليومية العامه'!$B$7:$B$16<='كشف حساب تحليلى'!$G$6)*('اليومية العامه'!$F$7:$F$16='كشف حساب تحليلى'!$J$6)*('اليومية العامه'!$G$7:$G$16='كشف حساب تحليلى'!$J$8),ROW('اليومية العامه'!$B$7:$B$16)-6,\"\"),ROW('اليومية العامه'!#REF!)),COLUMN('اليومية العامه'!F:F)-1),\"\")","v":""},{"$f":"IFERROR(INDEX('اليومية العامه'!$B$7:$K$16,SMALL(IF(('اليومية العامه'!$B$7:$B$16>='كشف حساب تحليلى'!$C$6)*('اليومية العامه'!$B$7:$B$16<='كشف حساب تحليلى'!$G$6)*('اليومية العامه'!$F$7:$F$16='كشف حساب تحليلى'!$J$6)*('اليومية العامه'!$G$7:$G$16='كشف حساب تحليلى'!$J$8),ROW('اليومية العامه'!$B$7:$B$16)-6,\"\"),ROW('اليومية العامه'!#REF!)),COLUMN('اليومية العامه'!G:G)-1),\"\")","v":""},{"$f":"IFERROR(INDEX('اليومية العامه'!$B$7:$K$16,SMALL(IF(('اليومية العامه'!$B$7:$B$16>='كشف حساب تحليلى'!$C$6)*('اليومية العامه'!$B$7:$B$16<='كشف حساب تحليلى'!$G$6)*('اليومية العامه'!$F$7:$F$16='كشف حساب تحليلى'!$J$6)*('اليومية العامه'!$G$7:$G$16='كشف حساب تحليلى'!$J$8),ROW('اليومية العامه'!$B$7:$B$16)-6,\"\"),ROW('اليومية العامه'!#REF!)),COLUMN('اليومية العامه'!H:H)-1),\"\")","v":""},{"$f":"IFERROR(INDEX('اليومية العامه'!$B$7:$K$16,SMALL(IF(('اليومية العامه'!$B$7:$B$16>='كشف حساب تحليلى'!$C$6)*('اليومية العامه'!$B$7:$B$16<='كشف حساب تحليلى'!$G$6)*('اليومية العامه'!$F$7:$F$16='كشف حساب تحليلى'!$J$6)*('اليومية العامه'!$G$7:$G$16='كشف حساب تحليلى'!$J$8),ROW('اليومية العامه'!$B$7:$B$16)-6,\"\"),ROW('اليومية العامه'!#REF!)),COLUMN('اليومية العامه'!I:I)-1),\"\")","v":""},{"$f":"IFERROR(INDEX('اليومية العامه'!$B$7:$K$16,SMALL(IF(('اليومية العامه'!$B$7:$B$16>='كشف حساب تحليلى'!$C$6)*('اليومية العامه'!$B$7:$B$16<='كشف حساب تحليلى'!$G$6)*('اليومية العامه'!$F$7:$F$16='كشف حساب تحليلى'!$J$6)*('اليومية العامه'!$G$7:$G$16='كشف حساب تحليلى'!$J$8),ROW('اليومية العامه'!$B$7:$B$16)-6,\"\"),ROW('اليومية العامه'!#REF!)),COLUMN('اليومية العامه'!J:J)-1),\"\")","v":""},{"$f":"IFERROR(INDEX('اليومية العامه'!$B$7:$K$16,SMALL(IF(('اليومية العامه'!$B$7:$B$16>='كشف حساب تحليلى'!$C$6)*('اليومية العامه'!$B$7:$B$16<='كشف حساب تحليلى'!$G$6)*('اليومية العامه'!$F$7:$F$16='كشف حساب تحليلى'!$J$6)*('اليومية العامه'!$G$7:$G$16='كشف حساب تحليلى'!$J$8),ROW('اليومية العامه'!$B$7:$B$16)-6,\"\"),ROW('اليومية العامه'!#REF!)),COLUMN('اليومية العامه'!K:K)-1),\"\")","v":""}]
[null,{"$f":"IFERROR(INDEX('اليومية العامه'!$B$7:$K$16,SMALL(IF(('اليومية العامه'!$B$7:$B$16>='كشف حساب تحليلى'!$C$6)*('اليومية العامه'!$B$7:$B$16<='كشف حساب تحليلى'!$G$6)*('اليومية العامه'!$F$7:$F$16='كشف حساب تحليلى'!$J$6)*('اليومية العامه'!$G$7:$G$16='كشف حساب تحليلى'!$J$8),ROW('اليومية العامه'!$B$7:$B$16)-6,\"\"),ROW('اليومية العامه'!#REF!)),COLUMN('اليومية العامه'!B:B)-1),\"\")","v":""},{"$f":"IFERROR(INDEX('اليومية العامه'!$B$7:$K$16,SMALL(IF(('اليومية العامه'!$B$7:$B$16>='كشف حساب تحليلى'!$C$6)*('اليومية العامه'!$B$7:$B$16<='كشف حساب تحليلى'!$G$6)*('اليومية العامه'!$F$7:$F$16='كشف حساب تحليلى'!$J$6)*('اليومية العامه'!$G$7:$G$16='كشف حساب تحليلى'!$J$8),ROW('اليومية العامه'!$B$7:$B$16)-6,\"\"),ROW('اليومية العامه'!#REF!)),COLUMN('اليومية العامه'!C:C)-1),\"\")","v":""},{"$f":"IFERROR(INDEX('اليومية العامه'!$B$7:$K$16,SMALL(IF(('اليومية العامه'!$B$7:$B$16>='كشف حساب تحليلى'!$C$6)*('اليومية العامه'!$B$7:$B$16<='كشف حساب تحليلى'!$G$6)*('اليومية العامه'!$F$7:$F$16='كشف حساب تحليلى'!$J$6)*('اليومية العامه'!$G$7:$G$16='كشف حساب تحليلى'!$J$8),ROW('اليومية العامه'!$B$7:$B$16)-6,\"\"),ROW('اليومية العامه'!#REF!)),COLUMN('اليومية العامه'!D:D)-1),\"\")","v":""},{"$f":"IFERROR(INDEX('اليومية العامه'!$B$7:$K$16,SMALL(IF(('اليومية العامه'!$B$7:$B$16>='كشف حساب تحليلى'!$C$6)*('اليومية العامه'!$B$7:$B$16<='كشف حساب تحليلى'!$G$6)*('اليومية العامه'!$F$7:$F$16='كشف حساب تحليلى'!$J$6)*('اليومية العامه'!$G$7:$G$16='كشف حساب تحليلى'!$J$8),ROW('اليومية العامه'!$B$7:$B$16)-6,\"\"),ROW('اليومية العامه'!#REF!)),COLUMN('اليومية العامه'!E:E)-1),\"\")","v":""},{"$f":"IFERROR(INDEX('اليومية العامه'!$B$7:$K$16,SMALL(IF(('اليومية العامه'!$B$7:$B$16>='كشف حساب تحليلى'!$C$6)*('اليومية العامه'!$B$7:$B$16<='كشف حساب تحليلى'!$G$6)*('اليومية العامه'!$F$7:$F$16='كشف حساب تحليلى'!$J$6)*('اليومية العامه'!$G$7:$G$16='كشف حساب تحليلى'!$J$8),ROW('اليومية العامه'!$B$7:$B$16)-6,\"\"),ROW('اليومية العامه'!#REF!)),COLUMN('اليومية العامه'!F:F)-1),\"\")","v":""},{"$f":"IFERROR(INDEX('اليومية العامه'!$B$7:$K$16,SMALL(IF(('اليومية العامه'!$B$7:$B$16>='كشف حساب تحليلى'!$C$6)*('اليومية العامه'!$B$7:$B$16<='كشف حساب تحليلى'!$G$6)*('اليومية العامه'!$F$7:$F$16='كشف حساب تحليلى'!$J$6)*('اليومية العامه'!$G$7:$G$16='كشف حساب تحليلى'!$J$8),ROW('اليومية العامه'!$B$7:$B$16)-6,\"\"),ROW('اليومية العامه'!#REF!)),COLUMN('اليومية العامه'!G:G)-1),\"\")","v":""},{"$f":"IFERROR(INDEX('اليومية العامه'!$B$7:$K$16,SMALL(IF(('اليومية العامه'!$B$7:$B$16>='كشف حساب تحليلى'!$C$6)*('اليومية العامه'!$B$7:$B$16<='كشف حساب تحليلى'!$G$6)*('اليومية العامه'!$F$7:$F$16='كشف حساب تحليلى'!$J$6)*('اليومية العامه'!$G$7:$G$16='كشف حساب تحليلى'!$J$8),ROW('اليومية العامه'!$B$7:$B$16)-6,\"\"),ROW('اليومية العامه'!#REF!)),COLUMN('اليومية العامه'!H:H)-1),\"\")","v":""},{"$f":"IFERROR(INDEX('اليومية العامه'!$B$7:$K$16,SMALL(IF(('اليومية العامه'!$B$7:$B$16>='كشف حساب تحليلى'!$C$6)*('اليومية العامه'!$B$7:$B$16<='كشف حساب تحليلى'!$G$6)*('اليومية العامه'!$F$7:$F$16='كشف حساب تحليلى'!$J$6)*('اليومية العامه'!$G$7:$G$16='كشف حساب تحليلى'!$J$8),ROW('اليومية العامه'!$B$7:$B$16)-6,\"\"),ROW('اليومية العامه'!#REF!)),COLUMN('اليومية العامه'!I:I)-1),\"\")","v":""},{"$f":"IFERROR(INDEX('اليومية العامه'!$B$7:$K$16,SMALL(IF(('اليومية العامه'!$B$7:$B$16>='كشف حساب تحليلى'!$C$6)*('اليومية العامه'!$B$7:$B$16<='كشف حساب تحليلى'!$G$6)*('اليومية العامه'!$F$7:$F$16='كشف حساب تحليلى'!$J$6)*('اليومية العامه'!$G$7:$G$16='كشف حساب تحليلى'!$J$8),ROW('اليومية العامه'!$B$7:$B$16)-6,\"\"),ROW('اليومية العامه'!#REF!)),COLUMN('اليومية العامه'!J:J)-1),\"\")","v":""},{"$f":"IFERROR(INDEX('اليومية العامه'!$B$7:$K$16,SMALL(IF(('اليومية العامه'!$B$7:$B$16>='كشف حساب تحليلى'!$C$6)*('اليومية العامه'!$B$7:$B$16<='كشف حساب تحليلى'!$G$6)*('اليومية العامه'!$F$7:$F$16='كشف حساب تحليلى'!$J$6)*('اليومية العامه'!$G$7:$G$16='كشف حساب تحليلى'!$J$8),ROW('اليومية العامه'!$B$7:$B$16)-6,\"\"),ROW('اليومية العامه'!#REF!)),COLUMN('اليومية العامه'!K:K)-1),\"\")","v":""}]
[null,{"$f":"IFERROR(INDEX('اليومية العامه'!$B$7:$K$16,SMALL(IF(('اليومية العامه'!$B$7:$B$16>='كشف حساب تحليلى'!$C$6)*('اليومية العامه'!$B$7:$B$16<='كشف حساب تحليلى'!$G$6)*('اليومية العامه'!$F$7:$F$16='كشف حساب تحليلى'!$J$6)*('اليومية العامه'!$G$7:$G$16='كشف حساب تحليلى'!$J$8),ROW('اليومية العامه'!$B$7:$B$16)-6,\"\"),ROW('اليومية العامه'!#REF!)),COLUMN('اليومية العامه'!B:B)-1),\"\")","v":""},{"$f":"IFERROR(INDEX('اليومية العامه'!$B$7:$K$16,SMALL(IF(('اليومية العامه'!$B$7:$B$16>='كشف حساب تحليلى'!$C$6)*('اليومية العامه'!$B$7:$B$16<='كشف حساب تحليلى'!$G$6)*('اليومية العامه'!$F$7:$F$16='كشف حساب تحليلى'!$J$6)*('اليومية العامه'!$G$7:$G$16='كشف حساب تحليلى'!$J$8),ROW('اليومية العامه'!$B$7:$B$16)-6,\"\"),ROW('اليومية العامه'!#REF!)),COLUMN('اليومية العامه'!C:C)-1),\"\")","v":""},{"$f":"IFERROR(INDEX('اليومية العامه'!$B$7:$K$16,SMALL(IF(('اليومية العامه'!$B$7:$B$16>='كشف حساب تحليلى'!$C$6)*('اليومية العامه'!$B$7:$B$16<='كشف حساب تحليلى'!$G$6)*('اليومية العامه'!$F$7:$F$16='كشف حساب تحليلى'!$J$6)*('اليومية العامه'!$G$7:$G$16='كشف حساب تحليلى'!$J$8),ROW('اليومية العامه'!$B$7:$B$16)-6,\"\"),ROW('اليومية العامه'!#REF!)),COLUMN('اليومية العامه'!D:D)-1),\"\")","v":""},{"$f":"IFERROR(INDEX('اليومية العامه'!$B$7:$K$16,SMALL(IF(('اليومية العامه'!$B$7:$B$16>='كشف حساب تحليلى'!$C$6)*('اليومية العامه'!$B$7:$B$16<='كشف حساب تحليلى'!$G$6)*('اليومية العامه'!$F$7:$F$16='كشف حساب تحليلى'!$J$6)*('اليومية العامه'!$G$7:$G$16='كشف حساب تحليلى'!$J$8),ROW('اليومية العامه'!$B$7:$B$16)-6,\"\"),ROW('اليومية العامه'!#REF!)),COLUMN('اليومية العامه'!E:E)-1),\"\")","v":""},{"$f":"IFERROR(INDEX('اليومية العامه'!$B$7:$K$16,SMALL(IF(('اليومية العامه'!$B$7:$B$16>='كشف حساب تحليلى'!$C$6)*('اليومية العامه'!$B$7:$B$16<='كشف حساب تحليلى'!$G$6)*('اليومية العامه'!$F$7:$F$16='كشف حساب تحليلى'!$J$6)*('اليومية العامه'!$G$7:$G$16='كشف حساب تحليلى'!$J$8),ROW('اليومية العامه'!$B$7:$B$16)-6,\"\"),ROW('اليومية العامه'!#REF!)),COLUMN('اليومية العامه'!F:F)-1),\"\")","v":""},{"$f":"IFERROR(INDEX('اليومية العامه'!$B$7:$K$16,SMALL(IF(('اليومية العامه'!$B$7:$B$16>='كشف حساب تحليلى'!$C$6)*('اليومية العامه'!$B$7:$B$16<='كشف حساب تحليلى'!$G$6)*('اليومية العامه'!$F$7:$F$16='كشف حساب تحليلى'!$J$6)*('اليومية العامه'!$G$7:$G$16='كشف حساب تحليلى'!$J$8),ROW('اليومية العامه'!$B$7:$B$16)-6,\"\"),ROW('اليومية العامه'!#REF!)),COLUMN('اليومية العامه'!G:G)-1),\"\")","v":""},{"$f":"IFERROR(INDEX('اليومية العامه'!$B$7:$K$16,SMALL(IF(('اليومية العامه'!$B$7:$B$16>='كشف حساب تحليلى'!$C$6)*('اليومية العامه'!$B$7:$B$16<='كشف حساب تحليلى'!$G$6)*('اليومية العامه'!$F$7:$F$16='كشف حساب تحليلى'!$J$6)*('اليومية العامه'!$G$7:$G$16='كشف حساب تحليلى'!$J$8),ROW('اليومية العامه'!$B$7:$B$16)-6,\"\"),ROW('اليومية العامه'!#REF!)),COLUMN('اليومية العامه'!H:H)-1),\"\")","v":""},{"$f":"IFERROR(INDEX('اليومية العامه'!$B$7:$K$16,SMALL(IF(('اليومية العامه'!$B$7:$B$16>='كشف حساب تحليلى'!$C$6)*('اليومية العامه'!$B$7:$B$16<='كشف حساب تحليلى'!$G$6)*('اليومية العامه'!$F$7:$F$16='كشف حساب تحليلى'!$J$6)*('اليومية العامه'!$G$7:$G$16='كشف حساب تحليلى'!$J$8),ROW('اليومية العامه'!$B$7:$B$16)-6,\"\"),ROW('اليومية العامه'!#REF!)),COLUMN('اليومية العامه'!I:I)-1),\"\")","v":""},{"$f":"IFERROR(INDEX('اليومية العامه'!$B$7:$K$16,SMALL(IF(('اليومية العامه'!$B$7:$B$16>='كشف حساب تحليلى'!$C$6)*('اليومية العامه'!$B$7:$B$16<='كشف حساب تحليلى'!$G$6)*('اليومية العامه'!$F$7:$F$16='كشف حساب تحليلى'!$J$6)*('اليومية العامه'!$G$7:$G$16='كشف حساب تحليلى'!$J$8),ROW('اليومية العامه'!$B$7:$B$16)-6,\"\"),ROW('اليومية العامه'!#REF!)),COLUMN('اليومية العامه'!J:J)-1),\"\")","v":""},{"$f":"IFERROR(INDEX('اليومية العامه'!$B$7:$K$16,SMALL(IF(('اليومية العامه'!$B$7:$B$16>='كشف حساب تحليلى'!$C$6)*('اليومية العامه'!$B$7:$B$16<='كشف حساب تحليلى'!$G$6)*('اليومية العامه'!$F$7:$F$16='كشف حساب تحليلى'!$J$6)*('اليومية العامه'!$G$7:$G$16='كشف حساب تحليلى'!$J$8),ROW('اليومية العامه'!$B$7:$B$16)-6,\"\"),ROW('اليومية العامه'!#REF!)),COLUMN('اليومية العامه'!K:K)-1),\"\")","v":""}]
[null,{"$f":"IFERROR(INDEX('اليومية العامه'!$B$7:$K$16,SMALL(IF(('اليومية العامه'!$B$7:$B$16>='كشف حساب تحليلى'!$C$6)*('اليومية العامه'!$B$7:$B$16<='كشف حساب تحليلى'!$G$6)*('اليومية العامه'!$F$7:$F$16='كشف حساب تحليلى'!$J$6)*('اليومية العامه'!$G$7:$G$16='كشف حساب تحليلى'!$J$8),ROW('اليومية العامه'!$B$7:$B$16)-6,\"\"),ROW('اليومية العامه'!#REF!)),COLUMN('اليومية العامه'!B:B)-1),\"\")","v":""},{"$f":"IFERROR(INDEX('اليومية العامه'!$B$7:$K$16,SMALL(IF(('اليومية العامه'!$B$7:$B$16>='كشف حساب تحليلى'!$C$6)*('اليومية العامه'!$B$7:$B$16<='كشف حساب تحليلى'!$G$6)*('اليومية العامه'!$F$7:$F$16='كشف حساب تحليلى'!$J$6)*('اليومية العامه'!$G$7:$G$16='كشف حساب تحليلى'!$J$8),ROW('اليومية العامه'!$B$7:$B$16)-6,\"\"),ROW('اليومية العامه'!#REF!)),COLUMN('اليومية العامه'!C:C)-1),\"\")","v":""},{"$f":"IFERROR(INDEX('اليومية العامه'!$B$7:$K$16,SMALL(IF(('اليومية العامه'!$B$7:$B$16>='كشف حساب تحليلى'!$C$6)*('اليومية العامه'!$B$7:$B$16<='كشف حساب تحليلى'!$G$6)*('اليومية العامه'!$F$7:$F$16='كشف حساب تحليلى'!$J$6)*('اليومية العامه'!$G$7:$G$16='كشف حساب تحليلى'!$J$8),ROW('اليومية العامه'!$B$7:$B$16)-6,\"\"),ROW('اليومية العامه'!#REF!)),COLUMN('اليومية العامه'!D:D)-1),\"\")","v":""},{"$f":"IFERROR(INDEX('اليومية العامه'!$B$7:$K$16,SMALL(IF(('اليومية العامه'!$B$7:$B$16>='كشف حساب تحليلى'!$C$6)*('اليومية العامه'!$B$7:$B$16<='كشف حساب تحليلى'!$G$6)*('اليومية العامه'!$F$7:$F$16='كشف حساب تحليلى'!$J$6)*('اليومية العامه'!$G$7:$G$16='كشف حساب تحليلى'!$J$8),ROW('اليومية العامه'!$B$7:$B$16)-6,\"\"),ROW('اليومية العامه'!#REF!)),COLUMN('اليومية العامه'!E:E)-1),\"\")","v":""},{"$f":"IFERROR(INDEX('اليومية العامه'!$B$7:$K$16,SMALL(IF(('اليومية العامه'!$B$7:$B$16>='كشف حساب تحليلى'!$C$6)*('اليومية العامه'!$B$7:$B$16<='كشف حساب تحليلى'!$G$6)*('اليومية العامه'!$F$7:$F$16='كشف حساب تحليلى'!$J$6)*('اليومية العامه'!$G$7:$G$16='كشف حساب تحليلى'!$J$8),ROW('اليومية العامه'!$B$7:$B$16)-6,\"\"),ROW('اليومية العامه'!#REF!)),COLUMN('اليومية العامه'!F:F)-1),\"\")","v":""},{"$f":"IFERROR(INDEX('اليومية العامه'!$B$7:$K$16,SMALL(IF(('اليومية العامه'!$B$7:$B$16>='كشف حساب تحليلى'!$C$6)*('اليومية العامه'!$B$7:$B$16<='كشف حساب تحليلى'!$G$6)*('اليومية العامه'!$F$7:$F$16='كشف حساب تحليلى'!$J$6)*('اليومية العامه'!$G$7:$G$16='كشف حساب تحليلى'!$J$8),ROW('اليومية العامه'!$B$7:$B$16)-6,\"\"),ROW('اليومية العامه'!#REF!)),COLUMN('اليومية العامه'!G:G)-1),\"\")","v":""},{"$f":"IFERROR(INDEX('اليومية العامه'!$B$7:$K$16,SMALL(IF(('اليومية العامه'!$B$7:$B$16>='كشف حساب تحليلى'!$C$6)*('اليومية العامه'!$B$7:$B$16<='كشف حساب تحليلى'!$G$6)*('اليومية العامه'!$F$7:$F$16='كشف حساب تحليلى'!$J$6)*('اليومية العامه'!$G$7:$G$16='كشف حساب تحليلى'!$J$8),ROW('اليومية العامه'!$B$7:$B$16)-6,\"\"),ROW('اليومية العامه'!#REF!)),COLUMN('اليومية العامه'!H:H)-1),\"\")","v":""},{"$f":"IFERROR(INDEX('اليومية العامه'!$B$7:$K$16,SMALL(IF(('اليومية العامه'!$B$7:$B$16>='كشف حساب تحليلى'!$C$6)*('اليومية العامه'!$B$7:$B$16<='كشف حساب تحليلى'!$G$6)*('اليومية العامه'!$F$7:$F$16='كشف حساب تحليلى'!$J$6)*('اليومية العامه'!$G$7:$G$16='كشف حساب تحليلى'!$J$8),ROW('اليومية العامه'!$B$7:$B$16)-6,\"\"),ROW('اليومية العامه'!#REF!)),COLUMN('اليومية العامه'!I:I)-1),\"\")","v":""},{"$f":"IFERROR(INDEX('اليومية العامه'!$B$7:$K$16,SMALL(IF(('اليومية العامه'!$B$7:$B$16>='كشف حساب تحليلى'!$C$6)*('اليومية العامه'!$B$7:$B$16<='كشف حساب تحليلى'!$G$6)*('اليومية العامه'!$F$7:$F$16='كشف حساب تحليلى'!$J$6)*('اليومية العامه'!$G$7:$G$16='كشف حساب تحليلى'!$J$8),ROW('اليومية العامه'!$B$7:$B$16)-6,\"\"),ROW('اليومية العامه'!#REF!)),COLUMN('اليومية العامه'!J:J)-1),\"\")","v":""},{"$f":"IFERROR(INDEX('اليومية العامه'!$B$7:$K$16,SMALL(IF(('اليومية العامه'!$B$7:$B$16>='كشف حساب تحليلى'!$C$6)*('اليومية العامه'!$B$7:$B$16<='كشف حساب تحليلى'!$G$6)*('اليومية العامه'!$F$7:$F$16='كشف حساب تحليلى'!$J$6)*('اليومية العامه'!$G$7:$G$16='كشف حساب تحليلى'!$J$8),ROW('اليومية العامه'!$B$7:$B$16)-6,\"\"),ROW('اليومية العامه'!#REF!)),COLUMN('اليومية العامه'!K:K)-1),\"\")","v":""}]
[null,{"$f":"IFERROR(INDEX('اليومية العامه'!$B$7:$K$16,SMALL(IF(('اليومية العامه'!$B$7:$B$16>='كشف حساب تحليلى'!$C$6)*('اليومية العامه'!$B$7:$B$16<='كشف حساب تحليلى'!$G$6)*('اليومية العامه'!$F$7:$F$16='كشف حساب تحليلى'!$J$6)*('اليومية العامه'!$G$7:$G$16='كشف حساب تحليلى'!$J$8),ROW('اليومية العامه'!$B$7:$B$16)-6,\"\"),ROW('اليومية العامه'!#REF!)),COLUMN('اليومية العامه'!B:B)-1),\"\")","v":""},{"$f":"IFERROR(INDEX('اليومية العامه'!$B$7:$K$16,SMALL(IF(('اليومية العامه'!$B$7:$B$16>='كشف حساب تحليلى'!$C$6)*('اليومية العامه'!$B$7:$B$16<='كشف حساب تحليلى'!$G$6)*('اليومية العامه'!$F$7:$F$16='كشف حساب تحليلى'!$J$6)*('اليومية العامه'!$G$7:$G$16='كشف حساب تحليلى'!$J$8),ROW('اليومية العامه'!$B$7:$B$16)-6,\"\"),ROW('اليومية العامه'!#REF!)),COLUMN('اليومية العامه'!C:C)-1),\"\")","v":""},{"$f":"IFERROR(INDEX('اليومية العامه'!$B$7:$K$16,SMALL(IF(('اليومية العامه'!$B$7:$B$16>='كشف حساب تحليلى'!$C$6)*('اليومية العامه'!$B$7:$B$16<='كشف حساب تحليلى'!$G$6)*('اليومية العامه'!$F$7:$F$16='كشف حساب تحليلى'!$J$6)*('اليومية العامه'!$G$7:$G$16='كشف حساب تحليلى'!$J$8),ROW('اليومية العامه'!$B$7:$B$16)-6,\"\"),ROW('اليومية العامه'!#REF!)),COLUMN('اليومية العامه'!D:D)-1),\"\")","v":""},{"$f":"IFERROR(INDEX('اليومية العامه'!$B$7:$K$16,SMALL(IF(('اليومية العامه'!$B$7:$B$16>='كشف حساب تحليلى'!$C$6)*('اليومية العامه'!$B$7:$B$16<='كشف حساب تحليلى'!$G$6)*('اليومية العامه'!$F$7:$F$16='كشف حساب تحليلى'!$J$6)*('اليومية العامه'!$G$7:$G$16='كشف حساب تحليلى'!$J$8),ROW('اليومية العامه'!$B$7:$B$16)-6,\"\"),ROW('اليومية العامه'!#REF!)),COLUMN('اليومية العامه'!E:E)-1),\"\")","v":""},{"$f":"IFERROR(INDEX('اليومية العامه'!$B$7:$K$16,SMALL(IF(('اليومية العامه'!$B$7:$B$16>='كشف حساب تحليلى'!$C$6)*('اليومية العامه'!$B$7:$B$16<='كشف حساب تحليلى'!$G$6)*('اليومية العامه'!$F$7:$F$16='كشف حساب تحليلى'!$J$6)*('اليومية العامه'!$G$7:$G$16='كشف حساب تحليلى'!$J$8),ROW('اليومية العامه'!$B$7:$B$16)-6,\"\"),ROW('اليومية العامه'!#REF!)),COLUMN('اليومية العامه'!F:F)-1),\"\")","v":""},{"$f":"IFERROR(INDEX('اليومية العامه'!$B$7:$K$16,SMALL(IF(('اليومية العامه'!$B$7:$B$16>='كشف حساب تحليلى'!$C$6)*('اليومية العامه'!$B$7:$B$16<='كشف حساب تحليلى'!$G$6)*('اليومية العامه'!$F$7:$F$16='كشف حساب تحليلى'!$J$6)*('اليومية العامه'!$G$7:$G$16='كشف حساب تحليلى'!$J$8),ROW('اليومية العامه'!$B$7:$B$16)-6,\"\"),ROW('اليومية العامه'!#REF!)),COLUMN('اليومية العامه'!G:G)-1),\"\")","v":""},{"$f":"IFERROR(INDEX('اليومية العامه'!$B$7:$K$16,SMALL(IF(('اليومية العامه'!$B$7:$B$16>='كشف حساب تحليلى'!$C$6)*('اليومية العامه'!$B$7:$B$16<='كشف حساب تحليلى'!$G$6)*('اليومية العامه'!$F$7:$F$16='كشف حساب تحليلى'!$J$6)*('اليومية العامه'!$G$7:$G$16='كشف حساب تحليلى'!$J$8),ROW('اليومية العامه'!$B$7:$B$16)-6,\"\"),ROW('اليومية العامه'!#REF!)),COLUMN('اليومية العامه'!H:H)-1),\"\")","v":""},{"$f":"IFERROR(INDEX('اليومية العامه'!$B$7:$K$16,SMALL(IF(('اليومية العامه'!$B$7:$B$16>='كشف حساب تحليلى'!$C$6)*('اليومية العامه'!$B$7:$B$16<='كشف حساب تحليلى'!$G$6)*('اليومية العامه'!$F$7:$F$16='كشف حساب تحليلى'!$J$6)*('اليومية العامه'!$G$7:$G$16='كشف حساب تحليلى'!$J$8),ROW('اليومية العامه'!$B$7:$B$16)-6,\"\"),ROW('اليومية العامه'!#REF!)),COLUMN('اليومية العامه'!I:I)-1),\"\")","v":""},{"$f":"IFERROR(INDEX('اليومية العامه'!$B$7:$K$16,SMALL(IF(('اليومية العامه'!$B$7:$B$16>='كشف حساب تحليلى'!$C$6)*('اليومية العامه'!$B$7:$B$16<='كشف حساب تحليلى'!$G$6)*('اليومية العامه'!$F$7:$F$16='كشف حساب تحليلى'!$J$6)*('اليومية العامه'!$G$7:$G$16='كشف حساب تحليلى'!$J$8),ROW('اليومية العامه'!$B$7:$B$16)-6,\"\"),ROW('اليومية العامه'!#REF!)),COLUMN('اليومية العامه'!J:J)-1),\"\")","v":""},{"$f":"IFERROR(INDEX('اليومية العامه'!$B$7:$K$16,SMALL(IF(('اليومية العامه'!$B$7:$B$16>='كشف حساب تحليلى'!$C$6)*('اليومية العامه'!$B$7:$B$16<='كشف حساب تحليلى'!$G$6)*('اليومية العامه'!$F$7:$F$16='كشف حساب تحليلى'!$J$6)*('اليومية العامه'!$G$7:$G$16='كشف حساب تحليلى'!$J$8),ROW('اليومية العامه'!$B$7:$B$16)-6,\"\"),ROW('اليومية العامه'!#REF!)),COLUMN('اليومية العامه'!K:K)-1),\"\")","v":""}]
[null,{"$f":"IFERROR(INDEX('اليومية العامه'!$B$7:$K$16,SMALL(IF(('اليومية العامه'!$B$7:$B$16>='كشف حساب تحليلى'!$C$6)*('اليومية العامه'!$B$7:$B$16<='كشف حساب تحليلى'!$G$6)*('اليومية العامه'!$F$7:$F$16='كشف حساب تحليلى'!$J$6)*('اليومية العامه'!$G$7:$G$16='كشف حساب تحليلى'!$J$8),ROW('اليومية العامه'!$B$7:$B$16)-6,\"\"),ROW('اليومية العامه'!#REF!)),COLUMN('اليومية العامه'!B:B)-1),\"\")","v":""},{"$f":"IFERROR(INDEX('اليومية العامه'!$B$7:$K$16,SMALL(IF(('اليومية العامه'!$B$7:$B$16>='كشف حساب تحليلى'!$C$6)*('اليومية العامه'!$B$7:$B$16<='كشف حساب تحليلى'!$G$6)*('اليومية العامه'!$F$7:$F$16='كشف حساب تحليلى'!$J$6)*('اليومية العامه'!$G$7:$G$16='كشف حساب تحليلى'!$J$8),ROW('اليومية العامه'!$B$7:$B$16)-6,\"\"),ROW('اليومية العامه'!#REF!)),COLUMN('اليومية العامه'!C:C)-1),\"\")","v":""},{"$f":"IFERROR(INDEX('اليومية العامه'!$B$7:$K$16,SMALL(IF(('اليومية العامه'!$B$7:$B$16>='كشف حساب تحليلى'!$C$6)*('اليومية العامه'!$B$7:$B$16<='كشف حساب تحليلى'!$G$6)*('اليومية العامه'!$F$7:$F$16='كشف حساب تحليلى'!$J$6)*('اليومية العامه'!$G$7:$G$16='كشف حساب تحليلى'!$J$8),ROW('اليومية العامه'!$B$7:$B$16)-6,\"\"),ROW('اليومية العامه'!#REF!)),COLUMN('اليومية العامه'!D:D)-1),\"\")","v":""},{"$f":"IFERROR(INDEX('اليومية العامه'!$B$7:$K$16,SMALL(IF(('اليومية العامه'!$B$7:$B$16>='كشف حساب تحليلى'!$C$6)*('اليومية العامه'!$B$7:$B$16<='كشف حساب تحليلى'!$G$6)*('اليومية العامه'!$F$7:$F$16='كشف حساب تحليلى'!$J$6)*('اليومية العامه'!$G$7:$G$16='كشف حساب تحليلى'!$J$8),ROW('اليومية العامه'!$B$7:$B$16)-6,\"\"),ROW('اليومية العامه'!#REF!)),COLUMN('اليومية العامه'!E:E)-1),\"\")","v":""},{"$f":"IFERROR(INDEX('اليومية العامه'!$B$7:$K$16,SMALL(IF(('اليومية العامه'!$B$7:$B$16>='كشف حساب تحليلى'!$C$6)*('اليومية العامه'!$B$7:$B$16<='كشف حساب تحليلى'!$G$6)*('اليومية العامه'!$F$7:$F$16='كشف حساب تحليلى'!$J$6)*('اليومية العامه'!$G$7:$G$16='كشف حساب تحليلى'!$J$8),ROW('اليومية العامه'!$B$7:$B$16)-6,\"\"),ROW('اليومية العامه'!#REF!)),COLUMN('اليومية العامه'!F:F)-1),\"\")","v":""},{"$f":"IFERROR(INDEX('اليومية العامه'!$B$7:$K$16,SMALL(IF(('اليومية العامه'!$B$7:$B$16>='كشف حساب تحليلى'!$C$6)*('اليومية العامه'!$B$7:$B$16<='كشف حساب تحليلى'!$G$6)*('اليومية العامه'!$F$7:$F$16='كشف حساب تحليلى'!$J$6)*('اليومية العامه'!$G$7:$G$16='كشف حساب تحليلى'!$J$8),ROW('اليومية العامه'!$B$7:$B$16)-6,\"\"),ROW('اليومية العامه'!#REF!)),COLUMN('اليومية العامه'!G:G)-1),\"\")","v":""},{"$f":"IFERROR(INDEX('اليومية العامه'!$B$7:$K$16,SMALL(IF(('اليومية العامه'!$B$7:$B$16>='كشف حساب تحليلى'!$C$6)*('اليومية العامه'!$B$7:$B$16<='كشف حساب تحليلى'!$G$6)*('اليومية العامه'!$F$7:$F$16='كشف حساب تحليلى'!$J$6)*('اليومية العامه'!$G$7:$G$16='كشف حساب تحليلى'!$J$8),ROW('اليومية العامه'!$B$7:$B$16)-6,\"\"),ROW('اليومية العامه'!#REF!)),COLUMN('اليومية العامه'!H:H)-1),\"\")","v":""},{"$f":"IFERROR(INDEX('اليومية العامه'!$B$7:$K$16,SMALL(IF(('اليومية العامه'!$B$7:$B$16>='كشف حساب تحليلى'!$C$6)*('اليومية العامه'!$B$7:$B$16<='كشف حساب تحليلى'!$G$6)*('اليومية العامه'!$F$7:$F$16='كشف حساب تحليلى'!$J$6)*('اليومية العامه'!$G$7:$G$16='كشف حساب تحليلى'!$J$8),ROW('اليومية العامه'!$B$7:$B$16)-6,\"\"),ROW('اليومية العامه'!#REF!)),COLUMN('اليومية العامه'!I:I)-1),\"\")","v":""},{"$f":"IFERROR(INDEX('اليومية العامه'!$B$7:$K$16,SMALL(IF(('اليومية العامه'!$B$7:$B$16>='كشف حساب تحليلى'!$C$6)*('اليومية العامه'!$B$7:$B$16<='كشف حساب تحليلى'!$G$6)*('اليومية العامه'!$F$7:$F$16='كشف حساب تحليلى'!$J$6)*('اليومية العامه'!$G$7:$G$16='كشف حساب تحليلى'!$J$8),ROW('اليومية العامه'!$B$7:$B$16)-6,\"\"),ROW('اليومية العامه'!#REF!)),COLUMN('اليومية العامه'!J:J)-1),\"\")","v":""},{"$f":"IFERROR(INDEX('اليومية العامه'!$B$7:$K$16,SMALL(IF(('اليومية العامه'!$B$7:$B$16>='كشف حساب تحليلى'!$C$6)*('اليومية العامه'!$B$7:$B$16<='كشف حساب تحليلى'!$G$6)*('اليومية العامه'!$F$7:$F$16='كشف حساب تحليلى'!$J$6)*('اليومية العامه'!$G$7:$G$16='كشف حساب تحليلى'!$J$8),ROW('اليومية العامه'!$B$7:$B$16)-6,\"\"),ROW('اليومية العامه'!#REF!)),COLUMN('اليومية العامه'!K:K)-1),\"\")","v":""}]
[null,{"$f":"IFERROR(INDEX('اليومية العامه'!$B$7:$K$16,SMALL(IF(('اليومية العامه'!$B$7:$B$16>='كشف حساب تحليلى'!$C$6)*('اليومية العامه'!$B$7:$B$16<='كشف حساب تحليلى'!$G$6)*('اليومية العامه'!$F$7:$F$16='كشف حساب تحليلى'!$J$6)*('اليومية العامه'!$G$7:$G$16='كشف حساب تحليلى'!$J$8),ROW('اليومية العامه'!$B$7:$B$16)-6,\"\"),ROW('اليومية العامه'!#REF!)),COLUMN('اليومية العامه'!B:B)-1),\"\")","v":""},{"$f":"IFERROR(INDEX('اليومية العامه'!$B$7:$K$16,SMALL(IF(('اليومية العامه'!$B$7:$B$16>='كشف حساب تحليلى'!$C$6)*('اليومية العامه'!$B$7:$B$16<='كشف حساب تحليلى'!$G$6)*('اليومية العامه'!$F$7:$F$16='كشف حساب تحليلى'!$J$6)*('اليومية العامه'!$G$7:$G$16='كشف حساب تحليلى'!$J$8),ROW('اليومية العامه'!$B$7:$B$16)-6,\"\"),ROW('اليومية العامه'!#REF!)),COLUMN('اليومية العامه'!C:C)-1),\"\")","v":""},{"$f":"IFERROR(INDEX('اليومية العامه'!$B$7:$K$16,SMALL(IF(('اليومية العامه'!$B$7:$B$16>='كشف حساب تحليلى'!$C$6)*('اليومية العامه'!$B$7:$B$16<='كشف حساب تحليلى'!$G$6)*('اليومية العامه'!$F$7:$F$16='كشف حساب تحليلى'!$J$6)*('اليومية العامه'!$G$7:$G$16='كشف حساب تحليلى'!$J$8),ROW('اليومية العامه'!$B$7:$B$16)-6,\"\"),ROW('اليومية العامه'!#REF!)),COLUMN('اليومية العامه'!D:D)-1),\"\")","v":""},{"$f":"IFERROR(INDEX('اليومية العامه'!$B$7:$K$16,SMALL(IF(('اليومية العامه'!$B$7:$B$16>='كشف حساب تحليلى'!$C$6)*('اليومية العامه'!$B$7:$B$16<='كشف حساب تحليلى'!$G$6)*('اليومية العامه'!$F$7:$F$16='كشف حساب تحليلى'!$J$6)*('اليومية العامه'!$G$7:$G$16='كشف حساب تحليلى'!$J$8),ROW('اليومية العامه'!$B$7:$B$16)-6,\"\"),ROW('اليومية العامه'!#REF!)),COLUMN('اليومية العامه'!E:E)-1),\"\")","v":""},{"$f":"IFERROR(INDEX('اليومية العامه'!$B$7:$K$16,SMALL(IF(('اليومية العامه'!$B$7:$B$16>='كشف حساب تحليلى'!$C$6)*('اليومية العامه'!$B$7:$B$16<='كشف حساب تحليلى'!$G$6)*('اليومية العامه'!$F$7:$F$16='كشف حساب تحليلى'!$J$6)*('اليومية العامه'!$G$7:$G$16='كشف حساب تحليلى'!$J$8),ROW('اليومية العامه'!$B$7:$B$16)-6,\"\"),ROW('اليومية العامه'!#REF!)),COLUMN('اليومية العامه'!F:F)-1),\"\")","v":""},{"$f":"IFERROR(INDEX('اليومية العامه'!$B$7:$K$16,SMALL(IF(('اليومية العامه'!$B$7:$B$16>='كشف حساب تحليلى'!$C$6)*('اليومية العامه'!$B$7:$B$16<='كشف حساب تحليلى'!$G$6)*('اليومية العامه'!$F$7:$F$16='كشف حساب تحليلى'!$J$6)*('اليومية العامه'!$G$7:$G$16='كشف حساب تحليلى'!$J$8),ROW('اليومية العامه'!$B$7:$B$16)-6,\"\"),ROW('اليومية العامه'!#REF!)),COLUMN('اليومية العامه'!G:G)-1),\"\")","v":""},{"$f":"IFERROR(INDEX('اليومية العامه'!$B$7:$K$16,SMALL(IF(('اليومية العامه'!$B$7:$B$16>='كشف حساب تحليلى'!$C$6)*('اليومية العامه'!$B$7:$B$16<='كشف حساب تحليلى'!$G$6)*('اليومية العامه'!$F$7:$F$16='كشف حساب تحليلى'!$J$6)*('اليومية العامه'!$G$7:$G$16='كشف حساب تحليلى'!$J$8),ROW('اليومية العامه'!$B$7:$B$16)-6,\"\"),ROW('اليومية العامه'!#REF!)),COLUMN('اليومية العامه'!H:H)-1),\"\")","v":""},{"$f":"IFERROR(INDEX('اليومية العامه'!$B$7:$K$16,SMALL(IF(('اليومية العامه'!$B$7:$B$16>='كشف حساب تحليلى'!$C$6)*('اليومية العامه'!$B$7:$B$16<='كشف حساب تحليلى'!$G$6)*('اليومية العامه'!$F$7:$F$16='كشف حساب تحليلى'!$J$6)*('اليومية العامه'!$G$7:$G$16='كشف حساب تحليلى'!$J$8),ROW('اليومية العامه'!$B$7:$B$16)-6,\"\"),ROW('اليومية العامه'!#REF!)),COLUMN('اليومية العامه'!I:I)-1),\"\")","v":""},{"$f":"IFERROR(INDEX('اليومية العامه'!$B$7:$K$16,SMALL(IF(('اليومية العامه'!$B$7:$B$16>='كشف حساب تحليلى'!$C$6)*('اليومية العامه'!$B$7:$B$16<='كشف حساب تحليلى'!$G$6)*('اليومية العامه'!$F$7:$F$16='كشف حساب تحليلى'!$J$6)*('اليومية العامه'!$G$7:$G$16='كشف حساب تحليلى'!$J$8),ROW('اليومية العامه'!$B$7:$B$16)-6,\"\"),ROW('اليومية العامه'!#REF!)),COLUMN('اليومية العامه'!J:J)-1),\"\")","v":""},{"$f":"IFERROR(INDEX('اليومية العامه'!$B$7:$K$16,SMALL(IF(('اليومية العامه'!$B$7:$B$16>='كشف حساب تحليلى'!$C$6)*('اليومية العامه'!$B$7:$B$16<='كشف حساب تحليلى'!$G$6)*('اليومية العامه'!$F$7:$F$16='كشف حساب تحليلى'!$J$6)*('اليومية العامه'!$G$7:$G$16='كشف حساب تحليلى'!$J$8),ROW('اليومية العامه'!$B$7:$B$16)-6,\"\"),ROW('اليومية العامه'!#REF!)),COLUMN('اليومية العامه'!K:K)-1),\"\")","v":""}]
[null,{"$f":"IFERROR(INDEX('اليومية العامه'!$B$7:$K$16,SMALL(IF(('اليومية العامه'!$B$7:$B$16>='كشف حساب تحليلى'!$C$6)*('اليومية العامه'!$B$7:$B$16<='كشف حساب تحليلى'!$G$6)*('اليومية العامه'!$F$7:$F$16='كشف حساب تحليلى'!$J$6)*('اليومية العامه'!$G$7:$G$16='كشف حساب تحليلى'!$J$8),ROW('اليومية العامه'!$B$7:$B$16)-6,\"\"),ROW('اليومية العامه'!#REF!)),COLUMN('اليومية العامه'!B:B)-1),\"\")","v":""},{"$f":"IFERROR(INDEX('اليومية العامه'!$B$7:$K$16,SMALL(IF(('اليومية العامه'!$B$7:$B$16>='كشف حساب تحليلى'!$C$6)*('اليومية العامه'!$B$7:$B$16<='كشف حساب تحليلى'!$G$6)*('اليومية العامه'!$F$7:$F$16='كشف حساب تحليلى'!$J$6)*('اليومية العامه'!$G$7:$G$16='كشف حساب تحليلى'!$J$8),ROW('اليومية العامه'!$B$7:$B$16)-6,\"\"),ROW('اليومية العامه'!#REF!)),COLUMN('اليومية العامه'!C:C)-1),\"\")","v":""},{"$f":"IFERROR(INDEX('اليومية العامه'!$B$7:$K$16,SMALL(IF(('اليومية العامه'!$B$7:$B$16>='كشف حساب تحليلى'!$C$6)*('اليومية العامه'!$B$7:$B$16<='كشف حساب تحليلى'!$G$6)*('اليومية العامه'!$F$7:$F$16='كشف حساب تحليلى'!$J$6)*('اليومية العامه'!$G$7:$G$16='كشف حساب تحليلى'!$J$8),ROW('اليومية العامه'!$B$7:$B$16)-6,\"\"),ROW('اليومية العامه'!#REF!)),COLUMN('اليومية العامه'!D:D)-1),\"\")","v":""},{"$f":"IFERROR(INDEX('اليومية العامه'!$B$7:$K$16,SMALL(IF(('اليومية العامه'!$B$7:$B$16>='كشف حساب تحليلى'!$C$6)*('اليومية العامه'!$B$7:$B$16<='كشف حساب تحليلى'!$G$6)*('اليومية العامه'!$F$7:$F$16='كشف حساب تحليلى'!$J$6)*('اليومية العامه'!$G$7:$G$16='كشف حساب تحليلى'!$J$8),ROW('اليومية العامه'!$B$7:$B$16)-6,\"\"),ROW('اليومية العامه'!#REF!)),COLUMN('اليومية العامه'!E:E)-1),\"\")","v":""},{"$f":"IFERROR(INDEX('اليومية العامه'!$B$7:$K$16,SMALL(IF(('اليومية العامه'!$B$7:$B$16>='كشف حساب تحليلى'!$C$6)*('اليومية العامه'!$B$7:$B$16<='كشف حساب تحليلى'!$G$6)*('اليومية العامه'!$F$7:$F$16='كشف حساب تحليلى'!$J$6)*('اليومية العامه'!$G$7:$G$16='كشف حساب تحليلى'!$J$8),ROW('اليومية العامه'!$B$7:$B$16)-6,\"\"),ROW('اليومية العامه'!#REF!)),COLUMN('اليومية العامه'!F:F)-1),\"\")","v":""},{"$f":"IFERROR(INDEX('اليومية العامه'!$B$7:$K$16,SMALL(IF(('اليومية العامه'!$B$7:$B$16>='كشف حساب تحليلى'!$C$6)*('اليومية العامه'!$B$7:$B$16<='كشف حساب تحليلى'!$G$6)*('اليومية العامه'!$F$7:$F$16='كشف حساب تحليلى'!$J$6)*('اليومية العامه'!$G$7:$G$16='كشف حساب تحليلى'!$J$8),ROW('اليومية العامه'!$B$7:$B$16)-6,\"\"),ROW('اليومية العامه'!#REF!)),COLUMN('اليومية العامه'!G:G)-1),\"\")","v":""},{"$f":"IFERROR(INDEX('اليومية العامه'!$B$7:$K$16,SMALL(IF(('اليومية العامه'!$B$7:$B$16>='كشف حساب تحليلى'!$C$6)*('اليومية العامه'!$B$7:$B$16<='كشف حساب تحليلى'!$G$6)*('اليومية العامه'!$F$7:$F$16='كشف حساب تحليلى'!$J$6)*('اليومية العامه'!$G$7:$G$16='كشف حساب تحليلى'!$J$8),ROW('اليومية العامه'!$B$7:$B$16)-6,\"\"),ROW('اليومية العامه'!#REF!)),COLUMN('اليومية العامه'!H:H)-1),\"\")","v":""},{"$f":"IFERROR(INDEX('اليومية العامه'!$B$7:$K$16,SMALL(IF(('اليومية العامه'!$B$7:$B$16>='كشف حساب تحليلى'!$C$6)*('اليومية العامه'!$B$7:$B$16<='كشف حساب تحليلى'!$G$6)*('اليومية العامه'!$F$7:$F$16='كشف حساب تحليلى'!$J$6)*('اليومية العامه'!$G$7:$G$16='كشف حساب تحليلى'!$J$8),ROW('اليومية العامه'!$B$7:$B$16)-6,\"\"),ROW('اليومية العامه'!#REF!)),COLUMN('اليومية العامه'!I:I)-1),\"\")","v":""},{"$f":"IFERROR(INDEX('اليومية العامه'!$B$7:$K$16,SMALL(IF(('اليومية العامه'!$B$7:$B$16>='كشف حساب تحليلى'!$C$6)*('اليومية العامه'!$B$7:$B$16<='كشف حساب تحليلى'!$G$6)*('اليومية العامه'!$F$7:$F$16='كشف حساب تحليلى'!$J$6)*('اليومية العامه'!$G$7:$G$16='كشف حساب تحليلى'!$J$8),ROW('اليومية العامه'!$B$7:$B$16)-6,\"\"),ROW('اليومية العامه'!#REF!)),COLUMN('اليومية العامه'!J:J)-1),\"\")","v":""},{"$f":"IFERROR(INDEX('اليومية العامه'!$B$7:$K$16,SMALL(IF(('اليومية العامه'!$B$7:$B$16>='كشف حساب تحليلى'!$C$6)*('اليومية العامه'!$B$7:$B$16<='كشف حساب تحليلى'!$G$6)*('اليومية العامه'!$F$7:$F$16='كشف حساب تحليلى'!$J$6)*('اليومية العامه'!$G$7:$G$16='كشف حساب تحليلى'!$J$8),ROW('اليومية العامه'!$B$7:$B$16)-6,\"\"),ROW('اليومية العامه'!#REF!)),COLUMN('اليومية العامه'!K:K)-1),\"\")","v":""}]
[null,{"$f":"IFERROR(INDEX('اليومية العامه'!$B$7:$K$16,SMALL(IF(('اليومية العامه'!$B$7:$B$16>='كشف حساب تحليلى'!$C$6)*('اليومية العامه'!$B$7:$B$16<='كشف حساب تحليلى'!$G$6)*('اليومية العامه'!$F$7:$F$16='كشف حساب تحليلى'!$J$6)*('اليومية العامه'!$G$7:$G$16='كشف حساب تحليلى'!$J$8),ROW('اليومية العامه'!$B$7:$B$16)-6,\"\"),ROW('اليومية العامه'!#REF!)),COLUMN('اليومية العامه'!B:B)-1),\"\")","v":""},{"$f":"IFERROR(INDEX('اليومية العامه'!$B$7:$K$16,SMALL(IF(('اليومية العامه'!$B$7:$B$16>='كشف حساب تحليلى'!$C$6)*('اليومية العامه'!$B$7:$B$16<='كشف حساب تحليلى'!$G$6)*('اليومية العامه'!$F$7:$F$16='كشف حساب تحليلى'!$J$6)*('اليومية العامه'!$G$7:$G$16='كشف حساب تحليلى'!$J$8),ROW('اليومية العامه'!$B$7:$B$16)-6,\"\"),ROW('اليومية العامه'!#REF!)),COLUMN('اليومية العامه'!C:C)-1),\"\")","v":""},{"$f":"IFERROR(INDEX('اليومية العامه'!$B$7:$K$16,SMALL(IF(('اليومية العامه'!$B$7:$B$16>='كشف حساب تحليلى'!$C$6)*('اليومية العامه'!$B$7:$B$16<='كشف حساب تحليلى'!$G$6)*('اليومية العامه'!$F$7:$F$16='كشف حساب تحليلى'!$J$6)*('اليومية العامه'!$G$7:$G$16='كشف حساب تحليلى'!$J$8),ROW('اليومية العامه'!$B$7:$B$16)-6,\"\"),ROW('اليومية العامه'!#REF!)),COLUMN('اليومية العامه'!D:D)-1),\"\")","v":""},{"$f":"IFERROR(INDEX('اليومية العامه'!$B$7:$K$16,SMALL(IF(('اليومية العامه'!$B$7:$B$16>='كشف حساب تحليلى'!$C$6)*('اليومية العامه'!$B$7:$B$16<='كشف حساب تحليلى'!$G$6)*('اليومية العامه'!$F$7:$F$16='كشف حساب تحليلى'!$J$6)*('اليومية العامه'!$G$7:$G$16='كشف حساب تحليلى'!$J$8),ROW('اليومية العامه'!$B$7:$B$16)-6,\"\"),ROW('اليومية العامه'!#REF!)),COLUMN('اليومية العامه'!E:E)-1),\"\")","v":""},{"$f":"IFERROR(INDEX('اليومية العامه'!$B$7:$K$16,SMALL(IF(('اليومية العامه'!$B$7:$B$16>='كشف حساب تحليلى'!$C$6)*('اليومية العامه'!$B$7:$B$16<='كشف حساب تحليلى'!$G$6)*('اليومية العامه'!$F$7:$F$16='كشف حساب تحليلى'!$J$6)*('اليومية العامه'!$G$7:$G$16='كشف حساب تحليلى'!$J$8),ROW('اليومية العامه'!$B$7:$B$16)-6,\"\"),ROW('اليومية العامه'!#REF!)),COLUMN('اليومية العامه'!F:F)-1),\"\")","v":""},{"$f":"IFERROR(INDEX('اليومية العامه'!$B$7:$K$16,SMALL(IF(('اليومية العامه'!$B$7:$B$16>='كشف حساب تحليلى'!$C$6)*('اليومية العامه'!$B$7:$B$16<='كشف حساب تحليلى'!$G$6)*('اليومية العامه'!$F$7:$F$16='كشف حساب تحليلى'!$J$6)*('اليومية العامه'!$G$7:$G$16='كشف حساب تحليلى'!$J$8),ROW('اليومية العامه'!$B$7:$B$16)-6,\"\"),ROW('اليومية العامه'!#REF!)),COLUMN('اليومية العامه'!G:G)-1),\"\")","v":""},{"$f":"IFERROR(INDEX('اليومية العامه'!$B$7:$K$16,SMALL(IF(('اليومية العامه'!$B$7:$B$16>='كشف حساب تحليلى'!$C$6)*('اليومية العامه'!$B$7:$B$16<='كشف حساب تحليلى'!$G$6)*('اليومية العامه'!$F$7:$F$16='كشف حساب تحليلى'!$J$6)*('اليومية العامه'!$G$7:$G$16='كشف حساب تحليلى'!$J$8),ROW('اليومية العامه'!$B$7:$B$16)-6,\"\"),ROW('اليومية العامه'!#REF!)),COLUMN('اليومية العامه'!H:H)-1),\"\")","v":""},{"$f":"IFERROR(INDEX('اليومية العامه'!$B$7:$K$16,SMALL(IF(('اليومية العامه'!$B$7:$B$16>='كشف حساب تحليلى'!$C$6)*('اليومية العامه'!$B$7:$B$16<='كشف حساب تحليلى'!$G$6)*('اليومية العامه'!$F$7:$F$16='كشف حساب تحليلى'!$J$6)*('اليومية العامه'!$G$7:$G$16='كشف حساب تحليلى'!$J$8),ROW('اليومية العامه'!$B$7:$B$16)-6,\"\"),ROW('اليومية العامه'!#REF!)),COLUMN('اليومية العامه'!I:I)-1),\"\")","v":""},{"$f":"IFERROR(INDEX('اليومية العامه'!$B$7:$K$16,SMALL(IF(('اليومية العامه'!$B$7:$B$16>='كشف حساب تحليلى'!$C$6)*('اليومية العامه'!$B$7:$B$16<='كشف حساب تحليلى'!$G$6)*('اليومية العامه'!$F$7:$F$16='كشف حساب تحليلى'!$J$6)*('اليومية العامه'!$G$7:$G$16='كشف حساب تحليلى'!$J$8),ROW('اليومية العامه'!$B$7:$B$16)-6,\"\"),ROW('اليومية العامه'!#REF!)),COLUMN('اليومية العامه'!J:J)-1),\"\")","v":""},{"$f":"IFERROR(INDEX('اليومية العامه'!$B$7:$K$16,SMALL(IF(('اليومية العامه'!$B$7:$B$16>='كشف حساب تحليلى'!$C$6)*('اليومية العامه'!$B$7:$B$16<='كشف حساب تحليلى'!$G$6)*('اليومية العامه'!$F$7:$F$16='كشف حساب تحليلى'!$J$6)*('اليومية العامه'!$G$7:$G$16='كشف حساب تحليلى'!$J$8),ROW('اليومية العامه'!$B$7:$B$16)-6,\"\"),ROW('اليومية العامه'!#REF!)),COLUMN('اليومية العامه'!K:K)-1),\"\")","v":""}]
[null,{"$f":"IFERROR(INDEX('اليومية العامه'!$B$7:$K$16,SMALL(IF(('اليومية العامه'!$B$7:$B$16>='كشف حساب تحليلى'!$C$6)*('اليومية العامه'!$B$7:$B$16<='كشف حساب تحليلى'!$G$6)*('اليومية العامه'!$F$7:$F$16='كشف حساب تحليلى'!$J$6)*('اليومية العامه'!$G$7:$G$16='كشف حساب تحليلى'!$J$8),ROW('اليومية العامه'!$B$7:$B$16)-6,\"\"),ROW('اليومية العامه'!#REF!)),COLUMN('اليومية العامه'!B:B)-1),\"\")","v":""},{"$f":"IFERROR(INDEX('اليومية العامه'!$B$7:$K$16,SMALL(IF(('اليومية العامه'!$B$7:$B$16>='كشف حساب تحليلى'!$C$6)*('اليومية العامه'!$B$7:$B$16<='كشف حساب تحليلى'!$G$6)*('اليومية العامه'!$F$7:$F$16='كشف حساب تحليلى'!$J$6)*('اليومية العامه'!$G$7:$G$16='كشف حساب تحليلى'!$J$8),ROW('اليومية العامه'!$B$7:$B$16)-6,\"\"),ROW('اليومية العامه'!#REF!)),COLUMN('اليومية العامه'!C:C)-1),\"\")","v":""},{"$f":"IFERROR(INDEX('اليومية العامه'!$B$7:$K$16,SMALL(IF(('اليومية العامه'!$B$7:$B$16>='كشف حساب تحليلى'!$C$6)*('اليومية العامه'!$B$7:$B$16<='كشف حساب تحليلى'!$G$6)*('اليومية العامه'!$F$7:$F$16='كشف حساب تحليلى'!$J$6)*('اليومية العامه'!$G$7:$G$16='كشف حساب تحليلى'!$J$8),ROW('اليومية العامه'!$B$7:$B$16)-6,\"\"),ROW('اليومية العامه'!#REF!)),COLUMN('اليومية العامه'!D:D)-1),\"\")","v":""},{"$f":"IFERROR(INDEX('اليومية العامه'!$B$7:$K$16,SMALL(IF(('اليومية العامه'!$B$7:$B$16>='كشف حساب تحليلى'!$C$6)*('اليومية العامه'!$B$7:$B$16<='كشف حساب تحليلى'!$G$6)*('اليومية العامه'!$F$7:$F$16='كشف حساب تحليلى'!$J$6)*('اليومية العامه'!$G$7:$G$16='كشف حساب تحليلى'!$J$8),ROW('اليومية العامه'!$B$7:$B$16)-6,\"\"),ROW('اليومية العامه'!#REF!)),COLUMN('اليومية العامه'!E:E)-1),\"\")","v":""},{"$f":"IFERROR(INDEX('اليومية العامه'!$B$7:$K$16,SMALL(IF(('اليومية العامه'!$B$7:$B$16>='كشف حساب تحليلى'!$C$6)*('اليومية العامه'!$B$7:$B$16<='كشف حساب تحليلى'!$G$6)*('اليومية العامه'!$F$7:$F$16='كشف حساب تحليلى'!$J$6)*('اليومية العامه'!$G$7:$G$16='كشف حساب تحليلى'!$J$8),ROW('اليومية العامه'!$B$7:$B$16)-6,\"\"),ROW('اليومية العامه'!#REF!)),COLUMN('اليومية العامه'!F:F)-1),\"\")","v":""},{"$f":"IFERROR(INDEX('اليومية العامه'!$B$7:$K$16,SMALL(IF(('اليومية العامه'!$B$7:$B$16>='كشف حساب تحليلى'!$C$6)*('اليومية العامه'!$B$7:$B$16<='كشف حساب تحليلى'!$G$6)*('اليومية العامه'!$F$7:$F$16='كشف حساب تحليلى'!$J$6)*('اليومية العامه'!$G$7:$G$16='كشف حساب تحليلى'!$J$8),ROW('اليومية العامه'!$B$7:$B$16)-6,\"\"),ROW('اليومية العامه'!#REF!)),COLUMN('اليومية العامه'!G:G)-1),\"\")","v":""},{"$f":"IFERROR(INDEX('اليومية العامه'!$B$7:$K$16,SMALL(IF(('اليومية العامه'!$B$7:$B$16>='كشف حساب تحليلى'!$C$6)*('اليومية العامه'!$B$7:$B$16<='كشف حساب تحليلى'!$G$6)*('اليومية العامه'!$F$7:$F$16='كشف حساب تحليلى'!$J$6)*('اليومية العامه'!$G$7:$G$16='كشف حساب تحليلى'!$J$8),ROW('اليومية العامه'!$B$7:$B$16)-6,\"\"),ROW('اليومية العامه'!#REF!)),COLUMN('اليومية العامه'!H:H)-1),\"\")","v":""},{"$f":"IFERROR(INDEX('اليومية العامه'!$B$7:$K$16,SMALL(IF(('اليومية العامه'!$B$7:$B$16>='كشف حساب تحليلى'!$C$6)*('اليومية العامه'!$B$7:$B$16<='كشف حساب تحليلى'!$G$6)*('اليومية العامه'!$F$7:$F$16='كشف حساب تحليلى'!$J$6)*('اليومية العامه'!$G$7:$G$16='كشف حساب تحليلى'!$J$8),ROW('اليومية العامه'!$B$7:$B$16)-6,\"\"),ROW('اليومية العامه'!#REF!)),COLUMN('اليومية العامه'!I:I)-1),\"\")","v":""},{"$f":"IFERROR(INDEX('اليومية العامه'!$B$7:$K$16,SMALL(IF(('اليومية العامه'!$B$7:$B$16>='كشف حساب تحليلى'!$C$6)*('اليومية العامه'!$B$7:$B$16<='كشف حساب تحليلى'!$G$6)*('اليومية العامه'!$F$7:$F$16='كشف حساب تحليلى'!$J$6)*('اليومية العامه'!$G$7:$G$16='كشف حساب تحليلى'!$J$8),ROW('اليومية العامه'!$B$7:$B$16)-6,\"\"),ROW('اليومية العامه'!#REF!)),COLUMN('اليومية العامه'!J:J)-1),\"\")","v":""},{"$f":"IFERROR(INDEX('اليومية العامه'!$B$7:$K$16,SMALL(IF(('اليومية العامه'!$B$7:$B$16>='كشف حساب تحليلى'!$C$6)*('اليومية العامه'!$B$7:$B$16<='كشف حساب تحليلى'!$G$6)*('اليومية العامه'!$F$7:$F$16='كشف حساب تحليلى'!$J$6)*('اليومية العامه'!$G$7:$G$16='كشف حساب تحليلى'!$J$8),ROW('اليومية العامه'!$B$7:$B$16)-6,\"\"),ROW('اليومية العامه'!#REF!)),COLUMN('اليومية العامه'!K:K)-1),\"\")","v":""}]
[null,{"$f":"IFERROR(INDEX('اليومية العامه'!$B$7:$K$16,SMALL(IF(('اليومية العامه'!$B$7:$B$16>='كشف حساب تحليلى'!$C$6)*('اليومية العامه'!$B$7:$B$16<='كشف حساب تحليلى'!$G$6)*('اليومية العامه'!$F$7:$F$16='كشف حساب تحليلى'!$J$6)*('اليومية العامه'!$G$7:$G$16='كشف حساب تحليلى'!$J$8),ROW('اليومية العامه'!$B$7:$B$16)-6,\"\"),ROW('اليومية العامه'!#REF!)),COLUMN('اليومية العامه'!B:B)-1),\"\")","v":""},{"$f":"IFERROR(INDEX('اليومية العامه'!$B$7:$K$16,SMALL(IF(('اليومية العامه'!$B$7:$B$16>='كشف حساب تحليلى'!$C$6)*('اليومية العامه'!$B$7:$B$16<='كشف حساب تحليلى'!$G$6)*('اليومية العامه'!$F$7:$F$16='كشف حساب تحليلى'!$J$6)*('اليومية العامه'!$G$7:$G$16='كشف حساب تحليلى'!$J$8),ROW('اليومية العامه'!$B$7:$B$16)-6,\"\"),ROW('اليومية العامه'!#REF!)),COLUMN('اليومية العامه'!C:C)-1),\"\")","v":""},{"$f":"IFERROR(INDEX('اليومية العامه'!$B$7:$K$16,SMALL(IF(('اليومية العامه'!$B$7:$B$16>='كشف حساب تحليلى'!$C$6)*('اليومية العامه'!$B$7:$B$16<='كشف حساب تحليلى'!$G$6)*('اليومية العامه'!$F$7:$F$16='كشف حساب تحليلى'!$J$6)*('اليومية العامه'!$G$7:$G$16='كشف حساب تحليلى'!$J$8),ROW('اليومية العامه'!$B$7:$B$16)-6,\"\"),ROW('اليومية العامه'!#REF!)),COLUMN('اليومية العامه'!D:D)-1),\"\")","v":""},{"$f":"IFERROR(INDEX('اليومية العامه'!$B$7:$K$16,SMALL(IF(('اليومية العامه'!$B$7:$B$16>='كشف حساب تحليلى'!$C$6)*('اليومية العامه'!$B$7:$B$16<='كشف حساب تحليلى'!$G$6)*('اليومية العامه'!$F$7:$F$16='كشف حساب تحليلى'!$J$6)*('اليومية العامه'!$G$7:$G$16='كشف حساب تحليلى'!$J$8),ROW('اليومية العامه'!$B$7:$B$16)-6,\"\"),ROW('اليومية العامه'!#REF!)),COLUMN('اليومية العامه'!E:E)-1),\"\")","v":""},{"$f":"IFERROR(INDEX('اليومية العامه'!$B$7:$K$16,SMALL(IF(('اليومية العامه'!$B$7:$B$16>='كشف حساب تحليلى'!$C$6)*('اليومية العامه'!$B$7:$B$16<='كشف حساب تحليلى'!$G$6)*('اليومية العامه'!$F$7:$F$16='كشف حساب تحليلى'!$J$6)*('اليومية العامه'!$G$7:$G$16='كشف حساب تحليلى'!$J$8),ROW('اليومية العامه'!$B$7:$B$16)-6,\"\"),ROW('اليومية العامه'!#REF!)),COLUMN('اليومية العامه'!F:F)-1),\"\")","v":""},{"$f":"IFERROR(INDEX('اليومية العامه'!$B$7:$K$16,SMALL(IF(('اليومية العامه'!$B$7:$B$16>='كشف حساب تحليلى'!$C$6)*('اليومية العامه'!$B$7:$B$16<='كشف حساب تحليلى'!$G$6)*('اليومية العامه'!$F$7:$F$16='كشف حساب تحليلى'!$J$6)*('اليومية العامه'!$G$7:$G$16='كشف حساب تحليلى'!$J$8),ROW('اليومية العامه'!$B$7:$B$16)-6,\"\"),ROW('اليومية العامه'!#REF!)),COLUMN('اليومية العامه'!G:G)-1),\"\")","v":""},{"$f":"IFERROR(INDEX('اليومية العامه'!$B$7:$K$16,SMALL(IF(('اليومية العامه'!$B$7:$B$16>='كشف حساب تحليلى'!$C$6)*('اليومية العامه'!$B$7:$B$16<='كشف حساب تحليلى'!$G$6)*('اليومية العامه'!$F$7:$F$16='كشف حساب تحليلى'!$J$6)*('اليومية العامه'!$G$7:$G$16='كشف حساب تحليلى'!$J$8),ROW('اليومية العامه'!$B$7:$B$16)-6,\"\"),ROW('اليومية العامه'!#REF!)),COLUMN('اليومية العامه'!H:H)-1),\"\")","v":""},{"$f":"IFERROR(INDEX('اليومية العامه'!$B$7:$K$16,SMALL(IF(('اليومية العامه'!$B$7:$B$16>='كشف حساب تحليلى'!$C$6)*('اليومية العامه'!$B$7:$B$16<='كشف حساب تحليلى'!$G$6)*('اليومية العامه'!$F$7:$F$16='كشف حساب تحليلى'!$J$6)*('اليومية العامه'!$G$7:$G$16='كشف حساب تحليلى'!$J$8),ROW('اليومية العامه'!$B$7:$B$16)-6,\"\"),ROW('اليومية العامه'!#REF!)),COLUMN('اليومية العامه'!I:I)-1),\"\")","v":""},{"$f":"IFERROR(INDEX('اليومية العامه'!$B$7:$K$16,SMALL(IF(('اليومية العامه'!$B$7:$B$16>='كشف حساب تحليلى'!$C$6)*('اليومية العامه'!$B$7:$B$16<='كشف حساب تحليلى'!$G$6)*('اليومية العامه'!$F$7:$F$16='كشف حساب تحليلى'!$J$6)*('اليومية العامه'!$G$7:$G$16='كشف حساب تحليلى'!$J$8),ROW('اليومية العامه'!$B$7:$B$16)-6,\"\"),ROW('اليومية العامه'!#REF!)),COLUMN('اليومية العامه'!J:J)-1),\"\")","v":""},{"$f":"IFERROR(INDEX('اليومية العامه'!$B$7:$K$16,SMALL(IF(('اليومية العامه'!$B$7:$B$16>='كشف حساب تحليلى'!$C$6)*('اليومية العامه'!$B$7:$B$16<='كشف حساب تحليلى'!$G$6)*('اليومية العامه'!$F$7:$F$16='كشف حساب تحليلى'!$J$6)*('اليومية العامه'!$G$7:$G$16='كشف حساب تحليلى'!$J$8),ROW('اليومية العامه'!$B$7:$B$16)-6,\"\"),ROW('اليومية العامه'!#REF!)),COLUMN('اليومية العامه'!K:K)-1),\"\")","v":""}]
[null,{"$f":"IFERROR(INDEX('اليومية العامه'!$B$7:$K$16,SMALL(IF(('اليومية العامه'!$B$7:$B$16>='كشف حساب تحليلى'!$C$6)*('اليومية العامه'!$B$7:$B$16<='كشف حساب تحليلى'!$G$6)*('اليومية العامه'!$F$7:$F$16='كشف حساب تحليلى'!$J$6)*('اليومية العامه'!$G$7:$G$16='كشف حساب تحليلى'!$J$8),ROW('اليومية العامه'!$B$7:$B$16)-6,\"\"),ROW('اليومية العامه'!#REF!)),COLUMN('اليومية العامه'!B:B)-1),\"\")","v":""},{"$f":"IFERROR(INDEX('اليومية العامه'!$B$7:$K$16,SMALL(IF(('اليومية العامه'!$B$7:$B$16>='كشف حساب تحليلى'!$C$6)*('اليومية العامه'!$B$7:$B$16<='كشف حساب تحليلى'!$G$6)*('اليومية العامه'!$F$7:$F$16='كشف حساب تحليلى'!$J$6)*('اليومية العامه'!$G$7:$G$16='كشف حساب تحليلى'!$J$8),ROW('اليومية العامه'!$B$7:$B$16)-6,\"\"),ROW('اليومية العامه'!#REF!)),COLUMN('اليومية العامه'!C:C)-1),\"\")","v":""},{"$f":"IFERROR(INDEX('اليومية العامه'!$B$7:$K$16,SMALL(IF(('اليومية العامه'!$B$7:$B$16>='كشف حساب تحليلى'!$C$6)*('اليومية العامه'!$B$7:$B$16<='كشف حساب تحليلى'!$G$6)*('اليومية العامه'!$F$7:$F$16='كشف حساب تحليلى'!$J$6)*('اليومية العامه'!$G$7:$G$16='كشف حساب تحليلى'!$J$8),ROW('اليومية العامه'!$B$7:$B$16)-6,\"\"),ROW('اليومية العامه'!#REF!)),COLUMN('اليومية العامه'!D:D)-1),\"\")","v":""},{"$f":"IFERROR(INDEX('اليومية العامه'!$B$7:$K$16,SMALL(IF(('اليومية العامه'!$B$7:$B$16>='كشف حساب تحليلى'!$C$6)*('اليومية العامه'!$B$7:$B$16<='كشف حساب تحليلى'!$G$6)*('اليومية العامه'!$F$7:$F$16='كشف حساب تحليلى'!$J$6)*('اليومية العامه'!$G$7:$G$16='كشف حساب تحليلى'!$J$8),ROW('اليومية العامه'!$B$7:$B$16)-6,\"\"),ROW('اليومية العامه'!#REF!)),COLUMN('اليومية العامه'!E:E)-1),\"\")","v":""},{"$f":"IFERROR(INDEX('اليومية العامه'!$B$7:$K$16,SMALL(IF(('اليومية العامه'!$B$7:$B$16>='كشف حساب تحليلى'!$C$6)*('اليومية العامه'!$B$7:$B$16<='كشف حساب تحليلى'!$G$6)*('اليومية العامه'!$F$7:$F$16='كشف حساب تحليلى'!$J$6)*('اليومية العامه'!$G$7:$G$16='كشف حساب تحليلى'!$J$8),ROW('اليومية العامه'!$B$7:$B$16)-6,\"\"),ROW('اليومية العامه'!#REF!)),COLUMN('اليومية العامه'!F:F)-1),\"\")","v":""},{"$f":"IFERROR(INDEX('اليومية العامه'!$B$7:$K$16,SMALL(IF(('اليومية العامه'!$B$7:$B$16>='كشف حساب تحليلى'!$C$6)*('اليومية العامه'!$B$7:$B$16<='كشف حساب تحليلى'!$G$6)*('اليومية العامه'!$F$7:$F$16='كشف حساب تحليلى'!$J$6)*('اليومية العامه'!$G$7:$G$16='كشف حساب تحليلى'!$J$8),ROW('اليومية العامه'!$B$7:$B$16)-6,\"\"),ROW('اليومية العامه'!#REF!)),COLUMN('اليومية العامه'!G:G)-1),\"\")","v":""},{"$f":"IFERROR(INDEX('اليومية العامه'!$B$7:$K$16,SMALL(IF(('اليومية العامه'!$B$7:$B$16>='كشف حساب تحليلى'!$C$6)*('اليومية العامه'!$B$7:$B$16<='كشف حساب تحليلى'!$G$6)*('اليومية العامه'!$F$7:$F$16='كشف حساب تحليلى'!$J$6)*('اليومية العامه'!$G$7:$G$16='كشف حساب تحليلى'!$J$8),ROW('اليومية العامه'!$B$7:$B$16)-6,\"\"),ROW('اليومية العامه'!#REF!)),COLUMN('اليومية العامه'!H:H)-1),\"\")","v":""},{"$f":"IFERROR(INDEX('اليومية العامه'!$B$7:$K$16,SMALL(IF(('اليومية العامه'!$B$7:$B$16>='كشف حساب تحليلى'!$C$6)*('اليومية العامه'!$B$7:$B$16<='كشف حساب تحليلى'!$G$6)*('اليومية العامه'!$F$7:$F$16='كشف حساب تحليلى'!$J$6)*('اليومية العامه'!$G$7:$G$16='كشف حساب تحليلى'!$J$8),ROW('اليومية العامه'!$B$7:$B$16)-6,\"\"),ROW('اليومية العامه'!#REF!)),COLUMN('اليومية العامه'!I:I)-1),\"\")","v":""},{"$f":"IFERROR(INDEX('اليومية العامه'!$B$7:$K$16,SMALL(IF(('اليومية العامه'!$B$7:$B$16>='كشف حساب تحليلى'!$C$6)*('اليومية العامه'!$B$7:$B$16<='كشف حساب تحليلى'!$G$6)*('اليومية العامه'!$F$7:$F$16='كشف حساب تحليلى'!$J$6)*('اليومية العامه'!$G$7:$G$16='كشف حساب تحليلى'!$J$8),ROW('اليومية العامه'!$B$7:$B$16)-6,\"\"),ROW('اليومية العامه'!#REF!)),COLUMN('اليومية العامه'!J:J)-1),\"\")","v":""},{"$f":"IFERROR(INDEX('اليومية العامه'!$B$7:$K$16,SMALL(IF(('اليومية العامه'!$B$7:$B$16>='كشف حساب تحليلى'!$C$6)*('اليومية العامه'!$B$7:$B$16<='كشف حساب تحليلى'!$G$6)*('اليومية العامه'!$F$7:$F$16='كشف حساب تحليلى'!$J$6)*('اليومية العامه'!$G$7:$G$16='كشف حساب تحليلى'!$J$8),ROW('اليومية العامه'!$B$7:$B$16)-6,\"\"),ROW('اليومية العامه'!#REF!)),COLUMN('اليومية العامه'!K:K)-1),\"\")","v":""}]
[null,{"$f":"IFERROR(INDEX('اليومية العامه'!$B$7:$K$16,SMALL(IF(('اليومية العامه'!$B$7:$B$16>='كشف حساب تحليلى'!$C$6)*('اليومية العامه'!$B$7:$B$16<='كشف حساب تحليلى'!$G$6)*('اليومية العامه'!$F$7:$F$16='كشف حساب تحليلى'!$J$6)*('اليومية العامه'!$G$7:$G$16='كشف حساب تحليلى'!$J$8),ROW('اليومية العامه'!$B$7:$B$16)-6,\"\"),ROW('اليومية العامه'!#REF!)),COLUMN('اليومية العامه'!B:B)-1),\"\")","v":""},{"$f":"IFERROR(INDEX('اليومية العامه'!$B$7:$K$16,SMALL(IF(('اليومية العامه'!$B$7:$B$16>='كشف حساب تحليلى'!$C$6)*('اليومية العامه'!$B$7:$B$16<='كشف حساب تحليلى'!$G$6)*('اليومية العامه'!$F$7:$F$16='كشف حساب تحليلى'!$J$6)*('اليومية العامه'!$G$7:$G$16='كشف حساب تحليلى'!$J$8),ROW('اليومية العامه'!$B$7:$B$16)-6,\"\"),ROW('اليومية العامه'!#REF!)),COLUMN('اليومية العامه'!C:C)-1),\"\")","v":""},{"$f":"IFERROR(INDEX('اليومية العامه'!$B$7:$K$16,SMALL(IF(('اليومية العامه'!$B$7:$B$16>='كشف حساب تحليلى'!$C$6)*('اليومية العامه'!$B$7:$B$16<='كشف حساب تحليلى'!$G$6)*('اليومية العامه'!$F$7:$F$16='كشف حساب تحليلى'!$J$6)*('اليومية العامه'!$G$7:$G$16='كشف حساب تحليلى'!$J$8),ROW('اليومية العامه'!$B$7:$B$16)-6,\"\"),ROW('اليومية العامه'!#REF!)),COLUMN('اليومية العامه'!D:D)-1),\"\")","v":""},{"$f":"IFERROR(INDEX('اليومية العامه'!$B$7:$K$16,SMALL(IF(('اليومية العامه'!$B$7:$B$16>='كشف حساب تحليلى'!$C$6)*('اليومية العامه'!$B$7:$B$16<='كشف حساب تحليلى'!$G$6)*('اليومية العامه'!$F$7:$F$16='كشف حساب تحليلى'!$J$6)*('اليومية العامه'!$G$7:$G$16='كشف حساب تحليلى'!$J$8),ROW('اليومية العامه'!$B$7:$B$16)-6,\"\"),ROW('اليومية العامه'!#REF!)),COLUMN('اليومية العامه'!E:E)-1),\"\")","v":""},{"$f":"IFERROR(INDEX('اليومية العامه'!$B$7:$K$16,SMALL(IF(('اليومية العامه'!$B$7:$B$16>='كشف حساب تحليلى'!$C$6)*('اليومية العامه'!$B$7:$B$16<='كشف حساب تحليلى'!$G$6)*('اليومية العامه'!$F$7:$F$16='كشف حساب تحليلى'!$J$6)*('اليومية العامه'!$G$7:$G$16='كشف حساب تحليلى'!$J$8),ROW('اليومية العامه'!$B$7:$B$16)-6,\"\"),ROW('اليومية العامه'!#REF!)),COLUMN('اليومية العامه'!F:F)-1),\"\")","v":""},{"$f":"IFERROR(INDEX('اليومية العامه'!$B$7:$K$16,SMALL(IF(('اليومية العامه'!$B$7:$B$16>='كشف حساب تحليلى'!$C$6)*('اليومية العامه'!$B$7:$B$16<='كشف حساب تحليلى'!$G$6)*('اليومية العامه'!$F$7:$F$16='كشف حساب تحليلى'!$J$6)*('اليومية العامه'!$G$7:$G$16='كشف حساب تحليلى'!$J$8),ROW('اليومية العامه'!$B$7:$B$16)-6,\"\"),ROW('اليومية العامه'!#REF!)),COLUMN('اليومية العامه'!G:G)-1),\"\")","v":""},{"$f":"IFERROR(INDEX('اليومية العامه'!$B$7:$K$16,SMALL(IF(('اليومية العامه'!$B$7:$B$16>='كشف حساب تحليلى'!$C$6)*('اليومية العامه'!$B$7:$B$16<='كشف حساب تحليلى'!$G$6)*('اليومية العامه'!$F$7:$F$16='كشف حساب تحليلى'!$J$6)*('اليومية العامه'!$G$7:$G$16='كشف حساب تحليلى'!$J$8),ROW('اليومية العامه'!$B$7:$B$16)-6,\"\"),ROW('اليومية العامه'!#REF!)),COLUMN('اليومية العامه'!H:H)-1),\"\")","v":""},{"$f":"IFERROR(INDEX('اليومية العامه'!$B$7:$K$16,SMALL(IF(('اليومية العامه'!$B$7:$B$16>='كشف حساب تحليلى'!$C$6)*('اليومية العامه'!$B$7:$B$16<='كشف حساب تحليلى'!$G$6)*('اليومية العامه'!$F$7:$F$16='كشف حساب تحليلى'!$J$6)*('اليومية العامه'!$G$7:$G$16='كشف حساب تحليلى'!$J$8),ROW('اليومية العامه'!$B$7:$B$16)-6,\"\"),ROW('اليومية العامه'!#REF!)),COLUMN('اليومية العامه'!I:I)-1),\"\")","v":""},{"$f":"IFERROR(INDEX('اليومية العامه'!$B$7:$K$16,SMALL(IF(('اليومية العامه'!$B$7:$B$16>='كشف حساب تحليلى'!$C$6)*('اليومية العامه'!$B$7:$B$16<='كشف حساب تحليلى'!$G$6)*('اليومية العامه'!$F$7:$F$16='كشف حساب تحليلى'!$J$6)*('اليومية العامه'!$G$7:$G$16='كشف حساب تحليلى'!$J$8),ROW('اليومية العامه'!$B$7:$B$16)-6,\"\"),ROW('اليومية العامه'!#REF!)),COLUMN('اليومية العامه'!J:J)-1),\"\")","v":""},{"$f":"IFERROR(INDEX('اليومية العامه'!$B$7:$K$16,SMALL(IF(('اليومية العامه'!$B$7:$B$16>='كشف حساب تحليلى'!$C$6)*('اليومية العامه'!$B$7:$B$16<='كشف حساب تحليلى'!$G$6)*('اليومية العامه'!$F$7:$F$16='كشف حساب تحليلى'!$J$6)*('اليومية العامه'!$G$7:$G$16='كشف حساب تحليلى'!$J$8),ROW('اليومية العامه'!$B$7:$B$16)-6,\"\"),ROW('اليومية العامه'!#REF!)),COLUMN('اليومية العامه'!K:K)-1),\"\")","v":""}]
[null,{"$f":"IFERROR(INDEX('اليومية العامه'!$B$7:$K$16,SMALL(IF(('اليومية العامه'!$B$7:$B$16>='كشف حساب تحليلى'!$C$6)*('اليومية العامه'!$B$7:$B$16<='كشف حساب تحليلى'!$G$6)*('اليومية العامه'!$F$7:$F$16='كشف حساب تحليلى'!$J$6)*('اليومية العامه'!$G$7:$G$16='كشف حساب تحليلى'!$J$8),ROW('اليومية العامه'!$B$7:$B$16)-6,\"\"),ROW('اليومية العامه'!#REF!)),COLUMN('اليومية العامه'!B:B)-1),\"\")","v":""},{"$f":"IFERROR(INDEX('اليومية العامه'!$B$7:$K$16,SMALL(IF(('اليومية العامه'!$B$7:$B$16>='كشف حساب تحليلى'!$C$6)*('اليومية العامه'!$B$7:$B$16<='كشف حساب تحليلى'!$G$6)*('اليومية العامه'!$F$7:$F$16='كشف حساب تحليلى'!$J$6)*('اليومية العامه'!$G$7:$G$16='كشف حساب تحليلى'!$J$8),ROW('اليومية العامه'!$B$7:$B$16)-6,\"\"),ROW('اليومية العامه'!#REF!)),COLUMN('اليومية العامه'!C:C)-1),\"\")","v":""},{"$f":"IFERROR(INDEX('اليومية العامه'!$B$7:$K$16,SMALL(IF(('اليومية العامه'!$B$7:$B$16>='كشف حساب تحليلى'!$C$6)*('اليومية العامه'!$B$7:$B$16<='كشف حساب تحليلى'!$G$6)*('اليومية العامه'!$F$7:$F$16='كشف حساب تحليلى'!$J$6)*('اليومية العامه'!$G$7:$G$16='كشف حساب تحليلى'!$J$8),ROW('اليومية العامه'!$B$7:$B$16)-6,\"\"),ROW('اليومية العامه'!#REF!)),COLUMN('اليومية العامه'!D:D)-1),\"\")","v":""},{"$f":"IFERROR(INDEX('اليومية العامه'!$B$7:$K$16,SMALL(IF(('اليومية العامه'!$B$7:$B$16>='كشف حساب تحليلى'!$C$6)*('اليومية العامه'!$B$7:$B$16<='كشف حساب تحليلى'!$G$6)*('اليومية العامه'!$F$7:$F$16='كشف حساب تحليلى'!$J$6)*('اليومية العامه'!$G$7:$G$16='كشف حساب تحليلى'!$J$8),ROW('اليومية العامه'!$B$7:$B$16)-6,\"\"),ROW('اليومية العامه'!#REF!)),COLUMN('اليومية العامه'!E:E)-1),\"\")","v":""},{"$f":"IFERROR(INDEX('اليومية العامه'!$B$7:$K$16,SMALL(IF(('اليومية العامه'!$B$7:$B$16>='كشف حساب تحليلى'!$C$6)*('اليومية العامه'!$B$7:$B$16<='كشف حساب تحليلى'!$G$6)*('اليومية العامه'!$F$7:$F$16='كشف حساب تحليلى'!$J$6)*('اليومية العامه'!$G$7:$G$16='كشف حساب تحليلى'!$J$8),ROW('اليومية العامه'!$B$7:$B$16)-6,\"\"),ROW('اليومية العامه'!#REF!)),COLUMN('اليومية العامه'!F:F)-1),\"\")","v":""},{"$f":"IFERROR(INDEX('اليومية العامه'!$B$7:$K$16,SMALL(IF(('اليومية العامه'!$B$7:$B$16>='كشف حساب تحليلى'!$C$6)*('اليومية العامه'!$B$7:$B$16<='كشف حساب تحليلى'!$G$6)*('اليومية العامه'!$F$7:$F$16='كشف حساب تحليلى'!$J$6)*('اليومية العامه'!$G$7:$G$16='كشف حساب تحليلى'!$J$8),ROW('اليومية العامه'!$B$7:$B$16)-6,\"\"),ROW('اليومية العامه'!#REF!)),COLUMN('اليومية العامه'!G:G)-1),\"\")","v":""},{"$f":"IFERROR(INDEX('اليومية العامه'!$B$7:$K$16,SMALL(IF(('اليومية العامه'!$B$7:$B$16>='كشف حساب تحليلى'!$C$6)*('اليومية العامه'!$B$7:$B$16<='كشف حساب تحليلى'!$G$6)*('اليومية العامه'!$F$7:$F$16='كشف حساب تحليلى'!$J$6)*('اليومية العامه'!$G$7:$G$16='كشف حساب تحليلى'!$J$8),ROW('اليومية العامه'!$B$7:$B$16)-6,\"\"),ROW('اليومية العامه'!#REF!)),COLUMN('اليومية العامه'!H:H)-1),\"\")","v":""},{"$f":"IFERROR(INDEX('اليومية العامه'!$B$7:$K$16,SMALL(IF(('اليومية العامه'!$B$7:$B$16>='كشف حساب تحليلى'!$C$6)*('اليومية العامه'!$B$7:$B$16<='كشف حساب تحليلى'!$G$6)*('اليومية العامه'!$F$7:$F$16='كشف حساب تحليلى'!$J$6)*('اليومية العامه'!$G$7:$G$16='كشف حساب تحليلى'!$J$8),ROW('اليومية العامه'!$B$7:$B$16)-6,\"\"),ROW('اليومية العامه'!#REF!)),COLUMN('اليومية العامه'!I:I)-1),\"\")","v":""},{"$f":"IFERROR(INDEX('اليومية العامه'!$B$7:$K$16,SMALL(IF(('اليومية العامه'!$B$7:$B$16>='كشف حساب تحليلى'!$C$6)*('اليومية العامه'!$B$7:$B$16<='كشف حساب تحليلى'!$G$6)*('اليومية العامه'!$F$7:$F$16='كشف حساب تحليلى'!$J$6)*('اليومية العامه'!$G$7:$G$16='كشف حساب تحليلى'!$J$8),ROW('اليومية العامه'!$B$7:$B$16)-6,\"\"),ROW('اليومية العامه'!#REF!)),COLUMN('اليومية العامه'!J:J)-1),\"\")","v":""},{"$f":"IFERROR(INDEX('اليومية العامه'!$B$7:$K$16,SMALL(IF(('اليومية العامه'!$B$7:$B$16>='كشف حساب تحليلى'!$C$6)*('اليومية العامه'!$B$7:$B$16<='كشف حساب تحليلى'!$G$6)*('اليومية العامه'!$F$7:$F$16='كشف حساب تحليلى'!$J$6)*('اليومية العامه'!$G$7:$G$16='كشف حساب تحليلى'!$J$8),ROW('اليومية العامه'!$B$7:$B$16)-6,\"\"),ROW('اليومية العامه'!#REF!)),COLUMN('اليومية العامه'!K:K)-1),\"\")","v":""}]
[null,{"$f":"IFERROR(INDEX('اليومية العامه'!$B$7:$K$16,SMALL(IF(('اليومية العامه'!$B$7:$B$16>='كشف حساب تحليلى'!$C$6)*('اليومية العامه'!$B$7:$B$16<='كشف حساب تحليلى'!$G$6)*('اليومية العامه'!$F$7:$F$16='كشف حساب تحليلى'!$J$6)*('اليومية العامه'!$G$7:$G$16='كشف حساب تحليلى'!$J$8),ROW('اليومية العامه'!$B$7:$B$16)-6,\"\"),ROW('اليومية العامه'!#REF!)),COLUMN('اليومية العامه'!B:B)-1),\"\")","v":""},{"$f":"IFERROR(INDEX('اليومية العامه'!$B$7:$K$16,SMALL(IF(('اليومية العامه'!$B$7:$B$16>='كشف حساب تحليلى'!$C$6)*('اليومية العامه'!$B$7:$B$16<='كشف حساب تحليلى'!$G$6)*('اليومية العامه'!$F$7:$F$16='كشف حساب تحليلى'!$J$6)*('اليومية العامه'!$G$7:$G$16='كشف حساب تحليلى'!$J$8),ROW('اليومية العامه'!$B$7:$B$16)-6,\"\"),ROW('اليومية العامه'!#REF!)),COLUMN('اليومية العامه'!C:C)-1),\"\")","v":""},{"$f":"IFERROR(INDEX('اليومية العامه'!$B$7:$K$16,SMALL(IF(('اليومية العامه'!$B$7:$B$16>='كشف حساب تحليلى'!$C$6)*('اليومية العامه'!$B$7:$B$16<='كشف حساب تحليلى'!$G$6)*('اليومية العامه'!$F$7:$F$16='كشف حساب تحليلى'!$J$6)*('اليومية العامه'!$G$7:$G$16='كشف حساب تحليلى'!$J$8),ROW('اليومية العامه'!$B$7:$B$16)-6,\"\"),ROW('اليومية العامه'!#REF!)),COLUMN('اليومية العامه'!D:D)-1),\"\")","v":""},{"$f":"IFERROR(INDEX('اليومية العامه'!$B$7:$K$16,SMALL(IF(('اليومية العامه'!$B$7:$B$16>='كشف حساب تحليلى'!$C$6)*('اليومية العامه'!$B$7:$B$16<='كشف حساب تحليلى'!$G$6)*('اليومية العامه'!$F$7:$F$16='كشف حساب تحليلى'!$J$6)*('اليومية العامه'!$G$7:$G$16='كشف حساب تحليلى'!$J$8),ROW('اليومية العامه'!$B$7:$B$16)-6,\"\"),ROW('اليومية العامه'!#REF!)),COLUMN('اليومية العامه'!E:E)-1),\"\")","v":""},{"$f":"IFERROR(INDEX('اليومية العامه'!$B$7:$K$16,SMALL(IF(('اليومية العامه'!$B$7:$B$16>='كشف حساب تحليلى'!$C$6)*('اليومية العامه'!$B$7:$B$16<='كشف حساب تحليلى'!$G$6)*('اليومية العامه'!$F$7:$F$16='كشف حساب تحليلى'!$J$6)*('اليومية العامه'!$G$7:$G$16='كشف حساب تحليلى'!$J$8),ROW('اليومية العامه'!$B$7:$B$16)-6,\"\"),ROW('اليومية العامه'!#REF!)),COLUMN('اليومية العامه'!F:F)-1),\"\")","v":""},{"$f":"IFERROR(INDEX('اليومية العامه'!$B$7:$K$16,SMALL(IF(('اليومية العامه'!$B$7:$B$16>='كشف حساب تحليلى'!$C$6)*('اليومية العامه'!$B$7:$B$16<='كشف حساب تحليلى'!$G$6)*('اليومية العامه'!$F$7:$F$16='كشف حساب تحليلى'!$J$6)*('اليومية العامه'!$G$7:$G$16='كشف حساب تحليلى'!$J$8),ROW('اليومية العامه'!$B$7:$B$16)-6,\"\"),ROW('اليومية العامه'!#REF!)),COLUMN('اليومية العامه'!G:G)-1),\"\")","v":""},{"$f":"IFERROR(INDEX('اليومية العامه'!$B$7:$K$16,SMALL(IF(('اليومية العامه'!$B$7:$B$16>='كشف حساب تحليلى'!$C$6)*('اليومية العامه'!$B$7:$B$16<='كشف حساب تحليلى'!$G$6)*('اليومية العامه'!$F$7:$F$16='كشف حساب تحليلى'!$J$6)*('اليومية العامه'!$G$7:$G$16='كشف حساب تحليلى'!$J$8),ROW('اليومية العامه'!$B$7:$B$16)-6,\"\"),ROW('اليومية العامه'!#REF!)),COLUMN('اليومية العامه'!H:H)-1),\"\")","v":""},{"$f":"IFERROR(INDEX('اليومية العامه'!$B$7:$K$16,SMALL(IF(('اليومية العامه'!$B$7:$B$16>='كشف حساب تحليلى'!$C$6)*('اليومية العامه'!$B$7:$B$16<='كشف حساب تحليلى'!$G$6)*('اليومية العامه'!$F$7:$F$16='كشف حساب تحليلى'!$J$6)*('اليومية العامه'!$G$7:$G$16='كشف حساب تحليلى'!$J$8),ROW('اليومية العامه'!$B$7:$B$16)-6,\"\"),ROW('اليومية العامه'!#REF!)),COLUMN('اليومية العامه'!I:I)-1),\"\")","v":""},{"$f":"IFERROR(INDEX('اليومية العامه'!$B$7:$K$16,SMALL(IF(('اليومية العامه'!$B$7:$B$16>='كشف حساب تحليلى'!$C$6)*('اليومية العامه'!$B$7:$B$16<='كشف حساب تحليلى'!$G$6)*('اليومية العامه'!$F$7:$F$16='كشف حساب تحليلى'!$J$6)*('اليومية العامه'!$G$7:$G$16='كشف حساب تحليلى'!$J$8),ROW('اليومية العامه'!$B$7:$B$16)-6,\"\"),ROW('اليومية العامه'!#REF!)),COLUMN('اليومية العامه'!J:J)-1),\"\")","v":""},{"$f":"IFERROR(INDEX('اليومية العامه'!$B$7:$K$16,SMALL(IF(('اليومية العامه'!$B$7:$B$16>='كشف حساب تحليلى'!$C$6)*('اليومية العامه'!$B$7:$B$16<='كشف حساب تحليلى'!$G$6)*('اليومية العامه'!$F$7:$F$16='كشف حساب تحليلى'!$J$6)*('اليومية العامه'!$G$7:$G$16='كشف حساب تحليلى'!$J$8),ROW('اليومية العامه'!$B$7:$B$16)-6,\"\"),ROW('اليومية العامه'!#REF!)),COLUMN('اليومية العامه'!K:K)-1),\"\")","v":""}]
[null,{"$f":"IFERROR(INDEX('اليومية العامه'!$B$7:$K$16,SMALL(IF(('اليومية العامه'!$B$7:$B$16>='كشف حساب تحليلى'!$C$6)*('اليومية العامه'!$B$7:$B$16<='كشف حساب تحليلى'!$G$6)*('اليومية العامه'!$F$7:$F$16='كشف حساب تحليلى'!$J$6)*('اليومية العامه'!$G$7:$G$16='كشف حساب تحليلى'!$J$8),ROW('اليومية العامه'!$B$7:$B$16)-6,\"\"),ROW('اليومية العامه'!#REF!)),COLUMN('اليومية العامه'!B:B)-1),\"\")","v":""},{"$f":"IFERROR(INDEX('اليومية العامه'!$B$7:$K$16,SMALL(IF(('اليومية العامه'!$B$7:$B$16>='كشف حساب تحليلى'!$C$6)*('اليومية العامه'!$B$7:$B$16<='كشف حساب تحليلى'!$G$6)*('اليومية العامه'!$F$7:$F$16='كشف حساب تحليلى'!$J$6)*('اليومية العامه'!$G$7:$G$16='كشف حساب تحليلى'!$J$8),ROW('اليومية العامه'!$B$7:$B$16)-6,\"\"),ROW('اليومية العامه'!#REF!)),COLUMN('اليومية العامه'!C:C)-1),\"\")","v":""},{"$f":"IFERROR(INDEX('اليومية العامه'!$B$7:$K$16,SMALL(IF(('اليومية العامه'!$B$7:$B$16>='كشف حساب تحليلى'!$C$6)*('اليومية العامه'!$B$7:$B$16<='كشف حساب تحليلى'!$G$6)*('اليومية العامه'!$F$7:$F$16='كشف حساب تحليلى'!$J$6)*('اليومية العامه'!$G$7:$G$16='كشف حساب تحليلى'!$J$8),ROW('اليومية العامه'!$B$7:$B$16)-6,\"\"),ROW('اليومية العامه'!#REF!)),COLUMN('اليومية العامه'!D:D)-1),\"\")","v":""},{"$f":"IFERROR(INDEX('اليومية العامه'!$B$7:$K$16,SMALL(IF(('اليومية العامه'!$B$7:$B$16>='كشف حساب تحليلى'!$C$6)*('اليومية العامه'!$B$7:$B$16<='كشف حساب تحليلى'!$G$6)*('اليومية العامه'!$F$7:$F$16='كشف حساب تحليلى'!$J$6)*('اليومية العامه'!$G$7:$G$16='كشف حساب تحليلى'!$J$8),ROW('اليومية العامه'!$B$7:$B$16)-6,\"\"),ROW('اليومية العامه'!#REF!)),COLUMN('اليومية العامه'!E:E)-1),\"\")","v":""},{"$f":"IFERROR(INDEX('اليومية العامه'!$B$7:$K$16,SMALL(IF(('اليومية العامه'!$B$7:$B$16>='كشف حساب تحليلى'!$C$6)*('اليومية العامه'!$B$7:$B$16<='كشف حساب تحليلى'!$G$6)*('اليومية العامه'!$F$7:$F$16='كشف حساب تحليلى'!$J$6)*('اليومية العامه'!$G$7:$G$16='كشف حساب تحليلى'!$J$8),ROW('اليومية العامه'!$B$7:$B$16)-6,\"\"),ROW('اليومية العامه'!#REF!)),COLUMN('اليومية العامه'!F:F)-1),\"\")","v":""},{"$f":"IFERROR(INDEX('اليومية العامه'!$B$7:$K$16,SMALL(IF(('اليومية العامه'!$B$7:$B$16>='كشف حساب تحليلى'!$C$6)*('اليومية العامه'!$B$7:$B$16<='كشف حساب تحليلى'!$G$6)*('اليومية العامه'!$F$7:$F$16='كشف حساب تحليلى'!$J$6)*('اليومية العامه'!$G$7:$G$16='كشف حساب تحليلى'!$J$8),ROW('اليومية العامه'!$B$7:$B$16)-6,\"\"),ROW('اليومية العامه'!#REF!)),COLUMN('اليومية العامه'!G:G)-1),\"\")","v":""},{"$f":"IFERROR(INDEX('اليومية العامه'!$B$7:$K$16,SMALL(IF(('اليومية العامه'!$B$7:$B$16>='كشف حساب تحليلى'!$C$6)*('اليومية العامه'!$B$7:$B$16<='كشف حساب تحليلى'!$G$6)*('اليومية العامه'!$F$7:$F$16='كشف حساب تحليلى'!$J$6)*('اليومية العامه'!$G$7:$G$16='كشف حساب تحليلى'!$J$8),ROW('اليومية العامه'!$B$7:$B$16)-6,\"\"),ROW('اليومية العامه'!#REF!)),COLUMN('اليومية العامه'!H:H)-1),\"\")","v":""},{"$f":"IFERROR(INDEX('اليومية العامه'!$B$7:$K$16,SMALL(IF(('اليومية العامه'!$B$7:$B$16>='كشف حساب تحليلى'!$C$6)*('اليومية العامه'!$B$7:$B$16<='كشف حساب تحليلى'!$G$6)*('اليومية العامه'!$F$7:$F$16='كشف حساب تحليلى'!$J$6)*('اليومية العامه'!$G$7:$G$16='كشف حساب تحليلى'!$J$8),ROW('اليومية العامه'!$B$7:$B$16)-6,\"\"),ROW('اليومية العامه'!#REF!)),COLUMN('اليومية العامه'!I:I)-1),\"\")","v":""},{"$f":"IFERROR(INDEX('اليومية العامه'!$B$7:$K$16,SMALL(IF(('اليومية العامه'!$B$7:$B$16>='كشف حساب تحليلى'!$C$6)*('اليومية العامه'!$B$7:$B$16<='كشف حساب تحليلى'!$G$6)*('اليومية العامه'!$F$7:$F$16='كشف حساب تحليلى'!$J$6)*('اليومية العامه'!$G$7:$G$16='كشف حساب تحليلى'!$J$8),ROW('اليومية العامه'!$B$7:$B$16)-6,\"\"),ROW('اليومية العامه'!#REF!)),COLUMN('اليومية العامه'!J:J)-1),\"\")","v":""},{"$f":"IFERROR(INDEX('اليومية العامه'!$B$7:$K$16,SMALL(IF(('اليومية العامه'!$B$7:$B$16>='كشف حساب تحليلى'!$C$6)*('اليومية العامه'!$B$7:$B$16<='كشف حساب تحليلى'!$G$6)*('اليومية العامه'!$F$7:$F$16='كشف حساب تحليلى'!$J$6)*('اليومية العامه'!$G$7:$G$16='كشف حساب تحليلى'!$J$8),ROW('اليومية العامه'!$B$7:$B$16)-6,\"\"),ROW('اليومية العامه'!#REF!)),COLUMN('اليومية العامه'!K:K)-1),\"\")","v":""}]
[null,{"$f":"IFERROR(INDEX('اليومية العامه'!$B$7:$K$16,SMALL(IF(('اليومية العامه'!$B$7:$B$16>='كشف حساب تحليلى'!$C$6)*('اليومية العامه'!$B$7:$B$16<='كشف حساب تحليلى'!$G$6)*('اليومية العامه'!$F$7:$F$16='كشف حساب تحليلى'!$J$6)*('اليومية العامه'!$G$7:$G$16='كشف حساب تحليلى'!$J$8),ROW('اليومية العامه'!$B$7:$B$16)-6,\"\"),ROW('اليومية العامه'!#REF!)),COLUMN('اليومية العامه'!B:B)-1),\"\")","v":""},{"$f":"IFERROR(INDEX('اليومية العامه'!$B$7:$K$16,SMALL(IF(('اليومية العامه'!$B$7:$B$16>='كشف حساب تحليلى'!$C$6)*('اليومية العامه'!$B$7:$B$16<='كشف حساب تحليلى'!$G$6)*('اليومية العامه'!$F$7:$F$16='كشف حساب تحليلى'!$J$6)*('اليومية العامه'!$G$7:$G$16='كشف حساب تحليلى'!$J$8),ROW('اليومية العامه'!$B$7:$B$16)-6,\"\"),ROW('اليومية العامه'!#REF!)),COLUMN('اليومية العامه'!C:C)-1),\"\")","v":""},{"$f":"IFERROR(INDEX('اليومية العامه'!$B$7:$K$16,SMALL(IF(('اليومية العامه'!$B$7:$B$16>='كشف حساب تحليلى'!$C$6)*('اليومية العامه'!$B$7:$B$16<='كشف حساب تحليلى'!$G$6)*('اليومية العامه'!$F$7:$F$16='كشف حساب تحليلى'!$J$6)*('اليومية العامه'!$G$7:$G$16='كشف حساب تحليلى'!$J$8),ROW('اليومية العامه'!$B$7:$B$16)-6,\"\"),ROW('اليومية العامه'!#REF!)),COLUMN('اليومية العامه'!D:D)-1),\"\")","v":""},{"$f":"IFERROR(INDEX('اليومية العامه'!$B$7:$K$16,SMALL(IF(('اليومية العامه'!$B$7:$B$16>='كشف حساب تحليلى'!$C$6)*('اليومية العامه'!$B$7:$B$16<='كشف حساب تحليلى'!$G$6)*('اليومية العامه'!$F$7:$F$16='كشف حساب تحليلى'!$J$6)*('اليومية العامه'!$G$7:$G$16='كشف حساب تحليلى'!$J$8),ROW('اليومية العامه'!$B$7:$B$16)-6,\"\"),ROW('اليومية العامه'!#REF!)),COLUMN('اليومية العامه'!E:E)-1),\"\")","v":""},{"$f":"IFERROR(INDEX('اليومية العامه'!$B$7:$K$16,SMALL(IF(('اليومية العامه'!$B$7:$B$16>='كشف حساب تحليلى'!$C$6)*('اليومية العامه'!$B$7:$B$16<='كشف حساب تحليلى'!$G$6)*('اليومية العامه'!$F$7:$F$16='كشف حساب تحليلى'!$J$6)*('اليومية العامه'!$G$7:$G$16='كشف حساب تحليلى'!$J$8),ROW('اليومية العامه'!$B$7:$B$16)-6,\"\"),ROW('اليومية العامه'!#REF!)),COLUMN('اليومية العامه'!F:F)-1),\"\")","v":""},{"$f":"IFERROR(INDEX('اليومية العامه'!$B$7:$K$16,SMALL(IF(('اليومية العامه'!$B$7:$B$16>='كشف حساب تحليلى'!$C$6)*('اليومية العامه'!$B$7:$B$16<='كشف حساب تحليلى'!$G$6)*('اليومية العامه'!$F$7:$F$16='كشف حساب تحليلى'!$J$6)*('اليومية العامه'!$G$7:$G$16='كشف حساب تحليلى'!$J$8),ROW('اليومية العامه'!$B$7:$B$16)-6,\"\"),ROW('اليومية العامه'!#REF!)),COLUMN('اليومية العامه'!G:G)-1),\"\")","v":""},{"$f":"IFERROR(INDEX('اليومية العامه'!$B$7:$K$16,SMALL(IF(('اليومية العامه'!$B$7:$B$16>='كشف حساب تحليلى'!$C$6)*('اليومية العامه'!$B$7:$B$16<='كشف حساب تحليلى'!$G$6)*('اليومية العامه'!$F$7:$F$16='كشف حساب تحليلى'!$J$6)*('اليومية العامه'!$G$7:$G$16='كشف حساب تحليلى'!$J$8),ROW('اليومية العامه'!$B$7:$B$16)-6,\"\"),ROW('اليومية العامه'!#REF!)),COLUMN('اليومية العامه'!H:H)-1),\"\")","v":""},{"$f":"IFERROR(INDEX('اليومية العامه'!$B$7:$K$16,SMALL(IF(('اليومية العامه'!$B$7:$B$16>='كشف حساب تحليلى'!$C$6)*('اليومية العامه'!$B$7:$B$16<='كشف حساب تحليلى'!$G$6)*('اليومية العامه'!$F$7:$F$16='كشف حساب تحليلى'!$J$6)*('اليومية العامه'!$G$7:$G$16='كشف حساب تحليلى'!$J$8),ROW('اليومية العامه'!$B$7:$B$16)-6,\"\"),ROW('اليومية العامه'!#REF!)),COLUMN('اليومية العامه'!I:I)-1),\"\")","v":""},{"$f":"IFERROR(INDEX('اليومية العامه'!$B$7:$K$16,SMALL(IF(('اليومية العامه'!$B$7:$B$16>='كشف حساب تحليلى'!$C$6)*('اليومية العامه'!$B$7:$B$16<='كشف حساب تحليلى'!$G$6)*('اليومية العامه'!$F$7:$F$16='كشف حساب تحليلى'!$J$6)*('اليومية العامه'!$G$7:$G$16='كشف حساب تحليلى'!$J$8),ROW('اليومية العامه'!$B$7:$B$16)-6,\"\"),ROW('اليومية العامه'!#REF!)),COLUMN('اليومية العامه'!J:J)-1),\"\")","v":""},{"$f":"IFERROR(INDEX('اليومية العامه'!$B$7:$K$16,SMALL(IF(('اليومية العامه'!$B$7:$B$16>='كشف حساب تحليلى'!$C$6)*('اليومية العامه'!$B$7:$B$16<='كشف حساب تحليلى'!$G$6)*('اليومية العامه'!$F$7:$F$16='كشف حساب تحليلى'!$J$6)*('اليومية العامه'!$G$7:$G$16='كشف حساب تحليلى'!$J$8),ROW('اليومية العامه'!$B$7:$B$16)-6,\"\"),ROW('اليومية العامه'!#REF!)),COLUMN('اليومية العامه'!K:K)-1),\"\")","v":""}]
[null,{"$f":"IFERROR(INDEX('اليومية العامه'!$B$7:$K$16,SMALL(IF(('اليومية العامه'!$B$7:$B$16>='كشف حساب تحليلى'!$C$6)*('اليومية العامه'!$B$7:$B$16<='كشف حساب تحليلى'!$G$6)*('اليومية العامه'!$F$7:$F$16='كشف حساب تحليلى'!$J$6)*('اليومية العامه'!$G$7:$G$16='كشف حساب تحليلى'!$J$8),ROW('اليومية العامه'!$B$7:$B$16)-6,\"\"),ROW('اليومية العامه'!#REF!)),COLUMN('اليومية العامه'!B:B)-1),\"\")","v":""},{"$f":"IFERROR(INDEX('اليومية العامه'!$B$7:$K$16,SMALL(IF(('اليومية العامه'!$B$7:$B$16>='كشف حساب تحليلى'!$C$6)*('اليومية العامه'!$B$7:$B$16<='كشف حساب تحليلى'!$G$6)*('اليومية العامه'!$F$7:$F$16='كشف حساب تحليلى'!$J$6)*('اليومية العامه'!$G$7:$G$16='كشف حساب تحليلى'!$J$8),ROW('اليومية العامه'!$B$7:$B$16)-6,\"\"),ROW('اليومية العامه'!#REF!)),COLUMN('اليومية العامه'!C:C)-1),\"\")","v":""},{"$f":"IFERROR(INDEX('اليومية العامه'!$B$7:$K$16,SMALL(IF(('اليومية العامه'!$B$7:$B$16>='كشف حساب تحليلى'!$C$6)*('اليومية العامه'!$B$7:$B$16<='كشف حساب تحليلى'!$G$6)*('اليومية العامه'!$F$7:$F$16='كشف حساب تحليلى'!$J$6)*('اليومية العامه'!$G$7:$G$16='كشف حساب تحليلى'!$J$8),ROW('اليومية العامه'!$B$7:$B$16)-6,\"\"),ROW('اليومية العامه'!#REF!)),COLUMN('اليومية العامه'!D:D)-1),\"\")","v":""},{"$f":"IFERROR(INDEX('اليومية العامه'!$B$7:$K$16,SMALL(IF(('اليومية العامه'!$B$7:$B$16>='كشف حساب تحليلى'!$C$6)*('اليومية العامه'!$B$7:$B$16<='كشف حساب تحليلى'!$G$6)*('اليومية العامه'!$F$7:$F$16='كشف حساب تحليلى'!$J$6)*('اليومية العامه'!$G$7:$G$16='كشف حساب تحليلى'!$J$8),ROW('اليومية العامه'!$B$7:$B$16)-6,\"\"),ROW('اليومية العامه'!#REF!)),COLUMN('اليومية العامه'!E:E)-1),\"\")","v":""},{"$f":"IFERROR(INDEX('اليومية العامه'!$B$7:$K$16,SMALL(IF(('اليومية العامه'!$B$7:$B$16>='كشف حساب تحليلى'!$C$6)*('اليومية العامه'!$B$7:$B$16<='كشف حساب تحليلى'!$G$6)*('اليومية العامه'!$F$7:$F$16='كشف حساب تحليلى'!$J$6)*('اليومية العامه'!$G$7:$G$16='كشف حساب تحليلى'!$J$8),ROW('اليومية العامه'!$B$7:$B$16)-6,\"\"),ROW('اليومية العامه'!#REF!)),COLUMN('اليومية العامه'!F:F)-1),\"\")","v":""},{"$f":"IFERROR(INDEX('اليومية العامه'!$B$7:$K$16,SMALL(IF(('اليومية العامه'!$B$7:$B$16>='كشف حساب تحليلى'!$C$6)*('اليومية العامه'!$B$7:$B$16<='كشف حساب تحليلى'!$G$6)*('اليومية العامه'!$F$7:$F$16='كشف حساب تحليلى'!$J$6)*('اليومية العامه'!$G$7:$G$16='كشف حساب تحليلى'!$J$8),ROW('اليومية العامه'!$B$7:$B$16)-6,\"\"),ROW('اليومية العامه'!#REF!)),COLUMN('اليومية العامه'!G:G)-1),\"\")","v":""},{"$f":"IFERROR(INDEX('اليومية العامه'!$B$7:$K$16,SMALL(IF(('اليومية العامه'!$B$7:$B$16>='كشف حساب تحليلى'!$C$6)*('اليومية العامه'!$B$7:$B$16<='كشف حساب تحليلى'!$G$6)*('اليومية العامه'!$F$7:$F$16='كشف حساب تحليلى'!$J$6)*('اليومية العامه'!$G$7:$G$16='كشف حساب تحليلى'!$J$8),ROW('اليومية العامه'!$B$7:$B$16)-6,\"\"),ROW('اليومية العامه'!#REF!)),COLUMN('اليومية العامه'!H:H)-1),\"\")","v":""},{"$f":"IFERROR(INDEX('اليومية العامه'!$B$7:$K$16,SMALL(IF(('اليومية العامه'!$B$7:$B$16>='كشف حساب تحليلى'!$C$6)*('اليومية العامه'!$B$7:$B$16<='كشف حساب تحليلى'!$G$6)*('اليومية العامه'!$F$7:$F$16='كشف حساب تحليلى'!$J$6)*('اليومية العامه'!$G$7:$G$16='كشف حساب تحليلى'!$J$8),ROW('اليومية العامه'!$B$7:$B$16)-6,\"\"),ROW('اليومية العامه'!#REF!)),COLUMN('اليومية العامه'!I:I)-1),\"\")","v":""},{"$f":"IFERROR(INDEX('اليومية العامه'!$B$7:$K$16,SMALL(IF(('اليومية العامه'!$B$7:$B$16>='كشف حساب تحليلى'!$C$6)*('اليومية العامه'!$B$7:$B$16<='كشف حساب تحليلى'!$G$6)*('اليومية العامه'!$F$7:$F$16='كشف حساب تحليلى'!$J$6)*('اليومية العامه'!$G$7:$G$16='كشف حساب تحليلى'!$J$8),ROW('اليومية العامه'!$B$7:$B$16)-6,\"\"),ROW('اليومية العامه'!#REF!)),COLUMN('اليومية العامه'!J:J)-1),\"\")","v":""},{"$f":"IFERROR(INDEX('اليومية العامه'!$B$7:$K$16,SMALL(IF(('اليومية العامه'!$B$7:$B$16>='كشف حساب تحليلى'!$C$6)*('اليومية العامه'!$B$7:$B$16<='كشف حساب تحليلى'!$G$6)*('اليومية العامه'!$F$7:$F$16='كشف حساب تحليلى'!$J$6)*('اليومية العامه'!$G$7:$G$16='كشف حساب تحليلى'!$J$8),ROW('اليومية العامه'!$B$7:$B$16)-6,\"\"),ROW('اليومية العامه'!#REF!)),COLUMN('اليومية العامه'!K:K)-1),\"\")","v":""}]
[null,{"$f":"IFERROR(INDEX('اليومية العامه'!$B$7:$K$16,SMALL(IF(('اليومية العامه'!$B$7:$B$16>='كشف حساب تحليلى'!$C$6)*('اليومية العامه'!$B$7:$B$16<='كشف حساب تحليلى'!$G$6)*('اليومية العامه'!$F$7:$F$16='كشف حساب تحليلى'!$J$6)*('اليومية العامه'!$G$7:$G$16='كشف حساب تحليلى'!$J$8),ROW('اليومية العامه'!$B$7:$B$16)-6,\"\"),ROW('اليومية العامه'!#REF!)),COLUMN('اليومية العامه'!B:B)-1),\"\")","v":""},{"$f":"IFERROR(INDEX('اليومية العامه'!$B$7:$K$16,SMALL(IF(('اليومية العامه'!$B$7:$B$16>='كشف حساب تحليلى'!$C$6)*('اليومية العامه'!$B$7:$B$16<='كشف حساب تحليلى'!$G$6)*('اليومية العامه'!$F$7:$F$16='كشف حساب تحليلى'!$J$6)*('اليومية العامه'!$G$7:$G$16='كشف حساب تحليلى'!$J$8),ROW('اليومية العامه'!$B$7:$B$16)-6,\"\"),ROW('اليومية العامه'!#REF!)),COLUMN('اليومية العامه'!C:C)-1),\"\")","v":""},{"$f":"IFERROR(INDEX('اليومية العامه'!$B$7:$K$16,SMALL(IF(('اليومية العامه'!$B$7:$B$16>='كشف حساب تحليلى'!$C$6)*('اليومية العامه'!$B$7:$B$16<='كشف حساب تحليلى'!$G$6)*('اليومية العامه'!$F$7:$F$16='كشف حساب تحليلى'!$J$6)*('اليومية العامه'!$G$7:$G$16='كشف حساب تحليلى'!$J$8),ROW('اليومية العامه'!$B$7:$B$16)-6,\"\"),ROW('اليومية العامه'!#REF!)),COLUMN('اليومية العامه'!D:D)-1),\"\")","v":""},{"$f":"IFERROR(INDEX('اليومية العامه'!$B$7:$K$16,SMALL(IF(('اليومية العامه'!$B$7:$B$16>='كشف حساب تحليلى'!$C$6)*('اليومية العامه'!$B$7:$B$16<='كشف حساب تحليلى'!$G$6)*('اليومية العامه'!$F$7:$F$16='كشف حساب تحليلى'!$J$6)*('اليومية العامه'!$G$7:$G$16='كشف حساب تحليلى'!$J$8),ROW('اليومية العامه'!$B$7:$B$16)-6,\"\"),ROW('اليومية العامه'!#REF!)),COLUMN('اليومية العامه'!E:E)-1),\"\")","v":""},{"$f":"IFERROR(INDEX('اليومية العامه'!$B$7:$K$16,SMALL(IF(('اليومية العامه'!$B$7:$B$16>='كشف حساب تحليلى'!$C$6)*('اليومية العامه'!$B$7:$B$16<='كشف حساب تحليلى'!$G$6)*('اليومية العامه'!$F$7:$F$16='كشف حساب تحليلى'!$J$6)*('اليومية العامه'!$G$7:$G$16='كشف حساب تحليلى'!$J$8),ROW('اليومية العامه'!$B$7:$B$16)-6,\"\"),ROW('اليومية العامه'!#REF!)),COLUMN('اليومية العامه'!F:F)-1),\"\")","v":""},{"$f":"IFERROR(INDEX('اليومية العامه'!$B$7:$K$16,SMALL(IF(('اليومية العامه'!$B$7:$B$16>='كشف حساب تحليلى'!$C$6)*('اليومية العامه'!$B$7:$B$16<='كشف حساب تحليلى'!$G$6)*('اليومية العامه'!$F$7:$F$16='كشف حساب تحليلى'!$J$6)*('اليومية العامه'!$G$7:$G$16='كشف حساب تحليلى'!$J$8),ROW('اليومية العامه'!$B$7:$B$16)-6,\"\"),ROW('اليومية العامه'!#REF!)),COLUMN('اليومية العامه'!G:G)-1),\"\")","v":""},{"$f":"IFERROR(INDEX('اليومية العامه'!$B$7:$K$16,SMALL(IF(('اليومية العامه'!$B$7:$B$16>='كشف حساب تحليلى'!$C$6)*('اليومية العامه'!$B$7:$B$16<='كشف حساب تحليلى'!$G$6)*('اليومية العامه'!$F$7:$F$16='كشف حساب تحليلى'!$J$6)*('اليومية العامه'!$G$7:$G$16='كشف حساب تحليلى'!$J$8),ROW('اليومية العامه'!$B$7:$B$16)-6,\"\"),ROW('اليومية العامه'!#REF!)),COLUMN('اليومية العامه'!H:H)-1),\"\")","v":""},{"$f":"IFERROR(INDEX('اليومية العامه'!$B$7:$K$16,SMALL(IF(('اليومية العامه'!$B$7:$B$16>='كشف حساب تحليلى'!$C$6)*('اليومية العامه'!$B$7:$B$16<='كشف حساب تحليلى'!$G$6)*('اليومية العامه'!$F$7:$F$16='كشف حساب تحليلى'!$J$6)*('اليومية العامه'!$G$7:$G$16='كشف حساب تحليلى'!$J$8),ROW('اليومية العامه'!$B$7:$B$16)-6,\"\"),ROW('اليومية العامه'!#REF!)),COLUMN('اليومية العامه'!I:I)-1),\"\")","v":""},{"$f":"IFERROR(INDEX('اليومية العامه'!$B$7:$K$16,SMALL(IF(('اليومية العامه'!$B$7:$B$16>='كشف حساب تحليلى'!$C$6)*('اليومية العامه'!$B$7:$B$16<='كشف حساب تحليلى'!$G$6)*('اليومية العامه'!$F$7:$F$16='كشف حساب تحليلى'!$J$6)*('اليومية العامه'!$G$7:$G$16='كشف حساب تحليلى'!$J$8),ROW('اليومية العامه'!$B$7:$B$16)-6,\"\"),ROW('اليومية العامه'!#REF!)),COLUMN('اليومية العامه'!J:J)-1),\"\")","v":""},{"$f":"IFERROR(INDEX('اليومية العامه'!$B$7:$K$16,SMALL(IF(('اليومية العامه'!$B$7:$B$16>='كشف حساب تحليلى'!$C$6)*('اليومية العامه'!$B$7:$B$16<='كشف حساب تحليلى'!$G$6)*('اليومية العامه'!$F$7:$F$16='كشف حساب تحليلى'!$J$6)*('اليومية العامه'!$G$7:$G$16='كشف حساب تحليلى'!$J$8),ROW('اليومية العامه'!$B$7:$B$16)-6,\"\"),ROW('اليومية العامه'!#REF!)),COLUMN('اليومية العامه'!K:K)-1),\"\")","v":""}]
[null,{"$f":"IFERROR(INDEX('اليومية العامه'!$B$7:$K$16,SMALL(IF(('اليومية العامه'!$B$7:$B$16>='كشف حساب تحليلى'!$C$6)*('اليومية العامه'!$B$7:$B$16<='كشف حساب تحليلى'!$G$6)*('اليومية العامه'!$F$7:$F$16='كشف حساب تحليلى'!$J$6)*('اليومية العامه'!$G$7:$G$16='كشف حساب تحليلى'!$J$8),ROW('اليومية العامه'!$B$7:$B$16)-6,\"\"),ROW('اليومية العامه'!#REF!)),COLUMN('اليومية العامه'!B:B)-1),\"\")","v":""},{"$f":"IFERROR(INDEX('اليومية العامه'!$B$7:$K$16,SMALL(IF(('اليومية العامه'!$B$7:$B$16>='كشف حساب تحليلى'!$C$6)*('اليومية العامه'!$B$7:$B$16<='كشف حساب تحليلى'!$G$6)*('اليومية العامه'!$F$7:$F$16='كشف حساب تحليلى'!$J$6)*('اليومية العامه'!$G$7:$G$16='كشف حساب تحليلى'!$J$8),ROW('اليومية العامه'!$B$7:$B$16)-6,\"\"),ROW('اليومية العامه'!#REF!)),COLUMN('اليومية العامه'!C:C)-1),\"\")","v":""},{"$f":"IFERROR(INDEX('اليومية العامه'!$B$7:$K$16,SMALL(IF(('اليومية العامه'!$B$7:$B$16>='كشف حساب تحليلى'!$C$6)*('اليومية العامه'!$B$7:$B$16<='كشف حساب تحليلى'!$G$6)*('اليومية العامه'!$F$7:$F$16='كشف حساب تحليلى'!$J$6)*('اليومية العامه'!$G$7:$G$16='كشف حساب تحليلى'!$J$8),ROW('اليومية العامه'!$B$7:$B$16)-6,\"\"),ROW('اليومية العامه'!#REF!)),COLUMN('اليومية العامه'!D:D)-1),\"\")","v":""},{"$f":"IFERROR(INDEX('اليومية العامه'!$B$7:$K$16,SMALL(IF(('اليومية العامه'!$B$7:$B$16>='كشف حساب تحليلى'!$C$6)*('اليومية العامه'!$B$7:$B$16<='كشف حساب تحليلى'!$G$6)*('اليومية العامه'!$F$7:$F$16='كشف حساب تحليلى'!$J$6)*('اليومية العامه'!$G$7:$G$16='كشف حساب تحليلى'!$J$8),ROW('اليومية العامه'!$B$7:$B$16)-6,\"\"),ROW('اليومية العامه'!#REF!)),COLUMN('اليومية العامه'!E:E)-1),\"\")","v":""},{"$f":"IFERROR(INDEX('اليومية العامه'!$B$7:$K$16,SMALL(IF(('اليومية العامه'!$B$7:$B$16>='كشف حساب تحليلى'!$C$6)*('اليومية العامه'!$B$7:$B$16<='كشف حساب تحليلى'!$G$6)*('اليومية العامه'!$F$7:$F$16='كشف حساب تحليلى'!$J$6)*('اليومية العامه'!$G$7:$G$16='كشف حساب تحليلى'!$J$8),ROW('اليومية العامه'!$B$7:$B$16)-6,\"\"),ROW('اليومية العامه'!#REF!)),COLUMN('اليومية العامه'!F:F)-1),\"\")","v":""},{"$f":"IFERROR(INDEX('اليومية العامه'!$B$7:$K$16,SMALL(IF(('اليومية العامه'!$B$7:$B$16>='كشف حساب تحليلى'!$C$6)*('اليومية العامه'!$B$7:$B$16<='كشف حساب تحليلى'!$G$6)*('اليومية العامه'!$F$7:$F$16='كشف حساب تحليلى'!$J$6)*('اليومية العامه'!$G$7:$G$16='كشف حساب تحليلى'!$J$8),ROW('اليومية العامه'!$B$7:$B$16)-6,\"\"),ROW('اليومية العامه'!#REF!)),COLUMN('اليومية العامه'!G:G)-1),\"\")","v":""},{"$f":"IFERROR(INDEX('اليومية العامه'!$B$7:$K$16,SMALL(IF(('اليومية العامه'!$B$7:$B$16>='كشف حساب تحليلى'!$C$6)*('اليومية العامه'!$B$7:$B$16<='كشف حساب تحليلى'!$G$6)*('اليومية العامه'!$F$7:$F$16='كشف حساب تحليلى'!$J$6)*('اليومية العامه'!$G$7:$G$16='كشف حساب تحليلى'!$J$8),ROW('اليومية العامه'!$B$7:$B$16)-6,\"\"),ROW('اليومية العامه'!#REF!)),COLUMN('اليومية العامه'!H:H)-1),\"\")","v":""},{"$f":"IFERROR(INDEX('اليومية العامه'!$B$7:$K$16,SMALL(IF(('اليومية العامه'!$B$7:$B$16>='كشف حساب تحليلى'!$C$6)*('اليومية العامه'!$B$7:$B$16<='كشف حساب تحليلى'!$G$6)*('اليومية العامه'!$F$7:$F$16='كشف حساب تحليلى'!$J$6)*('اليومية العامه'!$G$7:$G$16='كشف حساب تحليلى'!$J$8),ROW('اليومية العامه'!$B$7:$B$16)-6,\"\"),ROW('اليومية العامه'!#REF!)),COLUMN('اليومية العامه'!I:I)-1),\"\")","v":""},{"$f":"IFERROR(INDEX('اليومية العامه'!$B$7:$K$16,SMALL(IF(('اليومية العامه'!$B$7:$B$16>='كشف حساب تحليلى'!$C$6)*('اليومية العامه'!$B$7:$B$16<='كشف حساب تحليلى'!$G$6)*('اليومية العامه'!$F$7:$F$16='كشف حساب تحليلى'!$J$6)*('اليومية العامه'!$G$7:$G$16='كشف حساب تحليلى'!$J$8),ROW('اليومية العامه'!$B$7:$B$16)-6,\"\"),ROW('اليومية العامه'!#REF!)),COLUMN('اليومية العامه'!J:J)-1),\"\")","v":""},{"$f":"IFERROR(INDEX('اليومية العامه'!$B$7:$K$16,SMALL(IF(('اليومية العامه'!$B$7:$B$16>='كشف حساب تحليلى'!$C$6)*('اليومية العامه'!$B$7:$B$16<='كشف حساب تحليلى'!$G$6)*('اليومية العامه'!$F$7:$F$16='كشف حساب تحليلى'!$J$6)*('اليومية العامه'!$G$7:$G$16='كشف حساب تحليلى'!$J$8),ROW('اليومية العامه'!$B$7:$B$16)-6,\"\"),ROW('اليومية العامه'!#REF!)),COLUMN('اليومية العامه'!K:K)-1),\"\")","v":""}]
[null,{"$f":"IFERROR(INDEX('اليومية العامه'!$B$7:$K$16,SMALL(IF(('اليومية العامه'!$B$7:$B$16>='كشف حساب تحليلى'!$C$6)*('اليومية العامه'!$B$7:$B$16<='كشف حساب تحليلى'!$G$6)*('اليومية العامه'!$F$7:$F$16='كشف حساب تحليلى'!$J$6)*('اليومية العامه'!$G$7:$G$16='كشف حساب تحليلى'!$J$8),ROW('اليومية العامه'!$B$7:$B$16)-6,\"\"),ROW('اليومية العامه'!#REF!)),COLUMN('اليومية العامه'!B:B)-1),\"\")","v":""},{"$f":"IFERROR(INDEX('اليومية العامه'!$B$7:$K$16,SMALL(IF(('اليومية العامه'!$B$7:$B$16>='كشف حساب تحليلى'!$C$6)*('اليومية العامه'!$B$7:$B$16<='كشف حساب تحليلى'!$G$6)*('اليومية العامه'!$F$7:$F$16='كشف حساب تحليلى'!$J$6)*('اليومية العامه'!$G$7:$G$16='كشف حساب تحليلى'!$J$8),ROW('اليومية العامه'!$B$7:$B$16)-6,\"\"),ROW('اليومية العامه'!#REF!)),COLUMN('اليومية العامه'!C:C)-1),\"\")","v":""},{"$f":"IFERROR(INDEX('اليومية العامه'!$B$7:$K$16,SMALL(IF(('اليومية العامه'!$B$7:$B$16>='كشف حساب تحليلى'!$C$6)*('اليومية العامه'!$B$7:$B$16<='كشف حساب تحليلى'!$G$6)*('اليومية العامه'!$F$7:$F$16='كشف حساب تحليلى'!$J$6)*('اليومية العامه'!$G$7:$G$16='كشف حساب تحليلى'!$J$8),ROW('اليومية العامه'!$B$7:$B$16)-6,\"\"),ROW('اليومية العامه'!#REF!)),COLUMN('اليومية العامه'!D:D)-1),\"\")","v":""},{"$f":"IFERROR(INDEX('اليومية العامه'!$B$7:$K$16,SMALL(IF(('اليومية العامه'!$B$7:$B$16>='كشف حساب تحليلى'!$C$6)*('اليومية العامه'!$B$7:$B$16<='كشف حساب تحليلى'!$G$6)*('اليومية العامه'!$F$7:$F$16='كشف حساب تحليلى'!$J$6)*('اليومية العامه'!$G$7:$G$16='كشف حساب تحليلى'!$J$8),ROW('اليومية العامه'!$B$7:$B$16)-6,\"\"),ROW('اليومية العامه'!#REF!)),COLUMN('اليومية العامه'!E:E)-1),\"\")","v":""},{"$f":"IFERROR(INDEX('اليومية العامه'!$B$7:$K$16,SMALL(IF(('اليومية العامه'!$B$7:$B$16>='كشف حساب تحليلى'!$C$6)*('اليومية العامه'!$B$7:$B$16<='كشف حساب تحليلى'!$G$6)*('اليومية العامه'!$F$7:$F$16='كشف حساب تحليلى'!$J$6)*('اليومية العامه'!$G$7:$G$16='كشف حساب تحليلى'!$J$8),ROW('اليومية العامه'!$B$7:$B$16)-6,\"\"),ROW('اليومية العامه'!#REF!)),COLUMN('اليومية العامه'!F:F)-1),\"\")","v":""},{"$f":"IFERROR(INDEX('اليومية العامه'!$B$7:$K$16,SMALL(IF(('اليومية العامه'!$B$7:$B$16>='كشف حساب تحليلى'!$C$6)*('اليومية العامه'!$B$7:$B$16<='كشف حساب تحليلى'!$G$6)*('اليومية العامه'!$F$7:$F$16='كشف حساب تحليلى'!$J$6)*('اليومية العامه'!$G$7:$G$16='كشف حساب تحليلى'!$J$8),ROW('اليومية العامه'!$B$7:$B$16)-6,\"\"),ROW('اليومية العامه'!#REF!)),COLUMN('اليومية العامه'!G:G)-1),\"\")","v":""},{"$f":"IFERROR(INDEX('اليومية العامه'!$B$7:$K$16,SMALL(IF(('اليومية العامه'!$B$7:$B$16>='كشف حساب تحليلى'!$C$6)*('اليومية العامه'!$B$7:$B$16<='كشف حساب تحليلى'!$G$6)*('اليومية العامه'!$F$7:$F$16='كشف حساب تحليلى'!$J$6)*('اليومية العامه'!$G$7:$G$16='كشف حساب تحليلى'!$J$8),ROW('اليومية العامه'!$B$7:$B$16)-6,\"\"),ROW('اليومية العامه'!#REF!)),COLUMN('اليومية العامه'!H:H)-1),\"\")","v":""},{"$f":"IFERROR(INDEX('اليومية العامه'!$B$7:$K$16,SMALL(IF(('اليومية العامه'!$B$7:$B$16>='كشف حساب تحليلى'!$C$6)*('اليومية العامه'!$B$7:$B$16<='كشف حساب تحليلى'!$G$6)*('اليومية العامه'!$F$7:$F$16='كشف حساب تحليلى'!$J$6)*('اليومية العامه'!$G$7:$G$16='كشف حساب تحليلى'!$J$8),ROW('اليومية العامه'!$B$7:$B$16)-6,\"\"),ROW('اليومية العامه'!#REF!)),COLUMN('اليومية العامه'!I:I)-1),\"\")","v":""},{"$f":"IFERROR(INDEX('اليومية العامه'!$B$7:$K$16,SMALL(IF(('اليومية العامه'!$B$7:$B$16>='كشف حساب تحليلى'!$C$6)*('اليومية العامه'!$B$7:$B$16<='كشف حساب تحليلى'!$G$6)*('اليومية العامه'!$F$7:$F$16='كشف حساب تحليلى'!$J$6)*('اليومية العامه'!$G$7:$G$16='كشف حساب تحليلى'!$J$8),ROW('اليومية العامه'!$B$7:$B$16)-6,\"\"),ROW('اليومية العامه'!#REF!)),COLUMN('اليومية العامه'!J:J)-1),\"\")","v":""},{"$f":"IFERROR(INDEX('اليومية العامه'!$B$7:$K$16,SMALL(IF(('اليومية العامه'!$B$7:$B$16>='كشف حساب تحليلى'!$C$6)*('اليومية العامه'!$B$7:$B$16<='كشف حساب تحليلى'!$G$6)*('اليومية العامه'!$F$7:$F$16='كشف حساب تحليلى'!$J$6)*('اليومية العامه'!$G$7:$G$16='كشف حساب تحليلى'!$J$8),ROW('اليومية العامه'!$B$7:$B$16)-6,\"\"),ROW('اليومية العامه'!#REF!)),COLUMN('اليومية العامه'!K:K)-1),\"\")","v":""}]
[null,{"$f":"IFERROR(INDEX('اليومية العامه'!$B$7:$K$16,SMALL(IF(('اليومية العامه'!$B$7:$B$16>='كشف حساب تحليلى'!$C$6)*('اليومية العامه'!$B$7:$B$16<='كشف حساب تحليلى'!$G$6)*('اليومية العامه'!$F$7:$F$16='كشف حساب تحليلى'!$J$6)*('اليومية العامه'!$G$7:$G$16='كشف حساب تحليلى'!$J$8),ROW('اليومية العامه'!$B$7:$B$16)-6,\"\"),ROW('اليومية العامه'!#REF!)),COLUMN('اليومية العامه'!B:B)-1),\"\")","v":""},{"$f":"IFERROR(INDEX('اليومية العامه'!$B$7:$K$16,SMALL(IF(('اليومية العامه'!$B$7:$B$16>='كشف حساب تحليلى'!$C$6)*('اليومية العامه'!$B$7:$B$16<='كشف حساب تحليلى'!$G$6)*('اليومية العامه'!$F$7:$F$16='كشف حساب تحليلى'!$J$6)*('اليومية العامه'!$G$7:$G$16='كشف حساب تحليلى'!$J$8),ROW('اليومية العامه'!$B$7:$B$16)-6,\"\"),ROW('اليومية العامه'!#REF!)),COLUMN('اليومية العامه'!C:C)-1),\"\")","v":""},{"$f":"IFERROR(INDEX('اليومية العامه'!$B$7:$K$16,SMALL(IF(('اليومية العامه'!$B$7:$B$16>='كشف حساب تحليلى'!$C$6)*('اليومية العامه'!$B$7:$B$16<='كشف حساب تحليلى'!$G$6)*('اليومية العامه'!$F$7:$F$16='كشف حساب تحليلى'!$J$6)*('اليومية العامه'!$G$7:$G$16='كشف حساب تحليلى'!$J$8),ROW('اليومية العامه'!$B$7:$B$16)-6,\"\"),ROW('اليومية العامه'!#REF!)),COLUMN('اليومية العامه'!D:D)-1),\"\")","v":""},{"$f":"IFERROR(INDEX('اليومية العامه'!$B$7:$K$16,SMALL(IF(('اليومية العامه'!$B$7:$B$16>='كشف حساب تحليلى'!$C$6)*('اليومية العامه'!$B$7:$B$16<='كشف حساب تحليلى'!$G$6)*('اليومية العامه'!$F$7:$F$16='كشف حساب تحليلى'!$J$6)*('اليومية العامه'!$G$7:$G$16='كشف حساب تحليلى'!$J$8),ROW('اليومية العامه'!$B$7:$B$16)-6,\"\"),ROW('اليومية العامه'!#REF!)),COLUMN('اليومية العامه'!E:E)-1),\"\")","v":""},{"$f":"IFERROR(INDEX('اليومية العامه'!$B$7:$K$16,SMALL(IF(('اليومية العامه'!$B$7:$B$16>='كشف حساب تحليلى'!$C$6)*('اليومية العامه'!$B$7:$B$16<='كشف حساب تحليلى'!$G$6)*('اليومية العامه'!$F$7:$F$16='كشف حساب تحليلى'!$J$6)*('اليومية العامه'!$G$7:$G$16='كشف حساب تحليلى'!$J$8),ROW('اليومية العامه'!$B$7:$B$16)-6,\"\"),ROW('اليومية العامه'!#REF!)),COLUMN('اليومية العامه'!F:F)-1),\"\")","v":""},{"$f":"IFERROR(INDEX('اليومية العامه'!$B$7:$K$16,SMALL(IF(('اليومية العامه'!$B$7:$B$16>='كشف حساب تحليلى'!$C$6)*('اليومية العامه'!$B$7:$B$16<='كشف حساب تحليلى'!$G$6)*('اليومية العامه'!$F$7:$F$16='كشف حساب تحليلى'!$J$6)*('اليومية العامه'!$G$7:$G$16='كشف حساب تحليلى'!$J$8),ROW('اليومية العامه'!$B$7:$B$16)-6,\"\"),ROW('اليومية العامه'!#REF!)),COLUMN('اليومية العامه'!G:G)-1),\"\")","v":""},{"$f":"IFERROR(INDEX('اليومية العامه'!$B$7:$K$16,SMALL(IF(('اليومية العامه'!$B$7:$B$16>='كشف حساب تحليلى'!$C$6)*('اليومية العامه'!$B$7:$B$16<='كشف حساب تحليلى'!$G$6)*('اليومية العامه'!$F$7:$F$16='كشف حساب تحليلى'!$J$6)*('اليومية العامه'!$G$7:$G$16='كشف حساب تحليلى'!$J$8),ROW('اليومية العامه'!$B$7:$B$16)-6,\"\"),ROW('اليومية العامه'!#REF!)),COLUMN('اليومية العامه'!H:H)-1),\"\")","v":""},{"$f":"IFERROR(INDEX('اليومية العامه'!$B$7:$K$16,SMALL(IF(('اليومية العامه'!$B$7:$B$16>='كشف حساب تحليلى'!$C$6)*('اليومية العامه'!$B$7:$B$16<='كشف حساب تحليلى'!$G$6)*('اليومية العامه'!$F$7:$F$16='كشف حساب تحليلى'!$J$6)*('اليومية العامه'!$G$7:$G$16='كشف حساب تحليلى'!$J$8),ROW('اليومية العامه'!$B$7:$B$16)-6,\"\"),ROW('اليومية العامه'!#REF!)),COLUMN('اليومية العامه'!I:I)-1),\"\")","v":""},{"$f":"IFERROR(INDEX('اليومية العامه'!$B$7:$K$16,SMALL(IF(('اليومية العامه'!$B$7:$B$16>='كشف حساب تحليلى'!$C$6)*('اليومية العامه'!$B$7:$B$16<='كشف حساب تحليلى'!$G$6)*('اليومية العامه'!$F$7:$F$16='كشف حساب تحليلى'!$J$6)*('اليومية العامه'!$G$7:$G$16='كشف حساب تحليلى'!$J$8),ROW('اليومية العامه'!$B$7:$B$16)-6,\"\"),ROW('اليومية العامه'!#REF!)),COLUMN('اليومية العامه'!J:J)-1),\"\")","v":""},{"$f":"IFERROR(INDEX('اليومية العامه'!$B$7:$K$16,SMALL(IF(('اليومية العامه'!$B$7:$B$16>='كشف حساب تحليلى'!$C$6)*('اليومية العامه'!$B$7:$B$16<='كشف حساب تحليلى'!$G$6)*('اليومية العامه'!$F$7:$F$16='كشف حساب تحليلى'!$J$6)*('اليومية العامه'!$G$7:$G$16='كشف حساب تحليلى'!$J$8),ROW('اليومية العامه'!$B$7:$B$16)-6,\"\"),ROW('اليومية العامه'!#REF!)),COLUMN('اليومية العامه'!K:K)-1),\"\")","v":""}]
[null,{"$f":"IFERROR(INDEX('اليومية العامه'!$B$7:$K$16,SMALL(IF(('اليومية العامه'!$B$7:$B$16>='كشف حساب تحليلى'!$C$6)*('اليومية العامه'!$B$7:$B$16<='كشف حساب تحليلى'!$G$6)*('اليومية العامه'!$F$7:$F$16='كشف حساب تحليلى'!$J$6)*('اليومية العامه'!$G$7:$G$16='كشف حساب تحليلى'!$J$8),ROW('اليومية العامه'!$B$7:$B$16)-6,\"\"),ROW('اليومية العامه'!#REF!)),COLUMN('اليومية العامه'!B:B)-1),\"\")","v":""},{"$f":"IFERROR(INDEX('اليومية العامه'!$B$7:$K$16,SMALL(IF(('اليومية العامه'!$B$7:$B$16>='كشف حساب تحليلى'!$C$6)*('اليومية العامه'!$B$7:$B$16<='كشف حساب تحليلى'!$G$6)*('اليومية العامه'!$F$7:$F$16='كشف حساب تحليلى'!$J$6)*('اليومية العامه'!$G$7:$G$16='كشف حساب تحليلى'!$J$8),ROW('اليومية العامه'!$B$7:$B$16)-6,\"\"),ROW('اليومية العامه'!#REF!)),COLUMN('اليومية العامه'!C:C)-1),\"\")","v":""},{"$f":"IFERROR(INDEX('اليومية العامه'!$B$7:$K$16,SMALL(IF(('اليومية العامه'!$B$7:$B$16>='كشف حساب تحليلى'!$C$6)*('اليومية العامه'!$B$7:$B$16<='كشف حساب تحليلى'!$G$6)*('اليومية العامه'!$F$7:$F$16='كشف حساب تحليلى'!$J$6)*('اليومية العامه'!$G$7:$G$16='كشف حساب تحليلى'!$J$8),ROW('اليومية العامه'!$B$7:$B$16)-6,\"\"),ROW('اليومية العامه'!#REF!)),COLUMN('اليومية العامه'!D:D)-1),\"\")","v":""},{"$f":"IFERROR(INDEX('اليومية العامه'!$B$7:$K$16,SMALL(IF(('اليومية العامه'!$B$7:$B$16>='كشف حساب تحليلى'!$C$6)*('اليومية العامه'!$B$7:$B$16<='كشف حساب تحليلى'!$G$6)*('اليومية العامه'!$F$7:$F$16='كشف حساب تحليلى'!$J$6)*('اليومية العامه'!$G$7:$G$16='كشف حساب تحليلى'!$J$8),ROW('اليومية العامه'!$B$7:$B$16)-6,\"\"),ROW('اليومية العامه'!#REF!)),COLUMN('اليومية العامه'!E:E)-1),\"\")","v":""},{"$f":"IFERROR(INDEX('اليومية العامه'!$B$7:$K$16,SMALL(IF(('اليومية العامه'!$B$7:$B$16>='كشف حساب تحليلى'!$C$6)*('اليومية العامه'!$B$7:$B$16<='كشف حساب تحليلى'!$G$6)*('اليومية العامه'!$F$7:$F$16='كشف حساب تحليلى'!$J$6)*('اليومية العامه'!$G$7:$G$16='كشف حساب تحليلى'!$J$8),ROW('اليومية العامه'!$B$7:$B$16)-6,\"\"),ROW('اليومية العامه'!#REF!)),COLUMN('اليومية العامه'!F:F)-1),\"\")","v":""},{"$f":"IFERROR(INDEX('اليومية العامه'!$B$7:$K$16,SMALL(IF(('اليومية العامه'!$B$7:$B$16>='كشف حساب تحليلى'!$C$6)*('اليومية العامه'!$B$7:$B$16<='كشف حساب تحليلى'!$G$6)*('اليومية العامه'!$F$7:$F$16='كشف حساب تحليلى'!$J$6)*('اليومية العامه'!$G$7:$G$16='كشف حساب تحليلى'!$J$8),ROW('اليومية العامه'!$B$7:$B$16)-6,\"\"),ROW('اليومية العامه'!#REF!)),COLUMN('اليومية العامه'!G:G)-1),\"\")","v":""},{"$f":"IFERROR(INDEX('اليومية العامه'!$B$7:$K$16,SMALL(IF(('اليومية العامه'!$B$7:$B$16>='كشف حساب تحليلى'!$C$6)*('اليومية العامه'!$B$7:$B$16<='كشف حساب تحليلى'!$G$6)*('اليومية العامه'!$F$7:$F$16='كشف حساب تحليلى'!$J$6)*('اليومية العامه'!$G$7:$G$16='كشف حساب تحليلى'!$J$8),ROW('اليومية العامه'!$B$7:$B$16)-6,\"\"),ROW('اليومية العامه'!#REF!)),COLUMN('اليومية العامه'!H:H)-1),\"\")","v":""},{"$f":"IFERROR(INDEX('اليومية العامه'!$B$7:$K$16,SMALL(IF(('اليومية العامه'!$B$7:$B$16>='كشف حساب تحليلى'!$C$6)*('اليومية العامه'!$B$7:$B$16<='كشف حساب تحليلى'!$G$6)*('اليومية العامه'!$F$7:$F$16='كشف حساب تحليلى'!$J$6)*('اليومية العامه'!$G$7:$G$16='كشف حساب تحليلى'!$J$8),ROW('اليومية العامه'!$B$7:$B$16)-6,\"\"),ROW('اليومية العامه'!#REF!)),COLUMN('اليومية العامه'!I:I)-1),\"\")","v":""},{"$f":"IFERROR(INDEX('اليومية العامه'!$B$7:$K$16,SMALL(IF(('اليومية العامه'!$B$7:$B$16>='كشف حساب تحليلى'!$C$6)*('اليومية العامه'!$B$7:$B$16<='كشف حساب تحليلى'!$G$6)*('اليومية العامه'!$F$7:$F$16='كشف حساب تحليلى'!$J$6)*('اليومية العامه'!$G$7:$G$16='كشف حساب تحليلى'!$J$8),ROW('اليومية العامه'!$B$7:$B$16)-6,\"\"),ROW('اليومية العامه'!#REF!)),COLUMN('اليومية العامه'!J:J)-1),\"\")","v":""},{"$f":"IFERROR(INDEX('اليومية العامه'!$B$7:$K$16,SMALL(IF(('اليومية العامه'!$B$7:$B$16>='كشف حساب تحليلى'!$C$6)*('اليومية العامه'!$B$7:$B$16<='كشف حساب تحليلى'!$G$6)*('اليومية العامه'!$F$7:$F$16='كشف حساب تحليلى'!$J$6)*('اليومية العامه'!$G$7:$G$16='كشف حساب تحليلى'!$J$8),ROW('اليومية العامه'!$B$7:$B$16)-6,\"\"),ROW('اليومية العامه'!#REF!)),COLUMN('اليومية العامه'!K:K)-1),\"\")","v":""}]
[null,{"$f":"IFERROR(INDEX('اليومية العامه'!$B$7:$K$16,SMALL(IF(('اليومية العامه'!$B$7:$B$16>='كشف حساب تحليلى'!$C$6)*('اليومية العامه'!$B$7:$B$16<='كشف حساب تحليلى'!$G$6)*('اليومية العامه'!$F$7:$F$16='كشف حساب تحليلى'!$J$6)*('اليومية العامه'!$G$7:$G$16='كشف حساب تحليلى'!$J$8),ROW('اليومية العامه'!$B$7:$B$16)-6,\"\"),ROW('اليومية العامه'!#REF!)),COLUMN('اليومية العامه'!B:B)-1),\"\")","v":""},{"$f":"IFERROR(INDEX('اليومية العامه'!$B$7:$K$16,SMALL(IF(('اليومية العامه'!$B$7:$B$16>='كشف حساب تحليلى'!$C$6)*('اليومية العامه'!$B$7:$B$16<='كشف حساب تحليلى'!$G$6)*('اليومية العامه'!$F$7:$F$16='كشف حساب تحليلى'!$J$6)*('اليومية العامه'!$G$7:$G$16='كشف حساب تحليلى'!$J$8),ROW('اليومية العامه'!$B$7:$B$16)-6,\"\"),ROW('اليومية العامه'!#REF!)),COLUMN('اليومية العامه'!C:C)-1),\"\")","v":""},{"$f":"IFERROR(INDEX('اليومية العامه'!$B$7:$K$16,SMALL(IF(('اليومية العامه'!$B$7:$B$16>='كشف حساب تحليلى'!$C$6)*('اليومية العامه'!$B$7:$B$16<='كشف حساب تحليلى'!$G$6)*('اليومية العامه'!$F$7:$F$16='كشف حساب تحليلى'!$J$6)*('اليومية العامه'!$G$7:$G$16='كشف حساب تحليلى'!$J$8),ROW('اليومية العامه'!$B$7:$B$16)-6,\"\"),ROW('اليومية العامه'!#REF!)),COLUMN('اليومية العامه'!D:D)-1),\"\")","v":""},{"$f":"IFERROR(INDEX('اليومية العامه'!$B$7:$K$16,SMALL(IF(('اليومية العامه'!$B$7:$B$16>='كشف حساب تحليلى'!$C$6)*('اليومية العامه'!$B$7:$B$16<='كشف حساب تحليلى'!$G$6)*('اليومية العامه'!$F$7:$F$16='كشف حساب تحليلى'!$J$6)*('اليومية العامه'!$G$7:$G$16='كشف حساب تحليلى'!$J$8),ROW('اليومية العامه'!$B$7:$B$16)-6,\"\"),ROW('اليومية العامه'!#REF!)),COLUMN('اليومية العامه'!E:E)-1),\"\")","v":""},{"$f":"IFERROR(INDEX('اليومية العامه'!$B$7:$K$16,SMALL(IF(('اليومية العامه'!$B$7:$B$16>='كشف حساب تحليلى'!$C$6)*('اليومية العامه'!$B$7:$B$16<='كشف حساب تحليلى'!$G$6)*('اليومية العامه'!$F$7:$F$16='كشف حساب تحليلى'!$J$6)*('اليومية العامه'!$G$7:$G$16='كشف حساب تحليلى'!$J$8),ROW('اليومية العامه'!$B$7:$B$16)-6,\"\"),ROW('اليومية العامه'!#REF!)),COLUMN('اليومية العامه'!F:F)-1),\"\")","v":""},{"$f":"IFERROR(INDEX('اليومية العامه'!$B$7:$K$16,SMALL(IF(('اليومية العامه'!$B$7:$B$16>='كشف حساب تحليلى'!$C$6)*('اليومية العامه'!$B$7:$B$16<='كشف حساب تحليلى'!$G$6)*('اليومية العامه'!$F$7:$F$16='كشف حساب تحليلى'!$J$6)*('اليومية العامه'!$G$7:$G$16='كشف حساب تحليلى'!$J$8),ROW('اليومية العامه'!$B$7:$B$16)-6,\"\"),ROW('اليومية العامه'!#REF!)),COLUMN('اليومية العامه'!G:G)-1),\"\")","v":""},{"$f":"IFERROR(INDEX('اليومية العامه'!$B$7:$K$16,SMALL(IF(('اليومية العامه'!$B$7:$B$16>='كشف حساب تحليلى'!$C$6)*('اليومية العامه'!$B$7:$B$16<='كشف حساب تحليلى'!$G$6)*('اليومية العامه'!$F$7:$F$16='كشف حساب تحليلى'!$J$6)*('اليومية العامه'!$G$7:$G$16='كشف حساب تحليلى'!$J$8),ROW('اليومية العامه'!$B$7:$B$16)-6,\"\"),ROW('اليومية العامه'!#REF!)),COLUMN('اليومية العامه'!H:H)-1),\"\")","v":""},{"$f":"IFERROR(INDEX('اليومية العامه'!$B$7:$K$16,SMALL(IF(('اليومية العامه'!$B$7:$B$16>='كشف حساب تحليلى'!$C$6)*('اليومية العامه'!$B$7:$B$16<='كشف حساب تحليلى'!$G$6)*('اليومية العامه'!$F$7:$F$16='كشف حساب تحليلى'!$J$6)*('اليومية العامه'!$G$7:$G$16='كشف حساب تحليلى'!$J$8),ROW('اليومية العامه'!$B$7:$B$16)-6,\"\"),ROW('اليومية العامه'!#REF!)),COLUMN('اليومية العامه'!I:I)-1),\"\")","v":""},{"$f":"IFERROR(INDEX('اليومية العامه'!$B$7:$K$16,SMALL(IF(('اليومية العامه'!$B$7:$B$16>='كشف حساب تحليلى'!$C$6)*('اليومية العامه'!$B$7:$B$16<='كشف حساب تحليلى'!$G$6)*('اليومية العامه'!$F$7:$F$16='كشف حساب تحليلى'!$J$6)*('اليومية العامه'!$G$7:$G$16='كشف حساب تحليلى'!$J$8),ROW('اليومية العامه'!$B$7:$B$16)-6,\"\"),ROW('اليومية العامه'!#REF!)),COLUMN('اليومية العامه'!J:J)-1),\"\")","v":""},{"$f":"IFERROR(INDEX('اليومية العامه'!$B$7:$K$16,SMALL(IF(('اليومية العامه'!$B$7:$B$16>='كشف حساب تحليلى'!$C$6)*('اليومية العامه'!$B$7:$B$16<='كشف حساب تحليلى'!$G$6)*('اليومية العامه'!$F$7:$F$16='كشف حساب تحليلى'!$J$6)*('اليومية العامه'!$G$7:$G$16='كشف حساب تحليلى'!$J$8),ROW('اليومية العامه'!$B$7:$B$16)-6,\"\"),ROW('اليومية العامه'!#REF!)),COLUMN('اليومية العامه'!K:K)-1),\"\")","v":""}]
[null,{"$f":"IFERROR(INDEX('اليومية العامه'!$B$7:$K$16,SMALL(IF(('اليومية العامه'!$B$7:$B$16>='كشف حساب تحليلى'!$C$6)*('اليومية العامه'!$B$7:$B$16<='كشف حساب تحليلى'!$G$6)*('اليومية العامه'!$F$7:$F$16='كشف حساب تحليلى'!$J$6)*('اليومية العامه'!$G$7:$G$16='كشف حساب تحليلى'!$J$8),ROW('اليومية العامه'!$B$7:$B$16)-6,\"\"),ROW('اليومية العامه'!#REF!)),COLUMN('اليومية العامه'!B:B)-1),\"\")","v":""},{"$f":"IFERROR(INDEX('اليومية العامه'!$B$7:$K$16,SMALL(IF(('اليومية العامه'!$B$7:$B$16>='كشف حساب تحليلى'!$C$6)*('اليومية العامه'!$B$7:$B$16<='كشف حساب تحليلى'!$G$6)*('اليومية العامه'!$F$7:$F$16='كشف حساب تحليلى'!$J$6)*('اليومية العامه'!$G$7:$G$16='كشف حساب تحليلى'!$J$8),ROW('اليومية العامه'!$B$7:$B$16)-6,\"\"),ROW('اليومية العامه'!#REF!)),COLUMN('اليومية العامه'!C:C)-1),\"\")","v":""},{"$f":"IFERROR(INDEX('اليومية العامه'!$B$7:$K$16,SMALL(IF(('اليومية العامه'!$B$7:$B$16>='كشف حساب تحليلى'!$C$6)*('اليومية العامه'!$B$7:$B$16<='كشف حساب تحليلى'!$G$6)*('اليومية العامه'!$F$7:$F$16='كشف حساب تحليلى'!$J$6)*('اليومية العامه'!$G$7:$G$16='كشف حساب تحليلى'!$J$8),ROW('اليومية العامه'!$B$7:$B$16)-6,\"\"),ROW('اليومية العامه'!#REF!)),COLUMN('اليومية العامه'!D:D)-1),\"\")","v":""},{"$f":"IFERROR(INDEX('اليومية العامه'!$B$7:$K$16,SMALL(IF(('اليومية العامه'!$B$7:$B$16>='كشف حساب تحليلى'!$C$6)*('اليومية العامه'!$B$7:$B$16<='كشف حساب تحليلى'!$G$6)*('اليومية العامه'!$F$7:$F$16='كشف حساب تحليلى'!$J$6)*('اليومية العامه'!$G$7:$G$16='كشف حساب تحليلى'!$J$8),ROW('اليومية العامه'!$B$7:$B$16)-6,\"\"),ROW('اليومية العامه'!#REF!)),COLUMN('اليومية العامه'!E:E)-1),\"\")","v":""},{"$f":"IFERROR(INDEX('اليومية العامه'!$B$7:$K$16,SMALL(IF(('اليومية العامه'!$B$7:$B$16>='كشف حساب تحليلى'!$C$6)*('اليومية العامه'!$B$7:$B$16<='كشف حساب تحليلى'!$G$6)*('اليومية العامه'!$F$7:$F$16='كشف حساب تحليلى'!$J$6)*('اليومية العامه'!$G$7:$G$16='كشف حساب تحليلى'!$J$8),ROW('اليومية العامه'!$B$7:$B$16)-6,\"\"),ROW('اليومية العامه'!#REF!)),COLUMN('اليومية العامه'!F:F)-1),\"\")","v":""},{"$f":"IFERROR(INDEX('اليومية العامه'!$B$7:$K$16,SMALL(IF(('اليومية العامه'!$B$7:$B$16>='كشف حساب تحليلى'!$C$6)*('اليومية العامه'!$B$7:$B$16<='كشف حساب تحليلى'!$G$6)*('اليومية العامه'!$F$7:$F$16='كشف حساب تحليلى'!$J$6)*('اليومية العامه'!$G$7:$G$16='كشف حساب تحليلى'!$J$8),ROW('اليومية العامه'!$B$7:$B$16)-6,\"\"),ROW('اليومية العامه'!#REF!)),COLUMN('اليومية العامه'!G:G)-1),\"\")","v":""},{"$f":"IFERROR(INDEX('اليومية العامه'!$B$7:$K$16,SMALL(IF(('اليومية العامه'!$B$7:$B$16>='كشف حساب تحليلى'!$C$6)*('اليومية العامه'!$B$7:$B$16<='كشف حساب تحليلى'!$G$6)*('اليومية العامه'!$F$7:$F$16='كشف حساب تحليلى'!$J$6)*('اليومية العامه'!$G$7:$G$16='كشف حساب تحليلى'!$J$8),ROW('اليومية العامه'!$B$7:$B$16)-6,\"\"),ROW('اليومية العامه'!#REF!)),COLUMN('اليومية العامه'!H:H)-1),\"\")","v":""},{"$f":"IFERROR(INDEX('اليومية العامه'!$B$7:$K$16,SMALL(IF(('اليومية العامه'!$B$7:$B$16>='كشف حساب تحليلى'!$C$6)*('اليومية العامه'!$B$7:$B$16<='كشف حساب تحليلى'!$G$6)*('اليومية العامه'!$F$7:$F$16='كشف حساب تحليلى'!$J$6)*('اليومية العامه'!$G$7:$G$16='كشف حساب تحليلى'!$J$8),ROW('اليومية العامه'!$B$7:$B$16)-6,\"\"),ROW('اليومية العامه'!#REF!)),COLUMN('اليومية العامه'!I:I)-1),\"\")","v":""},{"$f":"IFERROR(INDEX('اليومية العامه'!$B$7:$K$16,SMALL(IF(('اليومية العامه'!$B$7:$B$16>='كشف حساب تحليلى'!$C$6)*('اليومية العامه'!$B$7:$B$16<='كشف حساب تحليلى'!$G$6)*('اليومية العامه'!$F$7:$F$16='كشف حساب تحليلى'!$J$6)*('اليومية العامه'!$G$7:$G$16='كشف حساب تحليلى'!$J$8),ROW('اليومية العامه'!$B$7:$B$16)-6,\"\"),ROW('اليومية العامه'!#REF!)),COLUMN('اليومية العامه'!J:J)-1),\"\")","v":""},{"$f":"IFERROR(INDEX('اليومية العامه'!$B$7:$K$16,SMALL(IF(('اليومية العامه'!$B$7:$B$16>='كشف حساب تحليلى'!$C$6)*('اليومية العامه'!$B$7:$B$16<='كشف حساب تحليلى'!$G$6)*('اليومية العامه'!$F$7:$F$16='كشف حساب تحليلى'!$J$6)*('اليومية العامه'!$G$7:$G$16='كشف حساب تحليلى'!$J$8),ROW('اليومية العامه'!$B$7:$B$16)-6,\"\"),ROW('اليومية العامه'!#REF!)),COLUMN('اليومية العامه'!K:K)-1),\"\")","v":""}]
[null,{"$f":"IFERROR(INDEX('اليومية العامه'!$B$7:$K$16,SMALL(IF(('اليومية العامه'!$B$7:$B$16>='كشف حساب تحليلى'!$C$6)*('اليومية العامه'!$B$7:$B$16<='كشف حساب تحليلى'!$G$6)*('اليومية العامه'!$F$7:$F$16='كشف حساب تحليلى'!$J$6)*('اليومية العامه'!$G$7:$G$16='كشف حساب تحليلى'!$J$8),ROW('اليومية العامه'!$B$7:$B$16)-6,\"\"),ROW('اليومية العامه'!#REF!)),COLUMN('اليومية العامه'!B:B)-1),\"\")","v":""},{"$f":"IFERROR(INDEX('اليومية العامه'!$B$7:$K$16,SMALL(IF(('اليومية العامه'!$B$7:$B$16>='كشف حساب تحليلى'!$C$6)*('اليومية العامه'!$B$7:$B$16<='كشف حساب تحليلى'!$G$6)*('اليومية العامه'!$F$7:$F$16='كشف حساب تحليلى'!$J$6)*('اليومية العامه'!$G$7:$G$16='كشف حساب تحليلى'!$J$8),ROW('اليومية العامه'!$B$7:$B$16)-6,\"\"),ROW('اليومية العامه'!#REF!)),COLUMN('اليومية العامه'!C:C)-1),\"\")","v":""},{"$f":"IFERROR(INDEX('اليومية العامه'!$B$7:$K$16,SMALL(IF(('اليومية العامه'!$B$7:$B$16>='كشف حساب تحليلى'!$C$6)*('اليومية العامه'!$B$7:$B$16<='كشف حساب تحليلى'!$G$6)*('اليومية العامه'!$F$7:$F$16='كشف حساب تحليلى'!$J$6)*('اليومية العامه'!$G$7:$G$16='كشف حساب تحليلى'!$J$8),ROW('اليومية العامه'!$B$7:$B$16)-6,\"\"),ROW('اليومية العامه'!#REF!)),COLUMN('اليومية العامه'!D:D)-1),\"\")","v":""},{"$f":"IFERROR(INDEX('اليومية العامه'!$B$7:$K$16,SMALL(IF(('اليومية العامه'!$B$7:$B$16>='كشف حساب تحليلى'!$C$6)*('اليومية العامه'!$B$7:$B$16<='كشف حساب تحليلى'!$G$6)*('اليومية العامه'!$F$7:$F$16='كشف حساب تحليلى'!$J$6)*('اليومية العامه'!$G$7:$G$16='كشف حساب تحليلى'!$J$8),ROW('اليومية العامه'!$B$7:$B$16)-6,\"\"),ROW('اليومية العامه'!#REF!)),COLUMN('اليومية العامه'!E:E)-1),\"\")","v":""},{"$f":"IFERROR(INDEX('اليومية العامه'!$B$7:$K$16,SMALL(IF(('اليومية العامه'!$B$7:$B$16>='كشف حساب تحليلى'!$C$6)*('اليومية العامه'!$B$7:$B$16<='كشف حساب تحليلى'!$G$6)*('اليومية العامه'!$F$7:$F$16='كشف حساب تحليلى'!$J$6)*('اليومية العامه'!$G$7:$G$16='كشف حساب تحليلى'!$J$8),ROW('اليومية العامه'!$B$7:$B$16)-6,\"\"),ROW('اليومية العامه'!#REF!)),COLUMN('اليومية العامه'!F:F)-1),\"\")","v":""},{"$f":"IFERROR(INDEX('اليومية العامه'!$B$7:$K$16,SMALL(IF(('اليومية العامه'!$B$7:$B$16>='كشف حساب تحليلى'!$C$6)*('اليومية العامه'!$B$7:$B$16<='كشف حساب تحليلى'!$G$6)*('اليومية العامه'!$F$7:$F$16='كشف حساب تحليلى'!$J$6)*('اليومية العامه'!$G$7:$G$16='كشف حساب تحليلى'!$J$8),ROW('اليومية العامه'!$B$7:$B$16)-6,\"\"),ROW('اليومية العامه'!#REF!)),COLUMN('اليومية العامه'!G:G)-1),\"\")","v":""},{"$f":"IFERROR(INDEX('اليومية العامه'!$B$7:$K$16,SMALL(IF(('اليومية العامه'!$B$7:$B$16>='كشف حساب تحليلى'!$C$6)*('اليومية العامه'!$B$7:$B$16<='كشف حساب تحليلى'!$G$6)*('اليومية العامه'!$F$7:$F$16='كشف حساب تحليلى'!$J$6)*('اليومية العامه'!$G$7:$G$16='كشف حساب تحليلى'!$J$8),ROW('اليومية العامه'!$B$7:$B$16)-6,\"\"),ROW('اليومية العامه'!#REF!)),COLUMN('اليومية العامه'!H:H)-1),\"\")","v":""},{"$f":"IFERROR(INDEX('اليومية العامه'!$B$7:$K$16,SMALL(IF(('اليومية العامه'!$B$7:$B$16>='كشف حساب تحليلى'!$C$6)*('اليومية العامه'!$B$7:$B$16<='كشف حساب تحليلى'!$G$6)*('اليومية العامه'!$F$7:$F$16='كشف حساب تحليلى'!$J$6)*('اليومية العامه'!$G$7:$G$16='كشف حساب تحليلى'!$J$8),ROW('اليومية العامه'!$B$7:$B$16)-6,\"\"),ROW('اليومية العامه'!#REF!)),COLUMN('اليومية العامه'!I:I)-1),\"\")","v":""},{"$f":"IFERROR(INDEX('اليومية العامه'!$B$7:$K$16,SMALL(IF(('اليومية العامه'!$B$7:$B$16>='كشف حساب تحليلى'!$C$6)*('اليومية العامه'!$B$7:$B$16<='كشف حساب تحليلى'!$G$6)*('اليومية العامه'!$F$7:$F$16='كشف حساب تحليلى'!$J$6)*('اليومية العامه'!$G$7:$G$16='كشف حساب تحليلى'!$J$8),ROW('اليومية العامه'!$B$7:$B$16)-6,\"\"),ROW('اليومية العامه'!#REF!)),COLUMN('اليومية العامه'!J:J)-1),\"\")","v":""},{"$f":"IFERROR(INDEX('اليومية العامه'!$B$7:$K$16,SMALL(IF(('اليومية العامه'!$B$7:$B$16>='كشف حساب تحليلى'!$C$6)*('اليومية العامه'!$B$7:$B$16<='كشف حساب تحليلى'!$G$6)*('اليومية العامه'!$F$7:$F$16='كشف حساب تحليلى'!$J$6)*('اليومية العامه'!$G$7:$G$16='كشف حساب تحليلى'!$J$8),ROW('اليومية العامه'!$B$7:$B$16)-6,\"\"),ROW('اليومية العامه'!#REF!)),COLUMN('اليومية العامه'!K:K)-1),\"\")","v":""}]
[null,{"$f":"IFERROR(INDEX('اليومية العامه'!$B$7:$K$16,SMALL(IF(('اليومية العامه'!$B$7:$B$16>='كشف حساب تحليلى'!$C$6)*('اليومية العامه'!$B$7:$B$16<='كشف حساب تحليلى'!$G$6)*('اليومية العامه'!$F$7:$F$16='كشف حساب تحليلى'!$J$6)*('اليومية العامه'!$G$7:$G$16='كشف حساب تحليلى'!$J$8),ROW('اليومية العامه'!$B$7:$B$16)-6,\"\"),ROW('اليومية العامه'!#REF!)),COLUMN('اليومية العامه'!B:B)-1),\"\")","v":""},{"$f":"IFERROR(INDEX('اليومية العامه'!$B$7:$K$16,SMALL(IF(('اليومية العامه'!$B$7:$B$16>='كشف حساب تحليلى'!$C$6)*('اليومية العامه'!$B$7:$B$16<='كشف حساب تحليلى'!$G$6)*('اليومية العامه'!$F$7:$F$16='كشف حساب تحليلى'!$J$6)*('اليومية العامه'!$G$7:$G$16='كشف حساب تحليلى'!$J$8),ROW('اليومية العامه'!$B$7:$B$16)-6,\"\"),ROW('اليومية العامه'!#REF!)),COLUMN('اليومية العامه'!C:C)-1),\"\")","v":""},{"$f":"IFERROR(INDEX('اليومية العامه'!$B$7:$K$16,SMALL(IF(('اليومية العامه'!$B$7:$B$16>='كشف حساب تحليلى'!$C$6)*('اليومية العامه'!$B$7:$B$16<='كشف حساب تحليلى'!$G$6)*('اليومية العامه'!$F$7:$F$16='كشف حساب تحليلى'!$J$6)*('اليومية العامه'!$G$7:$G$16='كشف حساب تحليلى'!$J$8),ROW('اليومية العامه'!$B$7:$B$16)-6,\"\"),ROW('اليومية العامه'!#REF!)),COLUMN('اليومية العامه'!D:D)-1),\"\")","v":""},{"$f":"IFERROR(INDEX('اليومية العامه'!$B$7:$K$16,SMALL(IF(('اليومية العامه'!$B$7:$B$16>='كشف حساب تحليلى'!$C$6)*('اليومية العامه'!$B$7:$B$16<='كشف حساب تحليلى'!$G$6)*('اليومية العامه'!$F$7:$F$16='كشف حساب تحليلى'!$J$6)*('اليومية العامه'!$G$7:$G$16='كشف حساب تحليلى'!$J$8),ROW('اليومية العامه'!$B$7:$B$16)-6,\"\"),ROW('اليومية العامه'!#REF!)),COLUMN('اليومية العامه'!E:E)-1),\"\")","v":""},{"$f":"IFERROR(INDEX('اليومية العامه'!$B$7:$K$16,SMALL(IF(('اليومية العامه'!$B$7:$B$16>='كشف حساب تحليلى'!$C$6)*('اليومية العامه'!$B$7:$B$16<='كشف حساب تحليلى'!$G$6)*('اليومية العامه'!$F$7:$F$16='كشف حساب تحليلى'!$J$6)*('اليومية العامه'!$G$7:$G$16='كشف حساب تحليلى'!$J$8),ROW('اليومية العامه'!$B$7:$B$16)-6,\"\"),ROW('اليومية العامه'!#REF!)),COLUMN('اليومية العامه'!F:F)-1),\"\")","v":""},{"$f":"IFERROR(INDEX('اليومية العامه'!$B$7:$K$16,SMALL(IF(('اليومية العامه'!$B$7:$B$16>='كشف حساب تحليلى'!$C$6)*('اليومية العامه'!$B$7:$B$16<='كشف حساب تحليلى'!$G$6)*('اليومية العامه'!$F$7:$F$16='كشف حساب تحليلى'!$J$6)*('اليومية العامه'!$G$7:$G$16='كشف حساب تحليلى'!$J$8),ROW('اليومية العامه'!$B$7:$B$16)-6,\"\"),ROW('اليومية العامه'!#REF!)),COLUMN('اليومية العامه'!G:G)-1),\"\")","v":""},{"$f":"IFERROR(INDEX('اليومية العامه'!$B$7:$K$16,SMALL(IF(('اليومية العامه'!$B$7:$B$16>='كشف حساب تحليلى'!$C$6)*('اليومية العامه'!$B$7:$B$16<='كشف حساب تحليلى'!$G$6)*('اليومية العامه'!$F$7:$F$16='كشف حساب تحليلى'!$J$6)*('اليومية العامه'!$G$7:$G$16='كشف حساب تحليلى'!$J$8),ROW('اليومية العامه'!$B$7:$B$16)-6,\"\"),ROW('اليومية العامه'!#REF!)),COLUMN('اليومية العامه'!H:H)-1),\"\")","v":""},{"$f":"IFERROR(INDEX('اليومية العامه'!$B$7:$K$16,SMALL(IF(('اليومية العامه'!$B$7:$B$16>='كشف حساب تحليلى'!$C$6)*('اليومية العامه'!$B$7:$B$16<='كشف حساب تحليلى'!$G$6)*('اليومية العامه'!$F$7:$F$16='كشف حساب تحليلى'!$J$6)*('اليومية العامه'!$G$7:$G$16='كشف حساب تحليلى'!$J$8),ROW('اليومية العامه'!$B$7:$B$16)-6,\"\"),ROW('اليومية العامه'!#REF!)),COLUMN('اليومية العامه'!I:I)-1),\"\")","v":""},{"$f":"IFERROR(INDEX('اليومية العامه'!$B$7:$K$16,SMALL(IF(('اليومية العامه'!$B$7:$B$16>='كشف حساب تحليلى'!$C$6)*('اليومية العامه'!$B$7:$B$16<='كشف حساب تحليلى'!$G$6)*('اليومية العامه'!$F$7:$F$16='كشف حساب تحليلى'!$J$6)*('اليومية العامه'!$G$7:$G$16='كشف حساب تحليلى'!$J$8),ROW('اليومية العامه'!$B$7:$B$16)-6,\"\"),ROW('اليومية العامه'!#REF!)),COLUMN('اليومية العامه'!J:J)-1),\"\")","v":""},{"$f":"IFERROR(INDEX('اليومية العامه'!$B$7:$K$16,SMALL(IF(('اليومية العامه'!$B$7:$B$16>='كشف حساب تحليلى'!$C$6)*('اليومية العامه'!$B$7:$B$16<='كشف حساب تحليلى'!$G$6)*('اليومية العامه'!$F$7:$F$16='كشف حساب تحليلى'!$J$6)*('اليومية العامه'!$G$7:$G$16='كشف حساب تحليلى'!$J$8),ROW('اليومية العامه'!$B$7:$B$16)-6,\"\"),ROW('اليومية العامه'!#REF!)),COLUMN('اليومية العامه'!K:K)-1),\"\")","v":""}]
[null,{"$f":"IFERROR(INDEX('اليومية العامه'!$B$7:$K$16,SMALL(IF(('اليومية العامه'!$B$7:$B$16>='كشف حساب تحليلى'!$C$6)*('اليومية العامه'!$B$7:$B$16<='كشف حساب تحليلى'!$G$6)*('اليومية العامه'!$F$7:$F$16='كشف حساب تحليلى'!$J$6)*('اليومية العامه'!$G$7:$G$16='كشف حساب تحليلى'!$J$8),ROW('اليومية العامه'!$B$7:$B$16)-6,\"\"),ROW('اليومية العامه'!#REF!)),COLUMN('اليومية العامه'!B:B)-1),\"\")","v":""},{"$f":"IFERROR(INDEX('اليومية العامه'!$B$7:$K$16,SMALL(IF(('اليومية العامه'!$B$7:$B$16>='كشف حساب تحليلى'!$C$6)*('اليومية العامه'!$B$7:$B$16<='كشف حساب تحليلى'!$G$6)*('اليومية العامه'!$F$7:$F$16='كشف حساب تحليلى'!$J$6)*('اليومية العامه'!$G$7:$G$16='كشف حساب تحليلى'!$J$8),ROW('اليومية العامه'!$B$7:$B$16)-6,\"\"),ROW('اليومية العامه'!#REF!)),COLUMN('اليومية العامه'!C:C)-1),\"\")","v":""},{"$f":"IFERROR(INDEX('اليومية العامه'!$B$7:$K$16,SMALL(IF(('اليومية العامه'!$B$7:$B$16>='كشف حساب تحليلى'!$C$6)*('اليومية العامه'!$B$7:$B$16<='كشف حساب تحليلى'!$G$6)*('اليومية العامه'!$F$7:$F$16='كشف حساب تحليلى'!$J$6)*('اليومية العامه'!$G$7:$G$16='كشف حساب تحليلى'!$J$8),ROW('اليومية العامه'!$B$7:$B$16)-6,\"\"),ROW('اليومية العامه'!#REF!)),COLUMN('اليومية العامه'!D:D)-1),\"\")","v":""},{"$f":"IFERROR(INDEX('اليومية العامه'!$B$7:$K$16,SMALL(IF(('اليومية العامه'!$B$7:$B$16>='كشف حساب تحليلى'!$C$6)*('اليومية العامه'!$B$7:$B$16<='كشف حساب تحليلى'!$G$6)*('اليومية العامه'!$F$7:$F$16='كشف حساب تحليلى'!$J$6)*('اليومية العامه'!$G$7:$G$16='كشف حساب تحليلى'!$J$8),ROW('اليومية العامه'!$B$7:$B$16)-6,\"\"),ROW('اليومية العامه'!#REF!)),COLUMN('اليومية العامه'!E:E)-1),\"\")","v":""},{"$f":"IFERROR(INDEX('اليومية العامه'!$B$7:$K$16,SMALL(IF(('اليومية العامه'!$B$7:$B$16>='كشف حساب تحليلى'!$C$6)*('اليومية العامه'!$B$7:$B$16<='كشف حساب تحليلى'!$G$6)*('اليومية العامه'!$F$7:$F$16='كشف حساب تحليلى'!$J$6)*('اليومية العامه'!$G$7:$G$16='كشف حساب تحليلى'!$J$8),ROW('اليومية العامه'!$B$7:$B$16)-6,\"\"),ROW('اليومية العامه'!#REF!)),COLUMN('اليومية العامه'!F:F)-1),\"\")","v":""},{"$f":"IFERROR(INDEX('اليومية العامه'!$B$7:$K$16,SMALL(IF(('اليومية العامه'!$B$7:$B$16>='كشف حساب تحليلى'!$C$6)*('اليومية العامه'!$B$7:$B$16<='كشف حساب تحليلى'!$G$6)*('اليومية العامه'!$F$7:$F$16='كشف حساب تحليلى'!$J$6)*('اليومية العامه'!$G$7:$G$16='كشف حساب تحليلى'!$J$8),ROW('اليومية العامه'!$B$7:$B$16)-6,\"\"),ROW('اليومية العامه'!#REF!)),COLUMN('اليومية العامه'!G:G)-1),\"\")","v":""},{"$f":"IFERROR(INDEX('اليومية العامه'!$B$7:$K$16,SMALL(IF(('اليومية العامه'!$B$7:$B$16>='كشف حساب تحليلى'!$C$6)*('اليومية العامه'!$B$7:$B$16<='كشف حساب تحليلى'!$G$6)*('اليومية العامه'!$F$7:$F$16='كشف حساب تحليلى'!$J$6)*('اليومية العامه'!$G$7:$G$16='كشف حساب تحليلى'!$J$8),ROW('اليومية العامه'!$B$7:$B$16)-6,\"\"),ROW('اليومية العامه'!#REF!)),COLUMN('اليومية العامه'!H:H)-1),\"\")","v":""},{"$f":"IFERROR(INDEX('اليومية العامه'!$B$7:$K$16,SMALL(IF(('اليومية العامه'!$B$7:$B$16>='كشف حساب تحليلى'!$C$6)*('اليومية العامه'!$B$7:$B$16<='كشف حساب تحليلى'!$G$6)*('اليومية العامه'!$F$7:$F$16='كشف حساب تحليلى'!$J$6)*('اليومية العامه'!$G$7:$G$16='كشف حساب تحليلى'!$J$8),ROW('اليومية العامه'!$B$7:$B$16)-6,\"\"),ROW('اليومية العامه'!#REF!)),COLUMN('اليومية العامه'!I:I)-1),\"\")","v":""},{"$f":"IFERROR(INDEX('اليومية العامه'!$B$7:$K$16,SMALL(IF(('اليومية العامه'!$B$7:$B$16>='كشف حساب تحليلى'!$C$6)*('اليومية العامه'!$B$7:$B$16<='كشف حساب تحليلى'!$G$6)*('اليومية العامه'!$F$7:$F$16='كشف حساب تحليلى'!$J$6)*('اليومية العامه'!$G$7:$G$16='كشف حساب تحليلى'!$J$8),ROW('اليومية العامه'!$B$7:$B$16)-6,\"\"),ROW('اليومية العامه'!#REF!)),COLUMN('اليومية العامه'!J:J)-1),\"\")","v":""},{"$f":"IFERROR(INDEX('اليومية العامه'!$B$7:$K$16,SMALL(IF(('اليومية العامه'!$B$7:$B$16>='كشف حساب تحليلى'!$C$6)*('اليومية العامه'!$B$7:$B$16<='كشف حساب تحليلى'!$G$6)*('اليومية العامه'!$F$7:$F$16='كشف حساب تحليلى'!$J$6)*('اليومية العامه'!$G$7:$G$16='كشف حساب تحليلى'!$J$8),ROW('اليومية العامه'!$B$7:$B$16)-6,\"\"),ROW('اليومية العامه'!#REF!)),COLUMN('اليومية العامه'!K:K)-1),\"\")","v":""}]
[null,{"$f":"IFERROR(INDEX('اليومية العامه'!$B$7:$K$16,SMALL(IF(('اليومية العامه'!$B$7:$B$16>='كشف حساب تحليلى'!$C$6)*('اليومية العامه'!$B$7:$B$16<='كشف حساب تحليلى'!$G$6)*('اليومية العامه'!$F$7:$F$16='كشف حساب تحليلى'!$J$6)*('اليومية العامه'!$G$7:$G$16='كشف حساب تحليلى'!$J$8),ROW('اليومية العامه'!$B$7:$B$16)-6,\"\"),ROW('اليومية العامه'!#REF!)),COLUMN('اليومية العامه'!B:B)-1),\"\")","v":""},{"$f":"IFERROR(INDEX('اليومية العامه'!$B$7:$K$16,SMALL(IF(('اليومية العامه'!$B$7:$B$16>='كشف حساب تحليلى'!$C$6)*('اليومية العامه'!$B$7:$B$16<='كشف حساب تحليلى'!$G$6)*('اليومية العامه'!$F$7:$F$16='كشف حساب تحليلى'!$J$6)*('اليومية العامه'!$G$7:$G$16='كشف حساب تحليلى'!$J$8),ROW('اليومية العامه'!$B$7:$B$16)-6,\"\"),ROW('اليومية العامه'!#REF!)),COLUMN('اليومية العامه'!C:C)-1),\"\")","v":""},{"$f":"IFERROR(INDEX('اليومية العامه'!$B$7:$K$16,SMALL(IF(('اليومية العامه'!$B$7:$B$16>='كشف حساب تحليلى'!$C$6)*('اليومية العامه'!$B$7:$B$16<='كشف حساب تحليلى'!$G$6)*('اليومية العامه'!$F$7:$F$16='كشف حساب تحليلى'!$J$6)*('اليومية العامه'!$G$7:$G$16='كشف حساب تحليلى'!$J$8),ROW('اليومية العامه'!$B$7:$B$16)-6,\"\"),ROW('اليومية العامه'!#REF!)),COLUMN('اليومية العامه'!D:D)-1),\"\")","v":""},{"$f":"IFERROR(INDEX('اليومية العامه'!$B$7:$K$16,SMALL(IF(('اليومية العامه'!$B$7:$B$16>='كشف حساب تحليلى'!$C$6)*('اليومية العامه'!$B$7:$B$16<='كشف حساب تحليلى'!$G$6)*('اليومية العامه'!$F$7:$F$16='كشف حساب تحليلى'!$J$6)*('اليومية العامه'!$G$7:$G$16='كشف حساب تحليلى'!$J$8),ROW('اليومية العامه'!$B$7:$B$16)-6,\"\"),ROW('اليومية العامه'!#REF!)),COLUMN('اليومية العامه'!E:E)-1),\"\")","v":""},{"$f":"IFERROR(INDEX('اليومية العامه'!$B$7:$K$16,SMALL(IF(('اليومية العامه'!$B$7:$B$16>='كشف حساب تحليلى'!$C$6)*('اليومية العامه'!$B$7:$B$16<='كشف حساب تحليلى'!$G$6)*('اليومية العامه'!$F$7:$F$16='كشف حساب تحليلى'!$J$6)*('اليومية العامه'!$G$7:$G$16='كشف حساب تحليلى'!$J$8),ROW('اليومية العامه'!$B$7:$B$16)-6,\"\"),ROW('اليومية العامه'!#REF!)),COLUMN('اليومية العامه'!F:F)-1),\"\")","v":""},{"$f":"IFERROR(INDEX('اليومية العامه'!$B$7:$K$16,SMALL(IF(('اليومية العامه'!$B$7:$B$16>='كشف حساب تحليلى'!$C$6)*('اليومية العامه'!$B$7:$B$16<='كشف حساب تحليلى'!$G$6)*('اليومية العامه'!$F$7:$F$16='كشف حساب تحليلى'!$J$6)*('اليومية العامه'!$G$7:$G$16='كشف حساب تحليلى'!$J$8),ROW('اليومية العامه'!$B$7:$B$16)-6,\"\"),ROW('اليومية العامه'!#REF!)),COLUMN('اليومية العامه'!G:G)-1),\"\")","v":""},{"$f":"IFERROR(INDEX('اليومية العامه'!$B$7:$K$16,SMALL(IF(('اليومية العامه'!$B$7:$B$16>='كشف حساب تحليلى'!$C$6)*('اليومية العامه'!$B$7:$B$16<='كشف حساب تحليلى'!$G$6)*('اليومية العامه'!$F$7:$F$16='كشف حساب تحليلى'!$J$6)*('اليومية العامه'!$G$7:$G$16='كشف حساب تحليلى'!$J$8),ROW('اليومية العامه'!$B$7:$B$16)-6,\"\"),ROW('اليومية العامه'!#REF!)),COLUMN('اليومية العامه'!H:H)-1),\"\")","v":""},{"$f":"IFERROR(INDEX('اليومية العامه'!$B$7:$K$16,SMALL(IF(('اليومية العامه'!$B$7:$B$16>='كشف حساب تحليلى'!$C$6)*('اليومية العامه'!$B$7:$B$16<='كشف حساب تحليلى'!$G$6)*('اليومية العامه'!$F$7:$F$16='كشف حساب تحليلى'!$J$6)*('اليومية العامه'!$G$7:$G$16='كشف حساب تحليلى'!$J$8),ROW('اليومية العامه'!$B$7:$B$16)-6,\"\"),ROW('اليومية العامه'!#REF!)),COLUMN('اليومية العامه'!I:I)-1),\"\")","v":""},{"$f":"IFERROR(INDEX('اليومية العامه'!$B$7:$K$16,SMALL(IF(('اليومية العامه'!$B$7:$B$16>='كشف حساب تحليلى'!$C$6)*('اليومية العامه'!$B$7:$B$16<='كشف حساب تحليلى'!$G$6)*('اليومية العامه'!$F$7:$F$16='كشف حساب تحليلى'!$J$6)*('اليومية العامه'!$G$7:$G$16='كشف حساب تحليلى'!$J$8),ROW('اليومية العامه'!$B$7:$B$16)-6,\"\"),ROW('اليومية العامه'!#REF!)),COLUMN('اليومية العامه'!J:J)-1),\"\")","v":""},{"$f":"IFERROR(INDEX('اليومية العامه'!$B$7:$K$16,SMALL(IF(('اليومية العامه'!$B$7:$B$16>='كشف حساب تحليلى'!$C$6)*('اليومية العامه'!$B$7:$B$16<='كشف حساب تحليلى'!$G$6)*('اليومية العامه'!$F$7:$F$16='كشف حساب تحليلى'!$J$6)*('اليومية العامه'!$G$7:$G$16='كشف حساب تحليلى'!$J$8),ROW('اليومية العامه'!$B$7:$B$16)-6,\"\"),ROW('اليومية العامه'!#REF!)),COLUMN('اليومية العامه'!K:K)-1),\"\")","v":""}]
[null,{"$f":"IFERROR(INDEX('اليومية العامه'!$B$7:$K$16,SMALL(IF(('اليومية العامه'!$B$7:$B$16>='كشف حساب تحليلى'!$C$6)*('اليومية العامه'!$B$7:$B$16<='كشف حساب تحليلى'!$G$6)*('اليومية العامه'!$F$7:$F$16='كشف حساب تحليلى'!$J$6)*('اليومية العامه'!$G$7:$G$16='كشف حساب تحليلى'!$J$8),ROW('اليومية العامه'!$B$7:$B$16)-6,\"\"),ROW('اليومية العامه'!#REF!)),COLUMN('اليومية العامه'!B:B)-1),\"\")","v":""},{"$f":"IFERROR(INDEX('اليومية العامه'!$B$7:$K$16,SMALL(IF(('اليومية العامه'!$B$7:$B$16>='كشف حساب تحليلى'!$C$6)*('اليومية العامه'!$B$7:$B$16<='كشف حساب تحليلى'!$G$6)*('اليومية العامه'!$F$7:$F$16='كشف حساب تحليلى'!$J$6)*('اليومية العامه'!$G$7:$G$16='كشف حساب تحليلى'!$J$8),ROW('اليومية العامه'!$B$7:$B$16)-6,\"\"),ROW('اليومية العامه'!#REF!)),COLUMN('اليومية العامه'!C:C)-1),\"\")","v":""},{"$f":"IFERROR(INDEX('اليومية العامه'!$B$7:$K$16,SMALL(IF(('اليومية العامه'!$B$7:$B$16>='كشف حساب تحليلى'!$C$6)*('اليومية العامه'!$B$7:$B$16<='كشف حساب تحليلى'!$G$6)*('اليومية العامه'!$F$7:$F$16='كشف حساب تحليلى'!$J$6)*('اليومية العامه'!$G$7:$G$16='كشف حساب تحليلى'!$J$8),ROW('اليومية العامه'!$B$7:$B$16)-6,\"\"),ROW('اليومية العامه'!#REF!)),COLUMN('اليومية العامه'!D:D)-1),\"\")","v":""},{"$f":"IFERROR(INDEX('اليومية العامه'!$B$7:$K$16,SMALL(IF(('اليومية العامه'!$B$7:$B$16>='كشف حساب تحليلى'!$C$6)*('اليومية العامه'!$B$7:$B$16<='كشف حساب تحليلى'!$G$6)*('اليومية العامه'!$F$7:$F$16='كشف حساب تحليلى'!$J$6)*('اليومية العامه'!$G$7:$G$16='كشف حساب تحليلى'!$J$8),ROW('اليومية العامه'!$B$7:$B$16)-6,\"\"),ROW('اليومية العامه'!#REF!)),COLUMN('اليومية العامه'!E:E)-1),\"\")","v":""},{"$f":"IFERROR(INDEX('اليومية العامه'!$B$7:$K$16,SMALL(IF(('اليومية العامه'!$B$7:$B$16>='كشف حساب تحليلى'!$C$6)*('اليومية العامه'!$B$7:$B$16<='كشف حساب تحليلى'!$G$6)*('اليومية العامه'!$F$7:$F$16='كشف حساب تحليلى'!$J$6)*('اليومية العامه'!$G$7:$G$16='كشف حساب تحليلى'!$J$8),ROW('اليومية العامه'!$B$7:$B$16)-6,\"\"),ROW('اليومية العامه'!#REF!)),COLUMN('اليومية العامه'!F:F)-1),\"\")","v":""},{"$f":"IFERROR(INDEX('اليومية العامه'!$B$7:$K$16,SMALL(IF(('اليومية العامه'!$B$7:$B$16>='كشف حساب تحليلى'!$C$6)*('اليومية العامه'!$B$7:$B$16<='كشف حساب تحليلى'!$G$6)*('اليومية العامه'!$F$7:$F$16='كشف حساب تحليلى'!$J$6)*('اليومية العامه'!$G$7:$G$16='كشف حساب تحليلى'!$J$8),ROW('اليومية العامه'!$B$7:$B$16)-6,\"\"),ROW('اليومية العامه'!#REF!)),COLUMN('اليومية العامه'!G:G)-1),\"\")","v":""},{"$f":"IFERROR(INDEX('اليومية العامه'!$B$7:$K$16,SMALL(IF(('اليومية العامه'!$B$7:$B$16>='كشف حساب تحليلى'!$C$6)*('اليومية العامه'!$B$7:$B$16<='كشف حساب تحليلى'!$G$6)*('اليومية العامه'!$F$7:$F$16='كشف حساب تحليلى'!$J$6)*('اليومية العامه'!$G$7:$G$16='كشف حساب تحليلى'!$J$8),ROW('اليومية العامه'!$B$7:$B$16)-6,\"\"),ROW('اليومية العامه'!#REF!)),COLUMN('اليومية العامه'!H:H)-1),\"\")","v":""},{"$f":"IFERROR(INDEX('اليومية العامه'!$B$7:$K$16,SMALL(IF(('اليومية العامه'!$B$7:$B$16>='كشف حساب تحليلى'!$C$6)*('اليومية العامه'!$B$7:$B$16<='كشف حساب تحليلى'!$G$6)*('اليومية العامه'!$F$7:$F$16='كشف حساب تحليلى'!$J$6)*('اليومية العامه'!$G$7:$G$16='كشف حساب تحليلى'!$J$8),ROW('اليومية العامه'!$B$7:$B$16)-6,\"\"),ROW('اليومية العامه'!#REF!)),COLUMN('اليومية العامه'!I:I)-1),\"\")","v":""},{"$f":"IFERROR(INDEX('اليومية العامه'!$B$7:$K$16,SMALL(IF(('اليومية العامه'!$B$7:$B$16>='كشف حساب تحليلى'!$C$6)*('اليومية العامه'!$B$7:$B$16<='كشف حساب تحليلى'!$G$6)*('اليومية العامه'!$F$7:$F$16='كشف حساب تحليلى'!$J$6)*('اليومية العامه'!$G$7:$G$16='كشف حساب تحليلى'!$J$8),ROW('اليومية العامه'!$B$7:$B$16)-6,\"\"),ROW('اليومية العامه'!#REF!)),COLUMN('اليومية العامه'!J:J)-1),\"\")","v":""},{"$f":"IFERROR(INDEX('اليومية العامه'!$B$7:$K$16,SMALL(IF(('اليومية العامه'!$B$7:$B$16>='كشف حساب تحليلى'!$C$6)*('اليومية العامه'!$B$7:$B$16<='كشف حساب تحليلى'!$G$6)*('اليومية العامه'!$F$7:$F$16='كشف حساب تحليلى'!$J$6)*('اليومية العامه'!$G$7:$G$16='كشف حساب تحليلى'!$J$8),ROW('اليومية العامه'!$B$7:$B$16)-6,\"\"),ROW('اليومية العامه'!#REF!)),COLUMN('اليومية العامه'!K:K)-1),\"\")","v":""}]
[null,{"$f":"IFERROR(INDEX('اليومية العامه'!$B$7:$K$16,SMALL(IF(('اليومية العامه'!$B$7:$B$16>='كشف حساب تحليلى'!$C$6)*('اليومية العامه'!$B$7:$B$16<='كشف حساب تحليلى'!$G$6)*('اليومية العامه'!$F$7:$F$16='كشف حساب تحليلى'!$J$6)*('اليومية العامه'!$G$7:$G$16='كشف حساب تحليلى'!$J$8),ROW('اليومية العامه'!$B$7:$B$16)-6,\"\"),ROW('اليومية العامه'!#REF!)),COLUMN('اليومية العامه'!B:B)-1),\"\")","v":""},{"$f":"IFERROR(INDEX('اليومية العامه'!$B$7:$K$16,SMALL(IF(('اليومية العامه'!$B$7:$B$16>='كشف حساب تحليلى'!$C$6)*('اليومية العامه'!$B$7:$B$16<='كشف حساب تحليلى'!$G$6)*('اليومية العامه'!$F$7:$F$16='كشف حساب تحليلى'!$J$6)*('اليومية العامه'!$G$7:$G$16='كشف حساب تحليلى'!$J$8),ROW('اليومية العامه'!$B$7:$B$16)-6,\"\"),ROW('اليومية العامه'!#REF!)),COLUMN('اليومية العامه'!C:C)-1),\"\")","v":""},{"$f":"IFERROR(INDEX('اليومية العامه'!$B$7:$K$16,SMALL(IF(('اليومية العامه'!$B$7:$B$16>='كشف حساب تحليلى'!$C$6)*('اليومية العامه'!$B$7:$B$16<='كشف حساب تحليلى'!$G$6)*('اليومية العامه'!$F$7:$F$16='كشف حساب تحليلى'!$J$6)*('اليومية العامه'!$G$7:$G$16='كشف حساب تحليلى'!$J$8),ROW('اليومية العامه'!$B$7:$B$16)-6,\"\"),ROW('اليومية العامه'!#REF!)),COLUMN('اليومية العامه'!D:D)-1),\"\")","v":""},{"$f":"IFERROR(INDEX('اليومية العامه'!$B$7:$K$16,SMALL(IF(('اليومية العامه'!$B$7:$B$16>='كشف حساب تحليلى'!$C$6)*('اليومية العامه'!$B$7:$B$16<='كشف حساب تحليلى'!$G$6)*('اليومية العامه'!$F$7:$F$16='كشف حساب تحليلى'!$J$6)*('اليومية العامه'!$G$7:$G$16='كشف حساب تحليلى'!$J$8),ROW('اليومية العامه'!$B$7:$B$16)-6,\"\"),ROW('اليومية العامه'!#REF!)),COLUMN('اليومية العامه'!E:E)-1),\"\")","v":""},{"$f":"IFERROR(INDEX('اليومية العامه'!$B$7:$K$16,SMALL(IF(('اليومية العامه'!$B$7:$B$16>='كشف حساب تحليلى'!$C$6)*('اليومية العامه'!$B$7:$B$16<='كشف حساب تحليلى'!$G$6)*('اليومية العامه'!$F$7:$F$16='كشف حساب تحليلى'!$J$6)*('اليومية العامه'!$G$7:$G$16='كشف حساب تحليلى'!$J$8),ROW('اليومية العامه'!$B$7:$B$16)-6,\"\"),ROW('اليومية العامه'!#REF!)),COLUMN('اليومية العامه'!F:F)-1),\"\")","v":""},{"$f":"IFERROR(INDEX('اليومية العامه'!$B$7:$K$16,SMALL(IF(('اليومية العامه'!$B$7:$B$16>='كشف حساب تحليلى'!$C$6)*('اليومية العامه'!$B$7:$B$16<='كشف حساب تحليلى'!$G$6)*('اليومية العامه'!$F$7:$F$16='كشف حساب تحليلى'!$J$6)*('اليومية العامه'!$G$7:$G$16='كشف حساب تحليلى'!$J$8),ROW('اليومية العامه'!$B$7:$B$16)-6,\"\"),ROW('اليومية العامه'!#REF!)),COLUMN('اليومية العامه'!G:G)-1),\"\")","v":""},{"$f":"IFERROR(INDEX('اليومية العامه'!$B$7:$K$16,SMALL(IF(('اليومية العامه'!$B$7:$B$16>='كشف حساب تحليلى'!$C$6)*('اليومية العامه'!$B$7:$B$16<='كشف حساب تحليلى'!$G$6)*('اليومية العامه'!$F$7:$F$16='كشف حساب تحليلى'!$J$6)*('اليومية العامه'!$G$7:$G$16='كشف حساب تحليلى'!$J$8),ROW('اليومية العامه'!$B$7:$B$16)-6,\"\"),ROW('اليومية العامه'!#REF!)),COLUMN('اليومية العامه'!H:H)-1),\"\")","v":""},{"$f":"IFERROR(INDEX('اليومية العامه'!$B$7:$K$16,SMALL(IF(('اليومية العامه'!$B$7:$B$16>='كشف حساب تحليلى'!$C$6)*('اليومية العامه'!$B$7:$B$16<='كشف حساب تحليلى'!$G$6)*('اليومية العامه'!$F$7:$F$16='كشف حساب تحليلى'!$J$6)*('اليومية العامه'!$G$7:$G$16='كشف حساب تحليلى'!$J$8),ROW('اليومية العامه'!$B$7:$B$16)-6,\"\"),ROW('اليومية العامه'!#REF!)),COLUMN('اليومية العامه'!I:I)-1),\"\")","v":""},{"$f":"IFERROR(INDEX('اليومية العامه'!$B$7:$K$16,SMALL(IF(('اليومية العامه'!$B$7:$B$16>='كشف حساب تحليلى'!$C$6)*('اليومية العامه'!$B$7:$B$16<='كشف حساب تحليلى'!$G$6)*('اليومية العامه'!$F$7:$F$16='كشف حساب تحليلى'!$J$6)*('اليومية العامه'!$G$7:$G$16='كشف حساب تحليلى'!$J$8),ROW('اليومية العامه'!$B$7:$B$16)-6,\"\"),ROW('اليومية العامه'!#REF!)),COLUMN('اليومية العامه'!J:J)-1),\"\")","v":""},{"$f":"IFERROR(INDEX('اليومية العامه'!$B$7:$K$16,SMALL(IF(('اليومية العامه'!$B$7:$B$16>='كشف حساب تحليلى'!$C$6)*('اليومية العامه'!$B$7:$B$16<='كشف حساب تحليلى'!$G$6)*('اليومية العامه'!$F$7:$F$16='كشف حساب تحليلى'!$J$6)*('اليومية العامه'!$G$7:$G$16='كشف حساب تحليلى'!$J$8),ROW('اليومية العامه'!$B$7:$B$16)-6,\"\"),ROW('اليومية العامه'!#REF!)),COLUMN('اليومية العامه'!K:K)-1),\"\")","v":""}]
[null,{"$f":"IFERROR(INDEX('اليومية العامه'!$B$7:$K$16,SMALL(IF(('اليومية العامه'!$B$7:$B$16>='كشف حساب تحليلى'!$C$6)*('اليومية العامه'!$B$7:$B$16<='كشف حساب تحليلى'!$G$6)*('اليومية العامه'!$F$7:$F$16='كشف حساب تحليلى'!$J$6)*('اليومية العامه'!$G$7:$G$16='كشف حساب تحليلى'!$J$8),ROW('اليومية العامه'!$B$7:$B$16)-6,\"\"),ROW('اليومية العامه'!#REF!)),COLUMN('اليومية العامه'!B:B)-1),\"\")","v":""},{"$f":"IFERROR(INDEX('اليومية العامه'!$B$7:$K$16,SMALL(IF(('اليومية العامه'!$B$7:$B$16>='كشف حساب تحليلى'!$C$6)*('اليومية العامه'!$B$7:$B$16<='كشف حساب تحليلى'!$G$6)*('اليومية العامه'!$F$7:$F$16='كشف حساب تحليلى'!$J$6)*('اليومية العامه'!$G$7:$G$16='كشف حساب تحليلى'!$J$8),ROW('اليومية العامه'!$B$7:$B$16)-6,\"\"),ROW('اليومية العامه'!#REF!)),COLUMN('اليومية العامه'!C:C)-1),\"\")","v":""},{"$f":"IFERROR(INDEX('اليومية العامه'!$B$7:$K$16,SMALL(IF(('اليومية العامه'!$B$7:$B$16>='كشف حساب تحليلى'!$C$6)*('اليومية العامه'!$B$7:$B$16<='كشف حساب تحليلى'!$G$6)*('اليومية العامه'!$F$7:$F$16='كشف حساب تحليلى'!$J$6)*('اليومية العامه'!$G$7:$G$16='كشف حساب تحليلى'!$J$8),ROW('اليومية العامه'!$B$7:$B$16)-6,\"\"),ROW('اليومية العامه'!#REF!)),COLUMN('اليومية العامه'!D:D)-1),\"\")","v":""},{"$f":"IFERROR(INDEX('اليومية العامه'!$B$7:$K$16,SMALL(IF(('اليومية العامه'!$B$7:$B$16>='كشف حساب تحليلى'!$C$6)*('اليومية العامه'!$B$7:$B$16<='كشف حساب تحليلى'!$G$6)*('اليومية العامه'!$F$7:$F$16='كشف حساب تحليلى'!$J$6)*('اليومية العامه'!$G$7:$G$16='كشف حساب تحليلى'!$J$8),ROW('اليومية العامه'!$B$7:$B$16)-6,\"\"),ROW('اليومية العامه'!#REF!)),COLUMN('اليومية العامه'!E:E)-1),\"\")","v":""},{"$f":"IFERROR(INDEX('اليومية العامه'!$B$7:$K$16,SMALL(IF(('اليومية العامه'!$B$7:$B$16>='كشف حساب تحليلى'!$C$6)*('اليومية العامه'!$B$7:$B$16<='كشف حساب تحليلى'!$G$6)*('اليومية العامه'!$F$7:$F$16='كشف حساب تحليلى'!$J$6)*('اليومية العامه'!$G$7:$G$16='كشف حساب تحليلى'!$J$8),ROW('اليومية العامه'!$B$7:$B$16)-6,\"\"),ROW('اليومية العامه'!#REF!)),COLUMN('اليومية العامه'!F:F)-1),\"\")","v":""},{"$f":"IFERROR(INDEX('اليومية العامه'!$B$7:$K$16,SMALL(IF(('اليومية العامه'!$B$7:$B$16>='كشف حساب تحليلى'!$C$6)*('اليومية العامه'!$B$7:$B$16<='كشف حساب تحليلى'!$G$6)*('اليومية العامه'!$F$7:$F$16='كشف حساب تحليلى'!$J$6)*('اليومية العامه'!$G$7:$G$16='كشف حساب تحليلى'!$J$8),ROW('اليومية العامه'!$B$7:$B$16)-6,\"\"),ROW('اليومية العامه'!#REF!)),COLUMN('اليومية العامه'!G:G)-1),\"\")","v":""},{"$f":"IFERROR(INDEX('اليومية العامه'!$B$7:$K$16,SMALL(IF(('اليومية العامه'!$B$7:$B$16>='كشف حساب تحليلى'!$C$6)*('اليومية العامه'!$B$7:$B$16<='كشف حساب تحليلى'!$G$6)*('اليومية العامه'!$F$7:$F$16='كشف حساب تحليلى'!$J$6)*('اليومية العامه'!$G$7:$G$16='كشف حساب تحليلى'!$J$8),ROW('اليومية العامه'!$B$7:$B$16)-6,\"\"),ROW('اليومية العامه'!#REF!)),COLUMN('اليومية العامه'!H:H)-1),\"\")","v":""},{"$f":"IFERROR(INDEX('اليومية العامه'!$B$7:$K$16,SMALL(IF(('اليومية العامه'!$B$7:$B$16>='كشف حساب تحليلى'!$C$6)*('اليومية العامه'!$B$7:$B$16<='كشف حساب تحليلى'!$G$6)*('اليومية العامه'!$F$7:$F$16='كشف حساب تحليلى'!$J$6)*('اليومية العامه'!$G$7:$G$16='كشف حساب تحليلى'!$J$8),ROW('اليومية العامه'!$B$7:$B$16)-6,\"\"),ROW('اليومية العامه'!#REF!)),COLUMN('اليومية العامه'!I:I)-1),\"\")","v":""},{"$f":"IFERROR(INDEX('اليومية العامه'!$B$7:$K$16,SMALL(IF(('اليومية العامه'!$B$7:$B$16>='كشف حساب تحليلى'!$C$6)*('اليومية العامه'!$B$7:$B$16<='كشف حساب تحليلى'!$G$6)*('اليومية العامه'!$F$7:$F$16='كشف حساب تحليلى'!$J$6)*('اليومية العامه'!$G$7:$G$16='كشف حساب تحليلى'!$J$8),ROW('اليومية العامه'!$B$7:$B$16)-6,\"\"),ROW('اليومية العامه'!#REF!)),COLUMN('اليومية العامه'!J:J)-1),\"\")","v":""},{"$f":"IFERROR(INDEX('اليومية العامه'!$B$7:$K$16,SMALL(IF(('اليومية العامه'!$B$7:$B$16>='كشف حساب تحليلى'!$C$6)*('اليومية العامه'!$B$7:$B$16<='كشف حساب تحليلى'!$G$6)*('اليومية العامه'!$F$7:$F$16='كشف حساب تحليلى'!$J$6)*('اليومية العامه'!$G$7:$G$16='كشف حساب تحليلى'!$J$8),ROW('اليومية العامه'!$B$7:$B$16)-6,\"\"),ROW('اليومية العامه'!#REF!)),COLUMN('اليومية العامه'!K:K)-1),\"\")","v":""}]
[null,{"$f":"IFERROR(INDEX('اليومية العامه'!$B$7:$K$16,SMALL(IF(('اليومية العامه'!$B$7:$B$16>='كشف حساب تحليلى'!$C$6)*('اليومية العامه'!$B$7:$B$16<='كشف حساب تحليلى'!$G$6)*('اليومية العامه'!$F$7:$F$16='كشف حساب تحليلى'!$J$6)*('اليومية العامه'!$G$7:$G$16='كشف حساب تحليلى'!$J$8),ROW('اليومية العامه'!$B$7:$B$16)-6,\"\"),ROW('اليومية العامه'!#REF!)),COLUMN('اليومية العامه'!B:B)-1),\"\")","v":""},{"$f":"IFERROR(INDEX('اليومية العامه'!$B$7:$K$16,SMALL(IF(('اليومية العامه'!$B$7:$B$16>='كشف حساب تحليلى'!$C$6)*('اليومية العامه'!$B$7:$B$16<='كشف حساب تحليلى'!$G$6)*('اليومية العامه'!$F$7:$F$16='كشف حساب تحليلى'!$J$6)*('اليومية العامه'!$G$7:$G$16='كشف حساب تحليلى'!$J$8),ROW('اليومية العامه'!$B$7:$B$16)-6,\"\"),ROW('اليومية العامه'!#REF!)),COLUMN('اليومية العامه'!C:C)-1),\"\")","v":""},{"$f":"IFERROR(INDEX('اليومية العامه'!$B$7:$K$16,SMALL(IF(('اليومية العامه'!$B$7:$B$16>='كشف حساب تحليلى'!$C$6)*('اليومية العامه'!$B$7:$B$16<='كشف حساب تحليلى'!$G$6)*('اليومية العامه'!$F$7:$F$16='كشف حساب تحليلى'!$J$6)*('اليومية العامه'!$G$7:$G$16='كشف حساب تحليلى'!$J$8),ROW('اليومية العامه'!$B$7:$B$16)-6,\"\"),ROW('اليومية العامه'!#REF!)),COLUMN('اليومية العامه'!D:D)-1),\"\")","v":""},{"$f":"IFERROR(INDEX('اليومية العامه'!$B$7:$K$16,SMALL(IF(('اليومية العامه'!$B$7:$B$16>='كشف حساب تحليلى'!$C$6)*('اليومية العامه'!$B$7:$B$16<='كشف حساب تحليلى'!$G$6)*('اليومية العامه'!$F$7:$F$16='كشف حساب تحليلى'!$J$6)*('اليومية العامه'!$G$7:$G$16='كشف حساب تحليلى'!$J$8),ROW('اليومية العامه'!$B$7:$B$16)-6,\"\"),ROW('اليومية العامه'!#REF!)),COLUMN('اليومية العامه'!E:E)-1),\"\")","v":""},{"$f":"IFERROR(INDEX('اليومية العامه'!$B$7:$K$16,SMALL(IF(('اليومية العامه'!$B$7:$B$16>='كشف حساب تحليلى'!$C$6)*('اليومية العامه'!$B$7:$B$16<='كشف حساب تحليلى'!$G$6)*('اليومية العامه'!$F$7:$F$16='كشف حساب تحليلى'!$J$6)*('اليومية العامه'!$G$7:$G$16='كشف حساب تحليلى'!$J$8),ROW('اليومية العامه'!$B$7:$B$16)-6,\"\"),ROW('اليومية العامه'!#REF!)),COLUMN('اليومية العامه'!F:F)-1),\"\")","v":""},{"$f":"IFERROR(INDEX('اليومية العامه'!$B$7:$K$16,SMALL(IF(('اليومية العامه'!$B$7:$B$16>='كشف حساب تحليلى'!$C$6)*('اليومية العامه'!$B$7:$B$16<='كشف حساب تحليلى'!$G$6)*('اليومية العامه'!$F$7:$F$16='كشف حساب تحليلى'!$J$6)*('اليومية العامه'!$G$7:$G$16='كشف حساب تحليلى'!$J$8),ROW('اليومية العامه'!$B$7:$B$16)-6,\"\"),ROW('اليومية العامه'!#REF!)),COLUMN('اليومية العامه'!G:G)-1),\"\")","v":""},{"$f":"IFERROR(INDEX('اليومية العامه'!$B$7:$K$16,SMALL(IF(('اليومية العامه'!$B$7:$B$16>='كشف حساب تحليلى'!$C$6)*('اليومية العامه'!$B$7:$B$16<='كشف حساب تحليلى'!$G$6)*('اليومية العامه'!$F$7:$F$16='كشف حساب تحليلى'!$J$6)*('اليومية العامه'!$G$7:$G$16='كشف حساب تحليلى'!$J$8),ROW('اليومية العامه'!$B$7:$B$16)-6,\"\"),ROW('اليومية العامه'!#REF!)),COLUMN('اليومية العامه'!H:H)-1),\"\")","v":""},{"$f":"IFERROR(INDEX('اليومية العامه'!$B$7:$K$16,SMALL(IF(('اليومية العامه'!$B$7:$B$16>='كشف حساب تحليلى'!$C$6)*('اليومية العامه'!$B$7:$B$16<='كشف حساب تحليلى'!$G$6)*('اليومية العامه'!$F$7:$F$16='كشف حساب تحليلى'!$J$6)*('اليومية العامه'!$G$7:$G$16='كشف حساب تحليلى'!$J$8),ROW('اليومية العامه'!$B$7:$B$16)-6,\"\"),ROW('اليومية العامه'!#REF!)),COLUMN('اليومية العامه'!I:I)-1),\"\")","v":""},{"$f":"IFERROR(INDEX('اليومية العامه'!$B$7:$K$16,SMALL(IF(('اليومية العامه'!$B$7:$B$16>='كشف حساب تحليلى'!$C$6)*('اليومية العامه'!$B$7:$B$16<='كشف حساب تحليلى'!$G$6)*('اليومية العامه'!$F$7:$F$16='كشف حساب تحليلى'!$J$6)*('اليومية العامه'!$G$7:$G$16='كشف حساب تحليلى'!$J$8),ROW('اليومية العامه'!$B$7:$B$16)-6,\"\"),ROW('اليومية العامه'!#REF!)),COLUMN('اليومية العامه'!J:J)-1),\"\")","v":""},{"$f":"IFERROR(INDEX('اليومية العامه'!$B$7:$K$16,SMALL(IF(('اليومية العامه'!$B$7:$B$16>='كشف حساب تحليلى'!$C$6)*('اليومية العامه'!$B$7:$B$16<='كشف حساب تحليلى'!$G$6)*('اليومية العامه'!$F$7:$F$16='كشف حساب تحليلى'!$J$6)*('اليومية العامه'!$G$7:$G$16='كشف حساب تحليلى'!$J$8),ROW('اليومية العامه'!$B$7:$B$16)-6,\"\"),ROW('اليومية العامه'!#REF!)),COLUMN('اليومية العامه'!K:K)-1),\"\")","v":""}]
[null,{"$f":"IFERROR(INDEX('اليومية العامه'!$B$7:$K$16,SMALL(IF(('اليومية العامه'!$B$7:$B$16>='كشف حساب تحليلى'!$C$6)*('اليومية العامه'!$B$7:$B$16<='كشف حساب تحليلى'!$G$6)*('اليومية العامه'!$F$7:$F$16='كشف حساب تحليلى'!$J$6)*('اليومية العامه'!$G$7:$G$16='كشف حساب تحليلى'!$J$8),ROW('اليومية العامه'!$B$7:$B$16)-6,\"\"),ROW('اليومية العامه'!#REF!)),COLUMN('اليومية العامه'!B:B)-1),\"\")","v":""},{"$f":"IFERROR(INDEX('اليومية العامه'!$B$7:$K$16,SMALL(IF(('اليومية العامه'!$B$7:$B$16>='كشف حساب تحليلى'!$C$6)*('اليومية العامه'!$B$7:$B$16<='كشف حساب تحليلى'!$G$6)*('اليومية العامه'!$F$7:$F$16='كشف حساب تحليلى'!$J$6)*('اليومية العامه'!$G$7:$G$16='كشف حساب تحليلى'!$J$8),ROW('اليومية العامه'!$B$7:$B$16)-6,\"\"),ROW('اليومية العامه'!#REF!)),COLUMN('اليومية العامه'!C:C)-1),\"\")","v":""},{"$f":"IFERROR(INDEX('اليومية العامه'!$B$7:$K$16,SMALL(IF(('اليومية العامه'!$B$7:$B$16>='كشف حساب تحليلى'!$C$6)*('اليومية العامه'!$B$7:$B$16<='كشف حساب تحليلى'!$G$6)*('اليومية العامه'!$F$7:$F$16='كشف حساب تحليلى'!$J$6)*('اليومية العامه'!$G$7:$G$16='كشف حساب تحليلى'!$J$8),ROW('اليومية العامه'!$B$7:$B$16)-6,\"\"),ROW('اليومية العامه'!#REF!)),COLUMN('اليومية العامه'!D:D)-1),\"\")","v":""},{"$f":"IFERROR(INDEX('اليومية العامه'!$B$7:$K$16,SMALL(IF(('اليومية العامه'!$B$7:$B$16>='كشف حساب تحليلى'!$C$6)*('اليومية العامه'!$B$7:$B$16<='كشف حساب تحليلى'!$G$6)*('اليومية العامه'!$F$7:$F$16='كشف حساب تحليلى'!$J$6)*('اليومية العامه'!$G$7:$G$16='كشف حساب تحليلى'!$J$8),ROW('اليومية العامه'!$B$7:$B$16)-6,\"\"),ROW('اليومية العامه'!#REF!)),COLUMN('اليومية العامه'!E:E)-1),\"\")","v":""},{"$f":"IFERROR(INDEX('اليومية العامه'!$B$7:$K$16,SMALL(IF(('اليومية العامه'!$B$7:$B$16>='كشف حساب تحليلى'!$C$6)*('اليومية العامه'!$B$7:$B$16<='كشف حساب تحليلى'!$G$6)*('اليومية العامه'!$F$7:$F$16='كشف حساب تحليلى'!$J$6)*('اليومية العامه'!$G$7:$G$16='كشف حساب تحليلى'!$J$8),ROW('اليومية العامه'!$B$7:$B$16)-6,\"\"),ROW('اليومية العامه'!#REF!)),COLUMN('اليومية العامه'!F:F)-1),\"\")","v":""},{"$f":"IFERROR(INDEX('اليومية العامه'!$B$7:$K$16,SMALL(IF(('اليومية العامه'!$B$7:$B$16>='كشف حساب تحليلى'!$C$6)*('اليومية العامه'!$B$7:$B$16<='كشف حساب تحليلى'!$G$6)*('اليومية العامه'!$F$7:$F$16='كشف حساب تحليلى'!$J$6)*('اليومية العامه'!$G$7:$G$16='كشف حساب تحليلى'!$J$8),ROW('اليومية العامه'!$B$7:$B$16)-6,\"\"),ROW('اليومية العامه'!#REF!)),COLUMN('اليومية العامه'!G:G)-1),\"\")","v":""},{"$f":"IFERROR(INDEX('اليومية العامه'!$B$7:$K$16,SMALL(IF(('اليومية العامه'!$B$7:$B$16>='كشف حساب تحليلى'!$C$6)*('اليومية العامه'!$B$7:$B$16<='كشف حساب تحليلى'!$G$6)*('اليومية العامه'!$F$7:$F$16='كشف حساب تحليلى'!$J$6)*('اليومية العامه'!$G$7:$G$16='كشف حساب تحليلى'!$J$8),ROW('اليومية العامه'!$B$7:$B$16)-6,\"\"),ROW('اليومية العامه'!#REF!)),COLUMN('اليومية العامه'!H:H)-1),\"\")","v":""},{"$f":"IFERROR(INDEX('اليومية العامه'!$B$7:$K$16,SMALL(IF(('اليومية العامه'!$B$7:$B$16>='كشف حساب تحليلى'!$C$6)*('اليومية العامه'!$B$7:$B$16<='كشف حساب تحليلى'!$G$6)*('اليومية العامه'!$F$7:$F$16='كشف حساب تحليلى'!$J$6)*('اليومية العامه'!$G$7:$G$16='كشف حساب تحليلى'!$J$8),ROW('اليومية العامه'!$B$7:$B$16)-6,\"\"),ROW('اليومية العامه'!#REF!)),COLUMN('اليومية العامه'!I:I)-1),\"\")","v":""},{"$f":"IFERROR(INDEX('اليومية العامه'!$B$7:$K$16,SMALL(IF(('اليومية العامه'!$B$7:$B$16>='كشف حساب تحليلى'!$C$6)*('اليومية العامه'!$B$7:$B$16<='كشف حساب تحليلى'!$G$6)*('اليومية العامه'!$F$7:$F$16='كشف حساب تحليلى'!$J$6)*('اليومية العامه'!$G$7:$G$16='كشف حساب تحليلى'!$J$8),ROW('اليومية العامه'!$B$7:$B$16)-6,\"\"),ROW('اليومية العامه'!#REF!)),COLUMN('اليومية العامه'!J:J)-1),\"\")","v":""},{"$f":"IFERROR(INDEX('اليومية العامه'!$B$7:$K$16,SMALL(IF(('اليومية العامه'!$B$7:$B$16>='كشف حساب تحليلى'!$C$6)*('اليومية العامه'!$B$7:$B$16<='كشف حساب تحليلى'!$G$6)*('اليومية العامه'!$F$7:$F$16='كشف حساب تحليلى'!$J$6)*('اليومية العامه'!$G$7:$G$16='كشف حساب تحليلى'!$J$8),ROW('اليومية العامه'!$B$7:$B$16)-6,\"\"),ROW('اليومية العامه'!#REF!)),COLUMN('اليومية العامه'!K:K)-1),\"\")","v":""}]
[null,{"$f":"IFERROR(INDEX('اليومية العامه'!$B$7:$K$16,SMALL(IF(('اليومية العامه'!$B$7:$B$16>='كشف حساب تحليلى'!$C$6)*('اليومية العامه'!$B$7:$B$16<='كشف حساب تحليلى'!$G$6)*('اليومية العامه'!$F$7:$F$16='كشف حساب تحليلى'!$J$6)*('اليومية العامه'!$G$7:$G$16='كشف حساب تحليلى'!$J$8),ROW('اليومية العامه'!$B$7:$B$16)-6,\"\"),ROW('اليومية العامه'!#REF!)),COLUMN('اليومية العامه'!B:B)-1),\"\")","v":""},{"$f":"IFERROR(INDEX('اليومية العامه'!$B$7:$K$16,SMALL(IF(('اليومية العامه'!$B$7:$B$16>='كشف حساب تحليلى'!$C$6)*('اليومية العامه'!$B$7:$B$16<='كشف حساب تحليلى'!$G$6)*('اليومية العامه'!$F$7:$F$16='كشف حساب تحليلى'!$J$6)*('اليومية العامه'!$G$7:$G$16='كشف حساب تحليلى'!$J$8),ROW('اليومية العامه'!$B$7:$B$16)-6,\"\"),ROW('اليومية العامه'!#REF!)),COLUMN('اليومية العامه'!C:C)-1),\"\")","v":""},{"$f":"IFERROR(INDEX('اليومية العامه'!$B$7:$K$16,SMALL(IF(('اليومية العامه'!$B$7:$B$16>='كشف حساب تحليلى'!$C$6)*('اليومية العامه'!$B$7:$B$16<='كشف حساب تحليلى'!$G$6)*('اليومية العامه'!$F$7:$F$16='كشف حساب تحليلى'!$J$6)*('اليومية العامه'!$G$7:$G$16='كشف حساب تحليلى'!$J$8),ROW('اليومية العامه'!$B$7:$B$16)-6,\"\"),ROW('اليومية العامه'!#REF!)),COLUMN('اليومية العامه'!D:D)-1),\"\")","v":""},{"$f":"IFERROR(INDEX('اليومية العامه'!$B$7:$K$16,SMALL(IF(('اليومية العامه'!$B$7:$B$16>='كشف حساب تحليلى'!$C$6)*('اليومية العامه'!$B$7:$B$16<='كشف حساب تحليلى'!$G$6)*('اليومية العامه'!$F$7:$F$16='كشف حساب تحليلى'!$J$6)*('اليومية العامه'!$G$7:$G$16='كشف حساب تحليلى'!$J$8),ROW('اليومية العامه'!$B$7:$B$16)-6,\"\"),ROW('اليومية العامه'!#REF!)),COLUMN('اليومية العامه'!E:E)-1),\"\")","v":""},{"$f":"IFERROR(INDEX('اليومية العامه'!$B$7:$K$16,SMALL(IF(('اليومية العامه'!$B$7:$B$16>='كشف حساب تحليلى'!$C$6)*('اليومية العامه'!$B$7:$B$16<='كشف حساب تحليلى'!$G$6)*('اليومية العامه'!$F$7:$F$16='كشف حساب تحليلى'!$J$6)*('اليومية العامه'!$G$7:$G$16='كشف حساب تحليلى'!$J$8),ROW('اليومية العامه'!$B$7:$B$16)-6,\"\"),ROW('اليومية العامه'!#REF!)),COLUMN('اليومية العامه'!F:F)-1),\"\")","v":""},{"$f":"IFERROR(INDEX('اليومية العامه'!$B$7:$K$16,SMALL(IF(('اليومية العامه'!$B$7:$B$16>='كشف حساب تحليلى'!$C$6)*('اليومية العامه'!$B$7:$B$16<='كشف حساب تحليلى'!$G$6)*('اليومية العامه'!$F$7:$F$16='كشف حساب تحليلى'!$J$6)*('اليومية العامه'!$G$7:$G$16='كشف حساب تحليلى'!$J$8),ROW('اليومية العامه'!$B$7:$B$16)-6,\"\"),ROW('اليومية العامه'!#REF!)),COLUMN('اليومية العامه'!G:G)-1),\"\")","v":""},{"$f":"IFERROR(INDEX('اليومية العامه'!$B$7:$K$16,SMALL(IF(('اليومية العامه'!$B$7:$B$16>='كشف حساب تحليلى'!$C$6)*('اليومية العامه'!$B$7:$B$16<='كشف حساب تحليلى'!$G$6)*('اليومية العامه'!$F$7:$F$16='كشف حساب تحليلى'!$J$6)*('اليومية العامه'!$G$7:$G$16='كشف حساب تحليلى'!$J$8),ROW('اليومية العامه'!$B$7:$B$16)-6,\"\"),ROW('اليومية العامه'!#REF!)),COLUMN('اليومية العامه'!H:H)-1),\"\")","v":""},{"$f":"IFERROR(INDEX('اليومية العامه'!$B$7:$K$16,SMALL(IF(('اليومية العامه'!$B$7:$B$16>='كشف حساب تحليلى'!$C$6)*('اليومية العامه'!$B$7:$B$16<='كشف حساب تحليلى'!$G$6)*('اليومية العامه'!$F$7:$F$16='كشف حساب تحليلى'!$J$6)*('اليومية العامه'!$G$7:$G$16='كشف حساب تحليلى'!$J$8),ROW('اليومية العامه'!$B$7:$B$16)-6,\"\"),ROW('اليومية العامه'!#REF!)),COLUMN('اليومية العامه'!I:I)-1),\"\")","v":""},{"$f":"IFERROR(INDEX('اليومية العامه'!$B$7:$K$16,SMALL(IF(('اليومية العامه'!$B$7:$B$16>='كشف حساب تحليلى'!$C$6)*('اليومية العامه'!$B$7:$B$16<='كشف حساب تحليلى'!$G$6)*('اليومية العامه'!$F$7:$F$16='كشف حساب تحليلى'!$J$6)*('اليومية العامه'!$G$7:$G$16='كشف حساب تحليلى'!$J$8),ROW('اليومية العامه'!$B$7:$B$16)-6,\"\"),ROW('اليومية العامه'!#REF!)),COLUMN('اليومية العامه'!J:J)-1),\"\")","v":""},{"$f":"IFERROR(INDEX('اليومية العامه'!$B$7:$K$16,SMALL(IF(('اليومية العامه'!$B$7:$B$16>='كشف حساب تحليلى'!$C$6)*('اليومية العامه'!$B$7:$B$16<='كشف حساب تحليلى'!$G$6)*('اليومية العامه'!$F$7:$F$16='كشف حساب تحليلى'!$J$6)*('اليومية العامه'!$G$7:$G$16='كشف حساب تحليلى'!$J$8),ROW('اليومية العامه'!$B$7:$B$16)-6,\"\"),ROW('اليومية العامه'!#REF!)),COLUMN('اليومية العامه'!K:K)-1),\"\")","v":""}]
[null,{"$f":"IFERROR(INDEX('اليومية العامه'!$B$7:$K$16,SMALL(IF(('اليومية العامه'!$B$7:$B$16>='كشف حساب تحليلى'!$C$6)*('اليومية العامه'!$B$7:$B$16<='كشف حساب تحليلى'!$G$6)*('اليومية العامه'!$F$7:$F$16='كشف حساب تحليلى'!$J$6)*('اليومية العامه'!$G$7:$G$16='كشف حساب تحليلى'!$J$8),ROW('اليومية العامه'!$B$7:$B$16)-6,\"\"),ROW('اليومية العامه'!#REF!)),COLUMN('اليومية العامه'!B:B)-1),\"\")","v":""},{"$f":"IFERROR(INDEX('اليومية العامه'!$B$7:$K$16,SMALL(IF(('اليومية العامه'!$B$7:$B$16>='كشف حساب تحليلى'!$C$6)*('اليومية العامه'!$B$7:$B$16<='كشف حساب تحليلى'!$G$6)*('اليومية العامه'!$F$7:$F$16='كشف حساب تحليلى'!$J$6)*('اليومية العامه'!$G$7:$G$16='كشف حساب تحليلى'!$J$8),ROW('اليومية العامه'!$B$7:$B$16)-6,\"\"),ROW('اليومية العامه'!#REF!)),COLUMN('اليومية العامه'!C:C)-1),\"\")","v":""},{"$f":"IFERROR(INDEX('اليومية العامه'!$B$7:$K$16,SMALL(IF(('اليومية العامه'!$B$7:$B$16>='كشف حساب تحليلى'!$C$6)*('اليومية العامه'!$B$7:$B$16<='كشف حساب تحليلى'!$G$6)*('اليومية العامه'!$F$7:$F$16='كشف حساب تحليلى'!$J$6)*('اليومية العامه'!$G$7:$G$16='كشف حساب تحليلى'!$J$8),ROW('اليومية العامه'!$B$7:$B$16)-6,\"\"),ROW('اليومية العامه'!#REF!)),COLUMN('اليومية العامه'!D:D)-1),\"\")","v":""},{"$f":"IFERROR(INDEX('اليومية العامه'!$B$7:$K$16,SMALL(IF(('اليومية العامه'!$B$7:$B$16>='كشف حساب تحليلى'!$C$6)*('اليومية العامه'!$B$7:$B$16<='كشف حساب تحليلى'!$G$6)*('اليومية العامه'!$F$7:$F$16='كشف حساب تحليلى'!$J$6)*('اليومية العامه'!$G$7:$G$16='كشف حساب تحليلى'!$J$8),ROW('اليومية العامه'!$B$7:$B$16)-6,\"\"),ROW('اليومية العامه'!#REF!)),COLUMN('اليومية العامه'!E:E)-1),\"\")","v":""},{"$f":"IFERROR(INDEX('اليومية العامه'!$B$7:$K$16,SMALL(IF(('اليومية العامه'!$B$7:$B$16>='كشف حساب تحليلى'!$C$6)*('اليومية العامه'!$B$7:$B$16<='كشف حساب تحليلى'!$G$6)*('اليومية العامه'!$F$7:$F$16='كشف حساب تحليلى'!$J$6)*('اليومية العامه'!$G$7:$G$16='كشف حساب تحليلى'!$J$8),ROW('اليومية العامه'!$B$7:$B$16)-6,\"\"),ROW('اليومية العامه'!#REF!)),COLUMN('اليومية العامه'!F:F)-1),\"\")","v":""},{"$f":"IFERROR(INDEX('اليومية العامه'!$B$7:$K$16,SMALL(IF(('اليومية العامه'!$B$7:$B$16>='كشف حساب تحليلى'!$C$6)*('اليومية العامه'!$B$7:$B$16<='كشف حساب تحليلى'!$G$6)*('اليومية العامه'!$F$7:$F$16='كشف حساب تحليلى'!$J$6)*('اليومية العامه'!$G$7:$G$16='كشف حساب تحليلى'!$J$8),ROW('اليومية العامه'!$B$7:$B$16)-6,\"\"),ROW('اليومية العامه'!#REF!)),COLUMN('اليومية العامه'!G:G)-1),\"\")","v":""},{"$f":"IFERROR(INDEX('اليومية العامه'!$B$7:$K$16,SMALL(IF(('اليومية العامه'!$B$7:$B$16>='كشف حساب تحليلى'!$C$6)*('اليومية العامه'!$B$7:$B$16<='كشف حساب تحليلى'!$G$6)*('اليومية العامه'!$F$7:$F$16='كشف حساب تحليلى'!$J$6)*('اليومية العامه'!$G$7:$G$16='كشف حساب تحليلى'!$J$8),ROW('اليومية العامه'!$B$7:$B$16)-6,\"\"),ROW('اليومية العامه'!#REF!)),COLUMN('اليومية العامه'!H:H)-1),\"\")","v":""},{"$f":"IFERROR(INDEX('اليومية العامه'!$B$7:$K$16,SMALL(IF(('اليومية العامه'!$B$7:$B$16>='كشف حساب تحليلى'!$C$6)*('اليومية العامه'!$B$7:$B$16<='كشف حساب تحليلى'!$G$6)*('اليومية العامه'!$F$7:$F$16='كشف حساب تحليلى'!$J$6)*('اليومية العامه'!$G$7:$G$16='كشف حساب تحليلى'!$J$8),ROW('اليومية العامه'!$B$7:$B$16)-6,\"\"),ROW('اليومية العامه'!#REF!)),COLUMN('اليومية العامه'!I:I)-1),\"\")","v":""},{"$f":"IFERROR(INDEX('اليومية العامه'!$B$7:$K$16,SMALL(IF(('اليومية العامه'!$B$7:$B$16>='كشف حساب تحليلى'!$C$6)*('اليومية العامه'!$B$7:$B$16<='كشف حساب تحليلى'!$G$6)*('اليومية العامه'!$F$7:$F$16='كشف حساب تحليلى'!$J$6)*('اليومية العامه'!$G$7:$G$16='كشف حساب تحليلى'!$J$8),ROW('اليومية العامه'!$B$7:$B$16)-6,\"\"),ROW('اليومية العامه'!#REF!)),COLUMN('اليومية العامه'!J:J)-1),\"\")","v":""},{"$f":"IFERROR(INDEX('اليومية العامه'!$B$7:$K$16,SMALL(IF(('اليومية العامه'!$B$7:$B$16>='كشف حساب تحليلى'!$C$6)*('اليومية العامه'!$B$7:$B$16<='كشف حساب تحليلى'!$G$6)*('اليومية العامه'!$F$7:$F$16='كشف حساب تحليلى'!$J$6)*('اليومية العامه'!$G$7:$G$16='كشف حساب تحليلى'!$J$8),ROW('اليومية العامه'!$B$7:$B$16)-6,\"\"),ROW('اليومية العامه'!#REF!)),COLUMN('اليومية العامه'!K:K)-1),\"\")","v":""}]
[null,{"$f":"IFERROR(INDEX('اليومية العامه'!$B$7:$K$16,SMALL(IF(('اليومية العامه'!$B$7:$B$16>='كشف حساب تحليلى'!$C$6)*('اليومية العامه'!$B$7:$B$16<='كشف حساب تحليلى'!$G$6)*('اليومية العامه'!$F$7:$F$16='كشف حساب تحليلى'!$J$6)*('اليومية العامه'!$G$7:$G$16='كشف حساب تحليلى'!$J$8),ROW('اليومية العامه'!$B$7:$B$16)-6,\"\"),ROW('اليومية العامه'!#REF!)),COLUMN('اليومية العامه'!B:B)-1),\"\")","v":""},{"$f":"IFERROR(INDEX('اليومية العامه'!$B$7:$K$16,SMALL(IF(('اليومية العامه'!$B$7:$B$16>='كشف حساب تحليلى'!$C$6)*('اليومية العامه'!$B$7:$B$16<='كشف حساب تحليلى'!$G$6)*('اليومية العامه'!$F$7:$F$16='كشف حساب تحليلى'!$J$6)*('اليومية العامه'!$G$7:$G$16='كشف حساب تحليلى'!$J$8),ROW('اليومية العامه'!$B$7:$B$16)-6,\"\"),ROW('اليومية العامه'!#REF!)),COLUMN('اليومية العامه'!C:C)-1),\"\")","v":""},{"$f":"IFERROR(INDEX('اليومية العامه'!$B$7:$K$16,SMALL(IF(('اليومية العامه'!$B$7:$B$16>='كشف حساب تحليلى'!$C$6)*('اليومية العامه'!$B$7:$B$16<='كشف حساب تحليلى'!$G$6)*('اليومية العامه'!$F$7:$F$16='كشف حساب تحليلى'!$J$6)*('اليومية العامه'!$G$7:$G$16='كشف حساب تحليلى'!$J$8),ROW('اليومية العامه'!$B$7:$B$16)-6,\"\"),ROW('اليومية العامه'!#REF!)),COLUMN('اليومية العامه'!D:D)-1),\"\")","v":""},{"$f":"IFERROR(INDEX('اليومية العامه'!$B$7:$K$16,SMALL(IF(('اليومية العامه'!$B$7:$B$16>='كشف حساب تحليلى'!$C$6)*('اليومية العامه'!$B$7:$B$16<='كشف حساب تحليلى'!$G$6)*('اليومية العامه'!$F$7:$F$16='كشف حساب تحليلى'!$J$6)*('اليومية العامه'!$G$7:$G$16='كشف حساب تحليلى'!$J$8),ROW('اليومية العامه'!$B$7:$B$16)-6,\"\"),ROW('اليومية العامه'!#REF!)),COLUMN('اليومية العامه'!E:E)-1),\"\")","v":""},{"$f":"IFERROR(INDEX('اليومية العامه'!$B$7:$K$16,SMALL(IF(('اليومية العامه'!$B$7:$B$16>='كشف حساب تحليلى'!$C$6)*('اليومية العامه'!$B$7:$B$16<='كشف حساب تحليلى'!$G$6)*('اليومية العامه'!$F$7:$F$16='كشف حساب تحليلى'!$J$6)*('اليومية العامه'!$G$7:$G$16='كشف حساب تحليلى'!$J$8),ROW('اليومية العامه'!$B$7:$B$16)-6,\"\"),ROW('اليومية العامه'!#REF!)),COLUMN('اليومية العامه'!F:F)-1),\"\")","v":""},{"$f":"IFERROR(INDEX('اليومية العامه'!$B$7:$K$16,SMALL(IF(('اليومية العامه'!$B$7:$B$16>='كشف حساب تحليلى'!$C$6)*('اليومية العامه'!$B$7:$B$16<='كشف حساب تحليلى'!$G$6)*('اليومية العامه'!$F$7:$F$16='كشف حساب تحليلى'!$J$6)*('اليومية العامه'!$G$7:$G$16='كشف حساب تحليلى'!$J$8),ROW('اليومية العامه'!$B$7:$B$16)-6,\"\"),ROW('اليومية العامه'!#REF!)),COLUMN('اليومية العامه'!G:G)-1),\"\")","v":""},{"$f":"IFERROR(INDEX('اليومية العامه'!$B$7:$K$16,SMALL(IF(('اليومية العامه'!$B$7:$B$16>='كشف حساب تحليلى'!$C$6)*('اليومية العامه'!$B$7:$B$16<='كشف حساب تحليلى'!$G$6)*('اليومية العامه'!$F$7:$F$16='كشف حساب تحليلى'!$J$6)*('اليومية العامه'!$G$7:$G$16='كشف حساب تحليلى'!$J$8),ROW('اليومية العامه'!$B$7:$B$16)-6,\"\"),ROW('اليومية العامه'!#REF!)),COLUMN('اليومية العامه'!H:H)-1),\"\")","v":""},{"$f":"IFERROR(INDEX('اليومية العامه'!$B$7:$K$16,SMALL(IF(('اليومية العامه'!$B$7:$B$16>='كشف حساب تحليلى'!$C$6)*('اليومية العامه'!$B$7:$B$16<='كشف حساب تحليلى'!$G$6)*('اليومية العامه'!$F$7:$F$16='كشف حساب تحليلى'!$J$6)*('اليومية العامه'!$G$7:$G$16='كشف حساب تحليلى'!$J$8),ROW('اليومية العامه'!$B$7:$B$16)-6,\"\"),ROW('اليومية العامه'!#REF!)),COLUMN('اليومية العامه'!I:I)-1),\"\")","v":""},{"$f":"IFERROR(INDEX('اليومية العامه'!$B$7:$K$16,SMALL(IF(('اليومية العامه'!$B$7:$B$16>='كشف حساب تحليلى'!$C$6)*('اليومية العامه'!$B$7:$B$16<='كشف حساب تحليلى'!$G$6)*('اليومية العامه'!$F$7:$F$16='كشف حساب تحليلى'!$J$6)*('اليومية العامه'!$G$7:$G$16='كشف حساب تحليلى'!$J$8),ROW('اليومية العامه'!$B$7:$B$16)-6,\"\"),ROW('اليومية العامه'!#REF!)),COLUMN('اليومية العامه'!J:J)-1),\"\")","v":""},{"$f":"IFERROR(INDEX('اليومية العامه'!$B$7:$K$16,SMALL(IF(('اليومية العامه'!$B$7:$B$16>='كشف حساب تحليلى'!$C$6)*('اليومية العامه'!$B$7:$B$16<='كشف حساب تحليلى'!$G$6)*('اليومية العامه'!$F$7:$F$16='كشف حساب تحليلى'!$J$6)*('اليومية العامه'!$G$7:$G$16='كشف حساب تحليلى'!$J$8),ROW('اليومية العامه'!$B$7:$B$16)-6,\"\"),ROW('اليومية العامه'!#REF!)),COLUMN('اليومية العامه'!K:K)-1),\"\")","v":""}]
[null,{"$f":"IFERROR(INDEX('اليومية العامه'!$B$7:$K$16,SMALL(IF(('اليومية العامه'!$B$7:$B$16>='كشف حساب تحليلى'!$C$6)*('اليومية العامه'!$B$7:$B$16<='كشف حساب تحليلى'!$G$6)*('اليومية العامه'!$F$7:$F$16='كشف حساب تحليلى'!$J$6)*('اليومية العامه'!$G$7:$G$16='كشف حساب تحليلى'!$J$8),ROW('اليومية العامه'!$B$7:$B$16)-6,\"\"),ROW('اليومية العامه'!#REF!)),COLUMN('اليومية العامه'!B:B)-1),\"\")","v":""},{"$f":"IFERROR(INDEX('اليومية العامه'!$B$7:$K$16,SMALL(IF(('اليومية العامه'!$B$7:$B$16>='كشف حساب تحليلى'!$C$6)*('اليومية العامه'!$B$7:$B$16<='كشف حساب تحليلى'!$G$6)*('اليومية العامه'!$F$7:$F$16='كشف حساب تحليلى'!$J$6)*('اليومية العامه'!$G$7:$G$16='كشف حساب تحليلى'!$J$8),ROW('اليومية العامه'!$B$7:$B$16)-6,\"\"),ROW('اليومية العامه'!#REF!)),COLUMN('اليومية العامه'!C:C)-1),\"\")","v":""},{"$f":"IFERROR(INDEX('اليومية العامه'!$B$7:$K$16,SMALL(IF(('اليومية العامه'!$B$7:$B$16>='كشف حساب تحليلى'!$C$6)*('اليومية العامه'!$B$7:$B$16<='كشف حساب تحليلى'!$G$6)*('اليومية العامه'!$F$7:$F$16='كشف حساب تحليلى'!$J$6)*('اليومية العامه'!$G$7:$G$16='كشف حساب تحليلى'!$J$8),ROW('اليومية العامه'!$B$7:$B$16)-6,\"\"),ROW('اليومية العامه'!#REF!)),COLUMN('اليومية العامه'!D:D)-1),\"\")","v":""},{"$f":"IFERROR(INDEX('اليومية العامه'!$B$7:$K$16,SMALL(IF(('اليومية العامه'!$B$7:$B$16>='كشف حساب تحليلى'!$C$6)*('اليومية العامه'!$B$7:$B$16<='كشف حساب تحليلى'!$G$6)*('اليومية العامه'!$F$7:$F$16='كشف حساب تحليلى'!$J$6)*('اليومية العامه'!$G$7:$G$16='كشف حساب تحليلى'!$J$8),ROW('اليومية العامه'!$B$7:$B$16)-6,\"\"),ROW('اليومية العامه'!#REF!)),COLUMN('اليومية العامه'!E:E)-1),\"\")","v":""},{"$f":"IFERROR(INDEX('اليومية العامه'!$B$7:$K$16,SMALL(IF(('اليومية العامه'!$B$7:$B$16>='كشف حساب تحليلى'!$C$6)*('اليومية العامه'!$B$7:$B$16<='كشف حساب تحليلى'!$G$6)*('اليومية العامه'!$F$7:$F$16='كشف حساب تحليلى'!$J$6)*('اليومية العامه'!$G$7:$G$16='كشف حساب تحليلى'!$J$8),ROW('اليومية العامه'!$B$7:$B$16)-6,\"\"),ROW('اليومية العامه'!#REF!)),COLUMN('اليومية العامه'!F:F)-1),\"\")","v":""},{"$f":"IFERROR(INDEX('اليومية العامه'!$B$7:$K$16,SMALL(IF(('اليومية العامه'!$B$7:$B$16>='كشف حساب تحليلى'!$C$6)*('اليومية العامه'!$B$7:$B$16<='كشف حساب تحليلى'!$G$6)*('اليومية العامه'!$F$7:$F$16='كشف حساب تحليلى'!$J$6)*('اليومية العامه'!$G$7:$G$16='كشف حساب تحليلى'!$J$8),ROW('اليومية العامه'!$B$7:$B$16)-6,\"\"),ROW('اليومية العامه'!#REF!)),COLUMN('اليومية العامه'!G:G)-1),\"\")","v":""},{"$f":"IFERROR(INDEX('اليومية العامه'!$B$7:$K$16,SMALL(IF(('اليومية العامه'!$B$7:$B$16>='كشف حساب تحليلى'!$C$6)*('اليومية العامه'!$B$7:$B$16<='كشف حساب تحليلى'!$G$6)*('اليومية العامه'!$F$7:$F$16='كشف حساب تحليلى'!$J$6)*('اليومية العامه'!$G$7:$G$16='كشف حساب تحليلى'!$J$8),ROW('اليومية العامه'!$B$7:$B$16)-6,\"\"),ROW('اليومية العامه'!#REF!)),COLUMN('اليومية العامه'!H:H)-1),\"\")","v":""},{"$f":"IFERROR(INDEX('اليومية العامه'!$B$7:$K$16,SMALL(IF(('اليومية العامه'!$B$7:$B$16>='كشف حساب تحليلى'!$C$6)*('اليومية العامه'!$B$7:$B$16<='كشف حساب تحليلى'!$G$6)*('اليومية العامه'!$F$7:$F$16='كشف حساب تحليلى'!$J$6)*('اليومية العامه'!$G$7:$G$16='كشف حساب تحليلى'!$J$8),ROW('اليومية العامه'!$B$7:$B$16)-6,\"\"),ROW('اليومية العامه'!#REF!)),COLUMN('اليومية العامه'!I:I)-1),\"\")","v":""},{"$f":"IFERROR(INDEX('اليومية العامه'!$B$7:$K$16,SMALL(IF(('اليومية العامه'!$B$7:$B$16>='كشف حساب تحليلى'!$C$6)*('اليومية العامه'!$B$7:$B$16<='كشف حساب تحليلى'!$G$6)*('اليومية العامه'!$F$7:$F$16='كشف حساب تحليلى'!$J$6)*('اليومية العامه'!$G$7:$G$16='كشف حساب تحليلى'!$J$8),ROW('اليومية العامه'!$B$7:$B$16)-6,\"\"),ROW('اليومية العامه'!#REF!)),COLUMN('اليومية العامه'!J:J)-1),\"\")","v":""},{"$f":"IFERROR(INDEX('اليومية العامه'!$B$7:$K$16,SMALL(IF(('اليومية العامه'!$B$7:$B$16>='كشف حساب تحليلى'!$C$6)*('اليومية العامه'!$B$7:$B$16<='كشف حساب تحليلى'!$G$6)*('اليومية العامه'!$F$7:$F$16='كشف حساب تحليلى'!$J$6)*('اليومية العامه'!$G$7:$G$16='كشف حساب تحليلى'!$J$8),ROW('اليومية العامه'!$B$7:$B$16)-6,\"\"),ROW('اليومية العامه'!#REF!)),COLUMN('اليومية العامه'!K:K)-1),\"\")","v":""}]
[null,{"$f":"IFERROR(INDEX('اليومية العامه'!$B$7:$K$16,SMALL(IF(('اليومية العامه'!$B$7:$B$16>='كشف حساب تحليلى'!$C$6)*('اليومية العامه'!$B$7:$B$16<='كشف حساب تحليلى'!$G$6)*('اليومية العامه'!$F$7:$F$16='كشف حساب تحليلى'!$J$6)*('اليومية العامه'!$G$7:$G$16='كشف حساب تحليلى'!$J$8),ROW('اليومية العامه'!$B$7:$B$16)-6,\"\"),ROW('اليومية العامه'!#REF!)),COLUMN('اليومية العامه'!B:B)-1),\"\")","v":""},{"$f":"IFERROR(INDEX('اليومية العامه'!$B$7:$K$16,SMALL(IF(('اليومية العامه'!$B$7:$B$16>='كشف حساب تحليلى'!$C$6)*('اليومية العامه'!$B$7:$B$16<='كشف حساب تحليلى'!$G$6)*('اليومية العامه'!$F$7:$F$16='كشف حساب تحليلى'!$J$6)*('اليومية العامه'!$G$7:$G$16='كشف حساب تحليلى'!$J$8),ROW('اليومية العامه'!$B$7:$B$16)-6,\"\"),ROW('اليومية العامه'!#REF!)),COLUMN('اليومية العامه'!C:C)-1),\"\")","v":""},{"$f":"IFERROR(INDEX('اليومية العامه'!$B$7:$K$16,SMALL(IF(('اليومية العامه'!$B$7:$B$16>='كشف حساب تحليلى'!$C$6)*('اليومية العامه'!$B$7:$B$16<='كشف حساب تحليلى'!$G$6)*('اليومية العامه'!$F$7:$F$16='كشف حساب تحليلى'!$J$6)*('اليومية العامه'!$G$7:$G$16='كشف حساب تحليلى'!$J$8),ROW('اليومية العامه'!$B$7:$B$16)-6,\"\"),ROW('اليومية العامه'!#REF!)),COLUMN('اليومية العامه'!D:D)-1),\"\")","v":""},{"$f":"IFERROR(INDEX('اليومية العامه'!$B$7:$K$16,SMALL(IF(('اليومية العامه'!$B$7:$B$16>='كشف حساب تحليلى'!$C$6)*('اليومية العامه'!$B$7:$B$16<='كشف حساب تحليلى'!$G$6)*('اليومية العامه'!$F$7:$F$16='كشف حساب تحليلى'!$J$6)*('اليومية العامه'!$G$7:$G$16='كشف حساب تحليلى'!$J$8),ROW('اليومية العامه'!$B$7:$B$16)-6,\"\"),ROW('اليومية العامه'!#REF!)),COLUMN('اليومية العامه'!E:E)-1),\"\")","v":""},{"$f":"IFERROR(INDEX('اليومية العامه'!$B$7:$K$16,SMALL(IF(('اليومية العامه'!$B$7:$B$16>='كشف حساب تحليلى'!$C$6)*('اليومية العامه'!$B$7:$B$16<='كشف حساب تحليلى'!$G$6)*('اليومية العامه'!$F$7:$F$16='كشف حساب تحليلى'!$J$6)*('اليومية العامه'!$G$7:$G$16='كشف حساب تحليلى'!$J$8),ROW('اليومية العامه'!$B$7:$B$16)-6,\"\"),ROW('اليومية العامه'!#REF!)),COLUMN('اليومية العامه'!F:F)-1),\"\")","v":""},{"$f":"IFERROR(INDEX('اليومية العامه'!$B$7:$K$16,SMALL(IF(('اليومية العامه'!$B$7:$B$16>='كشف حساب تحليلى'!$C$6)*('اليومية العامه'!$B$7:$B$16<='كشف حساب تحليلى'!$G$6)*('اليومية العامه'!$F$7:$F$16='كشف حساب تحليلى'!$J$6)*('اليومية العامه'!$G$7:$G$16='كشف حساب تحليلى'!$J$8),ROW('اليومية العامه'!$B$7:$B$16)-6,\"\"),ROW('اليومية العامه'!#REF!)),COLUMN('اليومية العامه'!G:G)-1),\"\")","v":""},{"$f":"IFERROR(INDEX('اليومية العامه'!$B$7:$K$16,SMALL(IF(('اليومية العامه'!$B$7:$B$16>='كشف حساب تحليلى'!$C$6)*('اليومية العامه'!$B$7:$B$16<='كشف حساب تحليلى'!$G$6)*('اليومية العامه'!$F$7:$F$16='كشف حساب تحليلى'!$J$6)*('اليومية العامه'!$G$7:$G$16='كشف حساب تحليلى'!$J$8),ROW('اليومية العامه'!$B$7:$B$16)-6,\"\"),ROW('اليومية العامه'!#REF!)),COLUMN('اليومية العامه'!H:H)-1),\"\")","v":""},{"$f":"IFERROR(INDEX('اليومية العامه'!$B$7:$K$16,SMALL(IF(('اليومية العامه'!$B$7:$B$16>='كشف حساب تحليلى'!$C$6)*('اليومية العامه'!$B$7:$B$16<='كشف حساب تحليلى'!$G$6)*('اليومية العامه'!$F$7:$F$16='كشف حساب تحليلى'!$J$6)*('اليومية العامه'!$G$7:$G$16='كشف حساب تحليلى'!$J$8),ROW('اليومية العامه'!$B$7:$B$16)-6,\"\"),ROW('اليومية العامه'!#REF!)),COLUMN('اليومية العامه'!I:I)-1),\"\")","v":""},{"$f":"IFERROR(INDEX('اليومية العامه'!$B$7:$K$16,SMALL(IF(('اليومية العامه'!$B$7:$B$16>='كشف حساب تحليلى'!$C$6)*('اليومية العامه'!$B$7:$B$16<='كشف حساب تحليلى'!$G$6)*('اليومية العامه'!$F$7:$F$16='كشف حساب تحليلى'!$J$6)*('اليومية العامه'!$G$7:$G$16='كشف حساب تحليلى'!$J$8),ROW('اليومية العامه'!$B$7:$B$16)-6,\"\"),ROW('اليومية العامه'!#REF!)),COLUMN('اليومية العامه'!J:J)-1),\"\")","v":""},{"$f":"IFERROR(INDEX('اليومية العامه'!$B$7:$K$16,SMALL(IF(('اليومية العامه'!$B$7:$B$16>='كشف حساب تحليلى'!$C$6)*('اليومية العامه'!$B$7:$B$16<='كشف حساب تحليلى'!$G$6)*('اليومية العامه'!$F$7:$F$16='كشف حساب تحليلى'!$J$6)*('اليومية العامه'!$G$7:$G$16='كشف حساب تحليلى'!$J$8),ROW('اليومية العامه'!$B$7:$B$16)-6,\"\"),ROW('اليومية العامه'!#REF!)),COLUMN('اليومية العامه'!K:K)-1),\"\")","v":""}]
[null,{"$f":"IFERROR(INDEX('اليومية العامه'!$B$7:$K$16,SMALL(IF(('اليومية العامه'!$B$7:$B$16>='كشف حساب تحليلى'!$C$6)*('اليومية العامه'!$B$7:$B$16<='كشف حساب تحليلى'!$G$6)*('اليومية العامه'!$F$7:$F$16='كشف حساب تحليلى'!$J$6)*('اليومية العامه'!$G$7:$G$16='كشف حساب تحليلى'!$J$8),ROW('اليومية العامه'!$B$7:$B$16)-6,\"\"),ROW('اليومية العامه'!#REF!)),COLUMN('اليومية العامه'!B:B)-1),\"\")","v":""},{"$f":"IFERROR(INDEX('اليومية العامه'!$B$7:$K$16,SMALL(IF(('اليومية العامه'!$B$7:$B$16>='كشف حساب تحليلى'!$C$6)*('اليومية العامه'!$B$7:$B$16<='كشف حساب تحليلى'!$G$6)*('اليومية العامه'!$F$7:$F$16='كشف حساب تحليلى'!$J$6)*('اليومية العامه'!$G$7:$G$16='كشف حساب تحليلى'!$J$8),ROW('اليومية العامه'!$B$7:$B$16)-6,\"\"),ROW('اليومية العامه'!#REF!)),COLUMN('اليومية العامه'!C:C)-1),\"\")","v":""},{"$f":"IFERROR(INDEX('اليومية العامه'!$B$7:$K$16,SMALL(IF(('اليومية العامه'!$B$7:$B$16>='كشف حساب تحليلى'!$C$6)*('اليومية العامه'!$B$7:$B$16<='كشف حساب تحليلى'!$G$6)*('اليومية العامه'!$F$7:$F$16='كشف حساب تحليلى'!$J$6)*('اليومية العامه'!$G$7:$G$16='كشف حساب تحليلى'!$J$8),ROW('اليومية العامه'!$B$7:$B$16)-6,\"\"),ROW('اليومية العامه'!#REF!)),COLUMN('اليومية العامه'!D:D)-1),\"\")","v":""},{"$f":"IFERROR(INDEX('اليومية العامه'!$B$7:$K$16,SMALL(IF(('اليومية العامه'!$B$7:$B$16>='كشف حساب تحليلى'!$C$6)*('اليومية العامه'!$B$7:$B$16<='كشف حساب تحليلى'!$G$6)*('اليومية العامه'!$F$7:$F$16='كشف حساب تحليلى'!$J$6)*('اليومية العامه'!$G$7:$G$16='كشف حساب تحليلى'!$J$8),ROW('اليومية العامه'!$B$7:$B$16)-6,\"\"),ROW('اليومية العامه'!#REF!)),COLUMN('اليومية العامه'!E:E)-1),\"\")","v":""},{"$f":"IFERROR(INDEX('اليومية العامه'!$B$7:$K$16,SMALL(IF(('اليومية العامه'!$B$7:$B$16>='كشف حساب تحليلى'!$C$6)*('اليومية العامه'!$B$7:$B$16<='كشف حساب تحليلى'!$G$6)*('اليومية العامه'!$F$7:$F$16='كشف حساب تحليلى'!$J$6)*('اليومية العامه'!$G$7:$G$16='كشف حساب تحليلى'!$J$8),ROW('اليومية العامه'!$B$7:$B$16)-6,\"\"),ROW('اليومية العامه'!#REF!)),COLUMN('اليومية العامه'!F:F)-1),\"\")","v":""},{"$f":"IFERROR(INDEX('اليومية العامه'!$B$7:$K$16,SMALL(IF(('اليومية العامه'!$B$7:$B$16>='كشف حساب تحليلى'!$C$6)*('اليومية العامه'!$B$7:$B$16<='كشف حساب تحليلى'!$G$6)*('اليومية العامه'!$F$7:$F$16='كشف حساب تحليلى'!$J$6)*('اليومية العامه'!$G$7:$G$16='كشف حساب تحليلى'!$J$8),ROW('اليومية العامه'!$B$7:$B$16)-6,\"\"),ROW('اليومية العامه'!#REF!)),COLUMN('اليومية العامه'!G:G)-1),\"\")","v":""},{"$f":"IFERROR(INDEX('اليومية العامه'!$B$7:$K$16,SMALL(IF(('اليومية العامه'!$B$7:$B$16>='كشف حساب تحليلى'!$C$6)*('اليومية العامه'!$B$7:$B$16<='كشف حساب تحليلى'!$G$6)*('اليومية العامه'!$F$7:$F$16='كشف حساب تحليلى'!$J$6)*('اليومية العامه'!$G$7:$G$16='كشف حساب تحليلى'!$J$8),ROW('اليومية العامه'!$B$7:$B$16)-6,\"\"),ROW('اليومية العامه'!#REF!)),COLUMN('اليومية العامه'!H:H)-1),\"\")","v":""},{"$f":"IFERROR(INDEX('اليومية العامه'!$B$7:$K$16,SMALL(IF(('اليومية العامه'!$B$7:$B$16>='كشف حساب تحليلى'!$C$6)*('اليومية العامه'!$B$7:$B$16<='كشف حساب تحليلى'!$G$6)*('اليومية العامه'!$F$7:$F$16='كشف حساب تحليلى'!$J$6)*('اليومية العامه'!$G$7:$G$16='كشف حساب تحليلى'!$J$8),ROW('اليومية العامه'!$B$7:$B$16)-6,\"\"),ROW('اليومية العامه'!#REF!)),COLUMN('اليومية العامه'!I:I)-1),\"\")","v":""},{"$f":"IFERROR(INDEX('اليومية العامه'!$B$7:$K$16,SMALL(IF(('اليومية العامه'!$B$7:$B$16>='كشف حساب تحليلى'!$C$6)*('اليومية العامه'!$B$7:$B$16<='كشف حساب تحليلى'!$G$6)*('اليومية العامه'!$F$7:$F$16='كشف حساب تحليلى'!$J$6)*('اليومية العامه'!$G$7:$G$16='كشف حساب تحليلى'!$J$8),ROW('اليومية العامه'!$B$7:$B$16)-6,\"\"),ROW('اليومية العامه'!#REF!)),COLUMN('اليومية العامه'!J:J)-1),\"\")","v":""},{"$f":"IFERROR(INDEX('اليومية العامه'!$B$7:$K$16,SMALL(IF(('اليومية العامه'!$B$7:$B$16>='كشف حساب تحليلى'!$C$6)*('اليومية العامه'!$B$7:$B$16<='كشف حساب تحليلى'!$G$6)*('اليومية العامه'!$F$7:$F$16='كشف حساب تحليلى'!$J$6)*('اليومية العامه'!$G$7:$G$16='كشف حساب تحليلى'!$J$8),ROW('اليومية العامه'!$B$7:$B$16)-6,\"\"),ROW('اليومية العامه'!#REF!)),COLUMN('اليومية العامه'!K:K)-1),\"\")","v":""}]
[null,{"$f":"IFERROR(INDEX('اليومية العامه'!$B$7:$K$16,SMALL(IF(('اليومية العامه'!$B$7:$B$16>='كشف حساب تحليلى'!$C$6)*('اليومية العامه'!$B$7:$B$16<='كشف حساب تحليلى'!$G$6)*('اليومية العامه'!$F$7:$F$16='كشف حساب تحليلى'!$J$6)*('اليومية العامه'!$G$7:$G$16='كشف حساب تحليلى'!$J$8),ROW('اليومية العامه'!$B$7:$B$16)-6,\"\"),ROW('اليومية العامه'!#REF!)),COLUMN('اليومية العامه'!B:B)-1),\"\")","v":""},{"$f":"IFERROR(INDEX('اليومية العامه'!$B$7:$K$16,SMALL(IF(('اليومية العامه'!$B$7:$B$16>='كشف حساب تحليلى'!$C$6)*('اليومية العامه'!$B$7:$B$16<='كشف حساب تحليلى'!$G$6)*('اليومية العامه'!$F$7:$F$16='كشف حساب تحليلى'!$J$6)*('اليومية العامه'!$G$7:$G$16='كشف حساب تحليلى'!$J$8),ROW('اليومية العامه'!$B$7:$B$16)-6,\"\"),ROW('اليومية العامه'!#REF!)),COLUMN('اليومية العامه'!C:C)-1),\"\")","v":""},{"$f":"IFERROR(INDEX('اليومية العامه'!$B$7:$K$16,SMALL(IF(('اليومية العامه'!$B$7:$B$16>='كشف حساب تحليلى'!$C$6)*('اليومية العامه'!$B$7:$B$16<='كشف حساب تحليلى'!$G$6)*('اليومية العامه'!$F$7:$F$16='كشف حساب تحليلى'!$J$6)*('اليومية العامه'!$G$7:$G$16='كشف حساب تحليلى'!$J$8),ROW('اليومية العامه'!$B$7:$B$16)-6,\"\"),ROW('اليومية العامه'!#REF!)),COLUMN('اليومية العامه'!D:D)-1),\"\")","v":""},{"$f":"IFERROR(INDEX('اليومية العامه'!$B$7:$K$16,SMALL(IF(('اليومية العامه'!$B$7:$B$16>='كشف حساب تحليلى'!$C$6)*('اليومية العامه'!$B$7:$B$16<='كشف حساب تحليلى'!$G$6)*('اليومية العامه'!$F$7:$F$16='كشف حساب تحليلى'!$J$6)*('اليومية العامه'!$G$7:$G$16='كشف حساب تحليلى'!$J$8),ROW('اليومية العامه'!$B$7:$B$16)-6,\"\"),ROW('اليومية العامه'!#REF!)),COLUMN('اليومية العامه'!E:E)-1),\"\")","v":""},{"$f":"IFERROR(INDEX('اليومية العامه'!$B$7:$K$16,SMALL(IF(('اليومية العامه'!$B$7:$B$16>='كشف حساب تحليلى'!$C$6)*('اليومية العامه'!$B$7:$B$16<='كشف حساب تحليلى'!$G$6)*('اليومية العامه'!$F$7:$F$16='كشف حساب تحليلى'!$J$6)*('اليومية العامه'!$G$7:$G$16='كشف حساب تحليلى'!$J$8),ROW('اليومية العامه'!$B$7:$B$16)-6,\"\"),ROW('اليومية العامه'!#REF!)),COLUMN('اليومية العامه'!F:F)-1),\"\")","v":""},{"$f":"IFERROR(INDEX('اليومية العامه'!$B$7:$K$16,SMALL(IF(('اليومية العامه'!$B$7:$B$16>='كشف حساب تحليلى'!$C$6)*('اليومية العامه'!$B$7:$B$16<='كشف حساب تحليلى'!$G$6)*('اليومية العامه'!$F$7:$F$16='كشف حساب تحليلى'!$J$6)*('اليومية العامه'!$G$7:$G$16='كشف حساب تحليلى'!$J$8),ROW('اليومية العامه'!$B$7:$B$16)-6,\"\"),ROW('اليومية العامه'!#REF!)),COLUMN('اليومية العامه'!G:G)-1),\"\")","v":""},{"$f":"IFERROR(INDEX('اليومية العامه'!$B$7:$K$16,SMALL(IF(('اليومية العامه'!$B$7:$B$16>='كشف حساب تحليلى'!$C$6)*('اليومية العامه'!$B$7:$B$16<='كشف حساب تحليلى'!$G$6)*('اليومية العامه'!$F$7:$F$16='كشف حساب تحليلى'!$J$6)*('اليومية العامه'!$G$7:$G$16='كشف حساب تحليلى'!$J$8),ROW('اليومية العامه'!$B$7:$B$16)-6,\"\"),ROW('اليومية العامه'!#REF!)),COLUMN('اليومية العامه'!H:H)-1),\"\")","v":""},{"$f":"IFERROR(INDEX('اليومية العامه'!$B$7:$K$16,SMALL(IF(('اليومية العامه'!$B$7:$B$16>='كشف حساب تحليلى'!$C$6)*('اليومية العامه'!$B$7:$B$16<='كشف حساب تحليلى'!$G$6)*('اليومية العامه'!$F$7:$F$16='كشف حساب تحليلى'!$J$6)*('اليومية العامه'!$G$7:$G$16='كشف حساب تحليلى'!$J$8),ROW('اليومية العامه'!$B$7:$B$16)-6,\"\"),ROW('اليومية العامه'!#REF!)),COLUMN('اليومية العامه'!I:I)-1),\"\")","v":""},{"$f":"IFERROR(INDEX('اليومية العامه'!$B$7:$K$16,SMALL(IF(('اليومية العامه'!$B$7:$B$16>='كشف حساب تحليلى'!$C$6)*('اليومية العامه'!$B$7:$B$16<='كشف حساب تحليلى'!$G$6)*('اليومية العامه'!$F$7:$F$16='كشف حساب تحليلى'!$J$6)*('اليومية العامه'!$G$7:$G$16='كشف حساب تحليلى'!$J$8),ROW('اليومية العامه'!$B$7:$B$16)-6,\"\"),ROW('اليومية العامه'!#REF!)),COLUMN('اليومية العامه'!J:J)-1),\"\")","v":""},{"$f":"IFERROR(INDEX('اليومية العامه'!$B$7:$K$16,SMALL(IF(('اليومية العامه'!$B$7:$B$16>='كشف حساب تحليلى'!$C$6)*('اليومية العامه'!$B$7:$B$16<='كشف حساب تحليلى'!$G$6)*('اليومية العامه'!$F$7:$F$16='كشف حساب تحليلى'!$J$6)*('اليومية العامه'!$G$7:$G$16='كشف حساب تحليلى'!$J$8),ROW('اليومية العامه'!$B$7:$B$16)-6,\"\"),ROW('اليومية العامه'!#REF!)),COLUMN('اليومية العامه'!K:K)-1),\"\")","v":""}]
[null,{"$f":"IFERROR(INDEX('اليومية العامه'!$B$7:$K$16,SMALL(IF(('اليومية العامه'!$B$7:$B$16>='كشف حساب تحليلى'!$C$6)*('اليومية العامه'!$B$7:$B$16<='كشف حساب تحليلى'!$G$6)*('اليومية العامه'!$F$7:$F$16='كشف حساب تحليلى'!$J$6)*('اليومية العامه'!$G$7:$G$16='كشف حساب تحليلى'!$J$8),ROW('اليومية العامه'!$B$7:$B$16)-6,\"\"),ROW('اليومية العامه'!#REF!)),COLUMN('اليومية العامه'!B:B)-1),\"\")","v":""},{"$f":"IFERROR(INDEX('اليومية العامه'!$B$7:$K$16,SMALL(IF(('اليومية العامه'!$B$7:$B$16>='كشف حساب تحليلى'!$C$6)*('اليومية العامه'!$B$7:$B$16<='كشف حساب تحليلى'!$G$6)*('اليومية العامه'!$F$7:$F$16='كشف حساب تحليلى'!$J$6)*('اليومية العامه'!$G$7:$G$16='كشف حساب تحليلى'!$J$8),ROW('اليومية العامه'!$B$7:$B$16)-6,\"\"),ROW('اليومية العامه'!#REF!)),COLUMN('اليومية العامه'!C:C)-1),\"\")","v":""},{"$f":"IFERROR(INDEX('اليومية العامه'!$B$7:$K$16,SMALL(IF(('اليومية العامه'!$B$7:$B$16>='كشف حساب تحليلى'!$C$6)*('اليومية العامه'!$B$7:$B$16<='كشف حساب تحليلى'!$G$6)*('اليومية العامه'!$F$7:$F$16='كشف حساب تحليلى'!$J$6)*('اليومية العامه'!$G$7:$G$16='كشف حساب تحليلى'!$J$8),ROW('اليومية العامه'!$B$7:$B$16)-6,\"\"),ROW('اليومية العامه'!#REF!)),COLUMN('اليومية العامه'!D:D)-1),\"\")","v":""},{"$f":"IFERROR(INDEX('اليومية العامه'!$B$7:$K$16,SMALL(IF(('اليومية العامه'!$B$7:$B$16>='كشف حساب تحليلى'!$C$6)*('اليومية العامه'!$B$7:$B$16<='كشف حساب تحليلى'!$G$6)*('اليومية العامه'!$F$7:$F$16='كشف حساب تحليلى'!$J$6)*('اليومية العامه'!$G$7:$G$16='كشف حساب تحليلى'!$J$8),ROW('اليومية العامه'!$B$7:$B$16)-6,\"\"),ROW('اليومية العامه'!#REF!)),COLUMN('اليومية العامه'!E:E)-1),\"\")","v":""},{"$f":"IFERROR(INDEX('اليومية العامه'!$B$7:$K$16,SMALL(IF(('اليومية العامه'!$B$7:$B$16>='كشف حساب تحليلى'!$C$6)*('اليومية العامه'!$B$7:$B$16<='كشف حساب تحليلى'!$G$6)*('اليومية العامه'!$F$7:$F$16='كشف حساب تحليلى'!$J$6)*('اليومية العامه'!$G$7:$G$16='كشف حساب تحليلى'!$J$8),ROW('اليومية العامه'!$B$7:$B$16)-6,\"\"),ROW('اليومية العامه'!#REF!)),COLUMN('اليومية العامه'!F:F)-1),\"\")","v":""},{"$f":"IFERROR(INDEX('اليومية العامه'!$B$7:$K$16,SMALL(IF(('اليومية العامه'!$B$7:$B$16>='كشف حساب تحليلى'!$C$6)*('اليومية العامه'!$B$7:$B$16<='كشف حساب تحليلى'!$G$6)*('اليومية العامه'!$F$7:$F$16='كشف حساب تحليلى'!$J$6)*('اليومية العامه'!$G$7:$G$16='كشف حساب تحليلى'!$J$8),ROW('اليومية العامه'!$B$7:$B$16)-6,\"\"),ROW('اليومية العامه'!#REF!)),COLUMN('اليومية العامه'!G:G)-1),\"\")","v":""},{"$f":"IFERROR(INDEX('اليومية العامه'!$B$7:$K$16,SMALL(IF(('اليومية العامه'!$B$7:$B$16>='كشف حساب تحليلى'!$C$6)*('اليومية العامه'!$B$7:$B$16<='كشف حساب تحليلى'!$G$6)*('اليومية العامه'!$F$7:$F$16='كشف حساب تحليلى'!$J$6)*('اليومية العامه'!$G$7:$G$16='كشف حساب تحليلى'!$J$8),ROW('اليومية العامه'!$B$7:$B$16)-6,\"\"),ROW('اليومية العامه'!#REF!)),COLUMN('اليومية العامه'!H:H)-1),\"\")","v":""},{"$f":"IFERROR(INDEX('اليومية العامه'!$B$7:$K$16,SMALL(IF(('اليومية العامه'!$B$7:$B$16>='كشف حساب تحليلى'!$C$6)*('اليومية العامه'!$B$7:$B$16<='كشف حساب تحليلى'!$G$6)*('اليومية العامه'!$F$7:$F$16='كشف حساب تحليلى'!$J$6)*('اليومية العامه'!$G$7:$G$16='كشف حساب تحليلى'!$J$8),ROW('اليومية العامه'!$B$7:$B$16)-6,\"\"),ROW('اليومية العامه'!#REF!)),COLUMN('اليومية العامه'!I:I)-1),\"\")","v":""},{"$f":"IFERROR(INDEX('اليومية العامه'!$B$7:$K$16,SMALL(IF(('اليومية العامه'!$B$7:$B$16>='كشف حساب تحليلى'!$C$6)*('اليومية العامه'!$B$7:$B$16<='كشف حساب تحليلى'!$G$6)*('اليومية العامه'!$F$7:$F$16='كشف حساب تحليلى'!$J$6)*('اليومية العامه'!$G$7:$G$16='كشف حساب تحليلى'!$J$8),ROW('اليومية العامه'!$B$7:$B$16)-6,\"\"),ROW('اليومية العامه'!#REF!)),COLUMN('اليومية العامه'!J:J)-1),\"\")","v":""},{"$f":"IFERROR(INDEX('اليومية العامه'!$B$7:$K$16,SMALL(IF(('اليومية العامه'!$B$7:$B$16>='كشف حساب تحليلى'!$C$6)*('اليومية العامه'!$B$7:$B$16<='كشف حساب تحليلى'!$G$6)*('اليومية العامه'!$F$7:$F$16='كشف حساب تحليلى'!$J$6)*('اليومية العامه'!$G$7:$G$16='كشف حساب تحليلى'!$J$8),ROW('اليومية العامه'!$B$7:$B$16)-6,\"\"),ROW('اليومية العامه'!#REF!)),COLUMN('اليومية العامه'!K:K)-1),\"\")","v":""}]
[null,{"$f":"IFERROR(INDEX('اليومية العامه'!$B$7:$K$16,SMALL(IF(('اليومية العامه'!$B$7:$B$16>='كشف حساب تحليلى'!$C$6)*('اليومية العامه'!$B$7:$B$16<='كشف حساب تحليلى'!$G$6)*('اليومية العامه'!$F$7:$F$16='كشف حساب تحليلى'!$J$6)*('اليومية العامه'!$G$7:$G$16='كشف حساب تحليلى'!$J$8),ROW('اليومية العامه'!$B$7:$B$16)-6,\"\"),ROW('اليومية العامه'!#REF!)),COLUMN('اليومية العامه'!B:B)-1),\"\")","v":""},{"$f":"IFERROR(INDEX('اليومية العامه'!$B$7:$K$16,SMALL(IF(('اليومية العامه'!$B$7:$B$16>='كشف حساب تحليلى'!$C$6)*('اليومية العامه'!$B$7:$B$16<='كشف حساب تحليلى'!$G$6)*('اليومية العامه'!$F$7:$F$16='كشف حساب تحليلى'!$J$6)*('اليومية العامه'!$G$7:$G$16='كشف حساب تحليلى'!$J$8),ROW('اليومية العامه'!$B$7:$B$16)-6,\"\"),ROW('اليومية العامه'!#REF!)),COLUMN('اليومية العامه'!C:C)-1),\"\")","v":""},{"$f":"IFERROR(INDEX('اليومية العامه'!$B$7:$K$16,SMALL(IF(('اليومية العامه'!$B$7:$B$16>='كشف حساب تحليلى'!$C$6)*('اليومية العامه'!$B$7:$B$16<='كشف حساب تحليلى'!$G$6)*('اليومية العامه'!$F$7:$F$16='كشف حساب تحليلى'!$J$6)*('اليومية العامه'!$G$7:$G$16='كشف حساب تحليلى'!$J$8),ROW('اليومية العامه'!$B$7:$B$16)-6,\"\"),ROW('اليومية العامه'!#REF!)),COLUMN('اليومية العامه'!D:D)-1),\"\")","v":""},{"$f":"IFERROR(INDEX('اليومية العامه'!$B$7:$K$16,SMALL(IF(('اليومية العامه'!$B$7:$B$16>='كشف حساب تحليلى'!$C$6)*('اليومية العامه'!$B$7:$B$16<='كشف حساب تحليلى'!$G$6)*('اليومية العامه'!$F$7:$F$16='كشف حساب تحليلى'!$J$6)*('اليومية العامه'!$G$7:$G$16='كشف حساب تحليلى'!$J$8),ROW('اليومية العامه'!$B$7:$B$16)-6,\"\"),ROW('اليومية العامه'!#REF!)),COLUMN('اليومية العامه'!E:E)-1),\"\")","v":""},{"$f":"IFERROR(INDEX('اليومية العامه'!$B$7:$K$16,SMALL(IF(('اليومية العامه'!$B$7:$B$16>='كشف حساب تحليلى'!$C$6)*('اليومية العامه'!$B$7:$B$16<='كشف حساب تحليلى'!$G$6)*('اليومية العامه'!$F$7:$F$16='كشف حساب تحليلى'!$J$6)*('اليومية العامه'!$G$7:$G$16='كشف حساب تحليلى'!$J$8),ROW('اليومية العامه'!$B$7:$B$16)-6,\"\"),ROW('اليومية العامه'!#REF!)),COLUMN('اليومية العامه'!F:F)-1),\"\")","v":""},{"$f":"IFERROR(INDEX('اليومية العامه'!$B$7:$K$16,SMALL(IF(('اليومية العامه'!$B$7:$B$16>='كشف حساب تحليلى'!$C$6)*('اليومية العامه'!$B$7:$B$16<='كشف حساب تحليلى'!$G$6)*('اليومية العامه'!$F$7:$F$16='كشف حساب تحليلى'!$J$6)*('اليومية العامه'!$G$7:$G$16='كشف حساب تحليلى'!$J$8),ROW('اليومية العامه'!$B$7:$B$16)-6,\"\"),ROW('اليومية العامه'!#REF!)),COLUMN('اليومية العامه'!G:G)-1),\"\")","v":""},{"$f":"IFERROR(INDEX('اليومية العامه'!$B$7:$K$16,SMALL(IF(('اليومية العامه'!$B$7:$B$16>='كشف حساب تحليلى'!$C$6)*('اليومية العامه'!$B$7:$B$16<='كشف حساب تحليلى'!$G$6)*('اليومية العامه'!$F$7:$F$16='كشف حساب تحليلى'!$J$6)*('اليومية العامه'!$G$7:$G$16='كشف حساب تحليلى'!$J$8),ROW('اليومية العامه'!$B$7:$B$16)-6,\"\"),ROW('اليومية العامه'!#REF!)),COLUMN('اليومية العامه'!H:H)-1),\"\")","v":""},{"$f":"IFERROR(INDEX('اليومية العامه'!$B$7:$K$16,SMALL(IF(('اليومية العامه'!$B$7:$B$16>='كشف حساب تحليلى'!$C$6)*('اليومية العامه'!$B$7:$B$16<='كشف حساب تحليلى'!$G$6)*('اليومية العامه'!$F$7:$F$16='كشف حساب تحليلى'!$J$6)*('اليومية العامه'!$G$7:$G$16='كشف حساب تحليلى'!$J$8),ROW('اليومية العامه'!$B$7:$B$16)-6,\"\"),ROW('اليومية العامه'!#REF!)),COLUMN('اليومية العامه'!I:I)-1),\"\")","v":""},{"$f":"IFERROR(INDEX('اليومية العامه'!$B$7:$K$16,SMALL(IF(('اليومية العامه'!$B$7:$B$16>='كشف حساب تحليلى'!$C$6)*('اليومية العامه'!$B$7:$B$16<='كشف حساب تحليلى'!$G$6)*('اليومية العامه'!$F$7:$F$16='كشف حساب تحليلى'!$J$6)*('اليومية العامه'!$G$7:$G$16='كشف حساب تحليلى'!$J$8),ROW('اليومية العامه'!$B$7:$B$16)-6,\"\"),ROW('اليومية العامه'!#REF!)),COLUMN('اليومية العامه'!J:J)-1),\"\")","v":""},{"$f":"IFERROR(INDEX('اليومية العامه'!$B$7:$K$16,SMALL(IF(('اليومية العامه'!$B$7:$B$16>='كشف حساب تحليلى'!$C$6)*('اليومية العامه'!$B$7:$B$16<='كشف حساب تحليلى'!$G$6)*('اليومية العامه'!$F$7:$F$16='كشف حساب تحليلى'!$J$6)*('اليومية العامه'!$G$7:$G$16='كشف حساب تحليلى'!$J$8),ROW('اليومية العامه'!$B$7:$B$16)-6,\"\"),ROW('اليومية العامه'!#REF!)),COLUMN('اليومية العامه'!K:K)-1),\"\")","v":""}]
[null,null,null,null,null,"اجماليات الحساب",null,null,{"$f":"SUM(I12:I70)","v":0},{"$f":"SUM(J12:J70)","v":0}]
[]
[null,null,null,null,null,null,null,null,"تصميم \nمحاسب / محمد الريفى \nhttps://www.facebook.com/elrifi.elrify\nلاتنسونا بصالح دعاؤكم "]

{"sheet":"كشف حساب عام","index":4,"n_rows":11,"n_cols":9,"rows_kept":11,"cut":false,"hidden":true,"merged":[]}
[]
[]
[null,null,null,null,null,null,null,null,"تصميم \nمحاسب / محمد الريفى \nhttps://www.facebook.com/elrifi.elrify\nلاتنسونا بصالح دعاؤكم "]
[null,"القسم","اسم الصنف","مستند التوريد","نوع الفاتورة","وصف القيد","مجموع من مدين","مجموع من دائن"]
[null,"الخزينه","خزينه 1",1,"توريد نقديه","(blank)"]
[]
[null,null,null,2,"(blank)","(blank)"]
[]
[null,"الخزينه Total"]
[]
[null,"Grand Total"]

{"sheet":"ميزان المراجعه","index":5,"n_rows":78,"n_cols":8,"rows_kept":78,"cut":false,"hidden":true,"merged":[]}
[]
[]
[null,null,null,"في الفتره من",{"$f":"MIN(التاريخ)","v":"2022-11-22"},"الى الفتره",{"$f":"MAX(التاريخ)","v":"2022-11-22"}]
[]
[null,null,"قائمة ماليه","حساب عام","حساب تحليلى","مدين","دائن","رصيد"]
[null,null,{"$f":"VLOOKUP($D6,'دليل الحسابات'!#REF!,2,0)","v":{"$error":"#REF!"}},{"$f":"VLOOKUP($E6,'دليل الحسابات'!$L$5:$L$16,3,0)","v":{"$error":"#REF!"}},{"$f":"'دليل الحسابات'!L5","v":" المطبقايات"},{"$f":"SUMIF('اليومية العامه'!$F$7:$F$16,'ميزان المراجعه'!$E6,مدين)","v":0},{"$f":"SUMIF('اليومية العامه'!$F$7:$F$16,'ميزان المراجعه'!$E6,دائن)","v":8},{"$f":"F6-G6","v":-8}]
[null,null,{"$f":"VLOOKUP($D7,'دليل الحسابات'!#REF!,2,0)","v":{"$error":"#REF!"}},{"$f":"VLOOKUP($E7,'دليل الحسابات'!$L$5:$L$16,3,0)","v":{"$error":"#REF!"}},{"$f":"'دليل الحسابات'!L6","v":" وصله حنفيه"},{"$f":"SUMIF('اليومية العامه'!$F$7:$F$16,'ميزان المراجعه'!$E7,مدين)","v":0},{"$f":"SUMIF('اليومية العامه'!$F$7:$F$16,'ميزان المراجعه'!$E7,دائن)","v":0},{"$f":"F7-G7","v":0}]
[null,null,{"$f":"VLOOKUP($D8,'دليل الحسابات'!#REF!,2,0)","v":{"$error":"#REF!"}},{"$f":"VLOOKUP($E8,'دليل الحسابات'!$L$5:$L$16,3,0)","v":{"$error":"#REF!"}},{"$f":"'دليل الحسابات'!L7","v":"ادوات اخري"},{"$f":"SUMIF('اليومية العامه'!$F$7:$F$16,'ميزان المراجعه'!$E8,مدين)","v":0},{"$f":"SUMIF('اليومية العامه'!$F$7:$F$16,'ميزان المراجعه'!$E8,دائن)","v":2},-2]
[null,null,{"$f":"VLOOKUP($D9,'دليل الحسابات'!#REF!,2,0)","v":{"$error":"#REF!"}},{"$f":"VLOOKUP($E9,'دليل الحسابات'!$L$5:$L$16,3,0)","v":{"$error":"#REF!"}},{"$f":"'دليل الحسابات'!L8","v":"خدمة التوصيل"},{"$f":"SUMIF('اليومية العامه'!$F$7:$F$16,'ميزان المراجعه'!$E9,مدين)","v":0},{"$f":"SUMIF('اليومية العامه'!$F$7:$F$16,'ميزان المراجعه'!$E9,دائن)","v":0},0]
[null,null,{"$f":"VLOOKUP($D10,'دليل الحسابات'!#REF!,2,0)","v":{"$error":"#REF!"}},{"$f":"VLOOKUP($E10,'دليل الحسابات'!$L$5:$L$16,3,0)","v":{"$error":"#REF!"}},{"$f":"'دليل الحسابات'!L9","v":""},{"$f":"SUMIF('اليومية العامه'!$F$7:$F$16,'ميزان المراجعه'!$E10,مدين)","v":0},{"$f":"SUMIF('اليومية العامه'!$F$7:$F$16,'ميزان المراجعه'!$E10,دائن)","v":0},0]
[null,null,{"$f":"VLOOKUP($D11,'دليل الحسابات'!#REF!,2,0)","v":{"$error":"#REF!"}},{"$f":"VLOOKUP($E11,'دليل الحسابات'!$L$5:$L$16,3,0)","v":{"$error":"#REF!"}},{"$f":"'دليل الحسابات'!L10","v":""},{"$f":"SUMIF('اليومية العامه'!$F$7:$F$16,'ميزان المراجعه'!$E11,مدين)","v":0},{"$f":"SUMIF('اليومية العامه'!$F$7:$F$16,'ميزان المراجعه'!$E11,دائن)","v":0},0]
[null,null,{"$f":"VLOOKUP($D12,'دليل الحسابات'!#REF!,2,0)","v":{"$error":"#REF!"}},{"$f":"VLOOKUP($E12,'دليل الحسابات'!$L$5:$L$16,3,0)","v":{"$error":"#REF!"}},{"$f":"'دليل الحسابات'!L11","v":""},{"$f":"SUMIF('اليومية العامه'!$F$7:$F$16,'ميزان المراجعه'!$E12,مدين)","v":0},{"$f":"SUMIF('اليومية العامه'!$F$7:$F$16,'ميزان المراجعه'!$E12,دائن)","v":0},0]
[null,null,{"$f":"VLOOKUP($D13,'دليل الحسابات'!#REF!,2,0)","v":{"$error":"#REF!"}},{"$f":"VLOOKUP($E13,'دليل الحسابات'!$L$5:$L$16,3,0)","v":{"$error":"#REF!"}},{"$f":"'دليل الحسابات'!L12","v":""},{"$f":"SUMIF('اليومية العامه'!$F$7:$F$16,'ميزان المراجعه'!$E13,مدين)","v":0},{"$f":"SUMIF('اليومية العامه'!$F$7:$F$16,'ميزان المراجعه'!$E13,دائن)","v":0},0]
[null,null,{"$f":"VLOOKUP($D14,'دليل الحسابات'!#REF!,2,0)","v":{"$error":"#REF!"}},{"$f":"VLOOKUP($E14,'دليل الحسابات'!$L$5:$L$16,3,0)","v":{"$error":"#REF!"}},{"$f":"'دليل الحسابات'!L13","v":""},{"$f":"SUMIF('اليومية العامه'!$F$7:$F$16,'ميزان المراجعه'!$E14,مدين)","v":0},{"$f":"SUMIF('اليومية العامه'!$F$7:$F$16,'ميزان المراجعه'!$E14,دائن)","v":0},0]
[null,null,{"$f":"VLOOKUP($D15,'دليل الحسابات'!#REF!,2,0)","v":{"$error":"#REF!"}},{"$f":"VLOOKUP($E15,'دليل الحسابات'!$L$5:$L$16,3,0)","v":{"$error":"#REF!"}},{"$f":"'دليل الحسابات'!L14","v":""},{"$f":"SUMIF('اليومية العامه'!$F$7:$F$16,'ميزان المراجعه'!$E15,مدين)","v":0},{"$f":"SUMIF('اليومية العامه'!$F$7:$F$16,'ميزان المراجعه'!$E15,دائن)","v":0},0]
[null,null,{"$f":"VLOOKUP($D16,'دليل الحسابات'!#REF!,2,0)","v":{"$error":"#REF!"}},{"$f":"VLOOKUP($E16,'دليل الحسابات'!$L$5:$L$16,3,0)","v":{"$error":"#REF!"}},{"$f":"'دليل الحسابات'!L15","v":""},{"$f":"SUMIF('اليومية العامه'!$F$7:$F$16,'ميزان المراجعه'!$E16,مدين)","v":0},{"$f":"SUMIF('اليومية العامه'!$F$7:$F$16,'ميزان المراجعه'!$E16,دائن)","v":0},0]
[null,null,{"$f":"VLOOKUP($D17,'دليل الحسابات'!#REF!,2,0)","v":{"$error":"#REF!"}},{"$f":"VLOOKUP($E17,'دليل الحسابات'!$L$5:$L$16,3,0)","v":{"$error":"#REF!"}},{"$f":"'دليل الحسابات'!L16","v":""},{"$f":"SUMIF('اليومية العامه'!$F$7:$F$16,'ميزان المراجعه'!$E17,مدين)","v":0},{"$f":"SUMIF('اليومية العامه'!$F$7:$F$16,'ميزان المراجعه'!$E17,دائن)","v":0},0]
[null,null,{"$f":"VLOOKUP($D18,'دليل الحسابات'!#REF!,2,0)","v":{"$error":"#REF!"}},{"$f":"VLOOKUP($E18,'دليل الحسابات'!$L$5:$L$16,3,0)","v":{"$error":"#REF!"}},{"$f":"'دليل الحسابات'!#REF!","v":{"$error":"#REF!"}},{"$f":"SUMIF('اليومية العامه'!$F$7:$F$16,'ميزان المراجعه'!$E18,مدين)","v":0},{"$f":"SUMIF('اليومية العامه'!$F$7:$F$16,'ميزان المراجعه'!$E18,دائن)","v":0},0]
[null,null,{"$f":"VLOOKUP($D19,'دليل الحسابات'!#REF!,2,0)","v":{"$error":"#REF!"}},{"$f":"VLOOKUP($E19,'دليل الحسابات'!$L$5:$L$16,3,0)","v":{"$error":"#REF!"}},{"$f":"'دليل الحسابات'!#REF!","v":{"$error":"#REF!"}},{"$f":"SUMIF('اليومية العامه'!$F$7:$F$16,'ميزان المراجعه'!$E19,مدين)","v":0},{"$f":"SUMIF('اليومية العامه'!$F$7:$F$16,'ميزان المراجعه'!$E19,دائن)","v":0},0]
[null,null,{"$f":"VLOOKUP($D20,'دليل الحسابات'!#REF!,2,0)","v":{"$error":"#REF!"}},{"$f":"VLOOKUP($E20,'دليل الحسابات'!$L$5:$L$16,3,0)","v":{"$error":"#REF!"}},{"$f":"'دليل الحسابات'!#REF!","v":{"$error":"#REF!"}},{"$f":"SUMIF('اليومية العامه'!$F$7:$F$16,'ميزان المراجعه'!$E20,مدين)","v":0},{"$f":"SUMIF('اليومية العامه'!$F$7:$F$16,'ميزان المراجعه'!$E20,دائن)","v":0},0]
[null,null,{"$f":"VLOOKUP($D21,'دليل الحسابات'!#REF!,2,0)","v":{"$error":"#REF!"}},{"$f":"VLOOKUP($E21,'دليل الحسابات'!$L$5:$L$16,3,0)","v":{"$error":"#REF!"}},{"$f":"'دليل الحسابات'!#REF!","v":{"$error":"#REF!"}},{"$f":"SUMIF('اليومية العامه'!$F$7:$F$16,'ميزان المراجعه'!$E21,مدين)","v":0},{"$f":"SUMIF('اليومية العامه'!$F$7:$F$16,'ميزان المراجعه'!$E21,دائن)","v":0},0]
[null,null,{"$f":"VLOOKUP($D22,'دليل الحسابات'!#REF!,2,0)","v":{"$error":"#REF!"}},{"$f":"VLOOKUP($E22,'دليل الحسابات'!$L$5:$L$16,3,0)","v":{"$error":"#REF!"}},{"$f":"'دليل الحسابات'!#REF!","v":{"$error":"#REF!"}},{"$f":"SUMIF('اليومية العامه'!$F$7:$F$16,'ميزان المراجعه'!$E22,مدين)","v":0},{"$f":"SUMIF('اليومية العامه'!$F$7:$F$16,'ميزان المراجعه'!$E22,دائن)","v":0},0]
[null,null,{"$f":"VLOOKUP($D23,'دليل الحسابات'!#REF!,2,0)","v":{"$error":"#REF!"}},{"$f":"VLOOKUP($E23,'دليل الحسابات'!$L$5:$L$16,3,0)","v":{"$error":"#REF!"}},{"$f":"'دليل الحسابات'!#REF!","v":{"$error":"#REF!"}},{"$f":"SUMIF('اليومية العامه'!$F$7:$F$16,'ميزان المراجعه'!$E23,مدين)","v":0},{"$f":"SUMIF('اليومية العامه'!$F$7:$F$16,'ميزان المراجعه'!$E23,دائن)","v":0},0]
[null,null,{"$f":"VLOOKUP($D24,'دليل الحسابات'!#REF!,2,0)","v":{"$error":"#REF!"}},{"$f":"VLOOKUP($E24,'دليل الحسابات'!$L$5:$L$16,3,0)","v":{"$error":"#REF!"}},{"$f":"'دليل الحسابات'!#REF!","v":{"$error":"#REF!"}},{"$f":"SUMIF('اليومية العامه'!$F$7:$F$16,'ميزان المراجعه'!$E24,مدين)","v":0},{"$f":"SUMIF('اليومية العامه'!$F$7:$F$16,'ميزان المراجعه'!$E24,دائن)","v":0},0]
[null,null,{"$f":"VLOOKUP($D25,'دليل الحسابات'!#REF!,2,0)","v":{"$error":"#REF!"}},{"$f":"VLOOKUP($E25,'دليل الحسابات'!$L$5:$L$16,3,0)","v":{"$error":"#REF!"}},{"$f":"'دليل الحسابات'!#REF!","v":{"$error":"#REF!"}},{"$f":"SUMIF('اليومية العامه'!$F$7:$F$16,'ميزان المراجعه'!$E25,مدين)","v":0},{"$f":"SUMIF('اليومية العامه'!$F$7:$F$16,'ميزان المراجعه'!$E25,دائن)","v":0},0]
[null,null,{"$f":"VLOOKUP($D26,'دليل الحسابات'!#REF!,2,0)","v":{"$error":"#REF!"}},{"$f":"VLOOKUP($E26,'دليل الحسابات'!$L$5:$L$16,3,0)","v":{"$error":"#REF!"}},{"$f":"'دليل الحسابات'!#REF!","v":{"$error":"#REF!"}},{"$f":"SUMIF('اليومية العامه'!$F$7:$F$16,'ميزان المراجعه'!$E26,مدين)","v":0},{"$f":"SUMIF('اليومية العامه'!$F$7:$F$16,'ميزان المراجعه'!$E26,دائن)","v":0},0]
[null,null,{"$f":"VLOOKUP($D27,'دليل الحسابات'!#REF!,2,0)","v":{"$error":"#REF!"}},{"$f":"VLOOKUP($E27,'دليل الحسابات'!$L$5:$L$16,3,0)","v":{"$error":"#REF!"}},{"$f":"'دليل الحسابات'!#REF!","v":{"$error":"#REF!"}},{"$f":"SUMIF('اليومية العامه'!$F$7:$F$16,'ميزان المراجعه'!$E27,مدين)","v":0},{"$f":"SUMIF('اليومية العامه'!$F$7:$F$16,'ميزان المراجعه'!$E27,دائن)","v":0},0]
[null,null,{"$f":"VLOOKUP($D28,'دليل الحسابات'!#REF!,2,0)","v":{"$error":"#REF!"}},{"$f":"VLOOKUP($E28,'دليل الحسابات'!$L$5:$L$16,3,0)","v":{"$error":"#REF!"}},{"$f":"'دليل الحسابات'!#REF!","v":{"$error":"#REF!"}},{"$f":"SUMIF('اليومية العامه'!$F$7:$F$16,'ميزان المراجعه'!$E28,مدين)","v":0},{"$f":"SUMIF('اليومية العامه'!$F$7:$F$16,'ميزان المراجعه'!$E28,دائن)","v":0},0]
[null,null,{"$f":"VLOOKUP($D29,'دليل الحسابات'!#REF!,2,0)","v":{"$error":"#REF!"}},{"$f":"VLOOKUP($E29,'دليل الحسابات'!$L$5:$L$16,3,0)","v":{"$error":"#REF!"}},{"$f":"'دليل الحسابات'!#REF!","v":{"$error":"#REF!"}},{"$f":"SUMIF('اليومية العامه'!$F$7:$F$16,'ميزان المراجعه'!$E29,مدين)","v":0},{"$f":"SUMIF('اليومية العامه'!$F$7:$F$16,'ميزان المراجعه'!$E29,دائن)","v":0},0]
[null,null,{"$f":"VLOOKUP($D30,'دليل الحسابات'!#REF!,2,0)","v":{"$error":"#REF!"}},{"$f":"VLOOKUP($E30,'دليل الحسابات'!$L$5:$L$16,3,0)","v":{"$error":"#REF!"}},{"$f":"'دليل الحسابات'!#REF!","v":{"$error":"#REF!"}},{"$f":"SUMIF('اليومية العامه'!$F$7:$F$16,'ميزان المراجعه'!$E30,مدين)","v":0},{"$f":"SUMIF('اليومية العامه'!$F$7:$F$16,'ميزان المراجعه'!$E30,دائن)","v":0},0]
[null,null,{"$f":"VLOOKUP($D31,'دليل الحسابات'!#REF!,2,0)","v":{"$error":"#REF!"}},{"$f":"VLOOKUP($E31,'دليل الحسابات'!$L$5:$L$16,3,0)","v":{"$error":"#REF!"}},{"$f":"'دليل الحسابات'!#REF!","v":{"$error":"#REF!"}},{"$f":"SUMIF('اليومية العامه'!$F$7:$F$16,'ميزان المراجعه'!$E31,مدين)","v":0},{"$f":"SUMIF('اليومية العامه'!$F$7:$F$16,'ميزان المراجعه'!$E31,دائن)","v":0},0]
[null,null,{"$f":"VLOOKUP($D32,'دليل الحسابات'!#REF!,2,0)","v":{"$error":"#REF!"}},{"$f":"VLOOKUP($E32,'دليل الحسابات'!$L$5:$L$16,3,0)","v":{"$error":"#REF!"}},{"$f":"'دليل الحسابات'!#REF!","v":{"$error":"#REF!"}},{"$f":"SUMIF('اليومية العامه'!$F$7:$F$16,'ميزان المراجعه'!$E32,مدين)","v":0},{"$f":"SUMIF('اليومية العامه'!$F$7:$F$16,'ميزان المراجعه'!$E32,دائن)","v":0},0]
[null,null,{"$f":"VLOOKUP($D33,'دليل الحسابات'!#REF!,2,0)","v":{"$error":"#REF!"}},{"$f":"VLOOKUP($E33,'دليل الحسابات'!$L$5:$L$16,3,0)","v":{"$error":"#REF!"}},{"$f":"'دليل الحسابات'!#REF!","v":{"$error":"#REF!"}},{"$f":"SUMIF('اليومية العامه'!$F$7:$F$16,'ميزان المراجعه'!$E33,مدين)","v":0},{"$f":"SUMIF('اليومية العامه'!$F$7:$F$16,'ميزان المراجعه'!$E33,دائن)","v":0},0]
[null,null,{"$f":"VLOOKUP($D34,'دليل الحسابات'!#REF!,2,0)","v":{"$error":"#REF!"}},{"$f":"VLOOKUP($E34,'دليل الحسابات'!$L$5:$L$16,3,0)","v":{"$error":"#REF!"}},{"$f":"'دليل الحسابات'!#REF!","v":{"$error":"#REF!"}},{"$f":"SUMIF('اليومية العامه'!$F$7:$F$16,'ميزان المراجعه'!$E34,مدين)","v":0},{"$f":"SUMIF('اليومية العامه'!$F$7:$F$16,'ميزان المراجعه'!$E34,دائن)","v":0},0]
[null,null,{"$f":"VLOOKUP($D35,'دليل الحسابات'!#REF!,2,0)","v":{"$error":"#REF!"}},{"$f":"VLOOKUP($E35,'دليل الحسابات'!$L$5:$L$16,3,0)","v":{"$error":"#REF!"}},{"$f":"'دليل الحسابات'!#REF!","v":{"$error":"#REF!"}},{"$f":"SUMIF('اليومية العامه'!$F$7:$F$16,'ميزان المراجعه'!$E35,مدين)","v":0},{"$f":"SUMIF('اليومية العامه'!$F$7:$F$16,'ميزان المراجعه'!$E35,دائن)","v":0},0]
[null,null,{"$f":"VLOOKUP($D36,'دليل الحسابات'!#REF!,2,0)","v":{"$error":"#REF!"}},{"$f":"VLOOKUP($E36,'دليل الحسابات'!$L$5:$L$16,3,0)","v":{"$error":"#REF!"}},{"$f":"'دليل الحسابات'!#REF!","v":{"$error":"#REF!"}},{"$f":"SUMIF('اليومية العامه'!$F$7:$F$16,'ميزان المراجعه'!$E36,مدين)","v":0},{"$f":"SUMIF('اليومية العامه'!$F$7:$F$16,'ميزان المراجعه'!$E36,دائن)","v":0},0]
[null,null,{"$f":"VLOOKUP($D37,'دليل الحسابات'!#REF!,2,0)","v":{"$error":"#REF!"}},{"$f":"VLOOKUP($E37,'دليل الحسابات'!$L$5:$L$16,3,0)","v":{"$error":"#REF!"}},{"$f":"'دليل الحسابات'!#REF!","v":{"$error":"#REF!"}},{"$f":"SUMIF('اليومية العامه'!$F$7:$F$16,'ميزان المراجعه'!$E37,مدين)","v":0},{"$f":"SUMIF('اليومية العامه'!$F$7:$F$16,'ميزان المراجعه'!$E37,دائن)","v":0},0]
[null,null,{"$f":"VLOOKUP($D38,'دليل الحسابات'!#REF!,2,0)","v":{"$error":"#REF!"}},{"$f":"VLOOKUP($E38,'دليل الحسابات'!$L$5:$L$16,3,0)","v":{"$error":"#REF!"}},{"$f":"'دليل الحسابات'!#REF!","v":{"$error":"#REF!"}},{"$f":"SUMIF('اليومية العامه'!$F$7:$F$16,'ميزان المراجعه'!$E38,مدين)","v":0},{"$f":"SUMIF('اليومية العامه'!$F$7:$F$16,'ميزان المراجعه'!$E38,دائن)","v":0},0]
[null,null,{"$f":"VLOOKUP($D39,'دليل الحسابات'!#REF!,2,0)","v":{"$error":"#REF!"}},{"$f":"VLOOKUP($E39,'دليل الحسابات'!$L$5:$L$16,3,0)","v":{"$error":"#REF!"}},{"$f":"'دليل الحسابات'!#REF!","v":{"$error":"#REF!"}},{"$f":"SUMIF('اليومية العامه'!$F$7:$F$16,'ميزان المراجعه'!$E39,مدين)","v":0},{"$f":"SUMIF('اليومية العامه'!$F$7:$F$16,'ميزان المراجعه'!$E39,دائن)","v":0},0]
[null,null,{"$f":"VLOOKUP($D40,'دليل الحسابات'!#REF!,2,0)","v":{"$error":"#REF!"}},{"$f":"VLOOKUP($E40,'دليل الحسابات'!$L$5:$L$16,3,0)","v":{"$error":"#REF!"}},{"$f":"'دليل الحسابات'!#REF!","v":{"$error":"#REF!"}},{"$f":"SUMIF('اليومية العامه'!$F$7:$F$16,'ميزان المراجعه'!$E40,مدين)","v":0},{"$f":"SUMIF('اليومية العامه'!$F$7:$F$16,'ميزان المراجعه'!$E40,دائن)","v":0},0]
[null,null,{"$f":"VLOOKUP($D41,'دليل الحسابات'!#REF!,2,0)","v":{"$error":"#REF!"}},{"$f":"VLOOKUP($E41,'دليل الحسابات'!$L$5:$L$16,3,0)","v":{"$error":"#REF!"}},{"$f":"'دليل الحسابات'!#REF!","v":{"$error":"#REF!"}},{"$f":"SUMIF('اليومية العامه'!$F$7:$F$16,'ميزان المراجعه'!$E41,مدين)","v":0},{"$f":"SUMIF('اليومية العامه'!$F$7:$F$16,'ميزان المراجعه'!$E41,دائن)","v":0},0]
[null,null,{"$f":"VLOOKUP($D42,'دليل الحسابات'!#REF!,2,0)","v":{"$error":"#REF!"}},{"$f":"VLOOKUP($E42,'دليل الحسابات'!$L$5:$L$16,3,0)","v":{"$error":"#REF!"}},{"$f":"'دليل الحسابات'!#REF!","v":{"$error":"#REF!"}},{"$f":"SUMIF('اليومية العامه'!$F$7:$F$16,'ميزان المراجعه'!$E42,مدين)","v":0},{"$f":"SUMIF('اليومية العامه'!$F$7:$F$16,'ميزان المراجعه'!$E42,دائن)","v":0},0]
[null,null,{"$f":"VLOOKUP($D43,'دليل الحسابات'!#REF!,2,0)","v":{"$error":"#REF!"}},{"$f":"VLOOKUP($E43,'دليل الحسابات'!$L$5:$L$16,3,0)","v":{"$error":"#REF!"}},{"$f":"'دليل الحسابات'!#REF!","v":{"$error":"#REF!"}},{"$f":"SUMIF('اليومية العامه'!$F$7:$F$16,'ميزان المراجعه'!$E43,مدين)","v":0},{"$f":"SUMIF('اليومية العامه'!$F$7:$F$16,'ميزان المراجعه'!$E43,دائن)","v":0},0]
[null,null,{"$f":"VLOOKUP($D44,'دليل الحسابات'!#REF!,2,0)","v":{"$error":"#REF!"}},{"$f":"VLOOKUP($E44,'دليل الحسابات'!$L$5:$L$16,3,0)","v":{"$error":"#REF!"}},{"$f":"'دليل الحسابات'!#REF!","v":{"$error":"#REF!"}},{"$f":"SUMIF('اليومية العامه'!$F$7:$F$16,'ميزان المراجعه'!$E44,مدين)","v":0},{"$f":"SUMIF('اليومية العامه'!$F$7:$F$16,'ميزان المراجعه'!$E44,دائن)","v":0},0]
[null,null,{"$f":"VLOOKUP($D45,'دليل الحسابات'!#REF!,2,0)","v":{"$error":"#REF!"}},{"$f":"VLOOKUP($E45,'دليل الحسابات'!$L$5:$L$16,3,0)","v":{"$error":"#REF!"}},{"$f":"'دليل الحسابات'!#REF!","v":{"$error":"#REF!"}},{"$f":"SUMIF('اليومية العامه'!$F$7:$F$16,'ميزان المراجعه'!$E45,مدين)","v":0},{"$f":"SUMIF('اليومية العامه'!$F$7:$F$16,'ميزان المراجعه'!$E45,دائن)","v":0},0]
[null,null,{"$f":"VLOOKUP($D46,'دليل الحسابات'!#REF!,2,0)","v":{"$error":"#REF!"}},{"$f":"VLOOKUP($E46,'دليل الحسابات'!$L$5:$L$16,3,0)","v":{"$error":"#REF!"}},{"$f":"'دليل الحسابات'!#REF!","v":{"$error":"#REF!"}},{"$f":"SUMIF('اليومية العامه'!$F$7:$F$16,'ميزان المراجعه'!$E46,مدين)","v":0},{"$f":"SUMIF('اليومية العامه'!$F$7:$F$16,'ميزان المراجعه'!$E46,دائن)","v":0},0]
[null,null,{"$f":"VLOOKUP($D47,'دليل الحسابات'!#REF!,2,0)","v":{"$error":"#REF!"}},{"$f":"VLOOKUP($E47,'دليل الحسابات'!$L$5:$L$16,3,0)","v":{"$error":"#REF!"}},{"$f":"'دليل الحسابات'!#REF!","v":{"$error":"#REF!"}},{"$f":"SUMIF('اليومية العامه'!$F$7:$F$16,'ميزان المراجعه'!$E47,مدين)","v":0},{"$f":"SUMIF('اليومية العامه'!$F$7:$F$16,'ميزان المراجعه'!$E47,دائن)","v":0},0]
[null,null,{"$f":"VLOOKUP($D48,'دليل الحسابات'!#REF!,2,0)","v":{"$error":"#REF!"}},{"$f":"VLOOKUP($E48,'دليل الحسابات'!$L$5:$L$16,3,0)","v":{"$error":"#REF!"}},{"$f":"'دليل الحسابات'!#REF!","v":{"$error":"#REF!"}},{"$f":"SUMIF('اليومية العامه'!$F$7:$F$16,'ميزان المراجعه'!$E48,مدين)","v":0},{"$f":"SUMIF('اليومية العامه'!$F$7:$F$16,'ميزان المراجعه'!$E48,دائن)","v":0},0]
[null,null,{"$f":"VLOOKUP($D49,'دليل الحسابات'!#REF!,2,0)","v":{"$error":"#REF!"}},{"$f":"VLOOKUP($E49,'دليل الحسابات'!$L$5:$L$16,3,0)","v":{"$error":"#REF!"}},{"$f":"'دليل الحسابات'!#REF!","v":{"$error":"#REF!"}},{"$f":"SUMIF('اليومية العامه'!$F$7:$F$16,'ميزان المراجعه'!$E49,مدين)","v":0},{"$f":"SUMIF('اليومية العامه'!$F$7:$F$16,'ميزان المراجعه'!$E49,دائن)","v":0},0]
[null,null,{"$f":"VLOOKUP($D50,'دليل الحسابات'!#REF!,2,0)","v":{"$error":"#REF!"}},{"$f":"VLOOKUP($E50,'دليل الحسابات'!$L$5:$L$16,3,0)","v":{"$error":"#REF!"}},{"$f":"'دليل الحسابات'!#REF!","v":{"$error":"#REF!"}},{"$f":"SUMIF('اليومية العامه'!$F$7:$F$16,'ميزان المراجعه'!$E50,مدين)","v":0},{"$f":"SUMIF('اليومية العامه'!$F$7:$F$16,'ميزان المراجعه'!$E50,دائن)","v":0},0]
[null,null,{"$f":"VLOOKUP($D51,'دليل الحسابات'!#REF!,2,0)","v":{"$error":"#REF!"}},{"$f":"VLOOKUP($E51,'دليل الحسابات'!$L$5:$L$16,3,0)","v":{"$error":"#REF!"}},{"$f":"'دليل الحسابات'!#REF!","v":{"$error":"#REF!"}},{"$f":"SUMIF('اليومية العامه'!$F$7:$F$16,'ميزان المراجعه'!$E51,مدين)","v":0},{"$f":"SUMIF('اليومية العامه'!$F$7:$F$16,'ميزان المراجعه'!$E51,دائن)","v":0},0]
[null,null,{"$f":"VLOOKUP($D52,'دليل الحسابات'!#REF!,2,0)","v":{"$error":"#REF!"}},{"$f":"VLOOKUP($E52,'دليل الحسابات'!$L$5:$L$16,3,0)","v":{"$error":"#REF!"}},{"$f":"'دليل الحسابات'!#REF!","v":{"$error":"#REF!"}},{"$f":"SUMIF('اليومية العامه'!$F$7:$F$16,'ميزان المراجعه'!$E52,مدين)","v":0},{"$f":"SUMIF('اليومية العامه'!$F$7:$F$16,'ميزان المراجعه'!$E52,دائن)","v":0},0]
[null,null,{"$f":"VLOOKUP($D53,'دليل الحسابات'!#REF!,2,0)","v":{"$error":"#REF!"}},{"$f":"VLOOKUP($E53,'دليل الحسابات'!$L$5:$L$16,3,0)","v":{"$error":"#REF!"}},{"$f":"'دليل الحسابات'!#REF!","v":{"$error":"#REF!"}},{"$f":"SUMIF('اليومية العامه'!$F$7:$F$16,'ميزان المراجعه'!$E53,مدين)","v":0},{"$f":"SUMIF('اليومية العامه'!$F$7:$F$16,'ميزان المراجعه'!$E53,دائن)","v":0},0]
[null,null,{"$f":"VLOOKUP($D54,'دليل الحسابات'!#REF!,2,0)","v":{"$error":"#REF!"}},{"$f":"VLOOKUP($E54,'دليل الحسابات'!$L$5:$L$16,3,0)","v":{"$error":"#REF!"}},{"$f":"'دليل الحسابات'!#REF!","v":{"$error":"#REF!"}},{"$f":"SUMIF('اليومية العامه'!$F$7:$F$16,'ميزان المراجعه'!$E54,مدين)","v":0},{"$f":"SUMIF('اليومية العامه'!$F$7:$F$16,'ميزان المراجعه'!$E54,دائن)","v":0},0]
[null,null,{"$f":"VLOOKUP($D55,'دليل الحسابات'!#REF!,2,0)","v":{"$error":"#REF!"}},{"$f":"VLOOKUP($E55,'دليل الحسابات'!$L$5:$L$16,3,0)","v":{"$error":"#REF!"}},{"$f":"'دليل الحسابات'!#REF!","v":{"$error":"#REF!"}},{"$f":"SUMIF('اليومية العامه'!$F$7:$F$16,'ميزان المراجعه'!$E55,مدين)","v":0},{"$f":"SUMIF('اليومية العامه'!$F$7:$F$16,'ميزان المراجعه'!$E55,دائن)","v":0},0]
[null,null,{"$f":"VLOOKUP($D56,'دليل الحسابات'!#REF!,2,0)","v":{"$error":"#REF!"}},{"$f":"VLOOKUP($E56,'دليل الحسابات'!$L$5:$L$16,3,0)","v":{"$error":"#REF!"}},{"$f":"'دليل الحسابات'!#REF!","v":{"$error":"#REF!"}},{"$f":"SUMIF('اليومية العامه'!$F$7:$F$16,'ميزان المراجعه'!$E56,مدين)","v":0},{"$f":"SUMIF('اليومية العامه'!$F$7:$F$16,'ميزان المراجعه'!$E56,دائن)","v":0},0]
[null,null,{"$f":"VLOOKUP($D57,'دليل الحسابات'!#REF!,2,0)","v":{"$error":"#REF!"}},{"$f":"VLOOKUP($E57,'دليل الحسابات'!$L$5:$L$16,3,0)","v":{"$error":"#REF!"}},{"$f":"'دليل الحسابات'!#REF!","v":{"$error":"#REF!"}},{"$f":"SUMIF('اليومية العامه'!$F$7:$F$16,'ميزان المراجعه'!$E57,مدين)","v":0},{"$f":"SUMIF('اليومية العامه'!$F$7:$F$16,'ميزان المراجعه'!$E57,دائن)","v":0},0]
[null,null,{"$f":"VLOOKUP($D58,'دليل الحسابات'!#REF!,2,0)","v":{"$error":"#REF!"}},{"$f":"VLOOKUP($E58,'دليل الحسابات'!$L$5:$L$16,3,0)","v":{"$error":"#REF!"}},{"$f":"'دليل الحسابات'!#REF!","v":{"$error":"#REF!"}},{"$f":"SUMIF('اليومية العامه'!$F$7:$F$16,'ميزان المراجعه'!$E58,مدين)","v":0},{"$f":"SUMIF('اليومية العامه'!$F$7:$F$16,'ميزان المراجعه'!$E58,دائن)","v":0},0]
[null,null,{"$f":"VLOOKUP($D59,'دليل الحسابات'!#REF!,2,0)","v":{"$error":"#REF!"}},{"$f":"VLOOKUP($E59,'دليل الحسابات'!$L$5:$L$16,3,0)","v":{"$error":"#REF!"}},{"$f":"'دليل الحسابات'!#REF!","v":{"$error":"#REF!"}},{"$f":"SUMIF('اليومية العامه'!$F$7:$F$16,'ميزان المراجعه'!$E59,مدين)","v":0},{"$f":"SUMIF('اليومية العامه'!$F$7:$F$16,'ميزان المراجعه'!$E59,دائن)","v":0},0]
[null,null,{"$f":"VLOOKUP($D60,'دليل الحسابات'!#REF!,2,0)","v":{"$error":"#REF!"}},{"$f":"VLOOKUP($E60,'دليل الحسابات'!$L$5:$L$16,3,0)","v":{"$error":"#REF!"}},{"$f":"'دليل الحسابات'!#REF!","v":{"$error":"#REF!"}},{"$f":"SUMIF('اليومية العامه'!$F$7:$F$16,'ميزان المراجعه'!$E60,مدين)","v":0},{"$f":"SUMIF('اليومية العامه'!$F$7:$F$16,'ميزان المراجعه'!$E60,دائن)","v":0},0]
[null,null,{"$f":"VLOOKUP($D61,'دليل الحسابات'!#REF!,2,0)","v":{"$error":"#REF!"}},{"$f":"VLOOKUP($E61,'دليل الحسابات'!$L$5:$L$16,3,0)","v":{"$error":"#REF!"}},{"$f":"'دليل الحسابات'!#REF!","v":{"$error":"#REF!"}},{"$f":"SUMIF('اليومية العامه'!$F$7:$F$16,'ميزان المراجعه'!$E61,مدين)","v":0},{"$f":"SUMIF('اليومية العامه'!$F$7:$F$16,'ميزان المراجعه'!$E61,دائن)","v":0},0]
[null,null,{"$f":"VLOOKUP($D62,'دليل الحسابات'!#REF!,2,0)","v":{"$error":"#REF!"}},{"$f":"VLOOKUP($E62,'دليل الحسابات'!$L$5:$L$16,3,0)","v":{"$error":"#REF!"}},{"$f":"'دليل الحسابات'!#REF!","v":{"$error":"#REF!"}},{"$f":"SUMIF('اليومية العامه'!$F$7:$F$16,'ميزان المراجعه'!$E62,مدين)","v":0},{"$f":"SUMIF('اليومية العامه'!$F$7:$F$16,'ميزان المراجعه'!$E62,دائن)","v":0},0]
[null,null,{"$f":"VLOOKUP($D63,'دليل الحسابات'!#REF!,2,0)","v":{"$error":"#REF!"}},{"$f":"VLOOKUP($E63,'دليل الحسابات'!$L$5:$L$16,3,0)","v":{"$error":"#REF!"}},{"$f":"'دليل الحسابات'!#REF!","v":{"$error":"#REF!"}},{"$f":"SUMIF('اليومية العامه'!$F$7:$F$16,'ميزان المراجعه'!$E63,مدين)","v":0},{"$f":"SUMIF('اليومية العامه'!$F$7:$F$16,'ميزان المراجعه'!$E63,دائن)","v":0},0]
[null,null,{"$f":"VLOOKUP($D64,'دليل الحسابات'!#REF!,2,0)","v":{"$error":"#REF!"}},{"$f":"VLOOKUP($E64,'دليل الحسابات'!$L$5:$L$16,3,0)","v":{"$error":"#REF!"}},{"$f":"'دليل الحسابات'!#REF!","v":{"$error":"#REF!"}},{"$f":"SUMIF('اليومية العامه'!$F$7:$F$16,'ميزان المراجعه'!$E64,مدين)","v":0},{"$f":"SUMIF('اليومية العامه'!$F$7:$F$16,'ميزان المراجعه'!$E64,دائن)","v":0},0]
[null,null,{"$f":"VLOOKUP($D65,'دليل الحسابات'!#REF!,2,0)","v":{"$error":"#REF!"}},{"$f":"VLOOKUP($E65,'دليل الحسابات'!$L$5:$L$16,3,0)","v":{"$error":"#REF!"}},{"$f":"'دليل الحسابات'!#REF!","v":{"$error":"#REF!"}},{"$f":"SUMIF('اليومية العامه'!$F$7:$F$16,'ميزان المراجعه'!$E65,مدين)","v":0},{"$f":"SUMIF('اليومية العامه'!$F$7:$F$16,'ميزان المراجعه'!$E65,دائن)","v":0},0]
[null,null,{"$f":"VLOOKUP($D66,'دليل الحسابات'!#REF!,2,0)","v":{"$error":"#REF!"}},{"$f":"VLOOKUP($E66,'دليل الحسابات'!$L$5:$L$16,3,0)","v":{"$error":"#REF!"}},{"$f":"'دليل الحسابات'!#REF!","v":{"$error":"#REF!"}},{"$f":"SUMIF('اليومية العامه'!$F$7:$F$16,'ميزان المراجعه'!$E66,مدين)","v":0},{"$f":"SUMIF('اليومية العامه'!$F$7:$F$16,'ميزان المراجعه'!$E66,دائن)","v":0},0]
[null,null,{"$f":"VLOOKUP($D67,'دليل الحسابات'!#REF!,2,0)","v":{"$error":"#REF!"}},{"$f":"VLOOKUP($E67,'دليل الحسابات'!$L$5:$L$16,3,0)","v":{"$error":"#REF!"}},{"$f":"'دليل الحسابات'!#REF!","v":{"$error":"#REF!"}},{"$f":"SUMIF('اليومية العامه'!$F$7:$F$16,'ميزان المراجعه'!$E67,مدين)","v":0},{"$f":"SUMIF('اليومية العامه'!$F$7:$F$16,'ميزان المراجعه'!$E67,دائن)","v":0},0]
[]
[]
[null,null,"اجمالى الحسابات المدينه",null,null,{"$f":"SUM(F$6:F$26,F$52:F$67)","v":0},{"$f":"SUM(G$6:G$26,G$52:G$67)","v":10},{"$f":"F70-G70","v":-10}]
[null,null,"اجمالى الحسابات الدائنه",null,null,{"$f":"SUM(F$27:F$51)","v":0},{"$f":"SUM(G$27:G$51)","v":0},{"$f":"F71-G71","v":0}]
[null,null,"توازن ميزان المراجعه",null,null,{"$f":"F70-F71","v":0},{"$f":"G70-G71","v":10},{"$f":"H70-H71","v":-10}]
[null,null,null,null,null,null,null,{"$f":"IF($H$72<>0,\"ميزان المراجعه غير متوازن بمبلغ\"&\" \"&$H$72,\"الميزان متوازن\")","v":"ميزان المراجعه غير متوازن بمبلغ -10"}]
[]
[]
[null,null,"محاسب / محمد الريفى "]
[null,null,"https://www.facebook.com/elrifi.elrify"]
[null,null,"لاتنسونا بصالح دعاؤكم "]

{"sheet":"القوائم الماليه","index":6,"n_rows":65,"n_cols":11,"rows_kept":65,"cut":false,"hidden":true,"merged":[]}
[]
[null,{"$f":"CONCATENATE(مقدمه!$B2,\": \",مقدمه!$C2)","v":"اسم الشركة: "},"اسم القائمة","قائمة المركز المالى",null,null,null,{"$f":"CONCATENATE(مقدمه!$B2,\": \",مقدمه!$C2)","v":"اسم الشركة: "},"اسم القائمة","قائمة الدخل"]
[null,{"$f":"CONCATENATE(مقدمه!$B3,\": \",مقدمه!$C3)","v":"العنوان: "},"في الفتره من",{"$f":"'ميزان المراجعه'!$E$3","v":"2022-11-22"},null,null,null,{"$f":"CONCATENATE(مقدمه!$B3,\": \",مقدمه!$C3)","v":"العنوان: "},"في الفتره من",{"$f":"'ميزان المراجعه'!$E$3","v":"2022-11-22"}]
[null,{"$f":"CONCATENATE(مقدمه!$B4,\": \",مقدمه!$C4)","v":"التليفون: "},"الى الفتره",{"$f":"'ميزان المراجعه'!$G$3","v":"2022-11-22"},null,null,null,{"$f":"CONCATENATE(مقدمه!$B4,\": \",مقدمه!$C4)","v":"التليفون: "},"الى الفتره",{"$f":"'ميزان المراجعه'!$G$3","v":"2022-11-22"}]
[null,{"$f":"CONCATENATE(مقدمه!$B5,\": \",مقدمه!$C5)","v":"العمله: "},null,null,null,null,null,{"$f":"CONCATENATE(مقدمه!$B5,\": \",مقدمه!$C5)","v":"العمله: "}]
[]
[null,"البيان","جزئى","كلى","مخطط بيانى",null,null,"البيان","جزئى","كلى","مخطط بيانى"]
[null,{"$f":"'ميزان المراجعه'!$D$20","v":{"$error":"#REF!"}},null,{"$f":"SUM(C9:C15)","v":0},null,null,null,{"$f":"CONCATENATE(\"اولا\",\":\",'ميزان المراجعه'!$D$49)","v":{"$error":"#REF!"}}]
[null,{"$f":"'ميزان المراجعه'!E20","v":{"$error":"#REF!"}},{"$f":"'ميزان المراجعه'!H20","v":0},null,{"$f":"C9","v":0},null,null,{"$f":"'ميزان المراجعه'!$E49","v":{"$error":"#REF!"}},{"$f":"'ميزان المراجعه'!H49","v":0},null,{"$f":"I9","v":0}]
[null,{"$f":"'ميزان المراجعه'!E21","v":{"$error":"#REF!"}},{"$f":"'ميزان المراجعه'!H21","v":0},null,0,null,null,{"$f":"'ميزان المراجعه'!$E50","v":{"$error":"#REF!"}},{"$f":"'ميزان المراجعه'!H50","v":0},null,{"$f":"I10","v":0}]
[null,{"$f":"'ميزان المراجعه'!E22","v":{"$error":"#REF!"}},{"$f":"'ميزان المراجعه'!H22","v":0},null,0,null,null,{"$f":"CONCATENATE(\"اجمالى\",\":\",\" \",'ميزان المراجعه'!$D$49,,\" \",\"/(المبيعات)\")","v":{"$error":"#REF!"}},null,{"$f":"SUM(I9:I10)","v":0}]
[null,{"$f":"'ميزان المراجعه'!E23","v":{"$error":"#REF!"}},{"$f":"'ميزان المراجعه'!H23","v":0},null,0,null,null,{"$f":"CONCATENATE(\"ثانيا\",\":\",\"تكلفة المبيعات\")","v":"ثانيا:تكلفة المبيعات"}]
[null,{"$f":"'ميزان المراجعه'!E24","v":{"$error":"#REF!"}},{"$f":"'ميزان المراجعه'!H24","v":0},null,0,null,null,{"$f":"'ميزان المراجعه'!$E51","v":{"$error":"#REF!"}},{"$f":"'ميزان المراجعه'!H51","v":0},null,{"$f":"I13","v":0}]
[null,{"$f":"'ميزان المراجعه'!E25","v":{"$error":"#REF!"}},{"$f":"'ميزان المراجعه'!H25","v":0},null,0,null,null,{"$f":"'ميزان المراجعه'!$E52","v":{"$error":"#REF!"}},{"$f":"'ميزان المراجعه'!H52","v":0},null,0]
[null,{"$f":"'ميزان المراجعه'!E26","v":{"$error":"#REF!"}},{"$f":"'ميزان المراجعه'!H26","v":0},null,0,null,null,{"$f":"'ميزان المراجعه'!$E53","v":{"$error":"#REF!"}},{"$f":"'ميزان المراجعه'!H53","v":0},null,0]
[null,"يخصم (-)مجمع الاهلاك",null,{"$f":"-SUM(C17:C22)","v":0},null,null,null,{"$f":"'ميزان المراجعه'!$E54","v":{"$error":"#REF!"}},{"$f":"'ميزان المراجعه'!H54","v":0},null,0]
[null,{"$f":"'ميزان المراجعه'!E39","v":{"$error":"#REF!"}},{"$f":"'ميزان المراجعه'!H39","v":0},null,{"$f":"C17","v":0},null,null,{"$f":"'ميزان المراجعه'!$E55","v":{"$error":"#REF!"}},{"$f":"'ميزان المراجعه'!H55","v":0},null,0]
[null,{"$f":"'ميزان المراجعه'!E40","v":{"$error":"#REF!"}},{"$f":"'ميزان المراجعه'!H40","v":0},null,0,null,null,{"$f":"'ميزان المراجعه'!$E56","v":{"$error":"#REF!"}},{"$f":"'ميزان المراجعه'!H56","v":0},null,0]
[null,{"$f":"'ميزان المراجعه'!E41","v":{"$error":"#REF!"}},{"$f":"'ميزان المراجعه'!H41","v":0},null,0,null,null,{"$f":"'ميزان المراجعه'!$E57","v":{"$error":"#REF!"}},{"$f":"'ميزان المراجعه'!H57","v":0},null,0]
[null,{"$f":"'ميزان المراجعه'!E42","v":{"$error":"#REF!"}},{"$f":"'ميزان المراجعه'!H42","v":0},null,0,null,null,{"$f":"'ميزان المراجعه'!$E58","v":{"$error":"#REF!"}},{"$f":"'ميزان المراجعه'!H58","v":0},null,0]
[null,{"$f":"'ميزان المراجعه'!E43","v":{"$error":"#REF!"}},{"$f":"'ميزان المراجعه'!H43","v":0},null,0,null,null,{"$f":"CONCATENATE(\"اجمالى\",\":\",\" \",\"تكلفة\",'ميزان المراجعه'!$D$49,\" \",\"/(المبيعات)\")","v":{"$error":"#REF!"}},null,{"$f":"SUM(I13:I20)","v":0}]
[null,{"$f":"'ميزان المراجعه'!E44","v":{"$error":"#REF!"}},{"$f":"'ميزان المراجعه'!H44","v":0},null,0,null,null,"مجمل الربح",null,{"$f":"J11-J21","v":0}]
[null,{"$f":"CONCATENATE(\"صافى\",\" \",$B$8)","v":{"$error":"#REF!"}},null,{"$f":"SUM(D8:D22)","v":0},null,null,null,{"$f":"CONCATENATE(\"ثالثا:\",\" \",\"المصروفات الاداريه والعموميه\")","v":"ثالثا: المصروفات الاداريه والعموميه"}]
[null,{"$f":"'ميزان المراجعه'!$D$6","v":{"$error":"#REF!"}},null,null,null,null,null,{"$f":"'ميزان المراجعه'!E59","v":{"$error":"#REF!"}},{"$f":"'ميزان المراجعه'!H59","v":0},null,{"$f":"I24","v":0}]
[null,{"$f":"'ميزان المراجعه'!E6","v":" المطبقايات"},{"$f":"'ميزان المراجعه'!H6","v":-8},null,{"$f":"C25","v":-8},null,null,{"$f":"'ميزان المراجعه'!E60","v":{"$error":"#REF!"}},{"$f":"'ميزان المراجعه'!H60","v":0},null,0]
[null,{"$f":"'ميزان المراجعه'!E7","v":" وصله حنفيه"},{"$f":"'ميزان المراجعه'!H7","v":0},null,0,null,null,{"$f":"'ميزان المراجعه'!E61","v":{"$error":"#REF!"}},{"$f":"'ميزان المراجعه'!H61","v":0},null,0]
[null,{"$f":"'ميزان المراجعه'!E8","v":"ادوات اخري"},{"$f":"'ميزان المراجعه'!H8","v":-2},null,-2,null,null,{"$f":"'ميزان المراجعه'!E62","v":{"$error":"#REF!"}},{"$f":"'ميزان المراجعه'!H62","v":0},null,0]
[null,{"$f":"'ميزان المراجعه'!E9","v":"خدمة التوصيل"},{"$f":"'ميزان المراجعه'!H9","v":0},null,0,null,null,{"$f":"'ميزان المراجعه'!E63","v":{"$error":"#REF!"}},{"$f":"'ميزان المراجعه'!H63","v":0},null,0]
[null,{"$f":"'ميزان المراجعه'!E10","v":""},{"$f":"'ميزان المراجعه'!H10","v":0},null,0,null,null,{"$f":"'ميزان المراجعه'!E64","v":{"$error":"#REF!"}},{"$f":"'ميزان المراجعه'!H64","v":0},null,0]
[null,{"$f":"'ميزان المراجعه'!E11","v":""},{"$f":"'ميزان المراجعه'!H11","v":0},null,0,null,null,{"$f":"'ميزان المراجعه'!E65","v":{"$error":"#REF!"}},{"$f":"'ميزان المراجعه'!H65","v":0},null,0]
[null,{"$f":"'ميزان المراجعه'!E12","v":""},{"$f":"'ميزان المراجعه'!H12","v":0},null,0,null,null,{"$f":"'ميزان المراجعه'!E66","v":{"$error":"#REF!"}},{"$f":"'ميزان المراجعه'!H66","v":0},null,0]
[null,{"$f":"'ميزان المراجعه'!E13","v":""},{"$f":"'ميزان المراجعه'!H13","v":0},null,0,null,null,{"$f":"'ميزان المراجعه'!E67","v":{"$error":"#REF!"}},{"$f":"'ميزان المراجعه'!H67","v":0},null,0]
[null,{"$f":"'ميزان المراجعه'!E14","v":""},{"$f":"'ميزان المراجعه'!H14","v":0},null,0,null,null,{"$f":"CONCATENATE(\"اجمالى\",\":\",\" \",\"المصروفات الاداريه والعموميه\")","v":"اجمالى: المصروفات الاداريه والعموميه"},null,{"$f":"SUM(I24:I32)","v":0}]
[null,{"$f":"'ميزان المراجعه'!E15","v":""},{"$f":"'ميزان المراجعه'!H15","v":0},null,0,null,null,"صافى الربح القابل للتوزيع",null,{"$f":"$J$22-$J$33","v":0}]
[null,{"$f":"'ميزان المراجعه'!E16","v":""},{"$f":"'ميزان المراجعه'!H16","v":0},null,0,null,null,"معدل العائد على المبيعات",null,{"$f":"J34/J11","v":{"$error":"#DIV/0!"}}]
[null,{"$f":"'ميزان المراجعه'!E17","v":""},{"$f":"'ميزان المراجعه'!H17","v":0},null,0]
[null,{"$f":"'ميزان المراجعه'!E18","v":{"$error":"#REF!"}},{"$f":"'ميزان المراجعه'!H18","v":0},null,0,null,null,null,null,"تصميم "]
[null,{"$f":"'ميزان المراجعه'!E19","v":{"$error":"#REF!"}},{"$f":"'ميزان المراجعه'!H19","v":0},null,0,null,null,null,null," محمد الريفى "]
[null,{"$f":"CONCATENATE(\"اجمالى\",\" \",$B$24)","v":{"$error":"#REF!"}},null,{"$f":"SUM(C25:C38)","v":-10},null,null,null,null,null,"لاتنسونا بصالح دعاؤكم "]
[null,{"$f":"'ميزان المراجعه'!D$27","v":{"$error":"#REF!"}}]
[null,{"$f":"'ميزان المراجعه'!E27","v":{"$error":"#REF!"}},{"$f":"'ميزان المراجعه'!H22","v":0},null,{"$f":"C25","v":-8}]
[null,{"$f":"'ميزان المراجعه'!E28","v":{"$error":"#REF!"}},{"$f":"'ميزان المراجعه'!H23","v":0},null,0]
[null,{"$f":"'ميزان المراجعه'!E29","v":{"$error":"#REF!"}},{"$f":"'ميزان المراجعه'!H24","v":0},null,-2]
[null,{"$f":"'ميزان المراجعه'!E30","v":{"$error":"#REF!"}},{"$f":"'ميزان المراجعه'!H25","v":0},null,0]
[null,{"$f":"'ميزان المراجعه'!E31","v":{"$error":"#REF!"}},{"$f":"'ميزان المراجعه'!H26","v":0},null,0]
[null,{"$f":"'ميزان المراجعه'!E32","v":{"$error":"#REF!"}},{"$f":"'ميزان المراجعه'!H27","v":0},null,0]
[null,{"$f":"'ميزان المراجعه'!E33","v":{"$error":"#REF!"}},{"$f":"'ميزان المراجعه'!H28","v":0},null,0]
[null,{"$f":"'ميزان المراجعه'!E34","v":{"$error":"#REF!"}},{"$f":"'ميزان المراجعه'!H29","v":0},null,0]
[null,{"$f":"'ميزان المراجعه'!E35","v":{"$error":"#REF!"}},{"$f":"'ميزان المراجعه'!H30","v":0},null,0]
[null,{"$f":"'ميزان المراجعه'!E36","v":{"$error":"#REF!"}},{"$f":"'ميزان المراجعه'!H31","v":0},null,0]
[null,{"$f":"'ميزان المراجعه'!E37","v":{"$error":"#REF!"}},{"$f":"'ميزان المراجعه'!H32","v":0},null,0]
[null,{"$f":"'ميزان المراجعه'!E38","v":{"$error":"#REF!"}},{"$f":"'ميزان المراجعه'!H33","v":0},null,0]
[null,{"$f":"CONCATENATE(\"اجمالى\",\" \",$B$40)","v":{"$error":"#REF!"}},null,{"$f":"SUM(C41:C52)","v":0}]
[null,"راس المال العامل",null,{"$f":"D39-D53","v":-10}]
[null,"راس المال المستثمر",null,{"$f":"D23+D53","v":0}]
[null,{"$f":"CONCATENATE(\"يتم تمويله عن طريق\",\" \",'ميزان المراجعه'!$D$45)","v":{"$error":"#REF!"}}]
[null,{"$f":"'ميزان المراجعه'!E45","v":{"$error":"#REF!"}},{"$f":"'ميزان المراجعه'!H45","v":0},null,{"$f":"C57","v":0}]
[null,{"$f":"'ميزان المراجعه'!E46","v":{"$error":"#REF!"}},{"$f":"'ميزان المراجعه'!H46","v":0},null,{"$f":"C58","v":0}]
[null,{"$f":"'ميزان المراجعه'!E47","v":{"$error":"#REF!"}},{"$f":"'ميزان المراجعه'!H47","v":0},null,{"$f":"C59","v":0}]
[null,{"$f":"'ميزان المراجعه'!E48","v":{"$error":"#REF!"}},{"$f":"'ميزان المراجعه'!H48","v":0},null,{"$f":"C60","v":0}]
[null,"أرباح خسائر الاعمال العام القابله للتوزيع",{"$f":"$J$34","v":0}]
[null,"اجمالى حقوق الملكيه",null,{"$f":"SUM(C50:C61)","v":0}]
[]
[]
[null,"اعداد وتصميم محاسب / محمد الريفى "]

{"sheet":"مقدمه","index":7,"n_rows":63,"n_cols":3,"rows_kept":63,"cut":false,"hidden":true,"merged":[[11,1,11,2],[9,1,9,2],[13,1,13,2],[8,1,8,2]]}
[]
[null,"اسم الشركة"]
[null,"العنوان"]
[null,"التليفون"]
[null,"العمله"]
[]
[]
[null,"تعليمات مختصره عن البرنامج "]
[null,"مقدمه"]
[null,"بسم الله الرحمن الرحيم \nالحمد لله رب العالمين والصلاة السلام على اشرف المرسلين وعلى اله واصحابة اجمعين \nوبعد"]
[]
[null,"هذا الملف تم تصميمه ليناسب جميع الشركات صغيره الحجم التي تتعامل في عمليات او معاملات قليله \nوقد تم اعداده ليناسب نشاط المقاولات حيث تم اعداد الدليل المحاسبى بناء على شركة مقاولات وبالطبع يمكنك تغييره ليناسب اى نشاط اخر "]
[]
[null,"محتوى البرنامج "]
[]
[null,"أولا: دليل الحسابات "]
[null,"فقد حاولت تبسيط وتسهيل الدليل على قدر الإمكان وقد ابتعدت عن الاكواد وتم اعداد الدليل على 3 مستويات "]
[null,"المستوى الأول : والتي تشمل الحسابات الرئيسيه مثل الأصول الثابته والمتداوله والخصوم والايرادات والمصروفات ...............الخ "]
[null,"المستوى الثانى : والتي تشمل الحسابات الرئيسيه المتفرعه من الحسابات المذكوره في المستوى الأول"]
[null,"المستوى الثالث : والتي تشمل الحسابات التحليليه"]
[null,"المستوى الرابع : والتي تشمل الحسابات التفصيليه"]
[]
[null,"ثانيا : مستند القيد "]
[null,"وهو يمثل صفحة الادخال الرئيسيه في البرنامج كله  "]
[null,"طريقة ادخال القيد "]
[]
[]
[]
[]
[]
[]
[]
[null,"اضغط على القسم ستظهر قائمة منسدله بالحساب اختر الحساب   ثم  اضغط على اسم الصنف ليظهر لك قائمة منسدله مرتبطة بالحسابات"]
[]
[]
[]
[]
[]
[]
[]
[]
[]
[]
[null,"ثم اكتب وصفا للقيد وادخل المبلغ المدين او الدائن ..................الخ"]
[null,"ثم اضغط على زر ترحيل القيد وسيتم ترحيل القيد الى اليوميه العامه "]
[null,"يمكنك استدعاء ومشاهدة اى قيد فقط اكتب رقم الفاتورة واضغط استدعاء"]
[null,"ولكن انتبة ارقام القيود مسلسله بمعنى اذا أدخلت رقم قيد 1 سيكون التالى 2 تلقائيا "]
[]
[null,"ثالثا : اليومية العامه"]
[null,"وهى مخزن للبيانات المرحله من قيد اليومية"]
[null,"رابعا : كشف حساب تحليلى "]
[null,"حيث يمكنك  استخراج كشف حساب عن اى فتره ولاى حساب"]
[null,"خامسا: كشف حساب عام وتحليلى بالبيفوت تيبل"]
[null,"سادسا : ميزان المراجعه"]
[]
[null,"سابعا: القوائم الماليه والتي تشمل قائمة الدخل والمركز المالى"]
[]
[null,"محمد الريفى ","https://www.facebook.com/mohamed.elrify2/"]
[]
[null,"عن المصمم "]
[null," تصميم /محاسب محمد الريفى"]
[null,"https://www.facebook.com/elrifi.elrify"]
[null,"لاتنسونا بصالح دعاؤكم "]

{"sheet":"invoice","index":8,"n_rows":31,"n_cols":5,"rows_kept":31,"cut":false,"hidden":true,"merged":[]}
["كود الاوردر"]
["إسم العميل"]
["رقم الهاتف"]
["عنوان العميل"]
["المحافظة"]
["تفاصيل الاوردر","عدد",null,"السعر","القيمة"]
[]
[]
[]
[]
[]
[]
[]
[]
[]
[]
[]
[]
[]
[]
[]
[]
[]
[]
[]
[]
[]
[]
[]
["الإجمالي",null,{"$f":"ArbNum2Text($E30,2,4,\"جنيه\",\"جنيهات\",0,\"قرش\",\"قروش\",0)","v":"صفر جنيه"},null,{"$f":"SUM(E7:E28)","v":0}]
[1,null,1,null,1]

{"sheet":"الفواتير المطبوعة","index":9,"n_rows":0,"n_cols":0,"rows_kept":0,"cut":false,"hidden":false,"merged":[]}